Workbook

Sheet 入力
B3: ◆個別データ入力
C4: ●データ記入 | H4: ●勘定科目ボタン
H5: 収入 | J5: 固定費 | L5: 変動費 | P5: 日付 | Q5: 金額 | R5: 勘定科目 | S5: 内容 | T5: メモ | U5: 収入/支出 | V5: 固定費/変動費 | W5: 収支 | X5: 年 | Y5: 月
C6: 日付 | D6: 金額 | E6: 内容 | F6: メモ | H6: 給料 | J6: 家賃 | L6: 食費 | P6: 2023-03-01 | Q6: 10000 | R6: 保険代 | S6: Dﾎｹﾝ | U6: =IFERROR(IF(OFFSET(科目情報[[#Headers],[収入/固定費/変動費]],MATCH(家計簿[[#This Row],[勘定科目]],科目情報[勘定科目],0),0)="収入","収入","支出"),"") -> 支出 | V6: =IFERROR(IF(OFFSET(科目情報[[#Headers],[収入/固定費/変動費]],MATCH(家計簿[[#This Row],[勘定科目]],科目情報[勘定科目],0),0)="収入","",OFFSET(科目情報[[#Headers],[収入/固定費/変動費]],MATCH(家計簿[[#This Row],[勘定科目]],科目情報[勘定科目],0),0)),"") -> 固定費 | W6: =IFERROR(IF(家計簿[[#This Row],[収入/支出]]="収入",家計簿[[#This Row],[金額]],-家計簿[[#This Row],[金額]]),0) -> -10000 | X6: =YEAR(家計簿[[#This Row],[日付]]) -> 2023 | Y6: =MONTH(家計簿[[#This Row],[日付]]) -> 3
H7: ボーナス | J7: 電気代 | L7: 日用品 | P7: 2023-03-02 | Q7: 3000 | R7: 保険代 | S7: Eｾｲﾒｲﾎｹﾝ | U7: =IFERROR(IF(OFFSET(科目情報[[#Headers],[収入/固定費/変動費]],MATCH(家計簿[[#This Row],[勘定科目]],科目情報[勘定科目],0),0)="収入","収入","支出"),"") -> 支出 | V7: =IFERROR(IF(OFFSET(科目情報[[#Headers],[収入/固定費/変動費]],MATCH(家計簿[[#This Row],[勘定科目]],科目情報[勘定科目],0),0)="収入","",OFFSET(科目情報[[#Headers],[収入/固定費/変動費]],MATCH(家計簿[[#This Row],[勘定科目]],科目情報[勘定科目],0),0)),"") -> 固定費 | W7: =IFERROR(IF(家計簿[[#This Row],[収入/支出]]="収入",家計簿[[#This Row],[金額]],-家計簿[[#This Row],[金額]]),0) -> -3000 | X7: =YEAR(家計簿[[#This Row],[日付]]) -> 2023 | Y7: =MONTH(家計簿[[#This Row],[日付]]) -> 3
C8: （※赤文字：必須入力、黒文字：任意入力） | H8: 家賃補助 | J8: ガス代 | L8: 衣服 | P8: 2023-03-07 | Q8: 5000 | R8: 水道代 | S8: ｽｲﾄﾞｳ | U8: =IFERROR(IF(OFFSET(科目情報[[#Headers],[収入/固定費/変動費]],MATCH(家計簿[[#This Row],[勘定科目]],科目情報[勘定科目],0),0)="収入","収入","支出"),"") -> 支出 | V8: =IFERROR(IF(OFFSET(科目情報[[#Headers],[収入/固定費/変動費]],MATCH(家計簿[[#This Row],[勘定科目]],科目情報[勘定科目],0),0)="収入","",OFFSET(科目情報[[#Headers],[収入/固定費/変動費]],MATCH(家計簿[[#This Row],[勘定科目]],科目情報[勘定科目],0),0)),"") -> 固定費 | W8: =IFERROR(IF(家計簿[[#This Row],[収入/支出]]="収入",家計簿[[#This Row],[金額]],-家計簿[[#This Row],[金額]]),0) -> -5000 | X8: =YEAR(家計簿[[#This Row],[日付]]) -> 2023 | Y8: =MONTH(家計簿[[#This Row],[日付]]) -> 3
H9: 児童手当 | J9: 水道代 | L9: 教育費 | P9: 2023-03-09 | Q9: 4000 | R9: ガス代 | S9: ｶﾞｽ | U9: =IFERROR(IF(OFFSET(科目情報[[#Headers],[収入/固定費/変動費]],MATCH(家計簿[[#This Row],[勘定科目]],科目情報[勘定科目],0),0)="収入","収入","支出"),"") -> 支出 | V9: =IFERROR(IF(OFFSET(科目情報[[#Headers],[収入/固定費/変動費]],MATCH(家計簿[[#This Row],[勘定科目]],科目情報[勘定科目],0),0)="収入","",OFFSET(科目情報[[#Headers],[収入/固定費/変動費]],MATCH(家計簿[[#This Row],[勘定科目]],科目情報[勘定科目],0),0)),"") -> 固定費 | W9: =IFERROR(IF(家計簿[[#This Row],[収入/支出]]="収入",家計簿[[#This Row],[金額]],-家計簿[[#This Row],[金額]]),0) -> -4000 | X9: =YEAR(家計簿[[#This Row],[日付]]) -> 2023 | Y9: =MONTH(家計簿[[#This Row],[日付]]) -> 3
H10: 配当金 | J10: 通信費 | L10: 外食費 | P10: 2023-03-15 | Q10: 10000 | R10: 特別出費 | S10: その他 | U10: =IFERROR(IF(OFFSET(科目情報[[#Headers],[収入/固定費/変動費]],MATCH(家計簿[[#This Row],[勘定科目]],科目情報[勘定科目],0),0)="収入","収入","支出"),"") -> 支出 | V10: =IFERROR(IF(OFFSET(科目情報[[#Headers],[収入/固定費/変動費]],MATCH(家計簿[[#This Row],[勘定科目]],科目情報[勘定科目],0),0)="収入","",OFFSET(科目情報[[#Headers],[収入/固定費/変動費]],MATCH(家計簿[[#This Row],[勘定科目]],科目情報[勘定科目],0),0)),"") -> 変動費 | W10: =IFERROR(IF(家計簿[[#This Row],[収入/支出]]="収入",家計簿[[#This Row],[金額]],-家計簿[[#This Row],[金額]]),0) -> -10000 | X10: =YEAR(家計簿[[#This Row],[日付]]) -> 2023 | Y10: =MONTH(家計簿[[#This Row],[日付]]) -> 3
H11: 特別収入 | J11: 保険代 | L11: 移動費 | P11: 2023-03-14 | Q11: 3500 | R11: 食費 | S11: Cﾄﾞﾗｯｸﾞｽﾄｱ | U11: =IFERROR(IF(OFFSET(科目情報[[#Headers],[収入/固定費/変動費]],MATCH(家計簿[[#This Row],[勘定科目]],科目情報[勘定科目],0),0)="収入","収入","支出"),"") -> 支出 | V11: =IFERROR(IF(OFFSET(科目情報[[#Headers],[収入/固定費/変動費]],MATCH(家計簿[[#This Row],[勘定科目]],科目情報[勘定科目],0),0)="収入","",OFFSET(科目情報[[#Headers],[収入/固定費/変動費]],MATCH(家計簿[[#This Row],[勘定科目]],科目情報[勘定科目],0),0)),"") -> 変動費 | W11: =IFERROR(IF(家計簿[[#This Row],[収入/支出]]="収入",家計簿[[#This Row],[金額]],-家計簿[[#This Row],[金額]]),0) -> -3500 | X11: =YEAR(家計簿[[#This Row],[日付]]) -> 2023 | Y11: =MONTH(家計簿[[#This Row],[日付]]) -> 3
J12: サブスク | L12: 旅費 | P12: 2023-03-17 | Q12: 1400 | R12: サブスク | S12: Aｽｰﾊﾟｰ | U12: =IFERROR(IF(OFFSET(科目情報[[#Headers],[収入/固定費/変動費]],MATCH(家計簿[[#This Row],[勘定科目]],科目情報[勘定科目],0),0)="収入","収入","支出"),"") -> 支出 | V12: =IFERROR(IF(OFFSET(科目情報[[#Headers],[収入/固定費/変動費]],MATCH(家計簿[[#This Row],[勘定科目]],科目情報[勘定科目],0),0)="収入","",OFFSET(科目情報[[#Headers],[収入/固定費/変動費]],MATCH(家計簿[[#This Row],[勘定科目]],科目情報[勘定科目],0),0)),"") -> 固定費 | W12: =IFERROR(IF(家計簿[[#This Row],[収入/支出]]="収入",家計簿[[#This Row],[金額]],-家計簿[[#This Row],[金額]]),0) -> -1400 | X12: =YEAR(家計簿[[#This Row],[日付]]) -> 2023 | Y12: =MONTH(家計簿[[#This Row],[日付]]) -> 3
J13: 税金（固定資産、自動車） | L13: 娯楽費 | P13: 2023-03-18 | Q13: 8000 | R13: 通信費 | S13: その他 | U13: =IFERROR(IF(OFFSET(科目情報[[#Headers],[収入/固定費/変動費]],MATCH(家計簿[[#This Row],[勘定科目]],科目情報[勘定科目],0),0)="収入","収入","支出"),"") -> 支出 | V13: =IFERROR(IF(OFFSET(科目情報[[#Headers],[収入/固定費/変動費]],MATCH(家計簿[[#This Row],[勘定科目]],科目情報[勘定科目],0),0)="収入","",OFFSET(科目情報[[#Headers],[収入/固定費/変動費]],MATCH(家計簿[[#This Row],[勘定科目]],科目情報[勘定科目],0),0)),"") -> 固定費 | W13: =IFERROR(IF(家計簿[[#This Row],[収入/支出]]="収入",家計簿[[#This Row],[金額]],-家計簿[[#This Row],[金額]]),0) -> -8000 | X13: =YEAR(家計簿[[#This Row],[日付]]) -> 2023 | Y13: =MONTH(家計簿[[#This Row],[日付]]) -> 3
L14: 医療費 | P14: 2023-03-19 | Q14: 1300 | R14: 配当金 | S14: Aｽｰﾊﾟｰ | U14: =IFERROR(IF(OFFSET(科目情報[[#Headers],[収入/固定費/変動費]],MATCH(家計簿[[#This Row],[勘定科目]],科目情報[勘定科目],0),0)="収入","収入","支出"),"") -> 収入 | V14: =IFERROR(IF(OFFSET(科目情報[[#Headers],[収入/固定費/変動費]],MATCH(家計簿[[#This Row],[勘定科目]],科目情報[勘定科目],0),0)="収入","",OFFSET(科目情報[[#Headers],[収入/固定費/変動費]],MATCH(家計簿[[#This Row],[勘定科目]],科目情報[勘定科目],0),0)),"") ->  | W14: =IFERROR(IF(家計簿[[#This Row],[収入/支出]]="収入",家計簿[[#This Row],[金額]],-家計簿[[#This Row],[金額]]),0) -> 1300 | X14: =YEAR(家計簿[[#This Row],[日付]]) -> 2023 | Y14: =MONTH(家計簿[[#This Row],[日付]]) -> 3
L15: 特別出費 | P15: 2023-04-03 | Q15: 20000 | R15: 特別出費 | U15: =IFERROR(IF(OFFSET(科目情報[[#Headers],[収入/固定費/変動費]],MATCH(家計簿[[#This Row],[勘定科目]],科目情報[勘定科目],0),0)="収入","収入","支出"),"") -> 支出 | V15: =IFERROR(IF(OFFSET(科目情報[[#Headers],[収入/固定費/変動費]],MATCH(家計簿[[#This Row],[勘定科目]],科目情報[勘定科目],0),0)="収入","",OFFSET(科目情報[[#Headers],[収入/固定費/変動費]],MATCH(家計簿[[#This Row],[勘定科目]],科目情報[勘定科目],0),0)),"") -> 変動費 | W15: =IFERROR(IF(家計簿[[#This Row],[収入/支出]]="収入",家計簿[[#This Row],[金額]],-家計簿[[#This Row],[金額]]),0) -> -20000 | X15: =YEAR(家計簿[[#This Row],[日付]]) -> 2023 | Y15: =MONTH(家計簿[[#This Row],[日付]]) -> 4
P16: 2023-04-05 | Q16: 15000 | R16: 児童手当 | U16: =IFERROR(IF(OFFSET(科目情報[[#Headers],[収入/固定費/変動費]],MATCH(家計簿[[#This Row],[勘定科目]],科目情報[勘定科目],0),0)="収入","収入","支出"),"") -> 収入 | V16: =IFERROR(IF(OFFSET(科目情報[[#Headers],[収入/固定費/変動費]],MATCH(家計簿[[#This Row],[勘定科目]],科目情報[勘定科目],0),0)="収入","",OFFSET(科目情報[[#Headers],[収入/固定費/変動費]],MATCH(家計簿[[#This Row],[勘定科目]],科目情報[勘定科目],0),0)),"") ->  | W16: =IFERROR(IF(家計簿[[#This Row],[収入/支出]]="収入",家計簿[[#This Row],[金額]],-家計簿[[#This Row],[金額]]),0) -> 15000 | X16: =YEAR(家計簿[[#This Row],[日付]]) -> 2023 | Y16: =MONTH(家計簿[[#This Row],[日付]]) -> 4
P17: 2023-04-11 | Q17: 3500 | R17: 日用品 | U17: =IFERROR(IF(OFFSET(科目情報[[#Headers],[収入/固定費/変動費]],MATCH(家計簿[[#This Row],[勘定科目]],科目情報[勘定科目],0),0)="収入","収入","支出"),"") -> 支出 | V17: =IFERROR(IF(OFFSET(科目情報[[#Headers],[収入/固定費/変動費]],MATCH(家計簿[[#This Row],[勘定科目]],科目情報[勘定科目],0),0)="収入","",OFFSET(科目情報[[#Headers],[収入/固定費/変動費]],MATCH(家計簿[[#This Row],[勘定科目]],科目情報[勘定科目],0),0)),"") -> 変動費 | W17: =IFERROR(IF(家計簿[[#This Row],[収入/支出]]="収入",家計簿[[#This Row],[金額]],-家計簿[[#This Row],[金額]]),0) -> -3500 | X17: =YEAR(家計簿[[#This Row],[日付]]) -> 2023 | Y17: =MONTH(家計簿[[#This Row],[日付]]) -> 4
P18: 2023-04-16 | Q18: 1400 | R18: 食費 | U18: =IFERROR(IF(OFFSET(科目情報[[#Headers],[収入/固定費/変動費]],MATCH(家計簿[[#This Row],[勘定科目]],科目情報[勘定科目],0),0)="収入","収入","支出"),"") -> 支出 | V18: =IFERROR(IF(OFFSET(科目情報[[#Headers],[収入/固定費/変動費]],MATCH(家計簿[[#This Row],[勘定科目]],科目情報[勘定科目],0),0)="収入","",OFFSET(科目情報[[#Headers],[収入/固定費/変動費]],MATCH(家計簿[[#This Row],[勘定科目]],科目情報[勘定科目],0),0)),"") -> 変動費 | W18: =IFERROR(IF(家計簿[[#This Row],[収入/支出]]="収入",家計簿[[#This Row],[金額]],-家計簿[[#This Row],[金額]]),0) -> -1400 | X18: =YEAR(家計簿[[#This Row],[日付]]) -> 2023 | Y18: =MONTH(家計簿[[#This Row],[日付]]) -> 4
P19: 2023-04-07 | Q19: 8000 | R19: 特別出費 | U19: =IFERROR(IF(OFFSET(科目情報[[#Headers],[収入/固定費/変動費]],MATCH(家計簿[[#This Row],[勘定科目]],科目情報[勘定科目],0),0)="収入","収入","支出"),"") -> 支出 | V19: =IFERROR(IF(OFFSET(科目情報[[#Headers],[収入/固定費/変動費]],MATCH(家計簿[[#This Row],[勘定科目]],科目情報[勘定科目],0),0)="収入","",OFFSET(科目情報[[#Headers],[収入/固定費/変動費]],MATCH(家計簿[[#This Row],[勘定科目]],科目情報[勘定科目],0),0)),"") -> 変動費 | W19: =IFERROR(IF(家計簿[[#This Row],[収入/支出]]="収入",家計簿[[#This Row],[金額]],-家計簿[[#This Row],[金額]]),0) -> -8000 | X19: =YEAR(家計簿[[#This Row],[日付]]) -> 2023 | Y19: =MONTH(家計簿[[#This Row],[日付]]) -> 4
P20: 2023-04-22 | Q20: 1300 | R20: 食費 | U20: =IFERROR(IF(OFFSET(科目情報[[#Headers],[収入/固定費/変動費]],MATCH(家計簿[[#This Row],[勘定科目]],科目情報[勘定科目],0),0)="収入","収入","支出"),"") -> 支出 | V20: =IFERROR(IF(OFFSET(科目情報[[#Headers],[収入/固定費/変動費]],MATCH(家計簿[[#This Row],[勘定科目]],科目情報[勘定科目],0),0)="収入","",OFFSET(科目情報[[#Headers],[収入/固定費/変動費]],MATCH(家計簿[[#This Row],[勘定科目]],科目情報[勘定科目],0),0)),"") -> 変動費 | W20: =IFERROR(IF(家計簿[[#This Row],[収入/支出]]="収入",家計簿[[#This Row],[金額]],-家計簿[[#This Row],[金額]]),0) -> -1300 | X20: =YEAR(家計簿[[#This Row],[日付]]) -> 2023 | Y20: =MONTH(家計簿[[#This Row],[日付]]) -> 4
P21: 2023-04-30 | Q21: 70000 | R21: 家賃 | U21: =IFERROR(IF(OFFSET(科目情報[[#Headers],[収入/固定費/変動費]],MATCH(家計簿[[#This Row],[勘定科目]],科目情報[勘定科目],0),0)="収入","収入","支出"),"") -> 支出 | V21: =IFERROR(IF(OFFSET(科目情報[[#Headers],[収入/固定費/変動費]],MATCH(家計簿[[#This Row],[勘定科目]],科目情報[勘定科目],0),0)="収入","",OFFSET(科目情報[[#Headers],[収入/固定費/変動費]],MATCH(家計簿[[#This Row],[勘定科目]],科目情報[勘定科目],0),0)),"") -> 固定費 | W21: =IFERROR(IF(家計簿[[#This Row],[収入/支出]]="収入",家計簿[[#This Row],[金額]],-家計簿[[#This Row],[金額]]),0) -> -70000 | X21: =YEAR(家計簿[[#This Row],[日付]]) -> 2023 | Y21: =MONTH(家計簿[[#This Row],[日付]]) -> 4
P22: 2024-01-03 | Q22: 5000 | R22: 通信費 | U22: =IFERROR(IF(OFFSET(科目情報[[#Headers],[収入/固定費/変動費]],MATCH(家計簿[[#This Row],[勘定科目]],科目情報[勘定科目],0),0)="収入","収入","支出"),"") -> 支出 | V22: =IFERROR(IF(OFFSET(科目情報[[#Headers],[収入/固定費/変動費]],MATCH(家計簿[[#This Row],[勘定科目]],科目情報[勘定科目],0),0)="収入","",OFFSET(科目情報[[#Headers],[収入/固定費/変動費]],MATCH(家計簿[[#This Row],[勘定科目]],科目情報[勘定科目],0),0)),"") -> 固定費 | W22: =IFERROR(IF(家計簿[[#This Row],[収入/支出]]="収入",家計簿[[#This Row],[金額]],-家計簿[[#This Row],[金額]]),0) -> -5000 | X22: =YEAR(家計簿[[#This Row],[日付]]) -> 2024 | Y22: =MONTH(家計簿[[#This Row],[日付]]) -> 1
P23: 2024-01-03 | Q23: 5000 | R23: 移動費 | U23: =IFERROR(IF(OFFSET(科目情報[[#Headers],[収入/固定費/変動費]],MATCH(家計簿[[#This Row],[勘定科目]],科目情報[勘定科目],0),0)="収入","収入","支出"),"") -> 支出 | V23: =IFERROR(IF(OFFSET(科目情報[[#Headers],[収入/固定費/変動費]],MATCH(家計簿[[#This Row],[勘定科目]],科目情報[勘定科目],0),0)="収入","",OFFSET(科目情報[[#Headers],[収入/固定費/変動費]],MATCH(家計簿[[#This Row],[勘定科目]],科目情報[勘定科目],0),0)),"") -> 変動費 | W23: =IFERROR(IF(家計簿[[#This Row],[収入/支出]]="収入",家計簿[[#This Row],[金額]],-家計簿[[#This Row],[金額]]),0) -> -5000 | X23: =YEAR(家計簿[[#This Row],[日付]]) -> 2024 | Y23: =MONTH(家計簿[[#This Row],[日付]]) -> 1
P24: 2024-01-03 | Q24: 5000 | R24: 移動費 | U24: =IFERROR(IF(OFFSET(科目情報[[#Headers],[収入/固定費/変動費]],MATCH(家計簿[[#This Row],[勘定科目]],科目情報[勘定科目],0),0)="収入","収入","支出"),"") -> 支出 | V24: =IFERROR(IF(OFFSET(科目情報[[#Headers],[収入/固定費/変動費]],MATCH(家計簿[[#This Row],[勘定科目]],科目情報[勘定科目],0),0)="収入","",OFFSET(科目情報[[#Headers],[収入/固定費/変動費]],MATCH(家計簿[[#This Row],[勘定科目]],科目情報[勘定科目],0),0)),"") -> 変動費 | W24: =IFERROR(IF(家計簿[[#This Row],[収入/支出]]="収入",家計簿[[#This Row],[金額]],-家計簿[[#This Row],[金額]]),0) -> -5000 | X24: =YEAR(家計簿[[#This Row],[日付]]) -> 2024 | Y24: =MONTH(家計簿[[#This Row],[日付]]) -> 1
P25: 2024-01-04 | Q25: 5000 | R25: 児童手当 | U25: =IFERROR(IF(OFFSET(科目情報[[#Headers],[収入/固定費/変動費]],MATCH(家計簿[[#This Row],[勘定科目]],科目情報[勘定科目],0),0)="収入","収入","支出"),"") -> 収入 | V25: =IFERROR(IF(OFFSET(科目情報[[#Headers],[収入/固定費/変動費]],MATCH(家計簿[[#This Row],[勘定科目]],科目情報[勘定科目],0),0)="収入","",OFFSET(科目情報[[#Headers],[収入/固定費/変動費]],MATCH(家計簿[[#This Row],[勘定科目]],科目情報[勘定科目],0),0)),"") ->  | W25: =IFERROR(IF(家計簿[[#This Row],[収入/支出]]="収入",家計簿[[#This Row],[金額]],-家計簿[[#This Row],[金額]]),0) -> 5000 | X25: =YEAR(家計簿[[#This Row],[日付]]) -> 2024 | Y25: =MONTH(家計簿[[#This Row],[日付]]) -> 1

Sheet 科目情報
A1: 収入/固定費/変動費 | B1: 勘定科目
A2: 固定費 | B2: 家賃
A3: 固定費 | B3: 電気代
A4: 固定費 | B4: ガス代
A5: 固定費 | B5: 水道代
A6: 固定費 | B6: 通信費
A7: 固定費 | B7: 保険代
A8: 固定費 | B8: サブスク
A9: 固定費 | B9: 税金（固定資産、自動車）
A10: 収入 | B10: 給料
A11: 収入 | B11: ボーナス
A12: 収入 | B12: 家賃補助
A13: 収入 | B13: 児童手当
A14: 収入 | B14: 配当金
A15: 収入 | B15: 特別収入
A16: 変動費 | B16: 食費
A17: 変動費 | B17: 日用品
A18: 変動費 | B18: 衣服
A19: 変動費 | B19: 教育費
A20: 変動費 | B20: 外食費
A21: 変動費 | B21: 移動費
A22: 変動費 | B22: 旅費
A23: 変動費 | B23: 娯楽費
A24: 変動費 | B24: 医療費
A25: 変動費 | B25: 特別出費

Sheet 月別グラフ
A1: 年 | B1: 2023 | C1: 月初 | D1: =IF(OR(B1="",B2=""),"",DATE(B1,B2,1)) -> 2023-03-01 | E1: 集計結果 | F1: 収入 | G1: =SUMIF(月別情報[収入/支出],F1,月別情報[金額]) -> 1300 | H1: 固定費 | I1: =SUMIF(月別情報[固定費/変動費],H1,月別情報[金額]) -> 31400
A2: 月 | B2: 3 | C2: 月末 | D2: =IF(OR(B1="",B2=""),"",DATE(B1,B2+1,1)-1) -> 2023-03-31 | F2: 支出 | G2: =SUMIF(月別情報[収入/支出],F2,月別情報[金額]) -> 44900 | H2: 変動費 | I2: =SUMIF(月別情報[固定費/変動費],H2,月別情報[金額]) -> 13500
A4: 勘定科目 | B4: 金額 | C4: 収入/支出 | D4: 固定費/変動費 | E4: 収支
A5: 給料 | B5: =SUMIFS(家計簿[金額],家計簿[勘定科目],"="&月別情報[[#This Row],[勘定科目]],家計簿[日付],">="&月別グラフ!$D$1,家計簿[日付],"<="&月別グラフ!$D$2) -> 0 | C5: =IFERROR(IF(OFFSET(科目情報[[#Headers],[収入/固定費/変動費]],MATCH(月別情報[[#This Row],[勘定科目]],科目情報[勘定科目],0),0)="収入","収入","支出"),"") -> 収入 | D5: =IFERROR(IF(OFFSET(科目情報[[#Headers],[収入/固定費/変動費]],MATCH(月別情報[[#This Row],[勘定科目]],科目情報[勘定科目],0),0)="収入","",OFFSET(科目情報[[#Headers],[収入/固定費/変動費]],MATCH(月別情報[[#This Row],[勘定科目]],科目情報[勘定科目],0),0)),"") ->  | E5: =IFERROR(IF(月別情報[[#This Row],[収入/支出]]="収入",月別情報[[#This Row],[金額]],-月別情報[[#This Row],[金額]]),0) -> 0
A6: ボーナス | B6: =SUMIFS(家計簿[金額],家計簿[勘定科目],"="&月別情報[[#This Row],[勘定科目]],家計簿[日付],">="&月別グラフ!$D$1,家計簿[日付],"<="&月別グラフ!$D$2) -> 0 | C6: =IFERROR(IF(OFFSET(科目情報[[#Headers],[収入/固定費/変動費]],MATCH(月別情報[[#This Row],[勘定科目]],科目情報[勘定科目],0),0)="収入","収入","支出"),"") -> 収入 | D6: =IFERROR(IF(OFFSET(科目情報[[#Headers],[収入/固定費/変動費]],MATCH(月別情報[[#This Row],[勘定科目]],科目情報[勘定科目],0),0)="収入","",OFFSET(科目情報[[#Headers],[収入/固定費/変動費]],MATCH(月別情報[[#This Row],[勘定科目]],科目情報[勘定科目],0),0)),"") ->  | E6: =IFERROR(IF(月別情報[[#This Row],[収入/支出]]="収入",月別情報[[#This Row],[金額]],-月別情報[[#This Row],[金額]]),0) -> 0
A7: 家賃補助 | B7: =SUMIFS(家計簿[金額],家計簿[勘定科目],"="&月別情報[[#This Row],[勘定科目]],家計簿[日付],">="&月別グラフ!$D$1,家計簿[日付],"<="&月別グラフ!$D$2) -> 0 | C7: =IFERROR(IF(OFFSET(科目情報[[#Headers],[収入/固定費/変動費]],MATCH(月別情報[[#This Row],[勘定科目]],科目情報[勘定科目],0),0)="収入","収入","支出"),"") -> 収入 | D7: =IFERROR(IF(OFFSET(科目情報[[#Headers],[収入/固定費/変動費]],MATCH(月別情報[[#This Row],[勘定科目]],科目情報[勘定科目],0),0)="収入","",OFFSET(科目情報[[#Headers],[収入/固定費/変動費]],MATCH(月別情報[[#This Row],[勘定科目]],科目情報[勘定科目],0),0)),"") ->  | E7: =IFERROR(IF(月別情報[[#This Row],[収入/支出]]="収入",月別情報[[#This Row],[金額]],-月別情報[[#This Row],[金額]]),0) -> 0
A8: 児童手当 | B8: =SUMIFS(家計簿[金額],家計簿[勘定科目],"="&月別情報[[#This Row],[勘定科目]],家計簿[日付],">="&月別グラフ!$D$1,家計簿[日付],"<="&月別グラフ!$D$2) -> 0 | C8: =IFERROR(IF(OFFSET(科目情報[[#Headers],[収入/固定費/変動費]],MATCH(月別情報[[#This Row],[勘定科目]],科目情報[勘定科目],0),0)="収入","収入","支出"),"") -> 収入 | D8: =IFERROR(IF(OFFSET(科目情報[[#Headers],[収入/固定費/変動費]],MATCH(月別情報[[#This Row],[勘定科目]],科目情報[勘定科目],0),0)="収入","",OFFSET(科目情報[[#Headers],[収入/固定費/変動費]],MATCH(月別情報[[#This Row],[勘定科目]],科目情報[勘定科目],0),0)),"") ->  | E8: =IFERROR(IF(月別情報[[#This Row],[収入/支出]]="収入",月別情報[[#This Row],[金額]],-月別情報[[#This Row],[金額]]),0) -> 0
A9: 配当金 | B9: =SUMIFS(家計簿[金額],家計簿[勘定科目],"="&月別情報[[#This Row],[勘定科目]],家計簿[日付],">="&月別グラフ!$D$1,家計簿[日付],"<="&月別グラフ!$D$2) -> 1300 | C9: =IFERROR(IF(OFFSET(科目情報[[#Headers],[収入/固定費/変動費]],MATCH(月別情報[[#This Row],[勘定科目]],科目情報[勘定科目],0),0)="収入","収入","支出"),"") -> 収入 | D9: =IFERROR(IF(OFFSET(科目情報[[#Headers],[収入/固定費/変動費]],MATCH(月別情報[[#This Row],[勘定科目]],科目情報[勘定科目],0),0)="収入","",OFFSET(科目情報[[#Headers],[収入/固定費/変動費]],MATCH(月別情報[[#This Row],[勘定科目]],科目情報[勘定科目],0),0)),"") ->  | E9: =IFERROR(IF(月別情報[[#This Row],[収入/支出]]="収入",月別情報[[#This Row],[金額]],-月別情報[[#This Row],[金額]]),0) -> 1300
A10: 特別収入 | B10: =SUMIFS(家計簿[金額],家計簿[勘定科目],"="&月別情報[[#This Row],[勘定科目]],家計簿[日付],">="&月別グラフ!$D$1,家計簿[日付],"<="&月別グラフ!$D$2) -> 0 | C10: =IFERROR(IF(OFFSET(科目情報[[#Headers],[収入/固定費/変動費]],MATCH(月別情報[[#This Row],[勘定科目]],科目情報[勘定科目],0),0)="収入","収入","支出"),"") -> 収入 | D10: =IFERROR(IF(OFFSET(科目情報[[#Headers],[収入/固定費/変動費]],MATCH(月別情報[[#This Row],[勘定科目]],科目情報[勘定科目],0),0)="収入","",OFFSET(科目情報[[#Headers],[収入/固定費/変動費]],MATCH(月別情報[[#This Row],[勘定科目]],科目情報[勘定科目],0),0)),"") ->  | E10: =IFERROR(IF(月別情報[[#This Row],[収入/支出]]="収入",月別情報[[#This Row],[金額]],-月別情報[[#This Row],[金額]]),0) -> 0
A11: 家賃 | B11: =SUMIFS(家計簿[金額],家計簿[勘定科目],"="&月別情報[[#This Row],[勘定科目]],家計簿[日付],">="&月別グラフ!$D$1,家計簿[日付],"<="&月別グラフ!$D$2) -> 0 | C11: =IFERROR(IF(OFFSET(科目情報[[#Headers],[収入/固定費/変動費]],MATCH(月別情報[[#This Row],[勘定科目]],科目情報[勘定科目],0),0)="収入","収入","支出"),"") -> 支出 | D11: =IFERROR(IF(OFFSET(科目情報[[#Headers],[収入/固定費/変動費]],MATCH(月別情報[[#This Row],[勘定科目]],科目情報[勘定科目],0),0)="収入","",OFFSET(科目情報[[#Headers],[収入/固定費/変動費]],MATCH(月別情報[[#This Row],[勘定科目]],科目情報[勘定科目],0),0)),"") -> 固定費 | E11: =IFERROR(IF(月別情報[[#This Row],[収入/支出]]="収入",月別情報[[#This Row],[金額]],-月別情報[[#This Row],[金額]]),0) -> 0
A12: 電気代 | B12: =SUMIFS(家計簿[金額],家計簿[勘定科目],"="&月別情報[[#This Row],[勘定科目]],家計簿[日付],">="&月別グラフ!$D$1,家計簿[日付],"<="&月別グラフ!$D$2) -> 0 | C12: =IFERROR(IF(OFFSET(科目情報[[#Headers],[収入/固定費/変動費]],MATCH(月別情報[[#This Row],[勘定科目]],科目情報[勘定科目],0),0)="収入","収入","支出"),"") -> 支出 | D12: =IFERROR(IF(OFFSET(科目情報[[#Headers],[収入/固定費/変動費]],MATCH(月別情報[[#This Row],[勘定科目]],科目情報[勘定科目],0),0)="収入","",OFFSET(科目情報[[#Headers],[収入/固定費/変動費]],MATCH(月別情報[[#This Row],[勘定科目]],科目情報[勘定科目],0),0)),"") -> 固定費 | E12: =IFERROR(IF(月別情報[[#This Row],[収入/支出]]="収入",月別情報[[#This Row],[金額]],-月別情報[[#This Row],[金額]]),0) -> 0
A13: ガス代 | B13: =SUMIFS(家計簿[金額],家計簿[勘定科目],"="&月別情報[[#This Row],[勘定科目]],家計簿[日付],">="&月別グラフ!$D$1,家計簿[日付],"<="&月別グラフ!$D$2) -> 4000 | C13: =IFERROR(IF(OFFSET(科目情報[[#Headers],[収入/固定費/変動費]],MATCH(月別情報[[#This Row],[勘定科目]],科目情報[勘定科目],0),0)="収入","収入","支出"),"") -> 支出 | D13: =IFERROR(IF(OFFSET(科目情報[[#Headers],[収入/固定費/変動費]],MATCH(月別情報[[#This Row],[勘定科目]],科目情報[勘定科目],0),0)="収入","",OFFSET(科目情報[[#Headers],[収入/固定費/変動費]],MATCH(月別情報[[#This Row],[勘定科目]],科目情報[勘定科目],0),0)),"") -> 固定費 | E13: =IFERROR(IF(月別情報[[#This Row],[収入/支出]]="収入",月別情報[[#This Row],[金額]],-月別情報[[#This Row],[金額]]),0) -> -4000
A14: 水道代 | B14: =SUMIFS(家計簿[金額],家計簿[勘定科目],"="&月別情報[[#This Row],[勘定科目]],家計簿[日付],">="&月別グラフ!$D$1,家計簿[日付],"<="&月別グラフ!$D$2) -> 5000 | C14: =IFERROR(IF(OFFSET(科目情報[[#Headers],[収入/固定費/変動費]],MATCH(月別情報[[#This Row],[勘定科目]],科目情報[勘定科目],0),0)="収入","収入","支出"),"") -> 支出 | D14: =IFERROR(IF(OFFSET(科目情報[[#Headers],[収入/固定費/変動費]],MATCH(月別情報[[#This Row],[勘定科目]],科目情報[勘定科目],0),0)="収入","",OFFSET(科目情報[[#Headers],[収入/固定費/変動費]],MATCH(月別情報[[#This Row],[勘定科目]],科目情報[勘定科目],0),0)),"") -> 固定費 | E14: =IFERROR(IF(月別情報[[#This Row],[収入/支出]]="収入",月別情報[[#This Row],[金額]],-月別情報[[#This Row],[金額]]),0) -> -5000
A15: 通信費 | B15: =SUMIFS(家計簿[金額],家計簿[勘定科目],"="&月別情報[[#This Row],[勘定科目]],家計簿[日付],">="&月別グラフ!$D$1,家計簿[日付],"<="&月別グラフ!$D$2) -> 8000 | C15: =IFERROR(IF(OFFSET(科目情報[[#Headers],[収入/固定費/変動費]],MATCH(月別情報[[#This Row],[勘定科目]],科目情報[勘定科目],0),0)="収入","収入","支出"),"") -> 支出 | D15: =IFERROR(IF(OFFSET(科目情報[[#Headers],[収入/固定費/変動費]],MATCH(月別情報[[#This Row],[勘定科目]],科目情報[勘定科目],0),0)="収入","",OFFSET(科目情報[[#Headers],[収入/固定費/変動費]],MATCH(月別情報[[#This Row],[勘定科目]],科目情報[勘定科目],0),0)),"") -> 固定費 | E15: =IFERROR(IF(月別情報[[#This Row],[収入/支出]]="収入",月別情報[[#This Row],[金額]],-月別情報[[#This Row],[金額]]),0) -> -8000
A16: 保険代 | B16: =SUMIFS(家計簿[金額],家計簿[勘定科目],"="&月別情報[[#This Row],[勘定科目]],家計簿[日付],">="&月別グラフ!$D$1,家計簿[日付],"<="&月別グラフ!$D$2) -> 13000 | C16: =IFERROR(IF(OFFSET(科目情報[[#Headers],[収入/固定費/変動費]],MATCH(月別情報[[#This Row],[勘定科目]],科目情報[勘定科目],0),0)="収入","収入","支出"),"") -> 支出 | D16: =IFERROR(IF(OFFSET(科目情報[[#Headers],[収入/固定費/変動費]],MATCH(月別情報[[#This Row],[勘定科目]],科目情報[勘定科目],0),0)="収入","",OFFSET(科目情報[[#Headers],[収入/固定費/変動費]],MATCH(月別情報[[#This Row],[勘定科目]],科目情報[勘定科目],0),0)),"") -> 固定費 | E16: =IFERROR(IF(月別情報[[#This Row],[収入/支出]]="収入",月別情報[[#This Row],[金額]],-月別情報[[#This Row],[金額]]),0) -> -13000
A17: サブスク | B17: =SUMIFS(家計簿[金額],家計簿[勘定科目],"="&月別情報[[#This Row],[勘定科目]],家計簿[日付],">="&月別グラフ!$D$1,家計簿[日付],"<="&月別グラフ!$D$2) -> 1400 | C17: =IFERROR(IF(OFFSET(科目情報[[#Headers],[収入/固定費/変動費]],MATCH(月別情報[[#This Row],[勘定科目]],科目情報[勘定科目],0),0)="収入","収入","支出"),"") -> 支出 | D17: =IFERROR(IF(OFFSET(科目情報[[#Headers],[収入/固定費/変動費]],MATCH(月別情報[[#This Row],[勘定科目]],科目情報[勘定科目],0),0)="収入","",OFFSET(科目情報[[#Headers],[収入/固定費/変動費]],MATCH(月別情報[[#This Row],[勘定科目]],科目情報[勘定科目],0),0)),"") -> 固定費 | E17: =IFERROR(IF(月別情報[[#This Row],[収入/支出]]="収入",月別情報[[#This Row],[金額]],-月別情報[[#This Row],[金額]]),0) -> -1400
A18: 税金（固定資産、自動車） | B18: =SUMIFS(家計簿[金額],家計簿[勘定科目],"="&月別情報[[#This Row],[勘定科目]],家計簿[日付],">="&月別グラフ!$D$1,家計簿[日付],"<="&月別グラフ!$D$2) -> 0 | C18: =IFERROR(IF(OFFSET(科目情報[[#Headers],[収入/固定費/変動費]],MATCH(月別情報[[#This Row],[勘定科目]],科目情報[勘定科目],0),0)="収入","収入","支出"),"") -> 支出 | D18: =IFERROR(IF(OFFSET(科目情報[[#Headers],[収入/固定費/変動費]],MATCH(月別情報[[#This Row],[勘定科目]],科目情報[勘定科目],0),0)="収入","",OFFSET(科目情報[[#Headers],[収入/固定費/変動費]],MATCH(月別情報[[#This Row],[勘定科目]],科目情報[勘定科目],0),0)),"") -> 固定費 | E18: =IFERROR(IF(月別情報[[#This Row],[収入/支出]]="収入",月別情報[[#This Row],[金額]],-月別情報[[#This Row],[金額]]),0) -> 0
A19: 食費 | B19: =SUMIFS(家計簿[金額],家計簿[勘定科目],"="&月別情報[[#This Row],[勘定科目]],家計簿[日付],">="&月別グラフ!$D$1,家計簿[日付],"<="&月別グラフ!$D$2) -> 3500 | C19: =IFERROR(IF(OFFSET(科目情報[[#Headers],[収入/固定費/変動費]],MATCH(月別情報[[#This Row],[勘定科目]],科目情報[勘定科目],0),0)="収入","収入","支出"),"") -> 支出 | D19: =IFERROR(IF(OFFSET(科目情報[[#Headers],[収入/固定費/変動費]],MATCH(月別情報[[#This Row],[勘定科目]],科目情報[勘定科目],0),0)="収入","",OFFSET(科目情報[[#Headers],[収入/固定費/変動費]],MATCH(月別情報[[#This Row],[勘定科目]],科目情報[勘定科目],0),0)),"") -> 変動費 | E19: =IFERROR(IF(月別情報[[#This Row],[収入/支出]]="収入",月別情報[[#This Row],[金額]],-月別情報[[#This Row],[金額]]),0) -> -3500
A20: 日用品 | B20: =SUMIFS(家計簿[金額],家計簿[勘定科目],"="&月別情報[[#This Row],[勘定科目]],家計簿[日付],">="&月別グラフ!$D$1,家計簿[日付],"<="&月別グラフ!$D$2) -> 0 | C20: =IFERROR(IF(OFFSET(科目情報[[#Headers],[収入/固定費/変動費]],MATCH(月別情報[[#This Row],[勘定科目]],科目情報[勘定科目],0),0)="収入","収入","支出"),"") -> 支出 | D20: =IFERROR(IF(OFFSET(科目情報[[#Headers],[収入/固定費/変動費]],MATCH(月別情報[[#This Row],[勘定科目]],科目情報[勘定科目],0),0)="収入","",OFFSET(科目情報[[#Headers],[収入/固定費/変動費]],MATCH(月別情報[[#This Row],[勘定科目]],科目情報[勘定科目],0),0)),"") -> 変動費 | E20: =IFERROR(IF(月別情報[[#This Row],[収入/支出]]="収入",月別情報[[#This Row],[金額]],-月別情報[[#This Row],[金額]]),0) -> 0
A21: 衣服 | B21: =SUMIFS(家計簿[金額],家計簿[勘定科目],"="&月別情報[[#This Row],[勘定科目]],家計簿[日付],">="&月別グラフ!$D$1,家計簿[日付],"<="&月別グラフ!$D$2) -> 0 | C21: =IFERROR(IF(OFFSET(科目情報[[#Headers],[収入/固定費/変動費]],MATCH(月別情報[[#This Row],[勘定科目]],科目情報[勘定科目],0),0)="収入","収入","支出"),"") -> 支出 | D21: =IFERROR(IF(OFFSET(科目情報[[#Headers],[収入/固定費/変動費]],MATCH(月別情報[[#This Row],[勘定科目]],科目情報[勘定科目],0),0)="収入","",OFFSET(科目情報[[#Headers],[収入/固定費/変動費]],MATCH(月別情報[[#This Row],[勘定科目]],科目情報[勘定科目],0),0)),"") -> 変動費 | E21: =IFERROR(IF(月別情報[[#This Row],[収入/支出]]="収入",月別情報[[#This Row],[金額]],-月別情報[[#This Row],[金額]]),0) -> 0
A22: 教育費 | B22: =SUMIFS(家計簿[金額],家計簿[勘定科目],"="&月別情報[[#This Row],[勘定科目]],家計簿[日付],">="&月別グラフ!$D$1,家計簿[日付],"<="&月別グラフ!$D$2) -> 0 | C22: =IFERROR(IF(OFFSET(科目情報[[#Headers],[収入/固定費/変動費]],MATCH(月別情報[[#This Row],[勘定科目]],科目情報[勘定科目],0),0)="収入","収入","支出"),"") -> 支出 | D22: =IFERROR(IF(OFFSET(科目情報[[#Headers],[収入/固定費/変動費]],MATCH(月別情報[[#This Row],[勘定科目]],科目情報[勘定科目],0),0)="収入","",OFFSET(科目情報[[#Headers],[収入/固定費/変動費]],MATCH(月別情報[[#This Row],[勘定科目]],科目情報[勘定科目],0),0)),"") -> 変動費 | E22: =IFERROR(IF(月別情報[[#This Row],[収入/支出]]="収入",月別情報[[#This Row],[金額]],-月別情報[[#This Row],[金額]]),0) -> 0
A23: 外食費 | B23: =SUMIFS(家計簿[金額],家計簿[勘定科目],"="&月別情報[[#This Row],[勘定科目]],家計簿[日付],">="&月別グラフ!$D$1,家計簿[日付],"<="&月別グラフ!$D$2) -> 0 | C23: =IFERROR(IF(OFFSET(科目情報[[#Headers],[収入/固定費/変動費]],MATCH(月別情報[[#This Row],[勘定科目]],科目情報[勘定科目],0),0)="収入","収入","支出"),"") -> 支出 | D23: =IFERROR(IF(OFFSET(科目情報[[#Headers],[収入/固定費/変動費]],MATCH(月別情報[[#This Row],[勘定科目]],科目情報[勘定科目],0),0)="収入","",OFFSET(科目情報[[#Headers],[収入/固定費/変動費]],MATCH(月別情報[[#This Row],[勘定科目]],科目情報[勘定科目],0),0)),"") -> 変動費 | E23: =IFERROR(IF(月別情報[[#This Row],[収入/支出]]="収入",月別情報[[#This Row],[金額]],-月別情報[[#This Row],[金額]]),0) -> 0
A24: 移動費 | B24: =SUMIFS(家計簿[金額],家計簿[勘定科目],"="&月別情報[[#This Row],[勘定科目]],家計簿[日付],">="&月別グラフ!$D$1,家計簿[日付],"<="&月別グラフ!$D$2) -> 0 | C24: =IFERROR(IF(OFFSET(科目情報[[#Headers],[収入/固定費/変動費]],MATCH(月別情報[[#This Row],[勘定科目]],科目情報[勘定科目],0),0)="収入","収入","支出"),"") -> 支出 | D24: =IFERROR(IF(OFFSET(科目情報[[#Headers],[収入/固定費/変動費]],MATCH(月別情報[[#This Row],[勘定科目]],科目情報[勘定科目],0),0)="収入","",OFFSET(科目情報[[#Headers],[収入/固定費/変動費]],MATCH(月別情報[[#This Row],[勘定科目]],科目情報[勘定科目],0),0)),"") -> 変動費 | E24: =IFERROR(IF(月別情報[[#This Row],[収入/支出]]="収入",月別情報[[#This Row],[金額]],-月別情報[[#This Row],[金額]]),0) -> 0
A25: 旅費 | B25: =SUMIFS(家計簿[金額],家計簿[勘定科目],"="&月別情報[[#This Row],[勘定科目]],家計簿[日付],">="&月別グラフ!$D$1,家計簿[日付],"<="&月別グラフ!$D$2) -> 0 | C25: =IFERROR(IF(OFFSET(科目情報[[#Headers],[収入/固定費/変動費]],MATCH(月別情報[[#This Row],[勘定科目]],科目情報[勘定科目],0),0)="収入","収入","支出"),"") -> 支出 | D25: =IFERROR(IF(OFFSET(科目情報[[#Headers],[収入/固定費/変動費]],MATCH(月別情報[[#This Row],[勘定科目]],科目情報[勘定科目],0),0)="収入","",OFFSET(科目情報[[#Headers],[収入/固定費/変動費]],MATCH(月別情報[[#This Row],[勘定科目]],科目情報[勘定科目],0),0)),"") -> 変動費 | E25: =IFERROR(IF(月別情報[[#This Row],[収入/支出]]="収入",月別情報[[#This Row],[金額]],-月別情報[[#This Row],[金額]]),0) -> 0
A26: 娯楽費 | B26: =SUMIFS(家計簿[金額],家計簿[勘定科目],"="&月別情報[[#This Row],[勘定科目]],家計簿[日付],">="&月別グラフ!$D$1,家計簿[日付],"<="&月別グラフ!$D$2) -> 0 | C26: =IFERROR(IF(OFFSET(科目情報[[#Headers],[収入/固定費/変動費]],MATCH(月別情報[[#This Row],[勘定科目]],科目情報[勘定科目],0),0)="収入","収入","支出"),"") -> 支出 | D26: =IFERROR(IF(OFFSET(科目情報[[#Headers],[収入/固定費/変動費]],MATCH(月別情報[[#This Row],[勘定科目]],科目情報[勘定科目],0),0)="収入","",OFFSET(科目情報[[#Headers],[収入/固定費/変動費]],MATCH(月別情報[[#This Row],[勘定科目]],科目情報[勘定科目],0),0)),"") -> 変動費 | E26: =IFERROR(IF(月別情報[[#This Row],[収入/支出]]="収入",月別情報[[#This Row],[金額]],-月別情報[[#This Row],[金額]]),0) -> 0
A27: 医療費 | B27: =SUMIFS(家計簿[金額],家計簿[勘定科目],"="&月別情報[[#This Row],[勘定科目]],家計簿[日付],">="&月別グラフ!$D$1,家計簿[日付],"<="&月別グラフ!$D$2) -> 0 | C27: =IFERROR(IF(OFFSET(科目情報[[#Headers],[収入/固定費/変動費]],MATCH(月別情報[[#This Row],[勘定科目]],科目情報[勘定科目],0),0)="収入","収入","支出"),"") -> 支出 | D27: =IFERROR(IF(OFFSET(科目情報[[#Headers],[収入/固定費/変動費]],MATCH(月別情報[[#This Row],[勘定科目]],科目情報[勘定科目],0),0)="収入","",OFFSET(科目情報[[#Headers],[収入/固定費/変動費]],MATCH(月別情報[[#This Row],[勘定科目]],科目情報[勘定科目],0),0)),"") -> 変動費 | E27: =IFERROR(IF(月別情報[[#This Row],[収入/支出]]="収入",月別情報[[#This Row],[金額]],-月別情報[[#This Row],[金額]]),0) -> 0
A28: 特別出費 | B28: =SUMIFS(家計簿[金額],家計簿[勘定科目],"="&月別情報[[#This Row],[勘定科目]],家計簿[日付],">="&月別グラフ!$D$1,家計簿[日付],"<="&月別グラフ!$D$2) -> 10000 | C28: =IFERROR(IF(OFFSET(科目情報[[#Headers],[収入/固定費/変動費]],MATCH(月別情報[[#This Row],[勘定科目]],科目情報[勘定科目],0),0)="収入","収入","支出"),"") -> 支出 | D28: =IFERROR(IF(OFFSET(科目情報[[#Headers],[収入/固定費/変動費]],MATCH(月別情報[[#This Row],[勘定科目]],科目情報[勘定科目],0),0)="収入","",OFFSET(科目情報[[#Headers],[収入/固定費/変動費]],MATCH(月別情報[[#This Row],[勘定科目]],科目情報[勘定科目],0),0)),"") -> 変動費 | E28: =IFERROR(IF(月別情報[[#This Row],[収入/支出]]="収入",月別情報[[#This Row],[金額]],-月別情報[[#This Row],[金額]]),0) -> -10000

Sheet 月比較グラフ
J2: 勘定科目
J3: 収入 | K3: 収入 | L3: 収入 | M3: 収入 | N3: 収入 | O3: 収入 | P3: 支出 | Q3: 支出 | R3: 支出 | S3: 支出 | T3: 支出 | U3: 支出 | V3: 支出 | W3: 支出 | X3: 収入 | Y3: 収入 | Z3: 収入 | AA3: 収入 | AB3: 収入 | AC3: 収入 | AD3: 収入 | AE3: 収入 | AF3: 収入 | AG3: 収入
H4: 支出 | P4: 固定費 | Q4: 固定費 | R4: 固定費 | S4: 固定費 | T4: 固定費 | U4: 固定費 | V4: 固定費 | W4: 固定費 | X4: 変動費 | Y4: 変動費 | Z4: 変動費 | AA4: 変動費 | AB4: 変動費 | AC4: 変動費 | AD4: 変動費 | AE4: 変動費 | AF4: 変動費 | AG4: 変動費
C5: 年 | D5: 月 | E5: 年/月 | F5: 収入 | G5: 支出 | H5: 固定費 | I5: 変動費 | J5: 給料 | K5: ボーナス | L5: 家賃補助 | M5: 児童手当 | N5: 配当金 | O5: 特別収入 | P5: 家賃 | Q5: 電気代 | R5: ガス代 | S5: 水道代 | T5: 通信費 | U5: 保険代 | V5: サブスク | W5: 税金（固定資産、自動車） | X5: 食費 | Y5: 日用品 | Z5: 衣服 | AA5: 教育費 | AB5: 外食費 | AC5: 移動費 | AD5: 旅費 | AE5: 娯楽費 | AF5: 医療費 | AG5: 特別出費
C6: 2023 | D6: =MOD((ROW()-6),12)+1 -> 1 | E6: =DATE(月比較[[#This Row],[年]],月比較[[#This Row],[月]],1) -> 2023-01-01 | F6: =SUMIFS(家計簿[金額],家計簿[年],月比較[[#This Row],[年]],家計簿[月],月比較[[#This Row],[月]],家計簿[収入/支出],月比較[[#Headers],[収入]]) -> 0 | G6: =SUMIFS(家計簿[金額],家計簿[年],月比較[[#This Row],[年]],家計簿[月],月比較[[#This Row],[月]],家計簿[収入/支出],月比較[[#Headers],[支出]]) -> 0 | H6: =SUMIFS(家計簿[金額],家計簿[年],月比較[[#This Row],[年]],家計簿[月],月比較[[#This Row],[月]],家計簿[固定費/変動費],月比較[[#Headers],[固定費]]) -> 0 | I6: =SUMIFS(家計簿[金額],家計簿[年],月比較[[#This Row],[年]],家計簿[月],月比較[[#This Row],[月]],家計簿[固定費/変動費],月比較[[#Headers],[変動費]]) -> 0 | J6: =SUMIFS(家計簿[金額],家計簿[年],月比較[[#This Row],[年]],家計簿[月],月比較[[#This Row],[月]],家計簿[勘定科目],月比較[[#Headers],[給料]]) -> 0 | K6: =SUMIFS(家計簿[金額],家計簿[年],月比較[[#This Row],[年]],家計簿[月],月比較[[#This Row],[月]],家計簿[勘定科目],月比較[[#Headers],[ボーナス]]) -> 0 | L6: =SUMIFS(家計簿[金額],家計簿[年],月比較[[#This Row],[年]],家計簿[月],月比較[[#This Row],[月]],家計簿[勘定科目],月比較[[#Headers],[家賃補助]]) -> 0 | M6: =SUMIFS(家計簿[金額],家計簿[年],月比較[[#This Row],[年]],家計簿[月],月比較[[#This Row],[月]],家計簿[勘定科目],月比較[[#Headers],[児童手当]]) -> 0 | N6: =SUMIFS(家計簿[金額],家計簿[年],月比較[[#This Row],[年]],家計簿[月],月比較[[#This Row],[月]],家計簿[勘定科目],月比較[[#Headers],[配当金]]) -> 0 | O6: =SUMIFS(家計簿[金額],家計簿[年],月比較[[#This Row],[年]],家計簿[月],月比較[[#This Row],[月]],家計簿[勘定科目],月比較[[#Headers],[特別収入]]) -> 0 | P6: =SUMIFS(家計簿[金額],家計簿[年],月比較[[#This Row],[年]],家計簿[月],月比較[[#This Row],[月]],家計簿[勘定科目],月比較[[#Headers],[家賃]]) -> 0 | Q6: =SUMIFS(家計簿[金額],家計簿[年],月比較[[#This Row],[年]],家計簿[月],月比較[[#This Row],[月]],家計簿[勘定科目],月比較[[#Headers],[電気代]]) -> 0 | R6: =SUMIFS(家計簿[金額],家計簿[年],月比較[[#This Row],[年]],家計簿[月],月比較[[#This Row],[月]],家計簿[勘定科目],月比較[[#Headers],[ガス代]]) -> 0 | S6: =SUMIFS(家計簿[金額],家計簿[年],月比較[[#This Row],[年]],家計簿[月],月比較[[#This Row],[月]],家計簿[勘定科目],月比較[[#Headers],[水道代]]) -> 0 | T6: =SUMIFS(家計簿[金額],家計簿[年],月比較[[#This Row],[年]],家計簿[月],月比較[[#This Row],[月]],家計簿[勘定科目],月比較[[#Headers],[通信費]]) -> 0 | U6: =SUMIFS(家計簿[金額],家計簿[年],月比較[[#This Row],[年]],家計簿[月],月比較[[#This Row],[月]],家計簿[勘定科目],月比較[[#Headers],[保険代]]) -> 0 | V6: =SUMIFS(家計簿[金額],家計簿[年],月比較[[#This Row],[年]],家計簿[月],月比較[[#This Row],[月]],家計簿[勘定科目],月比較[[#Headers],[サブスク]]) -> 0 | W6: =SUMIFS(家計簿[金額],家計簿[年],月比較[[#This Row],[年]],家計簿[月],月比較[[#This Row],[月]],家計簿[勘定科目],月比較[[#Headers],[税金（固定資産、自動車）]]) -> 0 | X6: =SUMIFS(家計簿[金額],家計簿[年],月比較[[#This Row],[年]],家計簿[月],月比較[[#This Row],[月]],家計簿[勘定科目],月比較[[#Headers],[食費]]) -> 0 | Y6: =SUMIFS(家計簿[金額],家計簿[年],月比較[[#This Row],[年]],家計簿[月],月比較[[#This Row],[月]],家計簿[勘定科目],月比較[[#Headers],[日用品]]) -> 0 | Z6: =SUMIFS(家計簿[金額],家計簿[年],月比較[[#This Row],[年]],家計簿[月],月比較[[#This Row],[月]],家計簿[勘定科目],月比較[[#Headers],[衣服]]) -> 0 | AA6: =SUMIFS(家計簿[金額],家計簿[年],月比較[[#This Row],[年]],家計簿[月],月比較[[#This Row],[月]],家計簿[勘定科目],月比較[[#Headers],[教育費]]) -> 0 | AB6: =SUMIFS(家計簿[金額],家計簿[年],月比較[[#This Row],[年]],家計簿[月],月比較[[#This Row],[月]],家計簿[勘定科目],月比較[[#Headers],[外食費]]) -> 0 | AC6: =SUMIFS(家計簿[金額],家計簿[年],月比較[[#This Row],[年]],家計簿[月],月比較[[#This Row],[月]],家計簿[勘定科目],月比較[[#Headers],[移動費]]) -> 0 | AD6: =SUMIFS(家計簿[金額],家計簿[年],月比較[[#This Row],[年]],家計簿[月],月比較[[#This Row],[月]],家計簿[勘定科目],月比較[[#Headers],[旅費]]) -> 0 | AE6: =SUMIFS(家計簿[金額],家計簿[年],月比較[[#This Row],[年]],家計簿[月],月比較[[#This Row],[月]],家計簿[勘定科目],月比較[[#Headers],[娯楽費]]) -> 0 | AF6: =SUMIFS(家計簿[金額],家計簿[年],月比較[[#This Row],[年]],家計簿[月],月比較[[#This Row],[月]],家計簿[勘定科目],月比較[[#Headers],[医療費]]) -> 0 | AG6: =SUMIFS(家計簿[金額],家計簿[年],月比較[[#This Row],[年]],家計簿[月],月比較[[#This Row],[月]],家計簿[勘定科目],月比較[[#Headers],[特別出費]]) -> 0
C7: =IF(月比較[[#This Row],[月]]=1,C6+1,C6) -> 2023 | D7: =MOD((ROW()-6),12)+1 -> 2 | E7: =DATE(月比較[[#This Row],[年]],月比較[[#This Row],[月]],1) -> 2023-02-01 | F7: =SUMIFS(家計簿[金額],家計簿[年],月比較[[#This Row],[年]],家計簿[月],月比較[[#This Row],[月]],家計簿[収入/支出],月比較[[#Headers],[収入]]) -> 0 | G7: =SUMIFS(家計簿[金額],家計簿[年],月比較[[#This Row],[年]],家計簿[月],月比較[[#This Row],[月]],家計簿[収入/支出],月比較[[#Headers],[支出]]) -> 0 | H7: =SUMIFS(家計簿[金額],家計簿[年],月比較[[#This Row],[年]],家計簿[月],月比較[[#This Row],[月]],家計簿[固定費/変動費],月比較[[#Headers],[固定費]]) -> 0 | I7: =SUMIFS(家計簿[金額],家計簿[年],月比較[[#This Row],[年]],家計簿[月],月比較[[#This Row],[月]],家計簿[固定費/変動費],月比較[[#Headers],[変動費]]) -> 0 | J7: =SUMIFS(家計簿[金額],家計簿[年],月比較[[#This Row],[年]],家計簿[月],月比較[[#This Row],[月]],家計簿[勘定科目],月比較[[#Headers],[給料]]) -> 0 | K7: =SUMIFS(家計簿[金額],家計簿[年],月比較[[#This Row],[年]],家計簿[月],月比較[[#This Row],[月]],家計簿[勘定科目],月比較[[#Headers],[ボーナス]]) -> 0 | L7: =SUMIFS(家計簿[金額],家計簿[年],月比較[[#This Row],[年]],家計簿[月],月比較[[#This Row],[月]],家計簿[勘定科目],月比較[[#Headers],[家賃補助]]) -> 0 | M7: =SUMIFS(家計簿[金額],家計簿[年],月比較[[#This Row],[年]],家計簿[月],月比較[[#This Row],[月]],家計簿[勘定科目],月比較[[#Headers],[児童手当]]) -> 0 | N7: =SUMIFS(家計簿[金額],家計簿[年],月比較[[#This Row],[年]],家計簿[月],月比較[[#This Row],[月]],家計簿[勘定科目],月比較[[#Headers],[配当金]]) -> 0 | O7: =SUMIFS(家計簿[金額],家計簿[年],月比較[[#This Row],[年]],家計簿[月],月比較[[#This Row],[月]],家計簿[勘定科目],月比較[[#Headers],[特別収入]]) -> 0 | P7: =SUMIFS(家計簿[金額],家計簿[年],月比較[[#This Row],[年]],家計簿[月],月比較[[#This Row],[月]],家計簿[勘定科目],月比較[[#Headers],[家賃]]) -> 0 | Q7: =SUMIFS(家計簿[金額],家計簿[年],月比較[[#This Row],[年]],家計簿[月],月比較[[#This Row],[月]],家計簿[勘定科目],月比較[[#Headers],[電気代]]) -> 0 | R7: =SUMIFS(家計簿[金額],家計簿[年],月比較[[#This Row],[年]],家計簿[月],月比較[[#This Row],[月]],家計簿[勘定科目],月比較[[#Headers],[ガス代]]) -> 0 | S7: =SUMIFS(家計簿[金額],家計簿[年],月比較[[#This Row],[年]],家計簿[月],月比較[[#This Row],[月]],家計簿[勘定科目],月比較[[#Headers],[水道代]]) -> 0 | T7: =SUMIFS(家計簿[金額],家計簿[年],月比較[[#This Row],[年]],家計簿[月],月比較[[#This Row],[月]],家計簿[勘定科目],月比較[[#Headers],[通信費]]) -> 0 | U7: =SUMIFS(家計簿[金額],家計簿[年],月比較[[#This Row],[年]],家計簿[月],月比較[[#This Row],[月]],家計簿[勘定科目],月比較[[#Headers],[保険代]]) -> 0 | V7: =SUMIFS(家計簿[金額],家計簿[年],月比較[[#This Row],[年]],家計簿[月],月比較[[#This Row],[月]],家計簿[勘定科目],月比較[[#Headers],[サブスク]]) -> 0 | W7: =SUMIFS(家計簿[金額],家計簿[年],月比較[[#This Row],[年]],家計簿[月],月比較[[#This Row],[月]],家計簿[勘定科目],月比較[[#Headers],[税金（固定資産、自動車）]]) -> 0 | X7: =SUMIFS(家計簿[金額],家計簿[年],月比較[[#This Row],[年]],家計簿[月],月比較[[#This Row],[月]],家計簿[勘定科目],月比較[[#Headers],[食費]]) -> 0 | Y7: =SUMIFS(家計簿[金額],家計簿[年],月比較[[#This Row],[年]],家計簿[月],月比較[[#This Row],[月]],家計簿[勘定科目],月比較[[#Headers],[日用品]]) -> 0 | Z7: =SUMIFS(家計簿[金額],家計簿[年],月比較[[#This Row],[年]],家計簿[月],月比較[[#This Row],[月]],家計簿[勘定科目],月比較[[#Headers],[衣服]]) -> 0 | AA7: =SUMIFS(家計簿[金額],家計簿[年],月比較[[#This Row],[年]],家計簿[月],月比較[[#This Row],[月]],家計簿[勘定科目],月比較[[#Headers],[教育費]]) -> 0 | AB7: =SUMIFS(家計簿[金額],家計簿[年],月比較[[#This Row],[年]],家計簿[月],月比較[[#This Row],[月]],家計簿[勘定科目],月比較[[#Headers],[外食費]]) -> 0 | AC7: =SUMIFS(家計簿[金額],家計簿[年],月比較[[#This Row],[年]],家計簿[月],月比較[[#This Row],[月]],家計簿[勘定科目],月比較[[#Headers],[移動費]]) -> 0 | AD7: =SUMIFS(家計簿[金額],家計簿[年],月比較[[#This Row],[年]],家計簿[月],月比較[[#This Row],[月]],家計簿[勘定科目],月比較[[#Headers],[旅費]]) -> 0 | AE7: =SUMIFS(家計簿[金額],家計簿[年],月比較[[#This Row],[年]],家計簿[月],月比較[[#This Row],[月]],家計簿[勘定科目],月比較[[#Headers],[娯楽費]]) -> 0 | AF7: =SUMIFS(家計簿[金額],家計簿[年],月比較[[#This Row],[年]],家計簿[月],月比較[[#This Row],[月]],家計簿[勘定科目],月比較[[#Headers],[医療費]]) -> 0 | AG7: =SUMIFS(家計簿[金額],家計簿[年],月比較[[#This Row],[年]],家計簿[月],月比較[[#This Row],[月]],家計簿[勘定科目],月比較[[#Headers],[特別出費]]) -> 0
C8: =IF(月比較[[#This Row],[月]]=1,C7+1,C7) -> 2023 | D8: 3 | E8: =DATE(月比較[[#This Row],[年]],月比較[[#This Row],[月]],1) -> 2023-03-01 | F8: =SUMIFS(家計簿[金額],家計簿[年],月比較[[#This Row],[年]],家計簿[月],月比較[[#This Row],[月]],家計簿[収入/支出],月比較[[#Headers],[収入]]) -> 1300 | G8: =SUMIFS(家計簿[金額],家計簿[年],月比較[[#This Row],[年]],家計簿[月],月比較[[#This Row],[月]],家計簿[収入/支出],月比較[[#Headers],[支出]]) -> 44900 | H8: =SUMIFS(家計簿[金額],家計簿[年],月比較[[#This Row],[年]],家計簿[月],月比較[[#This Row],[月]],家計簿[固定費/変動費],月比較[[#Headers],[固定費]]) -> 31400 | I8: =SUMIFS(家計簿[金額],家計簿[年],月比較[[#This Row],[年]],家計簿[月],月比較[[#This Row],[月]],家計簿[固定費/変動費],月比較[[#Headers],[変動費]]) -> 13500 | J8: =SUMIFS(家計簿[金額],家計簿[年],月比較[[#This Row],[年]],家計簿[月],月比較[[#This Row],[月]],家計簿[勘定科目],月比較[[#Headers],[給料]]) -> 0 | K8: =SUMIFS(家計簿[金額],家計簿[年],月比較[[#This Row],[年]],家計簿[月],月比較[[#This Row],[月]],家計簿[勘定科目],月比較[[#Headers],[ボーナス]]) -> 0 | L8: =SUMIFS(家計簿[金額],家計簿[年],月比較[[#This Row],[年]],家計簿[月],月比較[[#This Row],[月]],家計簿[勘定科目],月比較[[#Headers],[家賃補助]]) -> 0 | M8: =SUMIFS(家計簿[金額],家計簿[年],月比較[[#This Row],[年]],家計簿[月],月比較[[#This Row],[月]],家計簿[勘定科目],月比較[[#Headers],[児童手当]]) -> 0 | N8: =SUMIFS(家計簿[金額],家計簿[年],月比較[[#This Row],[年]],家計簿[月],月比較[[#This Row],[月]],家計簿[勘定科目],月比較[[#Headers],[配当金]]) -> 1300 | O8: =SUMIFS(家計簿[金額],家計簿[年],月比較[[#This Row],[年]],家計簿[月],月比較[[#This Row],[月]],家計簿[勘定科目],月比較[[#Headers],[特別収入]]) -> 0 | P8: =SUMIFS(家計簿[金額],家計簿[年],月比較[[#This Row],[年]],家計簿[月],月比較[[#This Row],[月]],家計簿[勘定科目],月比較[[#Headers],[家賃]]) -> 0 | Q8: =SUMIFS(家計簿[金額],家計簿[年],月比較[[#This Row],[年]],家計簿[月],月比較[[#This Row],[月]],家計簿[勘定科目],月比較[[#Headers],[電気代]]) -> 0 | R8: =SUMIFS(家計簿[金額],家計簿[年],月比較[[#This Row],[年]],家計簿[月],月比較[[#This Row],[月]],家計簿[勘定科目],月比較[[#Headers],[ガス代]]) -> 4000 | S8: =SUMIFS(家計簿[金額],家計簿[年],月比較[[#This Row],[年]],家計簿[月],月比較[[#This Row],[月]],家計簿[勘定科目],月比較[[#Headers],[水道代]]) -> 5000 | T8: =SUMIFS(家計簿[金額],家計簿[年],月比較[[#This Row],[年]],家計簿[月],月比較[[#This Row],[月]],家計簿[勘定科目],月比較[[#Headers],[通信費]]) -> 8000 | U8: =SUMIFS(家計簿[金額],家計簿[年],月比較[[#This Row],[年]],家計簿[月],月比較[[#This Row],[月]],家計簿[勘定科目],月比較[[#Headers],[保険代]]) -> 13000 | V8: =SUMIFS(家計簿[金額],家計簿[年],月比較[[#This Row],[年]],家計簿[月],月比較[[#This Row],[月]],家計簿[勘定科目],月比較[[#Headers],[サブスク]]) -> 1400 | W8: =SUMIFS(家計簿[金額],家計簿[年],月比較[[#This Row],[年]],家計簿[月],月比較[[#This Row],[月]],家計簿[勘定科目],月比較[[#Headers],[税金（固定資産、自動車）]]) -> 0 | X8: =SUMIFS(家計簿[金額],家計簿[年],月比較[[#This Row],[年]],家計簿[月],月比較[[#This Row],[月]],家計簿[勘定科目],月比較[[#Headers],[食費]]) -> 3500 | Y8: =SUMIFS(家計簿[金額],家計簿[年],月比較[[#This Row],[年]],家計簿[月],月比較[[#This Row],[月]],家計簿[勘定科目],月比較[[#Headers],[日用品]]) -> 0 | Z8: =SUMIFS(家計簿[金額],家計簿[年],月比較[[#This Row],[年]],家計簿[月],月比較[[#This Row],[月]],家計簿[勘定科目],月比較[[#Headers],[衣服]]) -> 0 | AA8: =SUMIFS(家計簿[金額],家計簿[年],月比較[[#This Row],[年]],家計簿[月],月比較[[#This Row],[月]],家計簿[勘定科目],月比較[[#Headers],[教育費]]) -> 0 | AB8: =SUMIFS(家計簿[金額],家計簿[年],月比較[[#This Row],[年]],家計簿[月],月比較[[#This Row],[月]],家計簿[勘定科目],月比較[[#Headers],[外食費]]) -> 0 | AC8: =SUMIFS(家計簿[金額],家計簿[年],月比較[[#This Row],[年]],家計簿[月],月比較[[#This Row],[月]],家計簿[勘定科目],月比較[[#Headers],[移動費]]) -> 0 | AD8: =SUMIFS(家計簿[金額],家計簿[年],月比較[[#This Row],[年]],家計簿[月],月比較[[#This Row],[月]],家計簿[勘定科目],月比較[[#Headers],[旅費]]) -> 0 | AE8: =SUMIFS(家計簿[金額],家計簿[年],月比較[[#This Row],[年]],家計簿[月],月比較[[#This Row],[月]],家計簿[勘定科目],月比較[[#Headers],[娯楽費]]) -> 0 | AF8: =SUMIFS(家計簿[金額],家計簿[年],月比較[[#This Row],[年]],家計簿[月],月比較[[#This Row],[月]],家計簿[勘定科目],月比較[[#Headers],[医療費]]) -> 0 | AG8: =SUMIFS(家計簿[金額],家計簿[年],月比較[[#This Row],[年]],家計簿[月],月比較[[#This Row],[月]],家計簿[勘定科目],月比較[[#Headers],[特別出費]]) -> 10000
C9: =IF(月比較[[#This Row],[月]]=1,C8+1,C8) -> 2023 | D9: 4 | E9: =DATE(月比較[[#This Row],[年]],月比較[[#This Row],[月]],1) -> 2023-04-01 | F9: =SUMIFS(家計簿[金額],家計簿[年],月比較[[#This Row],[年]],家計簿[月],月比較[[#This Row],[月]],家計簿[収入/支出],月比較[[#Headers],[収入]]) -> 15000 | G9: =SUMIFS(家計簿[金額],家計簿[年],月比較[[#This Row],[年]],家計簿[月],月比較[[#This Row],[月]],家計簿[収入/支出],月比較[[#Headers],[支出]]) -> 104200 | H9: =SUMIFS(家計簿[金額],家計簿[年],月比較[[#This Row],[年]],家計簿[月],月比較[[#This Row],[月]],家計簿[固定費/変動費],月比較[[#Headers],[固定費]]) -> 70000 | I9: =SUMIFS(家計簿[金額],家計簿[年],月比較[[#This Row],[年]],家計簿[月],月比較[[#This Row],[月]],家計簿[固定費/変動費],月比較[[#Headers],[変動費]]) -> 34200 | J9: =SUMIFS(家計簿[金額],家計簿[年],月比較[[#This Row],[年]],家計簿[月],月比較[[#This Row],[月]],家計簿[勘定科目],月比較[[#Headers],[給料]]) -> 0 | K9: =SUMIFS(家計簿[金額],家計簿[年],月比較[[#This Row],[年]],家計簿[月],月比較[[#This Row],[月]],家計簿[勘定科目],月比較[[#Headers],[ボーナス]]) -> 0 | L9: =SUMIFS(家計簿[金額],家計簿[年],月比較[[#This Row],[年]],家計簿[月],月比較[[#This Row],[月]],家計簿[勘定科目],月比較[[#Headers],[家賃補助]]) -> 0 | M9: =SUMIFS(家計簿[金額],家計簿[年],月比較[[#This Row],[年]],家計簿[月],月比較[[#This Row],[月]],家計簿[勘定科目],月比較[[#Headers],[児童手当]]) -> 15000 | N9: =SUMIFS(家計簿[金額],家計簿[年],月比較[[#This Row],[年]],家計簿[月],月比較[[#This Row],[月]],家計簿[勘定科目],月比較[[#Headers],[配当金]]) -> 0 | O9: =SUMIFS(家計簿[金額],家計簿[年],月比較[[#This Row],[年]],家計簿[月],月比較[[#This Row],[月]],家計簿[勘定科目],月比較[[#Headers],[特別収入]]) -> 0 | P9: =SUMIFS(家計簿[金額],家計簿[年],月比較[[#This Row],[年]],家計簿[月],月比較[[#This Row],[月]],家計簿[勘定科目],月比較[[#Headers],[家賃]]) -> 70000 | Q9: =SUMIFS(家計簿[金額],家計簿[年],月比較[[#This Row],[年]],家計簿[月],月比較[[#This Row],[月]],家計簿[勘定科目],月比較[[#Headers],[電気代]]) -> 0 | R9: =SUMIFS(家計簿[金額],家計簿[年],月比較[[#This Row],[年]],家計簿[月],月比較[[#This Row],[月]],家計簿[勘定科目],月比較[[#Headers],[ガス代]]) -> 0 | S9: =SUMIFS(家計簿[金額],家計簿[年],月比較[[#This Row],[年]],家計簿[月],月比較[[#This Row],[月]],家計簿[勘定科目],月比較[[#Headers],[水道代]]) -> 0 | T9: =SUMIFS(家計簿[金額],家計簿[年],月比較[[#This Row],[年]],家計簿[月],月比較[[#This Row],[月]],家計簿[勘定科目],月比較[[#Headers],[通信費]]) -> 0 | U9: =SUMIFS(家計簿[金額],家計簿[年],月比較[[#This Row],[年]],家計簿[月],月比較[[#This Row],[月]],家計簿[勘定科目],月比較[[#Headers],[保険代]]) -> 0 | V9: =SUMIFS(家計簿[金額],家計簿[年],月比較[[#This Row],[年]],家計簿[月],月比較[[#This Row],[月]],家計簿[勘定科目],月比較[[#Headers],[サブスク]]) -> 0 | W9: =SUMIFS(家計簿[金額],家計簿[年],月比較[[#This Row],[年]],家計簿[月],月比較[[#This Row],[月]],家計簿[勘定科目],月比較[[#Headers],[税金（固定資産、自動車）]]) -> 0 | X9: =SUMIFS(家計簿[金額],家計簿[年],月比較[[#This Row],[年]],家計簿[月],月比較[[#This Row],[月]],家計簿[勘定科目],月比較[[#Headers],[食費]]) -> 2700 | Y9: =SUMIFS(家計簿[金額],家計簿[年],月比較[[#This Row],[年]],家計簿[月],月比較[[#This Row],[月]],家計簿[勘定科目],月比較[[#Headers],[日用品]]) -> 3500 | Z9: =SUMIFS(家計簿[金額],家計簿[年],月比較[[#This Row],[年]],家計簿[月],月比較[[#This Row],[月]],家計簿[勘定科目],月比較[[#Headers],[衣服]]) -> 0 | AA9: =SUMIFS(家計簿[金額],家計簿[年],月比較[[#This Row],[年]],家計簿[月],月比較[[#This Row],[月]],家計簿[勘定科目],月比較[[#Headers],[教育費]]) -> 0 | AB9: =SUMIFS(家計簿[金額],家計簿[年],月比較[[#This Row],[年]],家計簿[月],月比較[[#This Row],[月]],家計簿[勘定科目],月比較[[#Headers],[外食費]]) -> 0 | AC9: =SUMIFS(家計簿[金額],家計簿[年],月比較[[#This Row],[年]],家計簿[月],月比較[[#This Row],[月]],家計簿[勘定科目],月比較[[#Headers],[移動費]]) -> 0 | AD9: =SUMIFS(家計簿[金額],家計簿[年],月比較[[#This Row],[年]],家計簿[月],月比較[[#This Row],[月]],家計簿[勘定科目],月比較[[#Headers],[旅費]]) -> 0 | AE9: =SUMIFS(家計簿[金額],家計簿[年],月比較[[#This Row],[年]],家計簿[月],月比較[[#This Row],[月]],家計簿[勘定科目],月比較[[#Headers],[娯楽費]]) -> 0 | AF9: =SUMIFS(家計簿[金額],家計簿[年],月比較[[#This Row],[年]],家計簿[月],月比較[[#This Row],[月]],家計簿[勘定科目],月比較[[#Headers],[医療費]]) -> 0 | AG9: =SUMIFS(家計簿[金額],家計簿[年],月比較[[#This Row],[年]],家計簿[月],月比較[[#This Row],[月]],家計簿[勘定科目],月比較[[#Headers],[特別出費]]) -> 28000
C10: =IF(月比較[[#This Row],[月]]=1,C9+1,C9) -> 2023 | D10: 5 | E10: =DATE(月比較[[#This Row],[年]],月比較[[#This Row],[月]],1) -> 2023-05-01 | F10: =SUMIFS(家計簿[金額],家計簿[年],月比較[[#This Row],[年]],家計簿[月],月比較[[#This Row],[月]],家計簿[収入/支出],月比較[[#Headers],[収入]]) -> 0 | G10: =SUMIFS(家計簿[金額],家計簿[年],月比較[[#This Row],[年]],家計簿[月],月比較[[#This Row],[月]],家計簿[収入/支出],月比較[[#Headers],[支出]]) -> 0 | H10: =SUMIFS(家計簿[金額],家計簿[年],月比較[[#This Row],[年]],家計簿[月],月比較[[#This Row],[月]],家計簿[固定費/変動費],月比較[[#Headers],[固定費]]) -> 0 | I10: =SUMIFS(家計簿[金額],家計簿[年],月比較[[#This Row],[年]],家計簿[月],月比較[[#This Row],[月]],家計簿[固定費/変動費],月比較[[#Headers],[変動費]]) -> 0 | J10: =SUMIFS(家計簿[金額],家計簿[年],月比較[[#This Row],[年]],家計簿[月],月比較[[#This Row],[月]],家計簿[勘定科目],月比較[[#Headers],[給料]]) -> 0 | K10: =SUMIFS(家計簿[金額],家計簿[年],月比較[[#This Row],[年]],家計簿[月],月比較[[#This Row],[月]],家計簿[勘定科目],月比較[[#Headers],[ボーナス]]) -> 0 | L10: =SUMIFS(家計簿[金額],家計簿[年],月比較[[#This Row],[年]],家計簿[月],月比較[[#This Row],[月]],家計簿[勘定科目],月比較[[#Headers],[家賃補助]]) -> 0 | M10: =SUMIFS(家計簿[金額],家計簿[年],月比較[[#This Row],[年]],家計簿[月],月比較[[#This Row],[月]],家計簿[勘定科目],月比較[[#Headers],[児童手当]]) -> 0 | N10: =SUMIFS(家計簿[金額],家計簿[年],月比較[[#This Row],[年]],家計簿[月],月比較[[#This Row],[月]],家計簿[勘定科目],月比較[[#Headers],[配当金]]) -> 0 | O10: =SUMIFS(家計簿[金額],家計簿[年],月比較[[#This Row],[年]],家計簿[月],月比較[[#This Row],[月]],家計簿[勘定科目],月比較[[#Headers],[特別収入]]) -> 0 | P10: =SUMIFS(家計簿[金額],家計簿[年],月比較[[#This Row],[年]],家計簿[月],月比較[[#This Row],[月]],家計簿[勘定科目],月比較[[#Headers],[家賃]]) -> 0 | Q10: =SUMIFS(家計簿[金額],家計簿[年],月比較[[#This Row],[年]],家計簿[月],月比較[[#This Row],[月]],家計簿[勘定科目],月比較[[#Headers],[電気代]]) -> 0 | R10: =SUMIFS(家計簿[金額],家計簿[年],月比較[[#This Row],[年]],家計簿[月],月比較[[#This Row],[月]],家計簿[勘定科目],月比較[[#Headers],[ガス代]]) -> 0 | S10: =SUMIFS(家計簿[金額],家計簿[年],月比較[[#This Row],[年]],家計簿[月],月比較[[#This Row],[月]],家計簿[勘定科目],月比較[[#Headers],[水道代]]) -> 0 | T10: =SUMIFS(家計簿[金額],家計簿[年],月比較[[#This Row],[年]],家計簿[月],月比較[[#This Row],[月]],家計簿[勘定科目],月比較[[#Headers],[通信費]]) -> 0 | U10: =SUMIFS(家計簿[金額],家計簿[年],月比較[[#This Row],[年]],家計簿[月],月比較[[#This Row],[月]],家計簿[勘定科目],月比較[[#Headers],[保険代]]) -> 0 | V10: =SUMIFS(家計簿[金額],家計簿[年],月比較[[#This Row],[年]],家計簿[月],月比較[[#This Row],[月]],家計簿[勘定科目],月比較[[#Headers],[サブスク]]) -> 0 | W10: =SUMIFS(家計簿[金額],家計簿[年],月比較[[#This Row],[年]],家計簿[月],月比較[[#This Row],[月]],家計簿[勘定科目],月比較[[#Headers],[税金（固定資産、自動車）]]) -> 0 | X10: =SUMIFS(家計簿[金額],家計簿[年],月比較[[#This Row],[年]],家計簿[月],月比較[[#This Row],[月]],家計簿[勘定科目],月比較[[#Headers],[食費]]) -> 0 | Y10: =SUMIFS(家計簿[金額],家計簿[年],月比較[[#This Row],[年]],家計簿[月],月比較[[#This Row],[月]],家計簿[勘定科目],月比較[[#Headers],[日用品]]) -> 0 | Z10: =SUMIFS(家計簿[金額],家計簿[年],月比較[[#This Row],[年]],家計簿[月],月比較[[#This Row],[月]],家計簿[勘定科目],月比較[[#Headers],[衣服]]) -> 0 | AA10: =SUMIFS(家計簿[金額],家計簿[年],月比較[[#This Row],[年]],家計簿[月],月比較[[#This Row],[月]],家計簿[勘定科目],月比較[[#Headers],[教育費]]) -> 0 | AB10: =SUMIFS(家計簿[金額],家計簿[年],月比較[[#This Row],[年]],家計簿[月],月比較[[#This Row],[月]],家計簿[勘定科目],月比較[[#Headers],[外食費]]) -> 0 | AC10: =SUMIFS(家計簿[金額],家計簿[年],月比較[[#This Row],[年]],家計簿[月],月比較[[#This Row],[月]],家計簿[勘定科目],月比較[[#Headers],[移動費]]) -> 0 | AD10: =SUMIFS(家計簿[金額],家計簿[年],月比較[[#This Row],[年]],家計簿[月],月比較[[#This Row],[月]],家計簿[勘定科目],月比較[[#Headers],[旅費]]) -> 0 | AE10: =SUMIFS(家計簿[金額],家計簿[年],月比較[[#This Row],[年]],家計簿[月],月比較[[#This Row],[月]],家計簿[勘定科目],月比較[[#Headers],[娯楽費]]) -> 0 | AF10: =SUMIFS(家計簿[金額],家計簿[年],月比較[[#This Row],[年]],家計簿[月],月比較[[#This Row],[月]],家計簿[勘定科目],月比較[[#Headers],[医療費]]) -> 0 | AG10: =SUMIFS(家計簿[金額],家計簿[年],月比較[[#This Row],[年]],家計簿[月],月比較[[#This Row],[月]],家計簿[勘定科目],月比較[[#Headers],[特別出費]]) -> 0
C11: =IF(月比較[[#This Row],[月]]=1,C10+1,C10) -> 2023 | D11: 6 | E11: =DATE(月比較[[#This Row],[年]],月比較[[#This Row],[月]],1) -> 2023-06-01 | F11: =SUMIFS(家計簿[金額],家計簿[年],月比較[[#This Row],[年]],家計簿[月],月比較[[#This Row],[月]],家計簿[収入/支出],月比較[[#Headers],[収入]]) -> 0 | G11: =SUMIFS(家計簿[金額],家計簿[年],月比較[[#This Row],[年]],家計簿[月],月比較[[#This Row],[月]],家計簿[収入/支出],月比較[[#Headers],[支出]]) -> 0 | H11: =SUMIFS(家計簿[金額],家計簿[年],月比較[[#This Row],[年]],家計簿[月],月比較[[#This Row],[月]],家計簿[固定費/変動費],月比較[[#Headers],[固定費]]) -> 0 | I11: =SUMIFS(家計簿[金額],家計簿[年],月比較[[#This Row],[年]],家計簿[月],月比較[[#This Row],[月]],家計簿[固定費/変動費],月比較[[#Headers],[変動費]]) -> 0 | J11: =SUMIFS(家計簿[金額],家計簿[年],月比較[[#This Row],[年]],家計簿[月],月比較[[#This Row],[月]],家計簿[勘定科目],月比較[[#Headers],[給料]]) -> 0 | K11: =SUMIFS(家計簿[金額],家計簿[年],月比較[[#This Row],[年]],家計簿[月],月比較[[#This Row],[月]],家計簿[勘定科目],月比較[[#Headers],[ボーナス]]) -> 0 | L11: =SUMIFS(家計簿[金額],家計簿[年],月比較[[#This Row],[年]],家計簿[月],月比較[[#This Row],[月]],家計簿[勘定科目],月比較[[#Headers],[家賃補助]]) -> 0 | M11: =SUMIFS(家計簿[金額],家計簿[年],月比較[[#This Row],[年]],家計簿[月],月比較[[#This Row],[月]],家計簿[勘定科目],月比較[[#Headers],[児童手当]]) -> 0 | N11: =SUMIFS(家計簿[金額],家計簿[年],月比較[[#This Row],[年]],家計簿[月],月比較[[#This Row],[月]],家計簿[勘定科目],月比較[[#Headers],[配当金]]) -> 0 | O11: =SUMIFS(家計簿[金額],家計簿[年],月比較[[#This Row],[年]],家計簿[月],月比較[[#This Row],[月]],家計簿[勘定科目],月比較[[#Headers],[特別収入]]) -> 0 | P11: =SUMIFS(家計簿[金額],家計簿[年],月比較[[#This Row],[年]],家計簿[月],月比較[[#This Row],[月]],家計簿[勘定科目],月比較[[#Headers],[家賃]]) -> 0 | Q11: =SUMIFS(家計簿[金額],家計簿[年],月比較[[#This Row],[年]],家計簿[月],月比較[[#This Row],[月]],家計簿[勘定科目],月比較[[#Headers],[電気代]]) -> 0 | R11: =SUMIFS(家計簿[金額],家計簿[年],月比較[[#This Row],[年]],家計簿[月],月比較[[#This Row],[月]],家計簿[勘定科目],月比較[[#Headers],[ガス代]]) -> 0 | S11: =SUMIFS(家計簿[金額],家計簿[年],月比較[[#This Row],[年]],家計簿[月],月比較[[#This Row],[月]],家計簿[勘定科目],月比較[[#Headers],[水道代]]) -> 0 | T11: =SUMIFS(家計簿[金額],家計簿[年],月比較[[#This Row],[年]],家計簿[月],月比較[[#This Row],[月]],家計簿[勘定科目],月比較[[#Headers],[通信費]]) -> 0 | U11: =SUMIFS(家計簿[金額],家計簿[年],月比較[[#This Row],[年]],家計簿[月],月比較[[#This Row],[月]],家計簿[勘定科目],月比較[[#Headers],[保険代]]) -> 0 | V11: =SUMIFS(家計簿[金額],家計簿[年],月比較[[#This Row],[年]],家計簿[月],月比較[[#This Row],[月]],家計簿[勘定科目],月比較[[#Headers],[サブスク]]) -> 0 | W11: =SUMIFS(家計簿[金額],家計簿[年],月比較[[#This Row],[年]],家計簿[月],月比較[[#This Row],[月]],家計簿[勘定科目],月比較[[#Headers],[税金（固定資産、自動車）]]) -> 0 | X11: =SUMIFS(家計簿[金額],家計簿[年],月比較[[#This Row],[年]],家計簿[月],月比較[[#This Row],[月]],家計簿[勘定科目],月比較[[#Headers],[食費]]) -> 0 | Y11: =SUMIFS(家計簿[金額],家計簿[年],月比較[[#This Row],[年]],家計簿[月],月比較[[#This Row],[月]],家計簿[勘定科目],月比較[[#Headers],[日用品]]) -> 0 | Z11: =SUMIFS(家計簿[金額],家計簿[年],月比較[[#This Row],[年]],家計簿[月],月比較[[#This Row],[月]],家計簿[勘定科目],月比較[[#Headers],[衣服]]) -> 0 | AA11: =SUMIFS(家計簿[金額],家計簿[年],月比較[[#This Row],[年]],家計簿[月],月比較[[#This Row],[月]],家計簿[勘定科目],月比較[[#Headers],[教育費]]) -> 0 | AB11: =SUMIFS(家計簿[金額],家計簿[年],月比較[[#This Row],[年]],家計簿[月],月比較[[#This Row],[月]],家計簿[勘定科目],月比較[[#Headers],[外食費]]) -> 0 | AC11: =SUMIFS(家計簿[金額],家計簿[年],月比較[[#This Row],[年]],家計簿[月],月比較[[#This Row],[月]],家計簿[勘定科目],月比較[[#Headers],[移動費]]) -> 0 | AD11: =SUMIFS(家計簿[金額],家計簿[年],月比較[[#This Row],[年]],家計簿[月],月比較[[#This Row],[月]],家計簿[勘定科目],月比較[[#Headers],[旅費]]) -> 0 | AE11: =SUMIFS(家計簿[金額],家計簿[年],月比較[[#This Row],[年]],家計簿[月],月比較[[#This Row],[月]],家計簿[勘定科目],月比較[[#Headers],[娯楽費]]) -> 0 | AF11: =SUMIFS(家計簿[金額],家計簿[年],月比較[[#This Row],[年]],家計簿[月],月比較[[#This Row],[月]],家計簿[勘定科目],月比較[[#Headers],[医療費]]) -> 0 | AG11: =SUMIFS(家計簿[金額],家計簿[年],月比較[[#This Row],[年]],家計簿[月],月比較[[#This Row],[月]],家計簿[勘定科目],月比較[[#Headers],[特別出費]]) -> 0
C12: =IF(月比較[[#This Row],[月]]=1,C11+1,C11) -> 2023 | D12: 7 | E12: =DATE(月比較[[#This Row],[年]],月比較[[#This Row],[月]],1) -> 2023-07-01 | F12: =SUMIFS(家計簿[金額],家計簿[年],月比較[[#This Row],[年]],家計簿[月],月比較[[#This Row],[月]],家計簿[収入/支出],月比較[[#Headers],[収入]]) -> 0 | G12: =SUMIFS(家計簿[金額],家計簿[年],月比較[[#This Row],[年]],家計簿[月],月比較[[#This Row],[月]],家計簿[収入/支出],月比較[[#Headers],[支出]]) -> 0 | H12: =SUMIFS(家計簿[金額],家計簿[年],月比較[[#This Row],[年]],家計簿[月],月比較[[#This Row],[月]],家計簿[固定費/変動費],月比較[[#Headers],[固定費]]) -> 0 | I12: =SUMIFS(家計簿[金額],家計簿[年],月比較[[#This Row],[年]],家計簿[月],月比較[[#This Row],[月]],家計簿[固定費/変動費],月比較[[#Headers],[変動費]]) -> 0 | J12: =SUMIFS(家計簿[金額],家計簿[年],月比較[[#This Row],[年]],家計簿[月],月比較[[#This Row],[月]],家計簿[勘定科目],月比較[[#Headers],[給料]]) -> 0 | K12: =SUMIFS(家計簿[金額],家計簿[年],月比較[[#This Row],[年]],家計簿[月],月比較[[#This Row],[月]],家計簿[勘定科目],月比較[[#Headers],[ボーナス]]) -> 0 | L12: =SUMIFS(家計簿[金額],家計簿[年],月比較[[#This Row],[年]],家計簿[月],月比較[[#This Row],[月]],家計簿[勘定科目],月比較[[#Headers],[家賃補助]]) -> 0 | M12: =SUMIFS(家計簿[金額],家計簿[年],月比較[[#This Row],[年]],家計簿[月],月比較[[#This Row],[月]],家計簿[勘定科目],月比較[[#Headers],[児童手当]]) -> 0 | N12: =SUMIFS(家計簿[金額],家計簿[年],月比較[[#This Row],[年]],家計簿[月],月比較[[#This Row],[月]],家計簿[勘定科目],月比較[[#Headers],[配当金]]) -> 0 | O12: =SUMIFS(家計簿[金額],家計簿[年],月比較[[#This Row],[年]],家計簿[月],月比較[[#This Row],[月]],家計簿[勘定科目],月比較[[#Headers],[特別収入]]) -> 0 | P12: =SUMIFS(家計簿[金額],家計簿[年],月比較[[#This Row],[年]],家計簿[月],月比較[[#This Row],[月]],家計簿[勘定科目],月比較[[#Headers],[家賃]]) -> 0 | Q12: =SUMIFS(家計簿[金額],家計簿[年],月比較[[#This Row],[年]],家計簿[月],月比較[[#This Row],[月]],家計簿[勘定科目],月比較[[#Headers],[電気代]]) -> 0 | R12: =SUMIFS(家計簿[金額],家計簿[年],月比較[[#This Row],[年]],家計簿[月],月比較[[#This Row],[月]],家計簿[勘定科目],月比較[[#Headers],[ガス代]]) -> 0 | S12: =SUMIFS(家計簿[金額],家計簿[年],月比較[[#This Row],[年]],家計簿[月],月比較[[#This Row],[月]],家計簿[勘定科目],月比較[[#Headers],[水道代]]) -> 0 | T12: =SUMIFS(家計簿[金額],家計簿[年],月比較[[#This Row],[年]],家計簿[月],月比較[[#This Row],[月]],家計簿[勘定科目],月比較[[#Headers],[通信費]]) -> 0 | U12: =SUMIFS(家計簿[金額],家計簿[年],月比較[[#This Row],[年]],家計簿[月],月比較[[#This Row],[月]],家計簿[勘定科目],月比較[[#Headers],[保険代]]) -> 0 | V12: =SUMIFS(家計簿[金額],家計簿[年],月比較[[#This Row],[年]],家計簿[月],月比較[[#This Row],[月]],家計簿[勘定科目],月比較[[#Headers],[サブスク]]) -> 0 | W12: =SUMIFS(家計簿[金額],家計簿[年],月比較[[#This Row],[年]],家計簿[月],月比較[[#This Row],[月]],家計簿[勘定科目],月比較[[#Headers],[税金（固定資産、自動車）]]) -> 0 | X12: =SUMIFS(家計簿[金額],家計簿[年],月比較[[#This Row],[年]],家計簿[月],月比較[[#This Row],[月]],家計簿[勘定科目],月比較[[#Headers],[食費]]) -> 0 | Y12: =SUMIFS(家計簿[金額],家計簿[年],月比較[[#This Row],[年]],家計簿[月],月比較[[#This Row],[月]],家計簿[勘定科目],月比較[[#Headers],[日用品]]) -> 0 | Z12: =SUMIFS(家計簿[金額],家計簿[年],月比較[[#This Row],[年]],家計簿[月],月比較[[#This Row],[月]],家計簿[勘定科目],月比較[[#Headers],[衣服]]) -> 0 | AA12: =SUMIFS(家計簿[金額],家計簿[年],月比較[[#This Row],[年]],家計簿[月],月比較[[#This Row],[月]],家計簿[勘定科目],月比較[[#Headers],[教育費]]) -> 0 | AB12: =SUMIFS(家計簿[金額],家計簿[年],月比較[[#This Row],[年]],家計簿[月],月比較[[#This Row],[月]],家計簿[勘定科目],月比較[[#Headers],[外食費]]) -> 0 | AC12: =SUMIFS(家計簿[金額],家計簿[年],月比較[[#This Row],[年]],家計簿[月],月比較[[#This Row],[月]],家計簿[勘定科目],月比較[[#Headers],[移動費]]) -> 0 | AD12: =SUMIFS(家計簿[金額],家計簿[年],月比較[[#This Row],[年]],家計簿[月],月比較[[#This Row],[月]],家計簿[勘定科目],月比較[[#Headers],[旅費]]) -> 0 | AE12: =SUMIFS(家計簿[金額],家計簿[年],月比較[[#This Row],[年]],家計簿[月],月比較[[#This Row],[月]],家計簿[勘定科目],月比較[[#Headers],[娯楽費]]) -> 0 | AF12: =SUMIFS(家計簿[金額],家計簿[年],月比較[[#This Row],[年]],家計簿[月],月比較[[#This Row],[月]],家計簿[勘定科目],月比較[[#Headers],[医療費]]) -> 0 | AG12: =SUMIFS(家計簿[金額],家計簿[年],月比較[[#This Row],[年]],家計簿[月],月比較[[#This Row],[月]],家計簿[勘定科目],月比較[[#Headers],[特別出費]]) -> 0
C13: =IF(月比較[[#This Row],[月]]=1,C12+1,C12) -> 2023 | D13: 8 | E13: =DATE(月比較[[#This Row],[年]],月比較[[#This Row],[月]],1) -> 2023-08-01 | F13: =SUMIFS(家計簿[金額],家計簿[年],月比較[[#This Row],[年]],家計簿[月],月比較[[#This Row],[月]],家計簿[収入/支出],月比較[[#Headers],[収入]]) -> 0 | G13: =SUMIFS(家計簿[金額],家計簿[年],月比較[[#This Row],[年]],家計簿[月],月比較[[#This Row],[月]],家計簿[収入/支出],月比較[[#Headers],[支出]]) -> 0 | H13: =SUMIFS(家計簿[金額],家計簿[年],月比較[[#This Row],[年]],家計簿[月],月比較[[#This Row],[月]],家計簿[固定費/変動費],月比較[[#Headers],[固定費]]) -> 0 | I13: =SUMIFS(家計簿[金額],家計簿[年],月比較[[#This Row],[年]],家計簿[月],月比較[[#This Row],[月]],家計簿[固定費/変動費],月比較[[#Headers],[変動費]]) -> 0 | J13: =SUMIFS(家計簿[金額],家計簿[年],月比較[[#This Row],[年]],家計簿[月],月比較[[#This Row],[月]],家計簿[勘定科目],月比較[[#Headers],[給料]]) -> 0 | K13: =SUMIFS(家計簿[金額],家計簿[年],月比較[[#This Row],[年]],家計簿[月],月比較[[#This Row],[月]],家計簿[勘定科目],月比較[[#Headers],[ボーナス]]) -> 0 | L13: =SUMIFS(家計簿[金額],家計簿[年],月比較[[#This Row],[年]],家計簿[月],月比較[[#This Row],[月]],家計簿[勘定科目],月比較[[#Headers],[家賃補助]]) -> 0 | M13: =SUMIFS(家計簿[金額],家計簿[年],月比較[[#This Row],[年]],家計簿[月],月比較[[#This Row],[月]],家計簿[勘定科目],月比較[[#Headers],[児童手当]]) -> 0 | N13: =SUMIFS(家計簿[金額],家計簿[年],月比較[[#This Row],[年]],家計簿[月],月比較[[#This Row],[月]],家計簿[勘定科目],月比較[[#Headers],[配当金]]) -> 0 | O13: =SUMIFS(家計簿[金額],家計簿[年],月比較[[#This Row],[年]],家計簿[月],月比較[[#This Row],[月]],家計簿[勘定科目],月比較[[#Headers],[特別収入]]) -> 0 | P13: =SUMIFS(家計簿[金額],家計簿[年],月比較[[#This Row],[年]],家計簿[月],月比較[[#This Row],[月]],家計簿[勘定科目],月比較[[#Headers],[家賃]]) -> 0 | Q13: =SUMIFS(家計簿[金額],家計簿[年],月比較[[#This Row],[年]],家計簿[月],月比較[[#This Row],[月]],家計簿[勘定科目],月比較[[#Headers],[電気代]]) -> 0 | R13: =SUMIFS(家計簿[金額],家計簿[年],月比較[[#This Row],[年]],家計簿[月],月比較[[#This Row],[月]],家計簿[勘定科目],月比較[[#Headers],[ガス代]]) -> 0 | S13: =SUMIFS(家計簿[金額],家計簿[年],月比較[[#This Row],[年]],家計簿[月],月比較[[#This Row],[月]],家計簿[勘定科目],月比較[[#Headers],[水道代]]) -> 0 | T13: =SUMIFS(家計簿[金額],家計簿[年],月比較[[#This Row],[年]],家計簿[月],月比較[[#This Row],[月]],家計簿[勘定科目],月比較[[#Headers],[通信費]]) -> 0 | U13: =SUMIFS(家計簿[金額],家計簿[年],月比較[[#This Row],[年]],家計簿[月],月比較[[#This Row],[月]],家計簿[勘定科目],月比較[[#Headers],[保険代]]) -> 0 | V13: =SUMIFS(家計簿[金額],家計簿[年],月比較[[#This Row],[年]],家計簿[月],月比較[[#This Row],[月]],家計簿[勘定科目],月比較[[#Headers],[サブスク]]) -> 0 | W13: =SUMIFS(家計簿[金額],家計簿[年],月比較[[#This Row],[年]],家計簿[月],月比較[[#This Row],[月]],家計簿[勘定科目],月比較[[#Headers],[税金（固定資産、自動車）]]) -> 0 | X13: =SUMIFS(家計簿[金額],家計簿[年],月比較[[#This Row],[年]],家計簿[月],月比較[[#This Row],[月]],家計簿[勘定科目],月比較[[#Headers],[食費]]) -> 0 | Y13: =SUMIFS(家計簿[金額],家計簿[年],月比較[[#This Row],[年]],家計簿[月],月比較[[#This Row],[月]],家計簿[勘定科目],月比較[[#Headers],[日用品]]) -> 0 | Z13: =SUMIFS(家計簿[金額],家計簿[年],月比較[[#This Row],[年]],家計簿[月],月比較[[#This Row],[月]],家計簿[勘定科目],月比較[[#Headers],[衣服]]) -> 0 | AA13: =SUMIFS(家計簿[金額],家計簿[年],月比較[[#This Row],[年]],家計簿[月],月比較[[#This Row],[月]],家計簿[勘定科目],月比較[[#Headers],[教育費]]) -> 0 | AB13: =SUMIFS(家計簿[金額],家計簿[年],月比較[[#This Row],[年]],家計簿[月],月比較[[#This Row],[月]],家計簿[勘定科目],月比較[[#Headers],[外食費]]) -> 0 | AC13: =SUMIFS(家計簿[金額],家計簿[年],月比較[[#This Row],[年]],家計簿[月],月比較[[#This Row],[月]],家計簿[勘定科目],月比較[[#Headers],[移動費]]) -> 0 | AD13: =SUMIFS(家計簿[金額],家計簿[年],月比較[[#This Row],[年]],家計簿[月],月比較[[#This Row],[月]],家計簿[勘定科目],月比較[[#Headers],[旅費]]) -> 0 | AE13: =SUMIFS(家計簿[金額],家計簿[年],月比較[[#This Row],[年]],家計簿[月],月比較[[#This Row],[月]],家計簿[勘定科目],月比較[[#Headers],[娯楽費]]) -> 0 | AF13: =SUMIFS(家計簿[金額],家計簿[年],月比較[[#This Row],[年]],家計簿[月],月比較[[#This Row],[月]],家計簿[勘定科目],月比較[[#Headers],[医療費]]) -> 0 | AG13: =SUMIFS(家計簿[金額],家計簿[年],月比較[[#This Row],[年]],家計簿[月],月比較[[#This Row],[月]],家計簿[勘定科目],月比較[[#Headers],[特別出費]]) -> 0
C14: =IF(月比較[[#This Row],[月]]=1,C13+1,C13) -> 2023 | D14: 9 | E14: =DATE(月比較[[#This Row],[年]],月比較[[#This Row],[月]],1) -> 2023-09-01 | F14: =SUMIFS(家計簿[金額],家計簿[年],月比較[[#This Row],[年]],家計簿[月],月比較[[#This Row],[月]],家計簿[収入/支出],月比較[[#Headers],[収入]]) -> 0 | G14: =SUMIFS(家計簿[金額],家計簿[年],月比較[[#This Row],[年]],家計簿[月],月比較[[#This Row],[月]],家計簿[収入/支出],月比較[[#Headers],[支出]]) -> 0 | H14: =SUMIFS(家計簿[金額],家計簿[年],月比較[[#This Row],[年]],家計簿[月],月比較[[#This Row],[月]],家計簿[固定費/変動費],月比較[[#Headers],[固定費]]) -> 0 | I14: =SUMIFS(家計簿[金額],家計簿[年],月比較[[#This Row],[年]],家計簿[月],月比較[[#This Row],[月]],家計簿[固定費/変動費],月比較[[#Headers],[変動費]]) -> 0 | J14: =SUMIFS(家計簿[金額],家計簿[年],月比較[[#This Row],[年]],家計簿[月],月比較[[#This Row],[月]],家計簿[勘定科目],月比較[[#Headers],[給料]]) -> 0 | K14: =SUMIFS(家計簿[金額],家計簿[年],月比較[[#This Row],[年]],家計簿[月],月比較[[#This Row],[月]],家計簿[勘定科目],月比較[[#Headers],[ボーナス]]) -> 0 | L14: =SUMIFS(家計簿[金額],家計簿[年],月比較[[#This Row],[年]],家計簿[月],月比較[[#This Row],[月]],家計簿[勘定科目],月比較[[#Headers],[家賃補助]]) -> 0 | M14: =SUMIFS(家計簿[金額],家計簿[年],月比較[[#This Row],[年]],家計簿[月],月比較[[#This Row],[月]],家計簿[勘定科目],月比較[[#Headers],[児童手当]]) -> 0 | N14: =SUMIFS(家計簿[金額],家計簿[年],月比較[[#This Row],[年]],家計簿[月],月比較[[#This Row],[月]],家計簿[勘定科目],月比較[[#Headers],[配当金]]) -> 0 | O14: =SUMIFS(家計簿[金額],家計簿[年],月比較[[#This Row],[年]],家計簿[月],月比較[[#This Row],[月]],家計簿[勘定科目],月比較[[#Headers],[特別収入]]) -> 0 | P14: =SUMIFS(家計簿[金額],家計簿[年],月比較[[#This Row],[年]],家計簿[月],月比較[[#This Row],[月]],家計簿[勘定科目],月比較[[#Headers],[家賃]]) -> 0 | Q14: =SUMIFS(家計簿[金額],家計簿[年],月比較[[#This Row],[年]],家計簿[月],月比較[[#This Row],[月]],家計簿[勘定科目],月比較[[#Headers],[電気代]]) -> 0 | R14: =SUMIFS(家計簿[金額],家計簿[年],月比較[[#This Row],[年]],家計簿[月],月比較[[#This Row],[月]],家計簿[勘定科目],月比較[[#Headers],[ガス代]]) -> 0 | S14: =SUMIFS(家計簿[金額],家計簿[年],月比較[[#This Row],[年]],家計簿[月],月比較[[#This Row],[月]],家計簿[勘定科目],月比較[[#Headers],[水道代]]) -> 0 | T14: =SUMIFS(家計簿[金額],家計簿[年],月比較[[#This Row],[年]],家計簿[月],月比較[[#This Row],[月]],家計簿[勘定科目],月比較[[#Headers],[通信費]]) -> 0 | U14: =SUMIFS(家計簿[金額],家計簿[年],月比較[[#This Row],[年]],家計簿[月],月比較[[#This Row],[月]],家計簿[勘定科目],月比較[[#Headers],[保険代]]) -> 0 | V14: =SUMIFS(家計簿[金額],家計簿[年],月比較[[#This Row],[年]],家計簿[月],月比較[[#This Row],[月]],家計簿[勘定科目],月比較[[#Headers],[サブスク]]) -> 0 | W14: =SUMIFS(家計簿[金額],家計簿[年],月比較[[#This Row],[年]],家計簿[月],月比較[[#This Row],[月]],家計簿[勘定科目],月比較[[#Headers],[税金（固定資産、自動車）]]) -> 0 | X14: =SUMIFS(家計簿[金額],家計簿[年],月比較[[#This Row],[年]],家計簿[月],月比較[[#This Row],[月]],家計簿[勘定科目],月比較[[#Headers],[食費]]) -> 0 | Y14: =SUMIFS(家計簿[金額],家計簿[年],月比較[[#This Row],[年]],家計簿[月],月比較[[#This Row],[月]],家計簿[勘定科目],月比較[[#Headers],[日用品]]) -> 0 | Z14: =SUMIFS(家計簿[金額],家計簿[年],月比較[[#This Row],[年]],家計簿[月],月比較[[#This Row],[月]],家計簿[勘定科目],月比較[[#Headers],[衣服]]) -> 0 | AA14: =SUMIFS(家計簿[金額],家計簿[年],月比較[[#This Row],[年]],家計簿[月],月比較[[#This Row],[月]],家計簿[勘定科目],月比較[[#Headers],[教育費]]) -> 0 | AB14: =SUMIFS(家計簿[金額],家計簿[年],月比較[[#This Row],[年]],家計簿[月],月比較[[#This Row],[月]],家計簿[勘定科目],月比較[[#Headers],[外食費]]) -> 0 | AC14: =SUMIFS(家計簿[金額],家計簿[年],月比較[[#This Row],[年]],家計簿[月],月比較[[#This Row],[月]],家計簿[勘定科目],月比較[[#Headers],[移動費]]) -> 0 | AD14: =SUMIFS(家計簿[金額],家計簿[年],月比較[[#This Row],[年]],家計簿[月],月比較[[#This Row],[月]],家計簿[勘定科目],月比較[[#Headers],[旅費]]) -> 0 | AE14: =SUMIFS(家計簿[金額],家計簿[年],月比較[[#This Row],[年]],家計簿[月],月比較[[#This Row],[月]],家計簿[勘定科目],月比較[[#Headers],[娯楽費]]) -> 0 | AF14: =SUMIFS(家計簿[金額],家計簿[年],月比較[[#This Row],[年]],家計簿[月],月比較[[#This Row],[月]],家計簿[勘定科目],月比較[[#Headers],[医療費]]) -> 0 | AG14: =SUMIFS(家計簿[金額],家計簿[年],月比較[[#This Row],[年]],家計簿[月],月比較[[#This Row],[月]],家計簿[勘定科目],月比較[[#Headers],[特別出費]]) -> 0
C15: =IF(月比較[[#This Row],[月]]=1,C14+1,C14) -> 2023 | D15: 10 | E15: =DATE(月比較[[#This Row],[年]],月比較[[#This Row],[月]],1) -> 2023-10-01 | F15: =SUMIFS(家計簿[金額],家計簿[年],月比較[[#This Row],[年]],家計簿[月],月比較[[#This Row],[月]],家計簿[収入/支出],月比較[[#Headers],[収入]]) -> 0 | G15: =SUMIFS(家計簿[金額],家計簿[年],月比較[[#This Row],[年]],家計簿[月],月比較[[#This Row],[月]],家計簿[収入/支出],月比較[[#Headers],[支出]]) -> 0 | H15: =SUMIFS(家計簿[金額],家計簿[年],月比較[[#This Row],[年]],家計簿[月],月比較[[#This Row],[月]],家計簿[固定費/変動費],月比較[[#Headers],[固定費]]) -> 0 | I15: =SUMIFS(家計簿[金額],家計簿[年],月比較[[#This Row],[年]],家計簿[月],月比較[[#This Row],[月]],家計簿[固定費/変動費],月比較[[#Headers],[変動費]]) -> 0 | J15: =SUMIFS(家計簿[金額],家計簿[年],月比較[[#This Row],[年]],家計簿[月],月比較[[#This Row],[月]],家計簿[勘定科目],月比較[[#Headers],[給料]]) -> 0 | K15: =SUMIFS(家計簿[金額],家計簿[年],月比較[[#This Row],[年]],家計簿[月],月比較[[#This Row],[月]],家計簿[勘定科目],月比較[[#Headers],[ボーナス]]) -> 0 | L15: =SUMIFS(家計簿[金額],家計簿[年],月比較[[#This Row],[年]],家計簿[月],月比較[[#This Row],[月]],家計簿[勘定科目],月比較[[#Headers],[家賃補助]]) -> 0 | M15: =SUMIFS(家計簿[金額],家計簿[年],月比較[[#This Row],[年]],家計簿[月],月比較[[#This Row],[月]],家計簿[勘定科目],月比較[[#Headers],[児童手当]]) -> 0 | N15: =SUMIFS(家計簿[金額],家計簿[年],月比較[[#This Row],[年]],家計簿[月],月比較[[#This Row],[月]],家計簿[勘定科目],月比較[[#Headers],[配当金]]) -> 0 | O15: =SUMIFS(家計簿[金額],家計簿[年],月比較[[#This Row],[年]],家計簿[月],月比較[[#This Row],[月]],家計簿[勘定科目],月比較[[#Headers],[特別収入]]) -> 0 | P15: =SUMIFS(家計簿[金額],家計簿[年],月比較[[#This Row],[年]],家計簿[月],月比較[[#This Row],[月]],家計簿[勘定科目],月比較[[#Headers],[家賃]]) -> 0 | Q15: =SUMIFS(家計簿[金額],家計簿[年],月比較[[#This Row],[年]],家計簿[月],月比較[[#This Row],[月]],家計簿[勘定科目],月比較[[#Headers],[電気代]]) -> 0 | R15: =SUMIFS(家計簿[金額],家計簿[年],月比較[[#This Row],[年]],家計簿[月],月比較[[#This Row],[月]],家計簿[勘定科目],月比較[[#Headers],[ガス代]]) -> 0 | S15: =SUMIFS(家計簿[金額],家計簿[年],月比較[[#This Row],[年]],家計簿[月],月比較[[#This Row],[月]],家計簿[勘定科目],月比較[[#Headers],[水道代]]) -> 0 | T15: =SUMIFS(家計簿[金額],家計簿[年],月比較[[#This Row],[年]],家計簿[月],月比較[[#This Row],[月]],家計簿[勘定科目],月比較[[#Headers],[通信費]]) -> 0 | U15: =SUMIFS(家計簿[金額],家計簿[年],月比較[[#This Row],[年]],家計簿[月],月比較[[#This Row],[月]],家計簿[勘定科目],月比較[[#Headers],[保険代]]) -> 0 | V15: =SUMIFS(家計簿[金額],家計簿[年],月比較[[#This Row],[年]],家計簿[月],月比較[[#This Row],[月]],家計簿[勘定科目],月比較[[#Headers],[サブスク]]) -> 0 | W15: =SUMIFS(家計簿[金額],家計簿[年],月比較[[#This Row],[年]],家計簿[月],月比較[[#This Row],[月]],家計簿[勘定科目],月比較[[#Headers],[税金（固定資産、自動車）]]) -> 0 | X15: =SUMIFS(家計簿[金額],家計簿[年],月比較[[#This Row],[年]],家計簿[月],月比較[[#This Row],[月]],家計簿[勘定科目],月比較[[#Headers],[食費]]) -> 0 | Y15: =SUMIFS(家計簿[金額],家計簿[年],月比較[[#This Row],[年]],家計簿[月],月比較[[#This Row],[月]],家計簿[勘定科目],月比較[[#Headers],[日用品]]) -> 0 | Z15: =SUMIFS(家計簿[金額],家計簿[年],月比較[[#This Row],[年]],家計簿[月],月比較[[#This Row],[月]],家計簿[勘定科目],月比較[[#Headers],[衣服]]) -> 0 | AA15: =SUMIFS(家計簿[金額],家計簿[年],月比較[[#This Row],[年]],家計簿[月],月比較[[#This Row],[月]],家計簿[勘定科目],月比較[[#Headers],[教育費]]) -> 0 | AB15: =SUMIFS(家計簿[金額],家計簿[年],月比較[[#This Row],[年]],家計簿[月],月比較[[#This Row],[月]],家計簿[勘定科目],月比較[[#Headers],[外食費]]) -> 0 | AC15: =SUMIFS(家計簿[金額],家計簿[年],月比較[[#This Row],[年]],家計簿[月],月比較[[#This Row],[月]],家計簿[勘定科目],月比較[[#Headers],[移動費]]) -> 0 | AD15: =SUMIFS(家計簿[金額],家計簿[年],月比較[[#This Row],[年]],家計簿[月],月比較[[#This Row],[月]],家計簿[勘定科目],月比較[[#Headers],[旅費]]) -> 0 | AE15: =SUMIFS(家計簿[金額],家計簿[年],月比較[[#This Row],[年]],家計簿[月],月比較[[#This Row],[月]],家計簿[勘定科目],月比較[[#Headers],[娯楽費]]) -> 0 | AF15: =SUMIFS(家計簿[金額],家計簿[年],月比較[[#This Row],[年]],家計簿[月],月比較[[#This Row],[月]],家計簿[勘定科目],月比較[[#Headers],[医療費]]) -> 0 | AG15: =SUMIFS(家計簿[金額],家計簿[年],月比較[[#This Row],[年]],家計簿[月],月比較[[#This Row],[月]],家計簿[勘定科目],月比較[[#Headers],[特別出費]]) -> 0
C16: =IF(月比較[[#This Row],[月]]=1,C15+1,C15) -> 2023 | D16: 11 | E16: =DATE(月比較[[#This Row],[年]],月比較[[#This Row],[月]],1) -> 2023-11-01 | F16: =SUMIFS(家計簿[金額],家計簿[年],月比較[[#This Row],[年]],家計簿[月],月比較[[#This Row],[月]],家計簿[収入/支出],月比較[[#Headers],[収入]]) -> 0 | G16: =SUMIFS(家計簿[金額],家計簿[年],月比較[[#This Row],[年]],家計簿[月],月比較[[#This Row],[月]],家計簿[収入/支出],月比較[[#Headers],[支出]]) -> 0 | H16: =SUMIFS(家計簿[金額],家計簿[年],月比較[[#This Row],[年]],家計簿[月],月比較[[#This Row],[月]],家計簿[固定費/変動費],月比較[[#Headers],[固定費]]) -> 0 | I16: =SUMIFS(家計簿[金額],家計簿[年],月比較[[#This Row],[年]],家計簿[月],月比較[[#This Row],[月]],家計簿[固定費/変動費],月比較[[#Headers],[変動費]]) -> 0 | J16: =SUMIFS(家計簿[金額],家計簿[年],月比較[[#This Row],[年]],家計簿[月],月比較[[#This Row],[月]],家計簿[勘定科目],月比較[[#Headers],[給料]]) -> 0 | K16: =SUMIFS(家計簿[金額],家計簿[年],月比較[[#This Row],[年]],家計簿[月],月比較[[#This Row],[月]],家計簿[勘定科目],月比較[[#Headers],[ボーナス]]) -> 0 | L16: =SUMIFS(家計簿[金額],家計簿[年],月比較[[#This Row],[年]],家計簿[月],月比較[[#This Row],[月]],家計簿[勘定科目],月比較[[#Headers],[家賃補助]]) -> 0 | M16: =SUMIFS(家計簿[金額],家計簿[年],月比較[[#This Row],[年]],家計簿[月],月比較[[#This Row],[月]],家計簿[勘定科目],月比較[[#Headers],[児童手当]]) -> 0 | N16: =SUMIFS(家計簿[金額],家計簿[年],月比較[[#This Row],[年]],家計簿[月],月比較[[#This Row],[月]],家計簿[勘定科目],月比較[[#Headers],[配当金]]) -> 0 | O16: =SUMIFS(家計簿[金額],家計簿[年],月比較[[#This Row],[年]],家計簿[月],月比較[[#This Row],[月]],家計簿[勘定科目],月比較[[#Headers],[特別収入]]) -> 0 | P16: =SUMIFS(家計簿[金額],家計簿[年],月比較[[#This Row],[年]],家計簿[月],月比較[[#This Row],[月]],家計簿[勘定科目],月比較[[#Headers],[家賃]]) -> 0 | Q16: =SUMIFS(家計簿[金額],家計簿[年],月比較[[#This Row],[年]],家計簿[月],月比較[[#This Row],[月]],家計簿[勘定科目],月比較[[#Headers],[電気代]]) -> 0 | R16: =SUMIFS(家計簿[金額],家計簿[年],月比較[[#This Row],[年]],家計簿[月],月比較[[#This Row],[月]],家計簿[勘定科目],月比較[[#Headers],[ガス代]]) -> 0 | S16: =SUMIFS(家計簿[金額],家計簿[年],月比較[[#This Row],[年]],家計簿[月],月比較[[#This Row],[月]],家計簿[勘定科目],月比較[[#Headers],[水道代]]) -> 0 | T16: =SUMIFS(家計簿[金額],家計簿[年],月比較[[#This Row],[年]],家計簿[月],月比較[[#This Row],[月]],家計簿[勘定科目],月比較[[#Headers],[通信費]]) -> 0 | U16: =SUMIFS(家計簿[金額],家計簿[年],月比較[[#This Row],[年]],家計簿[月],月比較[[#This Row],[月]],家計簿[勘定科目],月比較[[#Headers],[保険代]]) -> 0 | V16: =SUMIFS(家計簿[金額],家計簿[年],月比較[[#This Row],[年]],家計簿[月],月比較[[#This Row],[月]],家計簿[勘定科目],月比較[[#Headers],[サブスク]]) -> 0 | W16: =SUMIFS(家計簿[金額],家計簿[年],月比較[[#This Row],[年]],家計簿[月],月比較[[#This Row],[月]],家計簿[勘定科目],月比較[[#Headers],[税金（固定資産、自動車）]]) -> 0 | X16: =SUMIFS(家計簿[金額],家計簿[年],月比較[[#This Row],[年]],家計簿[月],月比較[[#This Row],[月]],家計簿[勘定科目],月比較[[#Headers],[食費]]) -> 0 | Y16: =SUMIFS(家計簿[金額],家計簿[年],月比較[[#This Row],[年]],家計簿[月],月比較[[#This Row],[月]],家計簿[勘定科目],月比較[[#Headers],[日用品]]) -> 0 | Z16: =SUMIFS(家計簿[金額],家計簿[年],月比較[[#This Row],[年]],家計簿[月],月比較[[#This Row],[月]],家計簿[勘定科目],月比較[[#Headers],[衣服]]) -> 0 | AA16: =SUMIFS(家計簿[金額],家計簿[年],月比較[[#This Row],[年]],家計簿[月],月比較[[#This Row],[月]],家計簿[勘定科目],月比較[[#Headers],[教育費]]) -> 0 | AB16: =SUMIFS(家計簿[金額],家計簿[年],月比較[[#This Row],[年]],家計簿[月],月比較[[#This Row],[月]],家計簿[勘定科目],月比較[[#Headers],[外食費]]) -> 0 | AC16: =SUMIFS(家計簿[金額],家計簿[年],月比較[[#This Row],[年]],家計簿[月],月比較[[#This Row],[月]],家計簿[勘定科目],月比較[[#Headers],[移動費]]) -> 0 | AD16: =SUMIFS(家計簿[金額],家計簿[年],月比較[[#This Row],[年]],家計簿[月],月比較[[#This Row],[月]],家計簿[勘定科目],月比較[[#Headers],[旅費]]) -> 0 | AE16: =SUMIFS(家計簿[金額],家計簿[年],月比較[[#This Row],[年]],家計簿[月],月比較[[#This Row],[月]],家計簿[勘定科目],月比較[[#Headers],[娯楽費]]) -> 0 | AF16: =SUMIFS(家計簿[金額],家計簿[年],月比較[[#This Row],[年]],家計簿[月],月比較[[#This Row],[月]],家計簿[勘定科目],月比較[[#Headers],[医療費]]) -> 0 | AG16: =SUMIFS(家計簿[金額],家計簿[年],月比較[[#This Row],[年]],家計簿[月],月比較[[#This Row],[月]],家計簿[勘定科目],月比較[[#Headers],[特別出費]]) -> 0
C17: =IF(月比較[[#This Row],[月]]=1,C16+1,C16) -> 2023 | D17: 12 | E17: =DATE(月比較[[#This Row],[年]],月比較[[#This Row],[月]],1) -> 2023-12-01 | F17: =SUMIFS(家計簿[金額],家計簿[年],月比較[[#This Row],[年]],家計簿[月],月比較[[#This Row],[月]],家計簿[収入/支出],月比較[[#Headers],[収入]]) -> 0 | G17: =SUMIFS(家計簿[金額],家計簿[年],月比較[[#This Row],[年]],家計簿[月],月比較[[#This Row],[月]],家計簿[収入/支出],月比較[[#Headers],[支出]]) -> 0 | H17: =SUMIFS(家計簿[金額],家計簿[年],月比較[[#This Row],[年]],家計簿[月],月比較[[#This Row],[月]],家計簿[固定費/変動費],月比較[[#Headers],[固定費]]) -> 0 | I17: =SUMIFS(家計簿[金額],家計簿[年],月比較[[#This Row],[年]],家計簿[月],月比較[[#This Row],[月]],家計簿[固定費/変動費],月比較[[#Headers],[変動費]]) -> 0 | J17: =SUMIFS(家計簿[金額],家計簿[年],月比較[[#This Row],[年]],家計簿[月],月比較[[#This Row],[月]],家計簿[勘定科目],月比較[[#Headers],[給料]]) -> 0 | K17: =SUMIFS(家計簿[金額],家計簿[年],月比較[[#This Row],[年]],家計簿[月],月比較[[#This Row],[月]],家計簿[勘定科目],月比較[[#Headers],[ボーナス]]) -> 0 | L17: =SUMIFS(家計簿[金額],家計簿[年],月比較[[#This Row],[年]],家計簿[月],月比較[[#This Row],[月]],家計簿[勘定科目],月比較[[#Headers],[家賃補助]]) -> 0 | M17: =SUMIFS(家計簿[金額],家計簿[年],月比較[[#This Row],[年]],家計簿[月],月比較[[#This Row],[月]],家計簿[勘定科目],月比較[[#Headers],[児童手当]]) -> 0 | N17: =SUMIFS(家計簿[金額],家計簿[年],月比較[[#This Row],[年]],家計簿[月],月比較[[#This Row],[月]],家計簿[勘定科目],月比較[[#Headers],[配当金]]) -> 0 | O17: =SUMIFS(家計簿[金額],家計簿[年],月比較[[#This Row],[年]],家計簿[月],月比較[[#This Row],[月]],家計簿[勘定科目],月比較[[#Headers],[特別収入]]) -> 0 | P17: =SUMIFS(家計簿[金額],家計簿[年],月比較[[#This Row],[年]],家計簿[月],月比較[[#This Row],[月]],家計簿[勘定科目],月比較[[#Headers],[家賃]]) -> 0 | Q17: =SUMIFS(家計簿[金額],家計簿[年],月比較[[#This Row],[年]],家計簿[月],月比較[[#This Row],[月]],家計簿[勘定科目],月比較[[#Headers],[電気代]]) -> 0 | R17: =SUMIFS(家計簿[金額],家計簿[年],月比較[[#This Row],[年]],家計簿[月],月比較[[#This Row],[月]],家計簿[勘定科目],月比較[[#Headers],[ガス代]]) -> 0 | S17: =SUMIFS(家計簿[金額],家計簿[年],月比較[[#This Row],[年]],家計簿[月],月比較[[#This Row],[月]],家計簿[勘定科目],月比較[[#Headers],[水道代]]) -> 0 | T17: =SUMIFS(家計簿[金額],家計簿[年],月比較[[#This Row],[年]],家計簿[月],月比較[[#This Row],[月]],家計簿[勘定科目],月比較[[#Headers],[通信費]]) -> 0 | U17: =SUMIFS(家計簿[金額],家計簿[年],月比較[[#This Row],[年]],家計簿[月],月比較[[#This Row],[月]],家計簿[勘定科目],月比較[[#Headers],[保険代]]) -> 0 | V17: =SUMIFS(家計簿[金額],家計簿[年],月比較[[#This Row],[年]],家計簿[月],月比較[[#This Row],[月]],家計簿[勘定科目],月比較[[#Headers],[サブスク]]) -> 0 | W17: =SUMIFS(家計簿[金額],家計簿[年],月比較[[#This Row],[年]],家計簿[月],月比較[[#This Row],[月]],家計簿[勘定科目],月比較[[#Headers],[税金（固定資産、自動車）]]) -> 0 | X17: =SUMIFS(家計簿[金額],家計簿[年],月比較[[#This Row],[年]],家計簿[月],月比較[[#This Row],[月]],家計簿[勘定科目],月比較[[#Headers],[食費]]) -> 0 | Y17: =SUMIFS(家計簿[金額],家計簿[年],月比較[[#This Row],[年]],家計簿[月],月比較[[#This Row],[月]],家計簿[勘定科目],月比較[[#Headers],[日用品]]) -> 0 | Z17: =SUMIFS(家計簿[金額],家計簿[年],月比較[[#This Row],[年]],家計簿[月],月比較[[#This Row],[月]],家計簿[勘定科目],月比較[[#Headers],[衣服]]) -> 0 | AA17: =SUMIFS(家計簿[金額],家計簿[年],月比較[[#This Row],[年]],家計簿[月],月比較[[#This Row],[月]],家計簿[勘定科目],月比較[[#Headers],[教育費]]) -> 0 | AB17: =SUMIFS(家計簿[金額],家計簿[年],月比較[[#This Row],[年]],家計簿[月],月比較[[#This Row],[月]],家計簿[勘定科目],月比較[[#Headers],[外食費]]) -> 0 | AC17: =SUMIFS(家計簿[金額],家計簿[年],月比較[[#This Row],[年]],家計簿[月],月比較[[#This Row],[月]],家計簿[勘定科目],月比較[[#Headers],[移動費]]) -> 0 | AD17: =SUMIFS(家計簿[金額],家計簿[年],月比較[[#This Row],[年]],家計簿[月],月比較[[#This Row],[月]],家計簿[勘定科目],月比較[[#Headers],[旅費]]) -> 0 | AE17: =SUMIFS(家計簿[金額],家計簿[年],月比較[[#This Row],[年]],家計簿[月],月比較[[#This Row],[月]],家計簿[勘定科目],月比較[[#Headers],[娯楽費]]) -> 0 | AF17: =SUMIFS(家計簿[金額],家計簿[年],月比較[[#This Row],[年]],家計簿[月],月比較[[#This Row],[月]],家計簿[勘定科目],月比較[[#Headers],[医療費]]) -> 0 | AG17: =SUMIFS(家計簿[金額],家計簿[年],月比較[[#This Row],[年]],家計簿[月],月比較[[#This Row],[月]],家計簿[勘定科目],月比較[[#Headers],[特別出費]]) -> 0
C18: =IF(月比較[[#This Row],[月]]=1,C17+1,C17) -> 2024 | D18: 1 | E18: =DATE(月比較[[#This Row],[年]],月比較[[#This Row],[月]],1) -> 2024-01-01 | F18: =SUMIFS(家計簿[金額],家計簿[年],月比較[[#This Row],[年]],家計簿[月],月比較[[#This Row],[月]],家計簿[収入/支出],月比較[[#Headers],[収入]]) -> 5000 | G18: =SUMIFS(家計簿[金額],家計簿[年],月比較[[#This Row],[年]],家計簿[月],月比較[[#This Row],[月]],家計簿[収入/支出],月比較[[#Headers],[支出]]) -> 15000 | H18: =SUMIFS(家計簿[金額],家計簿[年],月比較[[#This Row],[年]],家計簿[月],月比較[[#This Row],[月]],家計簿[固定費/変動費],月比較[[#Headers],[固定費]]) -> 5000 | I18: =SUMIFS(家計簿[金額],家計簿[年],月比較[[#This Row],[年]],家計簿[月],月比較[[#This Row],[月]],家計簿[固定費/変動費],月比較[[#Headers],[変動費]]) -> 10000 | J18: =SUMIFS(家計簿[金額],家計簿[年],月比較[[#This Row],[年]],家計簿[月],月比較[[#This Row],[月]],家計簿[勘定科目],月比較[[#Headers],[給料]]) -> 0 | K18: =SUMIFS(家計簿[金額],家計簿[年],月比較[[#This Row],[年]],家計簿[月],月比較[[#This Row],[月]],家計簿[勘定科目],月比較[[#Headers],[ボーナス]]) -> 0 | L18: =SUMIFS(家計簿[金額],家計簿[年],月比較[[#This Row],[年]],家計簿[月],月比較[[#This Row],[月]],家計簿[勘定科目],月比較[[#Headers],[家賃補助]]) -> 0 | M18: =SUMIFS(家計簿[金額],家計簿[年],月比較[[#This Row],[年]],家計簿[月],月比較[[#This Row],[月]],家計簿[勘定科目],月比較[[#Headers],[児童手当]]) -> 5000 | N18: =SUMIFS(家計簿[金額],家計簿[年],月比較[[#This Row],[年]],家計簿[月],月比較[[#This Row],[月]],家計簿[勘定科目],月比較[[#Headers],[配当金]]) -> 0 | O18: =SUMIFS(家計簿[金額],家計簿[年],月比較[[#This Row],[年]],家計簿[月],月比較[[#This Row],[月]],家計簿[勘定科目],月比較[[#Headers],[特別収入]]) -> 0 | P18: =SUMIFS(家計簿[金額],家計簿[年],月比較[[#This Row],[年]],家計簿[月],月比較[[#This Row],[月]],家計簿[勘定科目],月比較[[#Headers],[家賃]]) -> 0 | Q18: =SUMIFS(家計簿[金額],家計簿[年],月比較[[#This Row],[年]],家計簿[月],月比較[[#This Row],[月]],家計簿[勘定科目],月比較[[#Headers],[電気代]]) -> 0 | R18: =SUMIFS(家計簿[金額],家計簿[年],月比較[[#This Row],[年]],家計簿[月],月比較[[#This Row],[月]],家計簿[勘定科目],月比較[[#Headers],[ガス代]]) -> 0 | S18: =SUMIFS(家計簿[金額],家計簿[年],月比較[[#This Row],[年]],家計簿[月],月比較[[#This Row],[月]],家計簿[勘定科目],月比較[[#Headers],[水道代]]) -> 0 | T18: =SUMIFS(家計簿[金額],家計簿[年],月比較[[#This Row],[年]],家計簿[月],月比較[[#This Row],[月]],家計簿[勘定科目],月比較[[#Headers],[通信費]]) -> 5000 | U18: =SUMIFS(家計簿[金額],家計簿[年],月比較[[#This Row],[年]],家計簿[月],月比較[[#This Row],[月]],家計簿[勘定科目],月比較[[#Headers],[保険代]]) -> 0 | V18: =SUMIFS(家計簿[金額],家計簿[年],月比較[[#This Row],[年]],家計簿[月],月比較[[#This Row],[月]],家計簿[勘定科目],月比較[[#Headers],[サブスク]]) -> 0 | W18: =SUMIFS(家計簿[金額],家計簿[年],月比較[[#This Row],[年]],家計簿[月],月比較[[#This Row],[月]],家計簿[勘定科目],月比較[[#Headers],[税金（固定資産、自動車）]]) -> 0 | X18: =SUMIFS(家計簿[金額],家計簿[年],月比較[[#This Row],[年]],家計簿[月],月比較[[#This Row],[月]],家計簿[勘定科目],月比較[[#Headers],[食費]]) -> 0 | Y18: =SUMIFS(家計簿[金額],家計簿[年],月比較[[#This Row],[年]],家計簿[月],月比較[[#This Row],[月]],家計簿[勘定科目],月比較[[#Headers],[日用品]]) -> 0 | Z18: =SUMIFS(家計簿[金額],家計簿[年],月比較[[#This Row],[年]],家計簿[月],月比較[[#This Row],[月]],家計簿[勘定科目],月比較[[#Headers],[衣服]]) -> 0 | AA18: =SUMIFS(家計簿[金額],家計簿[年],月比較[[#This Row],[年]],家計簿[月],月比較[[#This Row],[月]],家計簿[勘定科目],月比較[[#Headers],[教育費]]) -> 0 | AB18: =SUMIFS(家計簿[金額],家計簿[年],月比較[[#This Row],[年]],家計簿[月],月比較[[#This Row],[月]],家計簿[勘定科目],月比較[[#Headers],[外食費]]) -> 0 | AC18: =SUMIFS(家計簿[金額],家計簿[年],月比較[[#This Row],[年]],家計簿[月],月比較[[#This Row],[月]],家計簿[勘定科目],月比較[[#Headers],[移動費]]) -> 10000 | AD18: =SUMIFS(家計簿[金額],家計簿[年],月比較[[#This Row],[年]],家計簿[月],月比較[[#This Row],[月]],家計簿[勘定科目],月比較[[#Headers],[旅費]]) -> 0 | AE18: =SUMIFS(家計簿[金額],家計簿[年],月比較[[#This Row],[年]],家計簿[月],月比較[[#This Row],[月]],家計簿[勘定科目],月比較[[#Headers],[娯楽費]]) -> 0 | AF18: =SUMIFS(家計簿[金額],家計簿[年],月比較[[#This Row],[年]],家計簿[月],月比較[[#This Row],[月]],家計簿[勘定科目],月比較[[#Headers],[医療費]]) -> 0 | AG18: =SUMIFS(家計簿[金額],家計簿[年],月比較[[#This Row],[年]],家計簿[月],月比較[[#This Row],[月]],家計簿[勘定科目],月比較[[#Headers],[特別出費]]) -> 0
C19: =IF(月比較[[#This Row],[月]]=1,C18+1,C18) -> 2024 | D19: 2 | E19: =DATE(月比較[[#This Row],[年]],月比較[[#This Row],[月]],1) -> 2024-02-01 | F19: =SUMIFS(家計簿[金額],家計簿[年],月比較[[#This Row],[年]],家計簿[月],月比較[[#This Row],[月]],家計簿[収入/支出],月比較[[#Headers],[収入]]) -> 0 | G19: =SUMIFS(家計簿[金額],家計簿[年],月比較[[#This Row],[年]],家計簿[月],月比較[[#This Row],[月]],家計簿[収入/支出],月比較[[#Headers],[支出]]) -> 0 | H19: =SUMIFS(家計簿[金額],家計簿[年],月比較[[#This Row],[年]],家計簿[月],月比較[[#This Row],[月]],家計簿[固定費/変動費],月比較[[#Headers],[固定費]]) -> 0 | I19: =SUMIFS(家計簿[金額],家計簿[年],月比較[[#This Row],[年]],家計簿[月],月比較[[#This Row],[月]],家計簿[固定費/変動費],月比較[[#Headers],[変動費]]) -> 0 | J19: =SUMIFS(家計簿[金額],家計簿[年],月比較[[#This Row],[年]],家計簿[月],月比較[[#This Row],[月]],家計簿[勘定科目],月比較[[#Headers],[給料]]) -> 0 | K19: =SUMIFS(家計簿[金額],家計簿[年],月比較[[#This Row],[年]],家計簿[月],月比較[[#This Row],[月]],家計簿[勘定科目],月比較[[#Headers],[ボーナス]]) -> 0 | L19: =SUMIFS(家計簿[金額],家計簿[年],月比較[[#This Row],[年]],家計簿[月],月比較[[#This Row],[月]],家計簿[勘定科目],月比較[[#Headers],[家賃補助]]) -> 0 | M19: =SUMIFS(家計簿[金額],家計簿[年],月比較[[#This Row],[年]],家計簿[月],月比較[[#This Row],[月]],家計簿[勘定科目],月比較[[#Headers],[児童手当]]) -> 0 | N19: =SUMIFS(家計簿[金額],家計簿[年],月比較[[#This Row],[年]],家計簿[月],月比較[[#This Row],[月]],家計簿[勘定科目],月比較[[#Headers],[配当金]]) -> 0 | O19: =SUMIFS(家計簿[金額],家計簿[年],月比較[[#This Row],[年]],家計簿[月],月比較[[#This Row],[月]],家計簿[勘定科目],月比較[[#Headers],[特別収入]]) -> 0 | P19: =SUMIFS(家計簿[金額],家計簿[年],月比較[[#This Row],[年]],家計簿[月],月比較[[#This Row],[月]],家計簿[勘定科目],月比較[[#Headers],[家賃]]) -> 0 | Q19: =SUMIFS(家計簿[金額],家計簿[年],月比較[[#This Row],[年]],家計簿[月],月比較[[#This Row],[月]],家計簿[勘定科目],月比較[[#Headers],[電気代]]) -> 0 | R19: =SUMIFS(家計簿[金額],家計簿[年],月比較[[#This Row],[年]],家計簿[月],月比較[[#This Row],[月]],家計簿[勘定科目],月比較[[#Headers],[ガス代]]) -> 0 | S19: =SUMIFS(家計簿[金額],家計簿[年],月比較[[#This Row],[年]],家計簿[月],月比較[[#This Row],[月]],家計簿[勘定科目],月比較[[#Headers],[水道代]]) -> 0 | T19: =SUMIFS(家計簿[金額],家計簿[年],月比較[[#This Row],[年]],家計簿[月],月比較[[#This Row],[月]],家計簿[勘定科目],月比較[[#Headers],[通信費]]) -> 0 | U19: =SUMIFS(家計簿[金額],家計簿[年],月比較[[#This Row],[年]],家計簿[月],月比較[[#This Row],[月]],家計簿[勘定科目],月比較[[#Headers],[保険代]]) -> 0 | V19: =SUMIFS(家計簿[金額],家計簿[年],月比較[[#This Row],[年]],家計簿[月],月比較[[#This Row],[月]],家計簿[勘定科目],月比較[[#Headers],[サブスク]]) -> 0 | W19: =SUMIFS(家計簿[金額],家計簿[年],月比較[[#This Row],[年]],家計簿[月],月比較[[#This Row],[月]],家計簿[勘定科目],月比較[[#Headers],[税金（固定資産、自動車）]]) -> 0 | X19: =SUMIFS(家計簿[金額],家計簿[年],月比較[[#This Row],[年]],家計簿[月],月比較[[#This Row],[月]],家計簿[勘定科目],月比較[[#Headers],[食費]]) -> 0 | Y19: =SUMIFS(家計簿[金額],家計簿[年],月比較[[#This Row],[年]],家計簿[月],月比較[[#This Row],[月]],家計簿[勘定科目],月比較[[#Headers],[日用品]]) -> 0 | Z19: =SUMIFS(家計簿[金額],家計簿[年],月比較[[#This Row],[年]],家計簿[月],月比較[[#This Row],[月]],家計簿[勘定科目],月比較[[#Headers],[衣服]]) -> 0 | AA19: =SUMIFS(家計簿[金額],家計簿[年],月比較[[#This Row],[年]],家計簿[月],月比較[[#This Row],[月]],家計簿[勘定科目],月比較[[#Headers],[教育費]]) -> 0 | AB19: =SUMIFS(家計簿[金額],家計簿[年],月比較[[#This Row],[年]],家計簿[月],月比較[[#This Row],[月]],家計簿[勘定科目],月比較[[#Headers],[外食費]]) -> 0 | AC19: =SUMIFS(家計簿[金額],家計簿[年],月比較[[#This Row],[年]],家計簿[月],月比較[[#This Row],[月]],家計簿[勘定科目],月比較[[#Headers],[移動費]]) -> 0 | AD19: =SUMIFS(家計簿[金額],家計簿[年],月比較[[#This Row],[年]],家計簿[月],月比較[[#This Row],[月]],家計簿[勘定科目],月比較[[#Headers],[旅費]]) -> 0 | AE19: =SUMIFS(家計簿[金額],家計簿[年],月比較[[#This Row],[年]],家計簿[月],月比較[[#This Row],[月]],家計簿[勘定科目],月比較[[#Headers],[娯楽費]]) -> 0 | AF19: =SUMIFS(家計簿[金額],家計簿[年],月比較[[#This Row],[年]],家計簿[月],月比較[[#This Row],[月]],家計簿[勘定科目],月比較[[#Headers],[医療費]]) -> 0 | AG19: =SUMIFS(家計簿[金額],家計簿[年],月比較[[#This Row],[年]],家計簿[月],月比較[[#This Row],[月]],家計簿[勘定科目],月比較[[#Headers],[特別出費]]) -> 0
C20: =IF(月比較[[#This Row],[月]]=1,C19+1,C19) -> 2024 | D20: 3 | E20: =DATE(月比較[[#This Row],[年]],月比較[[#This Row],[月]],1) -> 2024-03-01 | F20: =SUMIFS(家計簿[金額],家計簿[年],月比較[[#This Row],[年]],家計簿[月],月比較[[#This Row],[月]],家計簿[収入/支出],月比較[[#Headers],[収入]]) -> 0 | G20: =SUMIFS(家計簿[金額],家計簿[年],月比較[[#This Row],[年]],家計簿[月],月比較[[#This Row],[月]],家計簿[収入/支出],月比較[[#Headers],[支出]]) -> 0 | H20: =SUMIFS(家計簿[金額],家計簿[年],月比較[[#This Row],[年]],家計簿[月],月比較[[#This Row],[月]],家計簿[固定費/変動費],月比較[[#Headers],[固定費]]) -> 0 | I20: =SUMIFS(家計簿[金額],家計簿[年],月比較[[#This Row],[年]],家計簿[月],月比較[[#This Row],[月]],家計簿[固定費/変動費],月比較[[#Headers],[変動費]]) -> 0 | J20: =SUMIFS(家計簿[金額],家計簿[年],月比較[[#This Row],[年]],家計簿[月],月比較[[#This Row],[月]],家計簿[勘定科目],月比較[[#Headers],[給料]]) -> 0 | K20: =SUMIFS(家計簿[金額],家計簿[年],月比較[[#This Row],[年]],家計簿[月],月比較[[#This Row],[月]],家計簿[勘定科目],月比較[[#Headers],[ボーナス]]) -> 0 | L20: =SUMIFS(家計簿[金額],家計簿[年],月比較[[#This Row],[年]],家計簿[月],月比較[[#This Row],[月]],家計簿[勘定科目],月比較[[#Headers],[家賃補助]]) -> 0 | M20: =SUMIFS(家計簿[金額],家計簿[年],月比較[[#This Row],[年]],家計簿[月],月比較[[#This Row],[月]],家計簿[勘定科目],月比較[[#Headers],[児童手当]]) -> 0 | N20: =SUMIFS(家計簿[金額],家計簿[年],月比較[[#This Row],[年]],家計簿[月],月比較[[#This Row],[月]],家計簿[勘定科目],月比較[[#Headers],[配当金]]) -> 0 | O20: =SUMIFS(家計簿[金額],家計簿[年],月比較[[#This Row],[年]],家計簿[月],月比較[[#This Row],[月]],家計簿[勘定科目],月比較[[#Headers],[特別収入]]) -> 0 | P20: =SUMIFS(家計簿[金額],家計簿[年],月比較[[#This Row],[年]],家計簿[月],月比較[[#This Row],[月]],家計簿[勘定科目],月比較[[#Headers],[家賃]]) -> 0 | Q20: =SUMIFS(家計簿[金額],家計簿[年],月比較[[#This Row],[年]],家計簿[月],月比較[[#This Row],[月]],家計簿[勘定科目],月比較[[#Headers],[電気代]]) -> 0 | R20: =SUMIFS(家計簿[金額],家計簿[年],月比較[[#This Row],[年]],家計簿[月],月比較[[#This Row],[月]],家計簿[勘定科目],月比較[[#Headers],[ガス代]]) -> 0 | S20: =SUMIFS(家計簿[金額],家計簿[年],月比較[[#This Row],[年]],家計簿[月],月比較[[#This Row],[月]],家計簿[勘定科目],月比較[[#Headers],[水道代]]) -> 0 | T20: =SUMIFS(家計簿[金額],家計簿[年],月比較[[#This Row],[年]],家計簿[月],月比較[[#This Row],[月]],家計簿[勘定科目],月比較[[#Headers],[通信費]]) -> 0 | U20: =SUMIFS(家計簿[金額],家計簿[年],月比較[[#This Row],[年]],家計簿[月],月比較[[#This Row],[月]],家計簿[勘定科目],月比較[[#Headers],[保険代]]) -> 0 | V20: =SUMIFS(家計簿[金額],家計簿[年],月比較[[#This Row],[年]],家計簿[月],月比較[[#This Row],[月]],家計簿[勘定科目],月比較[[#Headers],[サブスク]]) -> 0 | W20: =SUMIFS(家計簿[金額],家計簿[年],月比較[[#This Row],[年]],家計簿[月],月比較[[#This Row],[月]],家計簿[勘定科目],月比較[[#Headers],[税金（固定資産、自動車）]]) -> 0 | X20: =SUMIFS(家計簿[金額],家計簿[年],月比較[[#This Row],[年]],家計簿[月],月比較[[#This Row],[月]],家計簿[勘定科目],月比較[[#Headers],[食費]]) -> 0 | Y20: =SUMIFS(家計簿[金額],家計簿[年],月比較[[#This Row],[年]],家計簿[月],月比較[[#This Row],[月]],家計簿[勘定科目],月比較[[#Headers],[日用品]]) -> 0 | Z20: =SUMIFS(家計簿[金額],家計簿[年],月比較[[#This Row],[年]],家計簿[月],月比較[[#This Row],[月]],家計簿[勘定科目],月比較[[#Headers],[衣服]]) -> 0 | AA20: =SUMIFS(家計簿[金額],家計簿[年],月比較[[#This Row],[年]],家計簿[月],月比較[[#This Row],[月]],家計簿[勘定科目],月比較[[#Headers],[教育費]]) -> 0 | AB20: =SUMIFS(家計簿[金額],家計簿[年],月比較[[#This Row],[年]],家計簿[月],月比較[[#This Row],[月]],家計簿[勘定科目],月比較[[#Headers],[外食費]]) -> 0 | AC20: =SUMIFS(家計簿[金額],家計簿[年],月比較[[#This Row],[年]],家計簿[月],月比較[[#This Row],[月]],家計簿[勘定科目],月比較[[#Headers],[移動費]]) -> 0 | AD20: =SUMIFS(家計簿[金額],家計簿[年],月比較[[#This Row],[年]],家計簿[月],月比較[[#This Row],[月]],家計簿[勘定科目],月比較[[#Headers],[旅費]]) -> 0 | AE20: =SUMIFS(家計簿[金額],家計簿[年],月比較[[#This Row],[年]],家計簿[月],月比較[[#This Row],[月]],家計簿[勘定科目],月比較[[#Headers],[娯楽費]]) -> 0 | AF20: =SUMIFS(家計簿[金額],家計簿[年],月比較[[#This Row],[年]],家計簿[月],月比較[[#This Row],[月]],家計簿[勘定科目],月比較[[#Headers],[医療費]]) -> 0 | AG20: =SUMIFS(家計簿[金額],家計簿[年],月比較[[#This Row],[年]],家計簿[月],月比較[[#This Row],[月]],家計簿[勘定科目],月比較[[#Headers],[特別出費]]) -> 0
C21: =IF(月比較[[#This Row],[月]]=1,C20+1,C20) -> 2024 | D21: 4 | E21: =DATE(月比較[[#This Row],[年]],月比較[[#This Row],[月]],1) -> 2024-04-01 | F21: =SUMIFS(家計簿[金額],家計簿[年],月比較[[#This Row],[年]],家計簿[月],月比較[[#This Row],[月]],家計簿[収入/支出],月比較[[#Headers],[収入]]) -> 0 | G21: =SUMIFS(家計簿[金額],家計簿[年],月比較[[#This Row],[年]],家計簿[月],月比較[[#This Row],[月]],家計簿[収入/支出],月比較[[#Headers],[支出]]) -> 0 | H21: =SUMIFS(家計簿[金額],家計簿[年],月比較[[#This Row],[年]],家計簿[月],月比較[[#This Row],[月]],家計簿[固定費/変動費],月比較[[#Headers],[固定費]]) -> 0 | I21: =SUMIFS(家計簿[金額],家計簿[年],月比較[[#This Row],[年]],家計簿[月],月比較[[#This Row],[月]],家計簿[固定費/変動費],月比較[[#Headers],[変動費]]) -> 0 | J21: =SUMIFS(家計簿[金額],家計簿[年],月比較[[#This Row],[年]],家計簿[月],月比較[[#This Row],[月]],家計簿[勘定科目],月比較[[#Headers],[給料]]) -> 0 | K21: =SUMIFS(家計簿[金額],家計簿[年],月比較[[#This Row],[年]],家計簿[月],月比較[[#This Row],[月]],家計簿[勘定科目],月比較[[#Headers],[ボーナス]]) -> 0 | L21: =SUMIFS(家計簿[金額],家計簿[年],月比較[[#This Row],[年]],家計簿[月],月比較[[#This Row],[月]],家計簿[勘定科目],月比較[[#Headers],[家賃補助]]) -> 0 | M21: =SUMIFS(家計簿[金額],家計簿[年],月比較[[#This Row],[年]],家計簿[月],月比較[[#This Row],[月]],家計簿[勘定科目],月比較[[#Headers],[児童手当]]) -> 0 | N21: =SUMIFS(家計簿[金額],家計簿[年],月比較[[#This Row],[年]],家計簿[月],月比較[[#This Row],[月]],家計簿[勘定科目],月比較[[#Headers],[配当金]]) -> 0 | O21: =SUMIFS(家計簿[金額],家計簿[年],月比較[[#This Row],[年]],家計簿[月],月比較[[#This Row],[月]],家計簿[勘定科目],月比較[[#Headers],[特別収入]]) -> 0 | P21: =SUMIFS(家計簿[金額],家計簿[年],月比較[[#This Row],[年]],家計簿[月],月比較[[#This Row],[月]],家計簿[勘定科目],月比較[[#Headers],[家賃]]) -> 0 | Q21: =SUMIFS(家計簿[金額],家計簿[年],月比較[[#This Row],[年]],家計簿[月],月比較[[#This Row],[月]],家計簿[勘定科目],月比較[[#Headers],[電気代]]) -> 0 | R21: =SUMIFS(家計簿[金額],家計簿[年],月比較[[#This Row],[年]],家計簿[月],月比較[[#This Row],[月]],家計簿[勘定科目],月比較[[#Headers],[ガス代]]) -> 0 | S21: =SUMIFS(家計簿[金額],家計簿[年],月比較[[#This Row],[年]],家計簿[月],月比較[[#This Row],[月]],家計簿[勘定科目],月比較[[#Headers],[水道代]]) -> 0 | T21: =SUMIFS(家計簿[金額],家計簿[年],月比較[[#This Row],[年]],家計簿[月],月比較[[#This Row],[月]],家計簿[勘定科目],月比較[[#Headers],[通信費]]) -> 0 | U21: =SUMIFS(家計簿[金額],家計簿[年],月比較[[#This Row],[年]],家計簿[月],月比較[[#This Row],[月]],家計簿[勘定科目],月比較[[#Headers],[保険代]]) -> 0 | V21: =SUMIFS(家計簿[金額],家計簿[年],月比較[[#This Row],[年]],家計簿[月],月比較[[#This Row],[月]],家計簿[勘定科目],月比較[[#Headers],[サブスク]]) -> 0 | W21: =SUMIFS(家計簿[金額],家計簿[年],月比較[[#This Row],[年]],家計簿[月],月比較[[#This Row],[月]],家計簿[勘定科目],月比較[[#Headers],[税金（固定資産、自動車）]]) -> 0 | X21: =SUMIFS(家計簿[金額],家計簿[年],月比較[[#This Row],[年]],家計簿[月],月比較[[#This Row],[月]],家計簿[勘定科目],月比較[[#Headers],[食費]]) -> 0 | Y21: =SUMIFS(家計簿[金額],家計簿[年],月比較[[#This Row],[年]],家計簿[月],月比較[[#This Row],[月]],家計簿[勘定科目],月比較[[#Headers],[日用品]]) -> 0 | Z21: =SUMIFS(家計簿[金額],家計簿[年],月比較[[#This Row],[年]],家計簿[月],月比較[[#This Row],[月]],家計簿[勘定科目],月比較[[#Headers],[衣服]]) -> 0 | AA21: =SUMIFS(家計簿[金額],家計簿[年],月比較[[#This Row],[年]],家計簿[月],月比較[[#This Row],[月]],家計簿[勘定科目],月比較[[#Headers],[教育費]]) -> 0 | AB21: =SUMIFS(家計簿[金額],家計簿[年],月比較[[#This Row],[年]],家計簿[月],月比較[[#This Row],[月]],家計簿[勘定科目],月比較[[#Headers],[外食費]]) -> 0 | AC21: =SUMIFS(家計簿[金額],家計簿[年],月比較[[#This Row],[年]],家計簿[月],月比較[[#This Row],[月]],家計簿[勘定科目],月比較[[#Headers],[移動費]]) -> 0 | AD21: =SUMIFS(家計簿[金額],家計簿[年],月比較[[#This Row],[年]],家計簿[月],月比較[[#This Row],[月]],家計簿[勘定科目],月比較[[#Headers],[旅費]]) -> 0 | AE21: =SUMIFS(家計簿[金額],家計簿[年],月比較[[#This Row],[年]],家計簿[月],月比較[[#This Row],[月]],家計簿[勘定科目],月比較[[#Headers],[娯楽費]]) -> 0 | AF21: =SUMIFS(家計簿[金額],家計簿[年],月比較[[#This Row],[年]],家計簿[月],月比較[[#This Row],[月]],家計簿[勘定科目],月比較[[#Headers],[医療費]]) -> 0 | AG21: =SUMIFS(家計簿[金額],家計簿[年],月比較[[#This Row],[年]],家計簿[月],月比較[[#This Row],[月]],家計簿[勘定科目],月比較[[#Headers],[特別出費]]) -> 0
C22: =IF(月比較[[#This Row],[月]]=1,C21+1,C21) -> 2024 | D22: 5 | E22: =DATE(月比較[[#This Row],[年]],月比較[[#This Row],[月]],1) -> 2024-05-01 | F22: =SUMIFS(家計簿[金額],家計簿[年],月比較[[#This Row],[年]],家計簿[月],月比較[[#This Row],[月]],家計簿[収入/支出],月比較[[#Headers],[収入]]) -> 0 | G22: =SUMIFS(家計簿[金額],家計簿[年],月比較[[#This Row],[年]],家計簿[月],月比較[[#This Row],[月]],家計簿[収入/支出],月比較[[#Headers],[支出]]) -> 0 | H22: =SUMIFS(家計簿[金額],家計簿[年],月比較[[#This Row],[年]],家計簿[月],月比較[[#This Row],[月]],家計簿[固定費/変動費],月比較[[#Headers],[固定費]]) -> 0 | I22: =SUMIFS(家計簿[金額],家計簿[年],月比較[[#This Row],[年]],家計簿[月],月比較[[#This Row],[月]],家計簿[固定費/変動費],月比較[[#Headers],[変動費]]) -> 0 | J22: =SUMIFS(家計簿[金額],家計簿[年],月比較[[#This Row],[年]],家計簿[月],月比較[[#This Row],[月]],家計簿[勘定科目],月比較[[#Headers],[給料]]) -> 0 | K22: =SUMIFS(家計簿[金額],家計簿[年],月比較[[#This Row],[年]],家計簿[月],月比較[[#This Row],[月]],家計簿[勘定科目],月比較[[#Headers],[ボーナス]]) -> 0 | L22: =SUMIFS(家計簿[金額],家計簿[年],月比較[[#This Row],[年]],家計簿[月],月比較[[#This Row],[月]],家計簿[勘定科目],月比較[[#Headers],[家賃補助]]) -> 0 | M22: =SUMIFS(家計簿[金額],家計簿[年],月比較[[#This Row],[年]],家計簿[月],月比較[[#This Row],[月]],家計簿[勘定科目],月比較[[#Headers],[児童手当]]) -> 0 | N22: =SUMIFS(家計簿[金額],家計簿[年],月比較[[#This Row],[年]],家計簿[月],月比較[[#This Row],[月]],家計簿[勘定科目],月比較[[#Headers],[配当金]]) -> 0 | O22: =SUMIFS(家計簿[金額],家計簿[年],月比較[[#This Row],[年]],家計簿[月],月比較[[#This Row],[月]],家計簿[勘定科目],月比較[[#Headers],[特別収入]]) -> 0 | P22: =SUMIFS(家計簿[金額],家計簿[年],月比較[[#This Row],[年]],家計簿[月],月比較[[#This Row],[月]],家計簿[勘定科目],月比較[[#Headers],[家賃]]) -> 0 | Q22: =SUMIFS(家計簿[金額],家計簿[年],月比較[[#This Row],[年]],家計簿[月],月比較[[#This Row],[月]],家計簿[勘定科目],月比較[[#Headers],[電気代]]) -> 0 | R22: =SUMIFS(家計簿[金額],家計簿[年],月比較[[#This Row],[年]],家計簿[月],月比較[[#This Row],[月]],家計簿[勘定科目],月比較[[#Headers],[ガス代]]) -> 0 | S22: =SUMIFS(家計簿[金額],家計簿[年],月比較[[#This Row],[年]],家計簿[月],月比較[[#This Row],[月]],家計簿[勘定科目],月比較[[#Headers],[水道代]]) -> 0 | T22: =SUMIFS(家計簿[金額],家計簿[年],月比較[[#This Row],[年]],家計簿[月],月比較[[#This Row],[月]],家計簿[勘定科目],月比較[[#Headers],[通信費]]) -> 0 | U22: =SUMIFS(家計簿[金額],家計簿[年],月比較[[#This Row],[年]],家計簿[月],月比較[[#This Row],[月]],家計簿[勘定科目],月比較[[#Headers],[保険代]]) -> 0 | V22: =SUMIFS(家計簿[金額],家計簿[年],月比較[[#This Row],[年]],家計簿[月],月比較[[#This Row],[月]],家計簿[勘定科目],月比較[[#Headers],[サブスク]]) -> 0 | W22: =SUMIFS(家計簿[金額],家計簿[年],月比較[[#This Row],[年]],家計簿[月],月比較[[#This Row],[月]],家計簿[勘定科目],月比較[[#Headers],[税金（固定資産、自動車）]]) -> 0 | X22: =SUMIFS(家計簿[金額],家計簿[年],月比較[[#This Row],[年]],家計簿[月],月比較[[#This Row],[月]],家計簿[勘定科目],月比較[[#Headers],[食費]]) -> 0 | Y22: =SUMIFS(家計簿[金額],家計簿[年],月比較[[#This Row],[年]],家計簿[月],月比較[[#This Row],[月]],家計簿[勘定科目],月比較[[#Headers],[日用品]]) -> 0 | Z22: =SUMIFS(家計簿[金額],家計簿[年],月比較[[#This Row],[年]],家計簿[月],月比較[[#This Row],[月]],家計簿[勘定科目],月比較[[#Headers],[衣服]]) -> 0 | AA22: =SUMIFS(家計簿[金額],家計簿[年],月比較[[#This Row],[年]],家計簿[月],月比較[[#This Row],[月]],家計簿[勘定科目],月比較[[#Headers],[教育費]]) -> 0 | AB22: =SUMIFS(家計簿[金額],家計簿[年],月比較[[#This Row],[年]],家計簿[月],月比較[[#This Row],[月]],家計簿[勘定科目],月比較[[#Headers],[外食費]]) -> 0 | AC22: =SUMIFS(家計簿[金額],家計簿[年],月比較[[#This Row],[年]],家計簿[月],月比較[[#This Row],[月]],家計簿[勘定科目],月比較[[#Headers],[移動費]]) -> 0 | AD22: =SUMIFS(家計簿[金額],家計簿[年],月比較[[#This Row],[年]],家計簿[月],月比較[[#This Row],[月]],家計簿[勘定科目],月比較[[#Headers],[旅費]]) -> 0 | AE22: =SUMIFS(家計簿[金額],家計簿[年],月比較[[#This Row],[年]],家計簿[月],月比較[[#This Row],[月]],家計簿[勘定科目],月比較[[#Headers],[娯楽費]]) -> 0 | AF22: =SUMIFS(家計簿[金額],家計簿[年],月比較[[#This Row],[年]],家計簿[月],月比較[[#This Row],[月]],家計簿[勘定科目],月比較[[#Headers],[医療費]]) -> 0 | AG22: =SUMIFS(家計簿[金額],家計簿[年],月比較[[#This Row],[年]],家計簿[月],月比較[[#This Row],[月]],家計簿[勘定科目],月比較[[#Headers],[特別出費]]) -> 0
C23: =IF(月比較[[#This Row],[月]]=1,C22+1,C22) -> 2024 | D23: 6 | E23: =DATE(月比較[[#This Row],[年]],月比較[[#This Row],[月]],1) -> 2024-06-01 | F23: =SUMIFS(家計簿[金額],家計簿[年],月比較[[#This Row],[年]],家計簿[月],月比較[[#This Row],[月]],家計簿[収入/支出],月比較[[#Headers],[収入]]) -> 0 | G23: =SUMIFS(家計簿[金額],家計簿[年],月比較[[#This Row],[年]],家計簿[月],月比較[[#This Row],[月]],家計簿[収入/支出],月比較[[#Headers],[支出]]) -> 0 | H23: =SUMIFS(家計簿[金額],家計簿[年],月比較[[#This Row],[年]],家計簿[月],月比較[[#This Row],[月]],家計簿[固定費/変動費],月比較[[#Headers],[固定費]]) -> 0 | I23: =SUMIFS(家計簿[金額],家計簿[年],月比較[[#This Row],[年]],家計簿[月],月比較[[#This Row],[月]],家計簿[固定費/変動費],月比較[[#Headers],[変動費]]) -> 0 | J23: =SUMIFS(家計簿[金額],家計簿[年],月比較[[#This Row],[年]],家計簿[月],月比較[[#This Row],[月]],家計簿[勘定科目],月比較[[#Headers],[給料]]) -> 0 | K23: =SUMIFS(家計簿[金額],家計簿[年],月比較[[#This Row],[年]],家計簿[月],月比較[[#This Row],[月]],家計簿[勘定科目],月比較[[#Headers],[ボーナス]]) -> 0 | L23: =SUMIFS(家計簿[金額],家計簿[年],月比較[[#This Row],[年]],家計簿[月],月比較[[#This Row],[月]],家計簿[勘定科目],月比較[[#Headers],[家賃補助]]) -> 0 | M23: =SUMIFS(家計簿[金額],家計簿[年],月比較[[#This Row],[年]],家計簿[月],月比較[[#This Row],[月]],家計簿[勘定科目],月比較[[#Headers],[児童手当]]) -> 0 | N23: =SUMIFS(家計簿[金額],家計簿[年],月比較[[#This Row],[年]],家計簿[月],月比較[[#This Row],[月]],家計簿[勘定科目],月比較[[#Headers],[配当金]]) -> 0 | O23: =SUMIFS(家計簿[金額],家計簿[年],月比較[[#This Row],[年]],家計簿[月],月比較[[#This Row],[月]],家計簿[勘定科目],月比較[[#Headers],[特別収入]]) -> 0 | P23: =SUMIFS(家計簿[金額],家計簿[年],月比較[[#This Row],[年]],家計簿[月],月比較[[#This Row],[月]],家計簿[勘定科目],月比較[[#Headers],[家賃]]) -> 0 | Q23: =SUMIFS(家計簿[金額],家計簿[年],月比較[[#This Row],[年]],家計簿[月],月比較[[#This Row],[月]],家計簿[勘定科目],月比較[[#Headers],[電気代]]) -> 0 | R23: =SUMIFS(家計簿[金額],家計簿[年],月比較[[#This Row],[年]],家計簿[月],月比較[[#This Row],[月]],家計簿[勘定科目],月比較[[#Headers],[ガス代]]) -> 0 | S23: =SUMIFS(家計簿[金額],家計簿[年],月比較[[#This Row],[年]],家計簿[月],月比較[[#This Row],[月]],家計簿[勘定科目],月比較[[#Headers],[水道代]]) -> 0 | T23: =SUMIFS(家計簿[金額],家計簿[年],月比較[[#This Row],[年]],家計簿[月],月比較[[#This Row],[月]],家計簿[勘定科目],月比較[[#Headers],[通信費]]) -> 0 | U23: =SUMIFS(家計簿[金額],家計簿[年],月比較[[#This Row],[年]],家計簿[月],月比較[[#This Row],[月]],家計簿[勘定科目],月比較[[#Headers],[保険代]]) -> 0 | V23: =SUMIFS(家計簿[金額],家計簿[年],月比較[[#This Row],[年]],家計簿[月],月比較[[#This Row],[月]],家計簿[勘定科目],月比較[[#Headers],[サブスク]]) -> 0 | W23: =SUMIFS(家計簿[金額],家計簿[年],月比較[[#This Row],[年]],家計簿[月],月比較[[#This Row],[月]],家計簿[勘定科目],月比較[[#Headers],[税金（固定資産、自動車）]]) -> 0 | X23: =SUMIFS(家計簿[金額],家計簿[年],月比較[[#This Row],[年]],家計簿[月],月比較[[#This Row],[月]],家計簿[勘定科目],月比較[[#Headers],[食費]]) -> 0 | Y23: =SUMIFS(家計簿[金額],家計簿[年],月比較[[#This Row],[年]],家計簿[月],月比較[[#This Row],[月]],家計簿[勘定科目],月比較[[#Headers],[日用品]]) -> 0 | Z23: =SUMIFS(家計簿[金額],家計簿[年],月比較[[#This Row],[年]],家計簿[月],月比較[[#This Row],[月]],家計簿[勘定科目],月比較[[#Headers],[衣服]]) -> 0 | AA23: =SUMIFS(家計簿[金額],家計簿[年],月比較[[#This Row],[年]],家計簿[月],月比較[[#This Row],[月]],家計簿[勘定科目],月比較[[#Headers],[教育費]]) -> 0 | AB23: =SUMIFS(家計簿[金額],家計簿[年],月比較[[#This Row],[年]],家計簿[月],月比較[[#This Row],[月]],家計簿[勘定科目],月比較[[#Headers],[外食費]]) -> 0 | AC23: =SUMIFS(家計簿[金額],家計簿[年],月比較[[#This Row],[年]],家計簿[月],月比較[[#This Row],[月]],家計簿[勘定科目],月比較[[#Headers],[移動費]]) -> 0 | AD23: =SUMIFS(家計簿[金額],家計簿[年],月比較[[#This Row],[年]],家計簿[月],月比較[[#This Row],[月]],家計簿[勘定科目],月比較[[#Headers],[旅費]]) -> 0 | AE23: =SUMIFS(家計簿[金額],家計簿[年],月比較[[#This Row],[年]],家計簿[月],月比較[[#This Row],[月]],家計簿[勘定科目],月比較[[#Headers],[娯楽費]]) -> 0 | AF23: =SUMIFS(家計簿[金額],家計簿[年],月比較[[#This Row],[年]],家計簿[月],月比較[[#This Row],[月]],家計簿[勘定科目],月比較[[#Headers],[医療費]]) -> 0 | AG23: =SUMIFS(家計簿[金額],家計簿[年],月比較[[#This Row],[年]],家計簿[月],月比較[[#This Row],[月]],家計簿[勘定科目],月比較[[#Headers],[特別出費]]) -> 0
C24: =IF(月比較[[#This Row],[月]]=1,C23+1,C23) -> 2024 | D24: 7 | E24: =DATE(月比較[[#This Row],[年]],月比較[[#This Row],[月]],1) -> 2024-07-01 | F24: =SUMIFS(家計簿[金額],家計簿[年],月比較[[#This Row],[年]],家計簿[月],月比較[[#This Row],[月]],家計簿[収入/支出],月比較[[#Headers],[収入]]) -> 0 | G24: =SUMIFS(家計簿[金額],家計簿[年],月比較[[#This Row],[年]],家計簿[月],月比較[[#This Row],[月]],家計簿[収入/支出],月比較[[#Headers],[支出]]) -> 0 | H24: =SUMIFS(家計簿[金額],家計簿[年],月比較[[#This Row],[年]],家計簿[月],月比較[[#This Row],[月]],家計簿[固定費/変動費],月比較[[#Headers],[固定費]]) -> 0 | I24: =SUMIFS(家計簿[金額],家計簿[年],月比較[[#This Row],[年]],家計簿[月],月比較[[#This Row],[月]],家計簿[固定費/変動費],月比較[[#Headers],[変動費]]) -> 0 | J24: =SUMIFS(家計簿[金額],家計簿[年],月比較[[#This Row],[年]],家計簿[月],月比較[[#This Row],[月]],家計簿[勘定科目],月比較[[#Headers],[給料]]) -> 0 | K24: =SUMIFS(家計簿[金額],家計簿[年],月比較[[#This Row],[年]],家計簿[月],月比較[[#This Row],[月]],家計簿[勘定科目],月比較[[#Headers],[ボーナス]]) -> 0 | L24: =SUMIFS(家計簿[金額],家計簿[年],月比較[[#This Row],[年]],家計簿[月],月比較[[#This Row],[月]],家計簿[勘定科目],月比較[[#Headers],[家賃補助]]) -> 0 | M24: =SUMIFS(家計簿[金額],家計簿[年],月比較[[#This Row],[年]],家計簿[月],月比較[[#This Row],[月]],家計簿[勘定科目],月比較[[#Headers],[児童手当]]) -> 0 | N24: =SUMIFS(家計簿[金額],家計簿[年],月比較[[#This Row],[年]],家計簿[月],月比較[[#This Row],[月]],家計簿[勘定科目],月比較[[#Headers],[配当金]]) -> 0 | O24: =SUMIFS(家計簿[金額],家計簿[年],月比較[[#This Row],[年]],家計簿[月],月比較[[#This Row],[月]],家計簿[勘定科目],月比較[[#Headers],[特別収入]]) -> 0 | P24: =SUMIFS(家計簿[金額],家計簿[年],月比較[[#This Row],[年]],家計簿[月],月比較[[#This Row],[月]],家計簿[勘定科目],月比較[[#Headers],[家賃]]) -> 0 | Q24: =SUMIFS(家計簿[金額],家計簿[年],月比較[[#This Row],[年]],家計簿[月],月比較[[#This Row],[月]],家計簿[勘定科目],月比較[[#Headers],[電気代]]) -> 0 | R24: =SUMIFS(家計簿[金額],家計簿[年],月比較[[#This Row],[年]],家計簿[月],月比較[[#This Row],[月]],家計簿[勘定科目],月比較[[#Headers],[ガス代]]) -> 0 | S24: =SUMIFS(家計簿[金額],家計簿[年],月比較[[#This Row],[年]],家計簿[月],月比較[[#This Row],[月]],家計簿[勘定科目],月比較[[#Headers],[水道代]]) -> 0 | T24: =SUMIFS(家計簿[金額],家計簿[年],月比較[[#This Row],[年]],家計簿[月],月比較[[#This Row],[月]],家計簿[勘定科目],月比較[[#Headers],[通信費]]) -> 0 | U24: =SUMIFS(家計簿[金額],家計簿[年],月比較[[#This Row],[年]],家計簿[月],月比較[[#This Row],[月]],家計簿[勘定科目],月比較[[#Headers],[保険代]]) -> 0 | V24: =SUMIFS(家計簿[金額],家計簿[年],月比較[[#This Row],[年]],家計簿[月],月比較[[#This Row],[月]],家計簿[勘定科目],月比較[[#Headers],[サブスク]]) -> 0 | W24: =SUMIFS(家計簿[金額],家計簿[年],月比較[[#This Row],[年]],家計簿[月],月比較[[#This Row],[月]],家計簿[勘定科目],月比較[[#Headers],[税金（固定資産、自動車）]]) -> 0 | X24: =SUMIFS(家計簿[金額],家計簿[年],月比較[[#This Row],[年]],家計簿[月],月比較[[#This Row],[月]],家計簿[勘定科目],月比較[[#Headers],[食費]]) -> 0 | Y24: =SUMIFS(家計簿[金額],家計簿[年],月比較[[#This Row],[年]],家計簿[月],月比較[[#This Row],[月]],家計簿[勘定科目],月比較[[#Headers],[日用品]]) -> 0 | Z24: =SUMIFS(家計簿[金額],家計簿[年],月比較[[#This Row],[年]],家計簿[月],月比較[[#This Row],[月]],家計簿[勘定科目],月比較[[#Headers],[衣服]]) -> 0 | AA24: =SUMIFS(家計簿[金額],家計簿[年],月比較[[#This Row],[年]],家計簿[月],月比較[[#This Row],[月]],家計簿[勘定科目],月比較[[#Headers],[教育費]]) -> 0 | AB24: =SUMIFS(家計簿[金額],家計簿[年],月比較[[#This Row],[年]],家計簿[月],月比較[[#This Row],[月]],家計簿[勘定科目],月比較[[#Headers],[外食費]]) -> 0 | AC24: =SUMIFS(家計簿[金額],家計簿[年],月比較[[#This Row],[年]],家計簿[月],月比較[[#This Row],[月]],家計簿[勘定科目],月比較[[#Headers],[移動費]]) -> 0 | AD24: =SUMIFS(家計簿[金額],家計簿[年],月比較[[#This Row],[年]],家計簿[月],月比較[[#This Row],[月]],家計簿[勘定科目],月比較[[#Headers],[旅費]]) -> 0 | AE24: =SUMIFS(家計簿[金額],家計簿[年],月比較[[#This Row],[年]],家計簿[月],月比較[[#This Row],[月]],家計簿[勘定科目],月比較[[#Headers],[娯楽費]]) -> 0 | AF24: =SUMIFS(家計簿[金額],家計簿[年],月比較[[#This Row],[年]],家計簿[月],月比較[[#This Row],[月]],家計簿[勘定科目],月比較[[#Headers],[医療費]]) -> 0 | AG24: =SUMIFS(家計簿[金額],家計簿[年],月比較[[#This Row],[年]],家計簿[月],月比較[[#This Row],[月]],家計簿[勘定科目],月比較[[#Headers],[特別出費]]) -> 0
C25: =IF(月比較[[#This Row],[月]]=1,C24+1,C24) -> 2024 | D25: 8 | E25: =DATE(月比較[[#This Row],[年]],月比較[[#This Row],[月]],1) -> 2024-08-01 | F25: =SUMIFS(家計簿[金額],家計簿[年],月比較[[#This Row],[年]],家計簿[月],月比較[[#This Row],[月]],家計簿[収入/支出],月比較[[#Headers],[収入]]) -> 0 | G25: =SUMIFS(家計簿[金額],家計簿[年],月比較[[#This Row],[年]],家計簿[月],月比較[[#This Row],[月]],家計簿[収入/支出],月比較[[#Headers],[支出]]) -> 0 | H25: =SUMIFS(家計簿[金額],家計簿[年],月比較[[#This Row],[年]],家計簿[月],月比較[[#This Row],[月]],家計簿[固定費/変動費],月比較[[#Headers],[固定費]]) -> 0 | I25: =SUMIFS(家計簿[金額],家計簿[年],月比較[[#This Row],[年]],家計簿[月],月比較[[#This Row],[月]],家計簿[固定費/変動費],月比較[[#Headers],[変動費]]) -> 0 | J25: =SUMIFS(家計簿[金額],家計簿[年],月比較[[#This Row],[年]],家計簿[月],月比較[[#This Row],[月]],家計簿[勘定科目],月比較[[#Headers],[給料]]) -> 0 | K25: =SUMIFS(家計簿[金額],家計簿[年],月比較[[#This Row],[年]],家計簿[月],月比較[[#This Row],[月]],家計簿[勘定科目],月比較[[#Headers],[ボーナス]]) -> 0 | L25: =SUMIFS(家計簿[金額],家計簿[年],月比較[[#This Row],[年]],家計簿[月],月比較[[#This Row],[月]],家計簿[勘定科目],月比較[[#Headers],[家賃補助]]) -> 0 | M25: =SUMIFS(家計簿[金額],家計簿[年],月比較[[#This Row],[年]],家計簿[月],月比較[[#This Row],[月]],家計簿[勘定科目],月比較[[#Headers],[児童手当]]) -> 0 | N25: =SUMIFS(家計簿[金額],家計簿[年],月比較[[#This Row],[年]],家計簿[月],月比較[[#This Row],[月]],家計簿[勘定科目],月比較[[#Headers],[配当金]]) -> 0 | O25: =SUMIFS(家計簿[金額],家計簿[年],月比較[[#This Row],[年]],家計簿[月],月比較[[#This Row],[月]],家計簿[勘定科目],月比較[[#Headers],[特別収入]]) -> 0 | P25: =SUMIFS(家計簿[金額],家計簿[年],月比較[[#This Row],[年]],家計簿[月],月比較[[#This Row],[月]],家計簿[勘定科目],月比較[[#Headers],[家賃]]) -> 0 | Q25: =SUMIFS(家計簿[金額],家計簿[年],月比較[[#This Row],[年]],家計簿[月],月比較[[#This Row],[月]],家計簿[勘定科目],月比較[[#Headers],[電気代]]) -> 0 | R25: =SUMIFS(家計簿[金額],家計簿[年],月比較[[#This Row],[年]],家計簿[月],月比較[[#This Row],[月]],家計簿[勘定科目],月比較[[#Headers],[ガス代]]) -> 0 | S25: =SUMIFS(家計簿[金額],家計簿[年],月比較[[#This Row],[年]],家計簿[月],月比較[[#This Row],[月]],家計簿[勘定科目],月比較[[#Headers],[水道代]]) -> 0 | T25: =SUMIFS(家計簿[金額],家計簿[年],月比較[[#This Row],[年]],家計簿[月],月比較[[#This Row],[月]],家計簿[勘定科目],月比較[[#Headers],[通信費]]) -> 0 | U25: =SUMIFS(家計簿[金額],家計簿[年],月比較[[#This Row],[年]],家計簿[月],月比較[[#This Row],[月]],家計簿[勘定科目],月比較[[#Headers],[保険代]]) -> 0 | V25: =SUMIFS(家計簿[金額],家計簿[年],月比較[[#This Row],[年]],家計簿[月],月比較[[#This Row],[月]],家計簿[勘定科目],月比較[[#Headers],[サブスク]]) -> 0 | W25: =SUMIFS(家計簿[金額],家計簿[年],月比較[[#This Row],[年]],家計簿[月],月比較[[#This Row],[月]],家計簿[勘定科目],月比較[[#Headers],[税金（固定資産、自動車）]]) -> 0 | X25: =SUMIFS(家計簿[金額],家計簿[年],月比較[[#This Row],[年]],家計簿[月],月比較[[#This Row],[月]],家計簿[勘定科目],月比較[[#Headers],[食費]]) -> 0 | Y25: =SUMIFS(家計簿[金額],家計簿[年],月比較[[#This Row],[年]],家計簿[月],月比較[[#This Row],[月]],家計簿[勘定科目],月比較[[#Headers],[日用品]]) -> 0 | Z25: =SUMIFS(家計簿[金額],家計簿[年],月比較[[#This Row],[年]],家計簿[月],月比較[[#This Row],[月]],家計簿[勘定科目],月比較[[#Headers],[衣服]]) -> 0 | AA25: =SUMIFS(家計簿[金額],家計簿[年],月比較[[#This Row],[年]],家計簿[月],月比較[[#This Row],[月]],家計簿[勘定科目],月比較[[#Headers],[教育費]]) -> 0 | AB25: =SUMIFS(家計簿[金額],家計簿[年],月比較[[#This Row],[年]],家計簿[月],月比較[[#This Row],[月]],家計簿[勘定科目],月比較[[#Headers],[外食費]]) -> 0 | AC25: =SUMIFS(家計簿[金額],家計簿[年],月比較[[#This Row],[年]],家計簿[月],月比較[[#This Row],[月]],家計簿[勘定科目],月比較[[#Headers],[移動費]]) -> 0 | AD25: =SUMIFS(家計簿[金額],家計簿[年],月比較[[#This Row],[年]],家計簿[月],月比較[[#This Row],[月]],家計簿[勘定科目],月比較[[#Headers],[旅費]]) -> 0 | AE25: =SUMIFS(家計簿[金額],家計簿[年],月比較[[#This Row],[年]],家計簿[月],月比較[[#This Row],[月]],家計簿[勘定科目],月比較[[#Headers],[娯楽費]]) -> 0 | AF25: =SUMIFS(家計簿[金額],家計簿[年],月比較[[#This Row],[年]],家計簿[月],月比較[[#This Row],[月]],家計簿[勘定科目],月比較[[#Headers],[医療費]]) -> 0 | AG25: =SUMIFS(家計簿[金額],家計簿[年],月比較[[#This Row],[年]],家計簿[月],月比較[[#This Row],[月]],家計簿[勘定科目],月比較[[#Headers],[特別出費]]) -> 0
C26: =IF(月比較[[#This Row],[月]]=1,C25+1,C25) -> 2024 | D26: 9 | E26: =DATE(月比較[[#This Row],[年]],月比較[[#This Row],[月]],1) -> 2024-09-01 | F26: =SUMIFS(家計簿[金額],家計簿[年],月比較[[#This Row],[年]],家計簿[月],月比較[[#This Row],[月]],家計簿[収入/支出],月比較[[#Headers],[収入]]) -> 0 | G26: =SUMIFS(家計簿[金額],家計簿[年],月比較[[#This Row],[年]],家計簿[月],月比較[[#This Row],[月]],家計簿[収入/支出],月比較[[#Headers],[支出]]) -> 0 | H26: =SUMIFS(家計簿[金額],家計簿[年],月比較[[#This Row],[年]],家計簿[月],月比較[[#This Row],[月]],家計簿[固定費/変動費],月比較[[#Headers],[固定費]]) -> 0 | I26: =SUMIFS(家計簿[金額],家計簿[年],月比較[[#This Row],[年]],家計簿[月],月比較[[#This Row],[月]],家計簿[固定費/変動費],月比較[[#Headers],[変動費]]) -> 0 | J26: =SUMIFS(家計簿[金額],家計簿[年],月比較[[#This Row],[年]],家計簿[月],月比較[[#This Row],[月]],家計簿[勘定科目],月比較[[#Headers],[給料]]) -> 0 | K26: =SUMIFS(家計簿[金額],家計簿[年],月比較[[#This Row],[年]],家計簿[月],月比較[[#This Row],[月]],家計簿[勘定科目],月比較[[#Headers],[ボーナス]]) -> 0 | L26: =SUMIFS(家計簿[金額],家計簿[年],月比較[[#This Row],[年]],家計簿[月],月比較[[#This Row],[月]],家計簿[勘定科目],月比較[[#Headers],[家賃補助]]) -> 0 | M26: =SUMIFS(家計簿[金額],家計簿[年],月比較[[#This Row],[年]],家計簿[月],月比較[[#This Row],[月]],家計簿[勘定科目],月比較[[#Headers],[児童手当]]) -> 0 | N26: =SUMIFS(家計簿[金額],家計簿[年],月比較[[#This Row],[年]],家計簿[月],月比較[[#This Row],[月]],家計簿[勘定科目],月比較[[#Headers],[配当金]]) -> 0 | O26: =SUMIFS(家計簿[金額],家計簿[年],月比較[[#This Row],[年]],家計簿[月],月比較[[#This Row],[月]],家計簿[勘定科目],月比較[[#Headers],[特別収入]]) -> 0 | P26: =SUMIFS(家計簿[金額],家計簿[年],月比較[[#This Row],[年]],家計簿[月],月比較[[#This Row],[月]],家計簿[勘定科目],月比較[[#Headers],[家賃]]) -> 0 | Q26: =SUMIFS(家計簿[金額],家計簿[年],月比較[[#This Row],[年]],家計簿[月],月比較[[#This Row],[月]],家計簿[勘定科目],月比較[[#Headers],[電気代]]) -> 0 | R26: =SUMIFS(家計簿[金額],家計簿[年],月比較[[#This Row],[年]],家計簿[月],月比較[[#This Row],[月]],家計簿[勘定科目],月比較[[#Headers],[ガス代]]) -> 0 | S26: =SUMIFS(家計簿[金額],家計簿[年],月比較[[#This Row],[年]],家計簿[月],月比較[[#This Row],[月]],家計簿[勘定科目],月比較[[#Headers],[水道代]]) -> 0 | T26: =SUMIFS(家計簿[金額],家計簿[年],月比較[[#This Row],[年]],家計簿[月],月比較[[#This Row],[月]],家計簿[勘定科目],月比較[[#Headers],[通信費]]) -> 0 | U26: =SUMIFS(家計簿[金額],家計簿[年],月比較[[#This Row],[年]],家計簿[月],月比較[[#This Row],[月]],家計簿[勘定科目],月比較[[#Headers],[保険代]]) -> 0 | V26: =SUMIFS(家計簿[金額],家計簿[年],月比較[[#This Row],[年]],家計簿[月],月比較[[#This Row],[月]],家計簿[勘定科目],月比較[[#Headers],[サブスク]]) -> 0 | W26: =SUMIFS(家計簿[金額],家計簿[年],月比較[[#This Row],[年]],家計簿[月],月比較[[#This Row],[月]],家計簿[勘定科目],月比較[[#Headers],[税金（固定資産、自動車）]]) -> 0 | X26: =SUMIFS(家計簿[金額],家計簿[年],月比較[[#This Row],[年]],家計簿[月],月比較[[#This Row],[月]],家計簿[勘定科目],月比較[[#Headers],[食費]]) -> 0 | Y26: =SUMIFS(家計簿[金額],家計簿[年],月比較[[#This Row],[年]],家計簿[月],月比較[[#This Row],[月]],家計簿[勘定科目],月比較[[#Headers],[日用品]]) -> 0 | Z26: =SUMIFS(家計簿[金額],家計簿[年],月比較[[#This Row],[年]],家計簿[月],月比較[[#This Row],[月]],家計簿[勘定科目],月比較[[#Headers],[衣服]]) -> 0 | AA26: =SUMIFS(家計簿[金額],家計簿[年],月比較[[#This Row],[年]],家計簿[月],月比較[[#This Row],[月]],家計簿[勘定科目],月比較[[#Headers],[教育費]]) -> 0 | AB26: =SUMIFS(家計簿[金額],家計簿[年],月比較[[#This Row],[年]],家計簿[月],月比較[[#This Row],[月]],家計簿[勘定科目],月比較[[#Headers],[外食費]]) -> 0 | AC26: =SUMIFS(家計簿[金額],家計簿[年],月比較[[#This Row],[年]],家計簿[月],月比較[[#This Row],[月]],家計簿[勘定科目],月比較[[#Headers],[移動費]]) -> 0 | AD26: =SUMIFS(家計簿[金額],家計簿[年],月比較[[#This Row],[年]],家計簿[月],月比較[[#This Row],[月]],家計簿[勘定科目],月比較[[#Headers],[旅費]]) -> 0 | AE26: =SUMIFS(家計簿[金額],家計簿[年],月比較[[#This Row],[年]],家計簿[月],月比較[[#This Row],[月]],家計簿[勘定科目],月比較[[#Headers],[娯楽費]]) -> 0 | AF26: =SUMIFS(家計簿[金額],家計簿[年],月比較[[#This Row],[年]],家計簿[月],月比較[[#This Row],[月]],家計簿[勘定科目],月比較[[#Headers],[医療費]]) -> 0 | AG26: =SUMIFS(家計簿[金額],家計簿[年],月比較[[#This Row],[年]],家計簿[月],月比較[[#This Row],[月]],家計簿[勘定科目],月比較[[#Headers],[特別出費]]) -> 0
C27: =IF(月比較[[#This Row],[月]]=1,C26+1,C26) -> 2024 | D27: 10 | E27: =DATE(月比較[[#This Row],[年]],月比較[[#This Row],[月]],1) -> 2024-10-01 | F27: =SUMIFS(家計簿[金額],家計簿[年],月比較[[#This Row],[年]],家計簿[月],月比較[[#This Row],[月]],家計簿[収入/支出],月比較[[#Headers],[収入]]) -> 0 | G27: =SUMIFS(家計簿[金額],家計簿[年],月比較[[#This Row],[年]],家計簿[月],月比較[[#This Row],[月]],家計簿[収入/支出],月比較[[#Headers],[支出]]) -> 0 | H27: =SUMIFS(家計簿[金額],家計簿[年],月比較[[#This Row],[年]],家計簿[月],月比較[[#This Row],[月]],家計簿[固定費/変動費],月比較[[#Headers],[固定費]]) -> 0 | I27: =SUMIFS(家計簿[金額],家計簿[年],月比較[[#This Row],[年]],家計簿[月],月比較[[#This Row],[月]],家計簿[固定費/変動費],月比較[[#Headers],[変動費]]) -> 0 | J27: =SUMIFS(家計簿[金額],家計簿[年],月比較[[#This Row],[年]],家計簿[月],月比較[[#This Row],[月]],家計簿[勘定科目],月比較[[#Headers],[給料]]) -> 0 | K27: =SUMIFS(家計簿[金額],家計簿[年],月比較[[#This Row],[年]],家計簿[月],月比較[[#This Row],[月]],家計簿[勘定科目],月比較[[#Headers],[ボーナス]]) -> 0 | L27: =SUMIFS(家計簿[金額],家計簿[年],月比較[[#This Row],[年]],家計簿[月],月比較[[#This Row],[月]],家計簿[勘定科目],月比較[[#Headers],[家賃補助]]) -> 0 | M27: =SUMIFS(家計簿[金額],家計簿[年],月比較[[#This Row],[年]],家計簿[月],月比較[[#This Row],[月]],家計簿[勘定科目],月比較[[#Headers],[児童手当]]) -> 0 | N27: =SUMIFS(家計簿[金額],家計簿[年],月比較[[#This Row],[年]],家計簿[月],月比較[[#This Row],[月]],家計簿[勘定科目],月比較[[#Headers],[配当金]]) -> 0 | O27: =SUMIFS(家計簿[金額],家計簿[年],月比較[[#This Row],[年]],家計簿[月],月比較[[#This Row],[月]],家計簿[勘定科目],月比較[[#Headers],[特別収入]]) -> 0 | P27: =SUMIFS(家計簿[金額],家計簿[年],月比較[[#This Row],[年]],家計簿[月],月比較[[#This Row],[月]],家計簿[勘定科目],月比較[[#Headers],[家賃]]) -> 0 | Q27: =SUMIFS(家計簿[金額],家計簿[年],月比較[[#This Row],[年]],家計簿[月],月比較[[#This Row],[月]],家計簿[勘定科目],月比較[[#Headers],[電気代]]) -> 0 | R27: =SUMIFS(家計簿[金額],家計簿[年],月比較[[#This Row],[年]],家計簿[月],月比較[[#This Row],[月]],家計簿[勘定科目],月比較[[#Headers],[ガス代]]) -> 0 | S27: =SUMIFS(家計簿[金額],家計簿[年],月比較[[#This Row],[年]],家計簿[月],月比較[[#This Row],[月]],家計簿[勘定科目],月比較[[#Headers],[水道代]]) -> 0 | T27: =SUMIFS(家計簿[金額],家計簿[年],月比較[[#This Row],[年]],家計簿[月],月比較[[#This Row],[月]],家計簿[勘定科目],月比較[[#Headers],[通信費]]) -> 0 | U27: =SUMIFS(家計簿[金額],家計簿[年],月比較[[#This Row],[年]],家計簿[月],月比較[[#This Row],[月]],家計簿[勘定科目],月比較[[#Headers],[保険代]]) -> 0 | V27: =SUMIFS(家計簿[金額],家計簿[年],月比較[[#This Row],[年]],家計簿[月],月比較[[#This Row],[月]],家計簿[勘定科目],月比較[[#Headers],[サブスク]]) -> 0 | W27: =SUMIFS(家計簿[金額],家計簿[年],月比較[[#This Row],[年]],家計簿[月],月比較[[#This Row],[月]],家計簿[勘定科目],月比較[[#Headers],[税金（固定資産、自動車）]]) -> 0 | X27: =SUMIFS(家計簿[金額],家計簿[年],月比較[[#This Row],[年]],家計簿[月],月比較[[#This Row],[月]],家計簿[勘定科目],月比較[[#Headers],[食費]]) -> 0 | Y27: =SUMIFS(家計簿[金額],家計簿[年],月比較[[#This Row],[年]],家計簿[月],月比較[[#This Row],[月]],家計簿[勘定科目],月比較[[#Headers],[日用品]]) -> 0 | Z27: =SUMIFS(家計簿[金額],家計簿[年],月比較[[#This Row],[年]],家計簿[月],月比較[[#This Row],[月]],家計簿[勘定科目],月比較[[#Headers],[衣服]]) -> 0 | AA27: =SUMIFS(家計簿[金額],家計簿[年],月比較[[#This Row],[年]],家計簿[月],月比較[[#This Row],[月]],家計簿[勘定科目],月比較[[#Headers],[教育費]]) -> 0 | AB27: =SUMIFS(家計簿[金額],家計簿[年],月比較[[#This Row],[年]],家計簿[月],月比較[[#This Row],[月]],家計簿[勘定科目],月比較[[#Headers],[外食費]]) -> 0 | AC27: =SUMIFS(家計簿[金額],家計簿[年],月比較[[#This Row],[年]],家計簿[月],月比較[[#This Row],[月]],家計簿[勘定科目],月比較[[#Headers],[移動費]]) -> 0 | AD27: =SUMIFS(家計簿[金額],家計簿[年],月比較[[#This Row],[年]],家計簿[月],月比較[[#This Row],[月]],家計簿[勘定科目],月比較[[#Headers],[旅費]]) -> 0 | AE27: =SUMIFS(家計簿[金額],家計簿[年],月比較[[#This Row],[年]],家計簿[月],月比較[[#This Row],[月]],家計簿[勘定科目],月比較[[#Headers],[娯楽費]]) -> 0 | AF27: =SUMIFS(家計簿[金額],家計簿[年],月比較[[#This Row],[年]],家計簿[月],月比較[[#This Row],[月]],家計簿[勘定科目],月比較[[#Headers],[医療費]]) -> 0 | AG27: =SUMIFS(家計簿[金額],家計簿[年],月比較[[#This Row],[年]],家計簿[月],月比較[[#This Row],[月]],家計簿[勘定科目],月比較[[#Headers],[特別出費]]) -> 0
C28: =IF(月比較[[#This Row],[月]]=1,C27+1,C27) -> 2024 | D28: 11 | E28: =DATE(月比較[[#This Row],[年]],月比較[[#This Row],[月]],1) -> 2024-11-01 | F28: =SUMIFS(家計簿[金額],家計簿[年],月比較[[#This Row],[年]],家計簿[月],月比較[[#This Row],[月]],家計簿[収入/支出],月比較[[#Headers],[収入]]) -> 0 | G28: =SUMIFS(家計簿[金額],家計簿[年],月比較[[#This Row],[年]],家計簿[月],月比較[[#This Row],[月]],家計簿[収入/支出],月比較[[#Headers],[支出]]) -> 0 | H28: =SUMIFS(家計簿[金額],家計簿[年],月比較[[#This Row],[年]],家計簿[月],月比較[[#This Row],[月]],家計簿[固定費/変動費],月比較[[#Headers],[固定費]]) -> 0 | I28: =SUMIFS(家計簿[金額],家計簿[年],月比較[[#This Row],[年]],家計簿[月],月比較[[#This Row],[月]],家計簿[固定費/変動費],月比較[[#Headers],[変動費]]) -> 0 | J28: =SUMIFS(家計簿[金額],家計簿[年],月比較[[#This Row],[年]],家計簿[月],月比較[[#This Row],[月]],家計簿[勘定科目],月比較[[#Headers],[給料]]) -> 0 | K28: =SUMIFS(家計簿[金額],家計簿[年],月比較[[#This Row],[年]],家計簿[月],月比較[[#This Row],[月]],家計簿[勘定科目],月比較[[#Headers],[ボーナス]]) -> 0 | L28: =SUMIFS(家計簿[金額],家計簿[年],月比較[[#This Row],[年]],家計簿[月],月比較[[#This Row],[月]],家計簿[勘定科目],月比較[[#Headers],[家賃補助]]) -> 0 | M28: =SUMIFS(家計簿[金額],家計簿[年],月比較[[#This Row],[年]],家計簿[月],月比較[[#This Row],[月]],家計簿[勘定科目],月比較[[#Headers],[児童手当]]) -> 0 | N28: =SUMIFS(家計簿[金額],家計簿[年],月比較[[#This Row],[年]],家計簿[月],月比較[[#This Row],[月]],家計簿[勘定科目],月比較[[#Headers],[配当金]]) -> 0 | O28: =SUMIFS(家計簿[金額],家計簿[年],月比較[[#This Row],[年]],家計簿[月],月比較[[#This Row],[月]],家計簿[勘定科目],月比較[[#Headers],[特別収入]]) -> 0 | P28: =SUMIFS(家計簿[金額],家計簿[年],月比較[[#This Row],[年]],家計簿[月],月比較[[#This Row],[月]],家計簿[勘定科目],月比較[[#Headers],[家賃]]) -> 0 | Q28: =SUMIFS(家計簿[金額],家計簿[年],月比較[[#This Row],[年]],家計簿[月],月比較[[#This Row],[月]],家計簿[勘定科目],月比較[[#Headers],[電気代]]) -> 0 | R28: =SUMIFS(家計簿[金額],家計簿[年],月比較[[#This Row],[年]],家計簿[月],月比較[[#This Row],[月]],家計簿[勘定科目],月比較[[#Headers],[ガス代]]) -> 0 | S28: =SUMIFS(家計簿[金額],家計簿[年],月比較[[#This Row],[年]],家計簿[月],月比較[[#This Row],[月]],家計簿[勘定科目],月比較[[#Headers],[水道代]]) -> 0 | T28: =SUMIFS(家計簿[金額],家計簿[年],月比較[[#This Row],[年]],家計簿[月],月比較[[#This Row],[月]],家計簿[勘定科目],月比較[[#Headers],[通信費]]) -> 0 | U28: =SUMIFS(家計簿[金額],家計簿[年],月比較[[#This Row],[年]],家計簿[月],月比較[[#This Row],[月]],家計簿[勘定科目],月比較[[#Headers],[保険代]]) -> 0 | V28: =SUMIFS(家計簿[金額],家計簿[年],月比較[[#This Row],[年]],家計簿[月],月比較[[#This Row],[月]],家計簿[勘定科目],月比較[[#Headers],[サブスク]]) -> 0 | W28: =SUMIFS(家計簿[金額],家計簿[年],月比較[[#This Row],[年]],家計簿[月],月比較[[#This Row],[月]],家計簿[勘定科目],月比較[[#Headers],[税金（固定資産、自動車）]]) -> 0 | X28: =SUMIFS(家計簿[金額],家計簿[年],月比較[[#This Row],[年]],家計簿[月],月比較[[#This Row],[月]],家計簿[勘定科目],月比較[[#Headers],[食費]]) -> 0 | Y28: =SUMIFS(家計簿[金額],家計簿[年],月比較[[#This Row],[年]],家計簿[月],月比較[[#This Row],[月]],家計簿[勘定科目],月比較[[#Headers],[日用品]]) -> 0 | Z28: =SUMIFS(家計簿[金額],家計簿[年],月比較[[#This Row],[年]],家計簿[月],月比較[[#This Row],[月]],家計簿[勘定科目],月比較[[#Headers],[衣服]]) -> 0 | AA28: =SUMIFS(家計簿[金額],家計簿[年],月比較[[#This Row],[年]],家計簿[月],月比較[[#This Row],[月]],家計簿[勘定科目],月比較[[#Headers],[教育費]]) -> 0 | AB28: =SUMIFS(家計簿[金額],家計簿[年],月比較[[#This Row],[年]],家計簿[月],月比較[[#This Row],[月]],家計簿[勘定科目],月比較[[#Headers],[外食費]]) -> 0 | AC28: =SUMIFS(家計簿[金額],家計簿[年],月比較[[#This Row],[年]],家計簿[月],月比較[[#This Row],[月]],家計簿[勘定科目],月比較[[#Headers],[移動費]]) -> 0 | AD28: =SUMIFS(家計簿[金額],家計簿[年],月比較[[#This Row],[年]],家計簿[月],月比較[[#This Row],[月]],家計簿[勘定科目],月比較[[#Headers],[旅費]]) -> 0 | AE28: =SUMIFS(家計簿[金額],家計簿[年],月比較[[#This Row],[年]],家計簿[月],月比較[[#This Row],[月]],家計簿[勘定科目],月比較[[#Headers],[娯楽費]]) -> 0 | AF28: =SUMIFS(家計簿[金額],家計簿[年],月比較[[#This Row],[年]],家計簿[月],月比較[[#This Row],[月]],家計簿[勘定科目],月比較[[#Headers],[医療費]]) -> 0 | AG28: =SUMIFS(家計簿[金額],家計簿[年],月比較[[#This Row],[年]],家計簿[月],月比較[[#This Row],[月]],家計簿[勘定科目],月比較[[#Headers],[特別出費]]) -> 0
C29: =IF(月比較[[#This Row],[月]]=1,C28+1,C28) -> 2024 | D29: 12 | E29: =DATE(月比較[[#This Row],[年]],月比較[[#This Row],[月]],1) -> 2024-12-01 | F29: =SUMIFS(家計簿[金額],家計簿[年],月比較[[#This Row],[年]],家計簿[月],月比較[[#This Row],[月]],家計簿[収入/支出],月比較[[#Headers],[収入]]) -> 0 | G29: =SUMIFS(家計簿[金額],家計簿[年],月比較[[#This Row],[年]],家計簿[月],月比較[[#This Row],[月]],家計簿[収入/支出],月比較[[#Headers],[支出]]) -> 0 | H29: =SUMIFS(家計簿[金額],家計簿[年],月比較[[#This Row],[年]],家計簿[月],月比較[[#This Row],[月]],家計簿[固定費/変動費],月比較[[#Headers],[固定費]]) -> 0 | I29: =SUMIFS(家計簿[金額],家計簿[年],月比較[[#This Row],[年]],家計簿[月],月比較[[#This Row],[月]],家計簿[固定費/変動費],月比較[[#Headers],[変動費]]) -> 0 | J29: =SUMIFS(家計簿[金額],家計簿[年],月比較[[#This Row],[年]],家計簿[月],月比較[[#This Row],[月]],家計簿[勘定科目],月比較[[#Headers],[給料]]) -> 0 | K29: =SUMIFS(家計簿[金額],家計簿[年],月比較[[#This Row],[年]],家計簿[月],月比較[[#This Row],[月]],家計簿[勘定科目],月比較[[#Headers],[ボーナス]]) -> 0 | L29: =SUMIFS(家計簿[金額],家計簿[年],月比較[[#This Row],[年]],家計簿[月],月比較[[#This Row],[月]],家計簿[勘定科目],月比較[[#Headers],[家賃補助]]) -> 0 | M29: =SUMIFS(家計簿[金額],家計簿[年],月比較[[#This Row],[年]],家計簿[月],月比較[[#This Row],[月]],家計簿[勘定科目],月比較[[#Headers],[児童手当]]) -> 0 | N29: =SUMIFS(家計簿[金額],家計簿[年],月比較[[#This Row],[年]],家計簿[月],月比較[[#This Row],[月]],家計簿[勘定科目],月比較[[#Headers],[配当金]]) -> 0 | O29: =SUMIFS(家計簿[金額],家計簿[年],月比較[[#This Row],[年]],家計簿[月],月比較[[#This Row],[月]],家計簿[勘定科目],月比較[[#Headers],[特別収入]]) -> 0 | P29: =SUMIFS(家計簿[金額],家計簿[年],月比較[[#This Row],[年]],家計簿[月],月比較[[#This Row],[月]],家計簿[勘定科目],月比較[[#Headers],[家賃]]) -> 0 | Q29: =SUMIFS(家計簿[金額],家計簿[年],月比較[[#This Row],[年]],家計簿[月],月比較[[#This Row],[月]],家計簿[勘定科目],月比較[[#Headers],[電気代]]) -> 0 | R29: =SUMIFS(家計簿[金額],家計簿[年],月比較[[#This Row],[年]],家計簿[月],月比較[[#This Row],[月]],家計簿[勘定科目],月比較[[#Headers],[ガス代]]) -> 0 | S29: =SUMIFS(家計簿[金額],家計簿[年],月比較[[#This Row],[年]],家計簿[月],月比較[[#This Row],[月]],家計簿[勘定科目],月比較[[#Headers],[水道代]]) -> 0 | T29: =SUMIFS(家計簿[金額],家計簿[年],月比較[[#This Row],[年]],家計簿[月],月比較[[#This Row],[月]],家計簿[勘定科目],月比較[[#Headers],[通信費]]) -> 0 | U29: =SUMIFS(家計簿[金額],家計簿[年],月比較[[#This Row],[年]],家計簿[月],月比較[[#This Row],[月]],家計簿[勘定科目],月比較[[#Headers],[保険代]]) -> 0 | V29: =SUMIFS(家計簿[金額],家計簿[年],月比較[[#This Row],[年]],家計簿[月],月比較[[#This Row],[月]],家計簿[勘定科目],月比較[[#Headers],[サブスク]]) -> 0 | W29: =SUMIFS(家計簿[金額],家計簿[年],月比較[[#This Row],[年]],家計簿[月],月比較[[#This Row],[月]],家計簿[勘定科目],月比較[[#Headers],[税金（固定資産、自動車）]]) -> 0 | X29: =SUMIFS(家計簿[金額],家計簿[年],月比較[[#This Row],[年]],家計簿[月],月比較[[#This Row],[月]],家計簿[勘定科目],月比較[[#Headers],[食費]]) -> 0 | Y29: =SUMIFS(家計簿[金額],家計簿[年],月比較[[#This Row],[年]],家計簿[月],月比較[[#This Row],[月]],家計簿[勘定科目],月比較[[#Headers],[日用品]]) -> 0 | Z29: =SUMIFS(家計簿[金額],家計簿[年],月比較[[#This Row],[年]],家計簿[月],月比較[[#This Row],[月]],家計簿[勘定科目],月比較[[#Headers],[衣服]]) -> 0 | AA29: =SUMIFS(家計簿[金額],家計簿[年],月比較[[#This Row],[年]],家計簿[月],月比較[[#This Row],[月]],家計簿[勘定科目],月比較[[#Headers],[教育費]]) -> 0 | AB29: =SUMIFS(家計簿[金額],家計簿[年],月比較[[#This Row],[年]],家計簿[月],月比較[[#This Row],[月]],家計簿[勘定科目],月比較[[#Headers],[外食費]]) -> 0 | AC29: =SUMIFS(家計簿[金額],家計簿[年],月比較[[#This Row],[年]],家計簿[月],月比較[[#This Row],[月]],家計簿[勘定科目],月比較[[#Headers],[移動費]]) -> 0 | AD29: =SUMIFS(家計簿[金額],家計簿[年],月比較[[#This Row],[年]],家計簿[月],月比較[[#This Row],[月]],家計簿[勘定科目],月比較[[#Headers],[旅費]]) -> 0 | AE29: =SUMIFS(家計簿[金額],家計簿[年],月比較[[#This Row],[年]],家計簿[月],月比較[[#This Row],[月]],家計簿[勘定科目],月比較[[#Headers],[娯楽費]]) -> 0 | AF29: =SUMIFS(家計簿[金額],家計簿[年],月比較[[#This Row],[年]],家計簿[月],月比較[[#This Row],[月]],家計簿[勘定科目],月比較[[#Headers],[医療費]]) -> 0 | AG29: =SUMIFS(家計簿[金額],家計簿[年],月比較[[#This Row],[年]],家計簿[月],月比較[[#This Row],[月]],家計簿[勘定科目],月比較[[#Headers],[特別出費]]) -> 0
C30: =IF(月比較[[#This Row],[月]]=1,C29+1,C29) -> 2025 | D30: 1 | E30: =DATE(月比較[[#This Row],[年]],月比較[[#This Row],[月]],1) -> 2025-01-01 | F30: =SUMIFS(家計簿[金額],家計簿[年],月比較[[#This Row],[年]],家計簿[月],月比較[[#This Row],[月]],家計簿[収入/支出],月比較[[#Headers],[収入]]) -> 0 | G30: =SUMIFS(家計簿[金額],家計簿[年],月比較[[#This Row],[年]],家計簿[月],月比較[[#This Row],[月]],家計簿[収入/支出],月比較[[#Headers],[支出]]) -> 0 | H30: =SUMIFS(家計簿[金額],家計簿[年],月比較[[#This Row],[年]],家計簿[月],月比較[[#This Row],[月]],家計簿[固定費/変動費],月比較[[#Headers],[固定費]]) -> 0 | I30: =SUMIFS(家計簿[金額],家計簿[年],月比較[[#This Row],[年]],家計簿[月],月比較[[#This Row],[月]],家計簿[固定費/変動費],月比較[[#Headers],[変動費]]) -> 0 | J30: =SUMIFS(家計簿[金額],家計簿[年],月比較[[#This Row],[年]],家計簿[月],月比較[[#This Row],[月]],家計簿[勘定科目],月比較[[#Headers],[給料]]) -> 0 | K30: =SUMIFS(家計簿[金額],家計簿[年],月比較[[#This Row],[年]],家計簿[月],月比較[[#This Row],[月]],家計簿[勘定科目],月比較[[#Headers],[ボーナス]]) -> 0 | L30: =SUMIFS(家計簿[金額],家計簿[年],月比較[[#This Row],[年]],家計簿[月],月比較[[#This Row],[月]],家計簿[勘定科目],月比較[[#Headers],[家賃補助]]) -> 0 | M30: =SUMIFS(家計簿[金額],家計簿[年],月比較[[#This Row],[年]],家計簿[月],月比較[[#This Row],[月]],家計簿[勘定科目],月比較[[#Headers],[児童手当]]) -> 0 | N30: =SUMIFS(家計簿[金額],家計簿[年],月比較[[#This Row],[年]],家計簿[月],月比較[[#This Row],[月]],家計簿[勘定科目],月比較[[#Headers],[配当金]]) -> 0 | O30: =SUMIFS(家計簿[金額],家計簿[年],月比較[[#This Row],[年]],家計簿[月],月比較[[#This Row],[月]],家計簿[勘定科目],月比較[[#Headers],[特別収入]]) -> 0 | P30: =SUMIFS(家計簿[金額],家計簿[年],月比較[[#This Row],[年]],家計簿[月],月比較[[#This Row],[月]],家計簿[勘定科目],月比較[[#Headers],[家賃]]) -> 0 | Q30: =SUMIFS(家計簿[金額],家計簿[年],月比較[[#This Row],[年]],家計簿[月],月比較[[#This Row],[月]],家計簿[勘定科目],月比較[[#Headers],[電気代]]) -> 0 | R30: =SUMIFS(家計簿[金額],家計簿[年],月比較[[#This Row],[年]],家計簿[月],月比較[[#This Row],[月]],家計簿[勘定科目],月比較[[#Headers],[ガス代]]) -> 0 | S30: =SUMIFS(家計簿[金額],家計簿[年],月比較[[#This Row],[年]],家計簿[月],月比較[[#This Row],[月]],家計簿[勘定科目],月比較[[#Headers],[水道代]]) -> 0 | T30: =SUMIFS(家計簿[金額],家計簿[年],月比較[[#This Row],[年]],家計簿[月],月比較[[#This Row],[月]],家計簿[勘定科目],月比較[[#Headers],[通信費]]) -> 0 | U30: =SUMIFS(家計簿[金額],家計簿[年],月比較[[#This Row],[年]],家計簿[月],月比較[[#This Row],[月]],家計簿[勘定科目],月比較[[#Headers],[保険代]]) -> 0 | V30: =SUMIFS(家計簿[金額],家計簿[年],月比較[[#This Row],[年]],家計簿[月],月比較[[#This Row],[月]],家計簿[勘定科目],月比較[[#Headers],[サブスク]]) -> 0 | W30: =SUMIFS(家計簿[金額],家計簿[年],月比較[[#This Row],[年]],家計簿[月],月比較[[#This Row],[月]],家計簿[勘定科目],月比較[[#Headers],[税金（固定資産、自動車）]]) -> 0 | X30: =SUMIFS(家計簿[金額],家計簿[年],月比較[[#This Row],[年]],家計簿[月],月比較[[#This Row],[月]],家計簿[勘定科目],月比較[[#Headers],[食費]]) -> 0 | Y30: =SUMIFS(家計簿[金額],家計簿[年],月比較[[#This Row],[年]],家計簿[月],月比較[[#This Row],[月]],家計簿[勘定科目],月比較[[#Headers],[日用品]]) -> 0 | Z30: =SUMIFS(家計簿[金額],家計簿[年],月比較[[#This Row],[年]],家計簿[月],月比較[[#This Row],[月]],家計簿[勘定科目],月比較[[#Headers],[衣服]]) -> 0 | AA30: =SUMIFS(家計簿[金額],家計簿[年],月比較[[#This Row],[年]],家計簿[月],月比較[[#This Row],[月]],家計簿[勘定科目],月比較[[#Headers],[教育費]]) -> 0 | AB30: =SUMIFS(家計簿[金額],家計簿[年],月比較[[#This Row],[年]],家計簿[月],月比較[[#This Row],[月]],家計簿[勘定科目],月比較[[#Headers],[外食費]]) -> 0 | AC30: =SUMIFS(家計簿[金額],家計簿[年],月比較[[#This Row],[年]],家計簿[月],月比較[[#This Row],[月]],家計簿[勘定科目],月比較[[#Headers],[移動費]]) -> 0 | AD30: =SUMIFS(家計簿[金額],家計簿[年],月比較[[#This Row],[年]],家計簿[月],月比較[[#This Row],[月]],家計簿[勘定科目],月比較[[#Headers],[旅費]]) -> 0 | AE30: =SUMIFS(家計簿[金額],家計簿[年],月比較[[#This Row],[年]],家計簿[月],月比較[[#This Row],[月]],家計簿[勘定科目],月比較[[#Headers],[娯楽費]]) -> 0 | AF30: =SUMIFS(家計簿[金額],家計簿[年],月比較[[#This Row],[年]],家計簿[月],月比較[[#This Row],[月]],家計簿[勘定科目],月比較[[#Headers],[医療費]]) -> 0 | AG30: =SUMIFS(家計簿[金額],家計簿[年],月比較[[#This Row],[年]],家計簿[月],月比較[[#This Row],[月]],家計簿[勘定科目],月比較[[#Headers],[特別出費]]) -> 0
C31: =IF(月比較[[#This Row],[月]]=1,C30+1,C30) -> 2025 | D31: 2 | E31: =DATE(月比較[[#This Row],[年]],月比較[[#This Row],[月]],1) -> 2025-02-01 | F31: =SUMIFS(家計簿[金額],家計簿[年],月比較[[#This Row],[年]],家計簿[月],月比較[[#This Row],[月]],家計簿[収入/支出],月比較[[#Headers],[収入]]) -> 0 | G31: =SUMIFS(家計簿[金額],家計簿[年],月比較[[#This Row],[年]],家計簿[月],月比較[[#This Row],[月]],家計簿[収入/支出],月比較[[#Headers],[支出]]) -> 0 | H31: =SUMIFS(家計簿[金額],家計簿[年],月比較[[#This Row],[年]],家計簿[月],月比較[[#This Row],[月]],家計簿[固定費/変動費],月比較[[#Headers],[固定費]]) -> 0 | I31: =SUMIFS(家計簿[金額],家計簿[年],月比較[[#This Row],[年]],家計簿[月],月比較[[#This Row],[月]],家計簿[固定費/変動費],月比較[[#Headers],[変動費]]) -> 0 | J31: =SUMIFS(家計簿[金額],家計簿[年],月比較[[#This Row],[年]],家計簿[月],月比較[[#This Row],[月]],家計簿[勘定科目],月比較[[#Headers],[給料]]) -> 0 | K31: =SUMIFS(家計簿[金額],家計簿[年],月比較[[#This Row],[年]],家計簿[月],月比較[[#This Row],[月]],家計簿[勘定科目],月比較[[#Headers],[ボーナス]]) -> 0 | L31: =SUMIFS(家計簿[金額],家計簿[年],月比較[[#This Row],[年]],家計簿[月],月比較[[#This Row],[月]],家計簿[勘定科目],月比較[[#Headers],[家賃補助]]) -> 0 | M31: =SUMIFS(家計簿[金額],家計簿[年],月比較[[#This Row],[年]],家計簿[月],月比較[[#This Row],[月]],家計簿[勘定科目],月比較[[#Headers],[児童手当]]) -> 0 | N31: =SUMIFS(家計簿[金額],家計簿[年],月比較[[#This Row],[年]],家計簿[月],月比較[[#This Row],[月]],家計簿[勘定科目],月比較[[#Headers],[配当金]]) -> 0 | O31: =SUMIFS(家計簿[金額],家計簿[年],月比較[[#This Row],[年]],家計簿[月],月比較[[#This Row],[月]],家計簿[勘定科目],月比較[[#Headers],[特別収入]]) -> 0 | P31: =SUMIFS(家計簿[金額],家計簿[年],月比較[[#This Row],[年]],家計簿[月],月比較[[#This Row],[月]],家計簿[勘定科目],月比較[[#Headers],[家賃]]) -> 0 | Q31: =SUMIFS(家計簿[金額],家計簿[年],月比較[[#This Row],[年]],家計簿[月],月比較[[#This Row],[月]],家計簿[勘定科目],月比較[[#Headers],[電気代]]) -> 0 | R31: =SUMIFS(家計簿[金額],家計簿[年],月比較[[#This Row],[年]],家計簿[月],月比較[[#This Row],[月]],家計簿[勘定科目],月比較[[#Headers],[ガス代]]) -> 0 | S31: =SUMIFS(家計簿[金額],家計簿[年],月比較[[#This Row],[年]],家計簿[月],月比較[[#This Row],[月]],家計簿[勘定科目],月比較[[#Headers],[水道代]]) -> 0 | T31: =SUMIFS(家計簿[金額],家計簿[年],月比較[[#This Row],[年]],家計簿[月],月比較[[#This Row],[月]],家計簿[勘定科目],月比較[[#Headers],[通信費]]) -> 0 | U31: =SUMIFS(家計簿[金額],家計簿[年],月比較[[#This Row],[年]],家計簿[月],月比較[[#This Row],[月]],家計簿[勘定科目],月比較[[#Headers],[保険代]]) -> 0 | V31: =SUMIFS(家計簿[金額],家計簿[年],月比較[[#This Row],[年]],家計簿[月],月比較[[#This Row],[月]],家計簿[勘定科目],月比較[[#Headers],[サブスク]]) -> 0 | W31: =SUMIFS(家計簿[金額],家計簿[年],月比較[[#This Row],[年]],家計簿[月],月比較[[#This Row],[月]],家計簿[勘定科目],月比較[[#Headers],[税金（固定資産、自動車）]]) -> 0 | X31: =SUMIFS(家計簿[金額],家計簿[年],月比較[[#This Row],[年]],家計簿[月],月比較[[#This Row],[月]],家計簿[勘定科目],月比較[[#Headers],[食費]]) -> 0 | Y31: =SUMIFS(家計簿[金額],家計簿[年],月比較[[#This Row],[年]],家計簿[月],月比較[[#This Row],[月]],家計簿[勘定科目],月比較[[#Headers],[日用品]]) -> 0 | Z31: =SUMIFS(家計簿[金額],家計簿[年],月比較[[#This Row],[年]],家計簿[月],月比較[[#This Row],[月]],家計簿[勘定科目],月比較[[#Headers],[衣服]]) -> 0 | AA31: =SUMIFS(家計簿[金額],家計簿[年],月比較[[#This Row],[年]],家計簿[月],月比較[[#This Row],[月]],家計簿[勘定科目],月比較[[#Headers],[教育費]]) -> 0 | AB31: =SUMIFS(家計簿[金額],家計簿[年],月比較[[#This Row],[年]],家計簿[月],月比較[[#This Row],[月]],家計簿[勘定科目],月比較[[#Headers],[外食費]]) -> 0 | AC31: =SUMIFS(家計簿[金額],家計簿[年],月比較[[#This Row],[年]],家計簿[月],月比較[[#This Row],[月]],家計簿[勘定科目],月比較[[#Headers],[移動費]]) -> 0 | AD31: =SUMIFS(家計簿[金額],家計簿[年],月比較[[#This Row],[年]],家計簿[月],月比較[[#This Row],[月]],家計簿[勘定科目],月比較[[#Headers],[旅費]]) -> 0 | AE31: =SUMIFS(家計簿[金額],家計簿[年],月比較[[#This Row],[年]],家計簿[月],月比較[[#This Row],[月]],家計簿[勘定科目],月比較[[#Headers],[娯楽費]]) -> 0 | AF31: =SUMIFS(家計簿[金額],家計簿[年],月比較[[#This Row],[年]],家計簿[月],月比較[[#This Row],[月]],家計簿[勘定科目],月比較[[#Headers],[医療費]]) -> 0 | AG31: =SUMIFS(家計簿[金額],家計簿[年],月比較[[#This Row],[年]],家計簿[月],月比較[[#This Row],[月]],家計簿[勘定科目],月比較[[#Headers],[特別出費]]) -> 0
C32: =IF(月比較[[#This Row],[月]]=1,C31+1,C31) -> 2025 | D32: 3 | E32: =DATE(月比較[[#This Row],[年]],月比較[[#This Row],[月]],1) -> 2025-03-01 | F32: =SUMIFS(家計簿[金額],家計簿[年],月比較[[#This Row],[年]],家計簿[月],月比較[[#This Row],[月]],家計簿[収入/支出],月比較[[#Headers],[収入]]) -> 0 | G32: =SUMIFS(家計簿[金額],家計簿[年],月比較[[#This Row],[年]],家計簿[月],月比較[[#This Row],[月]],家計簿[収入/支出],月比較[[#Headers],[支出]]) -> 0 | H32: =SUMIFS(家計簿[金額],家計簿[年],月比較[[#This Row],[年]],家計簿[月],月比較[[#This Row],[月]],家計簿[固定費/変動費],月比較[[#Headers],[固定費]]) -> 0 | I32: =SUMIFS(家計簿[金額],家計簿[年],月比較[[#This Row],[年]],家計簿[月],月比較[[#This Row],[月]],家計簿[固定費/変動費],月比較[[#Headers],[変動費]]) -> 0 | J32: =SUMIFS(家計簿[金額],家計簿[年],月比較[[#This Row],[年]],家計簿[月],月比較[[#This Row],[月]],家計簿[勘定科目],月比較[[#Headers],[給料]]) -> 0 | K32: =SUMIFS(家計簿[金額],家計簿[年],月比較[[#This Row],[年]],家計簿[月],月比較[[#This Row],[月]],家計簿[勘定科目],月比較[[#Headers],[ボーナス]]) -> 0 | L32: =SUMIFS(家計簿[金額],家計簿[年],月比較[[#This Row],[年]],家計簿[月],月比較[[#This Row],[月]],家計簿[勘定科目],月比較[[#Headers],[家賃補助]]) -> 0 | M32: =SUMIFS(家計簿[金額],家計簿[年],月比較[[#This Row],[年]],家計簿[月],月比較[[#This Row],[月]],家計簿[勘定科目],月比較[[#Headers],[児童手当]]) -> 0 | N32: =SUMIFS(家計簿[金額],家計簿[年],月比較[[#This Row],[年]],家計簿[月],月比較[[#This Row],[月]],家計簿[勘定科目],月比較[[#Headers],[配当金]]) -> 0 | O32: =SUMIFS(家計簿[金額],家計簿[年],月比較[[#This Row],[年]],家計簿[月],月比較[[#This Row],[月]],家計簿[勘定科目],月比較[[#Headers],[特別収入]]) -> 0 | P32: =SUMIFS(家計簿[金額],家計簿[年],月比較[[#This Row],[年]],家計簿[月],月比較[[#This Row],[月]],家計簿[勘定科目],月比較[[#Headers],[家賃]]) -> 0 | Q32: =SUMIFS(家計簿[金額],家計簿[年],月比較[[#This Row],[年]],家計簿[月],月比較[[#This Row],[月]],家計簿[勘定科目],月比較[[#Headers],[電気代]]) -> 0 | R32: =SUMIFS(家計簿[金額],家計簿[年],月比較[[#This Row],[年]],家計簿[月],月比較[[#This Row],[月]],家計簿[勘定科目],月比較[[#Headers],[ガス代]]) -> 0 | S32: =SUMIFS(家計簿[金額],家計簿[年],月比較[[#This Row],[年]],家計簿[月],月比較[[#This Row],[月]],家計簿[勘定科目],月比較[[#Headers],[水道代]]) -> 0 | T32: =SUMIFS(家計簿[金額],家計簿[年],月比較[[#This Row],[年]],家計簿[月],月比較[[#This Row],[月]],家計簿[勘定科目],月比較[[#Headers],[通信費]]) -> 0 | U32: =SUMIFS(家計簿[金額],家計簿[年],月比較[[#This Row],[年]],家計簿[月],月比較[[#This Row],[月]],家計簿[勘定科目],月比較[[#Headers],[保険代]]) -> 0 | V32: =SUMIFS(家計簿[金額],家計簿[年],月比較[[#This Row],[年]],家計簿[月],月比較[[#This Row],[月]],家計簿[勘定科目],月比較[[#Headers],[サブスク]]) -> 0 | W32: =SUMIFS(家計簿[金額],家計簿[年],月比較[[#This Row],[年]],家計簿[月],月比較[[#This Row],[月]],家計簿[勘定科目],月比較[[#Headers],[税金（固定資産、自動車）]]) -> 0 | X32: =SUMIFS(家計簿[金額],家計簿[年],月比較[[#This Row],[年]],家計簿[月],月比較[[#This Row],[月]],家計簿[勘定科目],月比較[[#Headers],[食費]]) -> 0 | Y32: =SUMIFS(家計簿[金額],家計簿[年],月比較[[#This Row],[年]],家計簿[月],月比較[[#This Row],[月]],家計簿[勘定科目],月比較[[#Headers],[日用品]]) -> 0 | Z32: =SUMIFS(家計簿[金額],家計簿[年],月比較[[#This Row],[年]],家計簿[月],月比較[[#This Row],[月]],家計簿[勘定科目],月比較[[#Headers],[衣服]]) -> 0 | AA32: =SUMIFS(家計簿[金額],家計簿[年],月比較[[#This Row],[年]],家計簿[月],月比較[[#This Row],[月]],家計簿[勘定科目],月比較[[#Headers],[教育費]]) -> 0 | AB32: =SUMIFS(家計簿[金額],家計簿[年],月比較[[#This Row],[年]],家計簿[月],月比較[[#This Row],[月]],家計簿[勘定科目],月比較[[#Headers],[外食費]]) -> 0 | AC32: =SUMIFS(家計簿[金額],家計簿[年],月比較[[#This Row],[年]],家計簿[月],月比較[[#This Row],[月]],家計簿[勘定科目],月比較[[#Headers],[移動費]]) -> 0 | AD32: =SUMIFS(家計簿[金額],家計簿[年],月比較[[#This Row],[年]],家計簿[月],月比較[[#This Row],[月]],家計簿[勘定科目],月比較[[#Headers],[旅費]]) -> 0 | AE32: =SUMIFS(家計簿[金額],家計簿[年],月比較[[#This Row],[年]],家計簿[月],月比較[[#This Row],[月]],家計簿[勘定科目],月比較[[#Headers],[娯楽費]]) -> 0 | AF32: =SUMIFS(家計簿[金額],家計簿[年],月比較[[#This Row],[年]],家計簿[月],月比較[[#This Row],[月]],家計簿[勘定科目],月比較[[#Headers],[医療費]]) -> 0 | AG32: =SUMIFS(家計簿[金額],家計簿[年],月比較[[#This Row],[年]],家計簿[月],月比較[[#This Row],[月]],家計簿[勘定科目],月比較[[#Headers],[特別出費]]) -> 0
C33: =IF(月比較[[#This Row],[月]]=1,C32+1,C32) -> 2025 | D33: 4 | E33: =DATE(月比較[[#This Row],[年]],月比較[[#This Row],[月]],1) -> 2025-04-01 | F33: =SUMIFS(家計簿[金額],家計簿[年],月比較[[#This Row],[年]],家計簿[月],月比較[[#This Row],[月]],家計簿[収入/支出],月比較[[#Headers],[収入]]) -> 0 | G33: =SUMIFS(家計簿[金額],家計簿[年],月比較[[#This Row],[年]],家計簿[月],月比較[[#This Row],[月]],家計簿[収入/支出],月比較[[#Headers],[支出]]) -> 0 | H33: =SUMIFS(家計簿[金額],家計簿[年],月比較[[#This Row],[年]],家計簿[月],月比較[[#This Row],[月]],家計簿[固定費/変動費],月比較[[#Headers],[固定費]]) -> 0 | I33: =SUMIFS(家計簿[金額],家計簿[年],月比較[[#This Row],[年]],家計簿[月],月比較[[#This Row],[月]],家計簿[固定費/変動費],月比較[[#Headers],[変動費]]) -> 0 | J33: =SUMIFS(家計簿[金額],家計簿[年],月比較[[#This Row],[年]],家計簿[月],月比較[[#This Row],[月]],家計簿[勘定科目],月比較[[#Headers],[給料]]) -> 0 | K33: =SUMIFS(家計簿[金額],家計簿[年],月比較[[#This Row],[年]],家計簿[月],月比較[[#This Row],[月]],家計簿[勘定科目],月比較[[#Headers],[ボーナス]]) -> 0 | L33: =SUMIFS(家計簿[金額],家計簿[年],月比較[[#This Row],[年]],家計簿[月],月比較[[#This Row],[月]],家計簿[勘定科目],月比較[[#Headers],[家賃補助]]) -> 0 | M33: =SUMIFS(家計簿[金額],家計簿[年],月比較[[#This Row],[年]],家計簿[月],月比較[[#This Row],[月]],家計簿[勘定科目],月比較[[#Headers],[児童手当]]) -> 0 | N33: =SUMIFS(家計簿[金額],家計簿[年],月比較[[#This Row],[年]],家計簿[月],月比較[[#This Row],[月]],家計簿[勘定科目],月比較[[#Headers],[配当金]]) -> 0 | O33: =SUMIFS(家計簿[金額],家計簿[年],月比較[[#This Row],[年]],家計簿[月],月比較[[#This Row],[月]],家計簿[勘定科目],月比較[[#Headers],[特別収入]]) -> 0 | P33: =SUMIFS(家計簿[金額],家計簿[年],月比較[[#This Row],[年]],家計簿[月],月比較[[#This Row],[月]],家計簿[勘定科目],月比較[[#Headers],[家賃]]) -> 0 | Q33: =SUMIFS(家計簿[金額],家計簿[年],月比較[[#This Row],[年]],家計簿[月],月比較[[#This Row],[月]],家計簿[勘定科目],月比較[[#Headers],[電気代]]) -> 0 | R33: =SUMIFS(家計簿[金額],家計簿[年],月比較[[#This Row],[年]],家計簿[月],月比較[[#This Row],[月]],家計簿[勘定科目],月比較[[#Headers],[ガス代]]) -> 0 | S33: =SUMIFS(家計簿[金額],家計簿[年],月比較[[#This Row],[年]],家計簿[月],月比較[[#This Row],[月]],家計簿[勘定科目],月比較[[#Headers],[水道代]]) -> 0 | T33: =SUMIFS(家計簿[金額],家計簿[年],月比較[[#This Row],[年]],家計簿[月],月比較[[#This Row],[月]],家計簿[勘定科目],月比較[[#Headers],[通信費]]) -> 0 | U33: =SUMIFS(家計簿[金額],家計簿[年],月比較[[#This Row],[年]],家計簿[月],月比較[[#This Row],[月]],家計簿[勘定科目],月比較[[#Headers],[保険代]]) -> 0 | V33: =SUMIFS(家計簿[金額],家計簿[年],月比較[[#This Row],[年]],家計簿[月],月比較[[#This Row],[月]],家計簿[勘定科目],月比較[[#Headers],[サブスク]]) -> 0 | W33: =SUMIFS(家計簿[金額],家計簿[年],月比較[[#This Row],[年]],家計簿[月],月比較[[#This Row],[月]],家計簿[勘定科目],月比較[[#Headers],[税金（固定資産、自動車）]]) -> 0 | X33: =SUMIFS(家計簿[金額],家計簿[年],月比較[[#This Row],[年]],家計簿[月],月比較[[#This Row],[月]],家計簿[勘定科目],月比較[[#Headers],[食費]]) -> 0 | Y33: =SUMIFS(家計簿[金額],家計簿[年],月比較[[#This Row],[年]],家計簿[月],月比較[[#This Row],[月]],家計簿[勘定科目],月比較[[#Headers],[日用品]]) -> 0 | Z33: =SUMIFS(家計簿[金額],家計簿[年],月比較[[#This Row],[年]],家計簿[月],月比較[[#This Row],[月]],家計簿[勘定科目],月比較[[#Headers],[衣服]]) -> 0 | AA33: =SUMIFS(家計簿[金額],家計簿[年],月比較[[#This Row],[年]],家計簿[月],月比較[[#This Row],[月]],家計簿[勘定科目],月比較[[#Headers],[教育費]]) -> 0 | AB33: =SUMIFS(家計簿[金額],家計簿[年],月比較[[#This Row],[年]],家計簿[月],月比較[[#This Row],[月]],家計簿[勘定科目],月比較[[#Headers],[外食費]]) -> 0 | AC33: =SUMIFS(家計簿[金額],家計簿[年],月比較[[#This Row],[年]],家計簿[月],月比較[[#This Row],[月]],家計簿[勘定科目],月比較[[#Headers],[移動費]]) -> 0 | AD33: =SUMIFS(家計簿[金額],家計簿[年],月比較[[#This Row],[年]],家計簿[月],月比較[[#This Row],[月]],家計簿[勘定科目],月比較[[#Headers],[旅費]]) -> 0 | AE33: =SUMIFS(家計簿[金額],家計簿[年],月比較[[#This Row],[年]],家計簿[月],月比較[[#This Row],[月]],家計簿[勘定科目],月比較[[#Headers],[娯楽費]]) -> 0 | AF33: =SUMIFS(家計簿[金額],家計簿[年],月比較[[#This Row],[年]],家計簿[月],月比較[[#This Row],[月]],家計簿[勘定科目],月比較[[#Headers],[医療費]]) -> 0 | AG33: =SUMIFS(家計簿[金額],家計簿[年],月比較[[#This Row],[年]],家計簿[月],月比較[[#This Row],[月]],家計簿[勘定科目],月比較[[#Headers],[特別出費]]) -> 0
C34: =IF(月比較[[#This Row],[月]]=1,C33+1,C33) -> 2025 | D34: 5 | E34: =DATE(月比較[[#This Row],[年]],月比較[[#This Row],[月]],1) -> 2025-05-01 | F34: =SUMIFS(家計簿[金額],家計簿[年],月比較[[#This Row],[年]],家計簿[月],月比較[[#This Row],[月]],家計簿[収入/支出],月比較[[#Headers],[収入]]) -> 0 | G34: =SUMIFS(家計簿[金額],家計簿[年],月比較[[#This Row],[年]],家計簿[月],月比較[[#This Row],[月]],家計簿[収入/支出],月比較[[#Headers],[支出]]) -> 0 | H34: =SUMIFS(家計簿[金額],家計簿[年],月比較[[#This Row],[年]],家計簿[月],月比較[[#This Row],[月]],家計簿[固定費/変動費],月比較[[#Headers],[固定費]]) -> 0 | I34: =SUMIFS(家計簿[金額],家計簿[年],月比較[[#This Row],[年]],家計簿[月],月比較[[#This Row],[月]],家計簿[固定費/変動費],月比較[[#Headers],[変動費]]) -> 0 | J34: =SUMIFS(家計簿[金額],家計簿[年],月比較[[#This Row],[年]],家計簿[月],月比較[[#This Row],[月]],家計簿[勘定科目],月比較[[#Headers],[給料]]) -> 0 | K34: =SUMIFS(家計簿[金額],家計簿[年],月比較[[#This Row],[年]],家計簿[月],月比較[[#This Row],[月]],家計簿[勘定科目],月比較[[#Headers],[ボーナス]]) -> 0 | L34: =SUMIFS(家計簿[金額],家計簿[年],月比較[[#This Row],[年]],家計簿[月],月比較[[#This Row],[月]],家計簿[勘定科目],月比較[[#Headers],[家賃補助]]) -> 0 | M34: =SUMIFS(家計簿[金額],家計簿[年],月比較[[#This Row],[年]],家計簿[月],月比較[[#This Row],[月]],家計簿[勘定科目],月比較[[#Headers],[児童手当]]) -> 0 | N34: =SUMIFS(家計簿[金額],家計簿[年],月比較[[#This Row],[年]],家計簿[月],月比較[[#This Row],[月]],家計簿[勘定科目],月比較[[#Headers],[配当金]]) -> 0 | O34: =SUMIFS(家計簿[金額],家計簿[年],月比較[[#This Row],[年]],家計簿[月],月比較[[#This Row],[月]],家計簿[勘定科目],月比較[[#Headers],[特別収入]]) -> 0 | P34: =SUMIFS(家計簿[金額],家計簿[年],月比較[[#This Row],[年]],家計簿[月],月比較[[#This Row],[月]],家計簿[勘定科目],月比較[[#Headers],[家賃]]) -> 0 | Q34: =SUMIFS(家計簿[金額],家計簿[年],月比較[[#This Row],[年]],家計簿[月],月比較[[#This Row],[月]],家計簿[勘定科目],月比較[[#Headers],[電気代]]) -> 0 | R34: =SUMIFS(家計簿[金額],家計簿[年],月比較[[#This Row],[年]],家計簿[月],月比較[[#This Row],[月]],家計簿[勘定科目],月比較[[#Headers],[ガス代]]) -> 0 | S34: =SUMIFS(家計簿[金額],家計簿[年],月比較[[#This Row],[年]],家計簿[月],月比較[[#This Row],[月]],家計簿[勘定科目],月比較[[#Headers],[水道代]]) -> 0 | T34: =SUMIFS(家計簿[金額],家計簿[年],月比較[[#This Row],[年]],家計簿[月],月比較[[#This Row],[月]],家計簿[勘定科目],月比較[[#Headers],[通信費]]) -> 0 | U34: =SUMIFS(家計簿[金額],家計簿[年],月比較[[#This Row],[年]],家計簿[月],月比較[[#This Row],[月]],家計簿[勘定科目],月比較[[#Headers],[保険代]]) -> 0 | V34: =SUMIFS(家計簿[金額],家計簿[年],月比較[[#This Row],[年]],家計簿[月],月比較[[#This Row],[月]],家計簿[勘定科目],月比較[[#Headers],[サブスク]]) -> 0 | W34: =SUMIFS(家計簿[金額],家計簿[年],月比較[[#This Row],[年]],家計簿[月],月比較[[#This Row],[月]],家計簿[勘定科目],月比較[[#Headers],[税金（固定資産、自動車）]]) -> 0 | X34: =SUMIFS(家計簿[金額],家計簿[年],月比較[[#This Row],[年]],家計簿[月],月比較[[#This Row],[月]],家計簿[勘定科目],月比較[[#Headers],[食費]]) -> 0 | Y34: =SUMIFS(家計簿[金額],家計簿[年],月比較[[#This Row],[年]],家計簿[月],月比較[[#This Row],[月]],家計簿[勘定科目],月比較[[#Headers],[日用品]]) -> 0 | Z34: =SUMIFS(家計簿[金額],家計簿[年],月比較[[#This Row],[年]],家計簿[月],月比較[[#This Row],[月]],家計簿[勘定科目],月比較[[#Headers],[衣服]]) -> 0 | AA34: =SUMIFS(家計簿[金額],家計簿[年],月比較[[#This Row],[年]],家計簿[月],月比較[[#This Row],[月]],家計簿[勘定科目],月比較[[#Headers],[教育費]]) -> 0 | AB34: =SUMIFS(家計簿[金額],家計簿[年],月比較[[#This Row],[年]],家計簿[月],月比較[[#This Row],[月]],家計簿[勘定科目],月比較[[#Headers],[外食費]]) -> 0 | AC34: =SUMIFS(家計簿[金額],家計簿[年],月比較[[#This Row],[年]],家計簿[月],月比較[[#This Row],[月]],家計簿[勘定科目],月比較[[#Headers],[移動費]]) -> 0 | AD34: =SUMIFS(家計簿[金額],家計簿[年],月比較[[#This Row],[年]],家計簿[月],月比較[[#This Row],[月]],家計簿[勘定科目],月比較[[#Headers],[旅費]]) -> 0 | AE34: =SUMIFS(家計簿[金額],家計簿[年],月比較[[#This Row],[年]],家計簿[月],月比較[[#This Row],[月]],家計簿[勘定科目],月比較[[#Headers],[娯楽費]]) -> 0 | AF34: =SUMIFS(家計簿[金額],家計簿[年],月比較[[#This Row],[年]],家計簿[月],月比較[[#This Row],[月]],家計簿[勘定科目],月比較[[#Headers],[医療費]]) -> 0 | AG34: =SUMIFS(家計簿[金額],家計簿[年],月比較[[#This Row],[年]],家計簿[月],月比較[[#This Row],[月]],家計簿[勘定科目],月比較[[#Headers],[特別出費]]) -> 0
C35: =IF(月比較[[#This Row],[月]]=1,C34+1,C34) -> 2025 | D35: 6 | E35: =DATE(月比較[[#This Row],[年]],月比較[[#This Row],[月]],1) -> 2025-06-01 | F35: =SUMIFS(家計簿[金額],家計簿[年],月比較[[#This Row],[年]],家計簿[月],月比較[[#This Row],[月]],家計簿[収入/支出],月比較[[#Headers],[収入]]) -> 0 | G35: =SUMIFS(家計簿[金額],家計簿[年],月比較[[#This Row],[年]],家計簿[月],月比較[[#This Row],[月]],家計簿[収入/支出],月比較[[#Headers],[支出]]) -> 0 | H35: =SUMIFS(家計簿[金額],家計簿[年],月比較[[#This Row],[年]],家計簿[月],月比較[[#This Row],[月]],家計簿[固定費/変動費],月比較[[#Headers],[固定費]]) -> 0 | I35: =SUMIFS(家計簿[金額],家計簿[年],月比較[[#This Row],[年]],家計簿[月],月比較[[#This Row],[月]],家計簿[固定費/変動費],月比較[[#Headers],[変動費]]) -> 0 | J35: =SUMIFS(家計簿[金額],家計簿[年],月比較[[#This Row],[年]],家計簿[月],月比較[[#This Row],[月]],家計簿[勘定科目],月比較[[#Headers],[給料]]) -> 0 | K35: =SUMIFS(家計簿[金額],家計簿[年],月比較[[#This Row],[年]],家計簿[月],月比較[[#This Row],[月]],家計簿[勘定科目],月比較[[#Headers],[ボーナス]]) -> 0 | L35: =SUMIFS(家計簿[金額],家計簿[年],月比較[[#This Row],[年]],家計簿[月],月比較[[#This Row],[月]],家計簿[勘定科目],月比較[[#Headers],[家賃補助]]) -> 0 | M35: =SUMIFS(家計簿[金額],家計簿[年],月比較[[#This Row],[年]],家計簿[月],月比較[[#This Row],[月]],家計簿[勘定科目],月比較[[#Headers],[児童手当]]) -> 0 | N35: =SUMIFS(家計簿[金額],家計簿[年],月比較[[#This Row],[年]],家計簿[月],月比較[[#This Row],[月]],家計簿[勘定科目],月比較[[#Headers],[配当金]]) -> 0 | O35: =SUMIFS(家計簿[金額],家計簿[年],月比較[[#This Row],[年]],家計簿[月],月比較[[#This Row],[月]],家計簿[勘定科目],月比較[[#Headers],[特別収入]]) -> 0 | P35: =SUMIFS(家計簿[金額],家計簿[年],月比較[[#This Row],[年]],家計簿[月],月比較[[#This Row],[月]],家計簿[勘定科目],月比較[[#Headers],[家賃]]) -> 0 | Q35: =SUMIFS(家計簿[金額],家計簿[年],月比較[[#This Row],[年]],家計簿[月],月比較[[#This Row],[月]],家計簿[勘定科目],月比較[[#Headers],[電気代]]) -> 0 | R35: =SUMIFS(家計簿[金額],家計簿[年],月比較[[#This Row],[年]],家計簿[月],月比較[[#This Row],[月]],家計簿[勘定科目],月比較[[#Headers],[ガス代]]) -> 0 | S35: =SUMIFS(家計簿[金額],家計簿[年],月比較[[#This Row],[年]],家計簿[月],月比較[[#This Row],[月]],家計簿[勘定科目],月比較[[#Headers],[水道代]]) -> 0 | T35: =SUMIFS(家計簿[金額],家計簿[年],月比較[[#This Row],[年]],家計簿[月],月比較[[#This Row],[月]],家計簿[勘定科目],月比較[[#Headers],[通信費]]) -> 0 | U35: =SUMIFS(家計簿[金額],家計簿[年],月比較[[#This Row],[年]],家計簿[月],月比較[[#This Row],[月]],家計簿[勘定科目],月比較[[#Headers],[保険代]]) -> 0 | V35: =SUMIFS(家計簿[金額],家計簿[年],月比較[[#This Row],[年]],家計簿[月],月比較[[#This Row],[月]],家計簿[勘定科目],月比較[[#Headers],[サブスク]]) -> 0 | W35: =SUMIFS(家計簿[金額],家計簿[年],月比較[[#This Row],[年]],家計簿[月],月比較[[#This Row],[月]],家計簿[勘定科目],月比較[[#Headers],[税金（固定資産、自動車）]]) -> 0 | X35: =SUMIFS(家計簿[金額],家計簿[年],月比較[[#This Row],[年]],家計簿[月],月比較[[#This Row],[月]],家計簿[勘定科目],月比較[[#Headers],[食費]]) -> 0 | Y35: =SUMIFS(家計簿[金額],家計簿[年],月比較[[#This Row],[年]],家計簿[月],月比較[[#This Row],[月]],家計簿[勘定科目],月比較[[#Headers],[日用品]]) -> 0 | Z35: =SUMIFS(家計簿[金額],家計簿[年],月比較[[#This Row],[年]],家計簿[月],月比較[[#This Row],[月]],家計簿[勘定科目],月比較[[#Headers],[衣服]]) -> 0 | AA35: =SUMIFS(家計簿[金額],家計簿[年],月比較[[#This Row],[年]],家計簿[月],月比較[[#This Row],[月]],家計簿[勘定科目],月比較[[#Headers],[教育費]]) -> 0 | AB35: =SUMIFS(家計簿[金額],家計簿[年],月比較[[#This Row],[年]],家計簿[月],月比較[[#This Row],[月]],家計簿[勘定科目],月比較[[#Headers],[外食費]]) -> 0 | AC35: =SUMIFS(家計簿[金額],家計簿[年],月比較[[#This Row],[年]],家計簿[月],月比較[[#This Row],[月]],家計簿[勘定科目],月比較[[#Headers],[移動費]]) -> 0 | AD35: =SUMIFS(家計簿[金額],家計簿[年],月比較[[#This Row],[年]],家計簿[月],月比較[[#This Row],[月]],家計簿[勘定科目],月比較[[#Headers],[旅費]]) -> 0 | AE35: =SUMIFS(家計簿[金額],家計簿[年],月比較[[#This Row],[年]],家計簿[月],月比較[[#This Row],[月]],家計簿[勘定科目],月比較[[#Headers],[娯楽費]]) -> 0 | AF35: =SUMIFS(家計簿[金額],家計簿[年],月比較[[#This Row],[年]],家計簿[月],月比較[[#This Row],[月]],家計簿[勘定科目],月比較[[#Headers],[医療費]]) -> 0 | AG35: =SUMIFS(家計簿[金額],家計簿[年],月比較[[#This Row],[年]],家計簿[月],月比較[[#This Row],[月]],家計簿[勘定科目],月比較[[#Headers],[特別出費]]) -> 0
C36: =IF(月比較[[#This Row],[月]]=1,C35+1,C35) -> 2025 | D36: 7 | E36: =DATE(月比較[[#This Row],[年]],月比較[[#This Row],[月]],1) -> 2025-07-01 | F36: =SUMIFS(家計簿[金額],家計簿[年],月比較[[#This Row],[年]],家計簿[月],月比較[[#This Row],[月]],家計簿[収入/支出],月比較[[#Headers],[収入]]) -> 0 | G36: =SUMIFS(家計簿[金額],家計簿[年],月比較[[#This Row],[年]],家計簿[月],月比較[[#This Row],[月]],家計簿[収入/支出],月比較[[#Headers],[支出]]) -> 0 | H36: =SUMIFS(家計簿[金額],家計簿[年],月比較[[#This Row],[年]],家計簿[月],月比較[[#This Row],[月]],家計簿[固定費/変動費],月比較[[#Headers],[固定費]]) -> 0 | I36: =SUMIFS(家計簿[金額],家計簿[年],月比較[[#This Row],[年]],家計簿[月],月比較[[#This Row],[月]],家計簿[固定費/変動費],月比較[[#Headers],[変動費]]) -> 0 | J36: =SUMIFS(家計簿[金額],家計簿[年],月比較[[#This Row],[年]],家計簿[月],月比較[[#This Row],[月]],家計簿[勘定科目],月比較[[#Headers],[給料]]) -> 0 | K36: =SUMIFS(家計簿[金額],家計簿[年],月比較[[#This Row],[年]],家計簿[月],月比較[[#This Row],[月]],家計簿[勘定科目],月比較[[#Headers],[ボーナス]]) -> 0 | L36: =SUMIFS(家計簿[金額],家計簿[年],月比較[[#This Row],[年]],家計簿[月],月比較[[#This Row],[月]],家計簿[勘定科目],月比較[[#Headers],[家賃補助]]) -> 0 | M36: =SUMIFS(家計簿[金額],家計簿[年],月比較[[#This Row],[年]],家計簿[月],月比較[[#This Row],[月]],家計簿[勘定科目],月比較[[#Headers],[児童手当]]) -> 0 | N36: =SUMIFS(家計簿[金額],家計簿[年],月比較[[#This Row],[年]],家計簿[月],月比較[[#This Row],[月]],家計簿[勘定科目],月比較[[#Headers],[配当金]]) -> 0 | O36: =SUMIFS(家計簿[金額],家計簿[年],月比較[[#This Row],[年]],家計簿[月],月比較[[#This Row],[月]],家計簿[勘定科目],月比較[[#Headers],[特別収入]]) -> 0 | P36: =SUMIFS(家計簿[金額],家計簿[年],月比較[[#This Row],[年]],家計簿[月],月比較[[#This Row],[月]],家計簿[勘定科目],月比較[[#Headers],[家賃]]) -> 0 | Q36: =SUMIFS(家計簿[金額],家計簿[年],月比較[[#This Row],[年]],家計簿[月],月比較[[#This Row],[月]],家計簿[勘定科目],月比較[[#Headers],[電気代]]) -> 0 | R36: =SUMIFS(家計簿[金額],家計簿[年],月比較[[#This Row],[年]],家計簿[月],月比較[[#This Row],[月]],家計簿[勘定科目],月比較[[#Headers],[ガス代]]) -> 0 | S36: =SUMIFS(家計簿[金額],家計簿[年],月比較[[#This Row],[年]],家計簿[月],月比較[[#This Row],[月]],家計簿[勘定科目],月比較[[#Headers],[水道代]]) -> 0 | T36: =SUMIFS(家計簿[金額],家計簿[年],月比較[[#This Row],[年]],家計簿[月],月比較[[#This Row],[月]],家計簿[勘定科目],月比較[[#Headers],[通信費]]) -> 0 | U36: =SUMIFS(家計簿[金額],家計簿[年],月比較[[#This Row],[年]],家計簿[月],月比較[[#This Row],[月]],家計簿[勘定科目],月比較[[#Headers],[保険代]]) -> 0 | V36: =SUMIFS(家計簿[金額],家計簿[年],月比較[[#This Row],[年]],家計簿[月],月比較[[#This Row],[月]],家計簿[勘定科目],月比較[[#Headers],[サブスク]]) -> 0 | W36: =SUMIFS(家計簿[金額],家計簿[年],月比較[[#This Row],[年]],家計簿[月],月比較[[#This Row],[月]],家計簿[勘定科目],月比較[[#Headers],[税金（固定資産、自動車）]]) -> 0 | X36: =SUMIFS(家計簿[金額],家計簿[年],月比較[[#This Row],[年]],家計簿[月],月比較[[#This Row],[月]],家計簿[勘定科目],月比較[[#Headers],[食費]]) -> 0 | Y36: =SUMIFS(家計簿[金額],家計簿[年],月比較[[#This Row],[年]],家計簿[月],月比較[[#This Row],[月]],家計簿[勘定科目],月比較[[#Headers],[日用品]]) -> 0 | Z36: =SUMIFS(家計簿[金額],家計簿[年],月比較[[#This Row],[年]],家計簿[月],月比較[[#This Row],[月]],家計簿[勘定科目],月比較[[#Headers],[衣服]]) -> 0 | AA36: =SUMIFS(家計簿[金額],家計簿[年],月比較[[#This Row],[年]],家計簿[月],月比較[[#This Row],[月]],家計簿[勘定科目],月比較[[#Headers],[教育費]]) -> 0 | AB36: =SUMIFS(家計簿[金額],家計簿[年],月比較[[#This Row],[年]],家計簿[月],月比較[[#This Row],[月]],家計簿[勘定科目],月比較[[#Headers],[外食費]]) -> 0 | AC36: =SUMIFS(家計簿[金額],家計簿[年],月比較[[#This Row],[年]],家計簿[月],月比較[[#This Row],[月]],家計簿[勘定科目],月比較[[#Headers],[移動費]]) -> 0 | AD36: =SUMIFS(家計簿[金額],家計簿[年],月比較[[#This Row],[年]],家計簿[月],月比較[[#This Row],[月]],家計簿[勘定科目],月比較[[#Headers],[旅費]]) -> 0 | AE36: =SUMIFS(家計簿[金額],家計簿[年],月比較[[#This Row],[年]],家計簿[月],月比較[[#This Row],[月]],家計簿[勘定科目],月比較[[#Headers],[娯楽費]]) -> 0 | AF36: =SUMIFS(家計簿[金額],家計簿[年],月比較[[#This Row],[年]],家計簿[月],月比較[[#This Row],[月]],家計簿[勘定科目],月比較[[#Headers],[医療費]]) -> 0 | AG36: =SUMIFS(家計簿[金額],家計簿[年],月比較[[#This Row],[年]],家計簿[月],月比較[[#This Row],[月]],家計簿[勘定科目],月比較[[#Headers],[特別出費]]) -> 0
C37: =IF(月比較[[#This Row],[月]]=1,C36+1,C36) -> 2025 | D37: 8 | E37: =DATE(月比較[[#This Row],[年]],月比較[[#This Row],[月]],1) -> 2025-08-01 | F37: =SUMIFS(家計簿[金額],家計簿[年],月比較[[#This Row],[年]],家計簿[月],月比較[[#This Row],[月]],家計簿[収入/支出],月比較[[#Headers],[収入]]) -> 0 | G37: =SUMIFS(家計簿[金額],家計簿[年],月比較[[#This Row],[年]],家計簿[月],月比較[[#This Row],[月]],家計簿[収入/支出],月比較[[#Headers],[支出]]) -> 0 | H37: =SUMIFS(家計簿[金額],家計簿[年],月比較[[#This Row],[年]],家計簿[月],月比較[[#This Row],[月]],家計簿[固定費/変動費],月比較[[#Headers],[固定費]]) -> 0 | I37: =SUMIFS(家計簿[金額],家計簿[年],月比較[[#This Row],[年]],家計簿[月],月比較[[#This Row],[月]],家計簿[固定費/変動費],月比較[[#Headers],[変動費]]) -> 0 | J37: =SUMIFS(家計簿[金額],家計簿[年],月比較[[#This Row],[年]],家計簿[月],月比較[[#This Row],[月]],家計簿[勘定科目],月比較[[#Headers],[給料]]) -> 0 | K37: =SUMIFS(家計簿[金額],家計簿[年],月比較[[#This Row],[年]],家計簿[月],月比較[[#This Row],[月]],家計簿[勘定科目],月比較[[#Headers],[ボーナス]]) -> 0 | L37: =SUMIFS(家計簿[金額],家計簿[年],月比較[[#This Row],[年]],家計簿[月],月比較[[#This Row],[月]],家計簿[勘定科目],月比較[[#Headers],[家賃補助]]) -> 0 | M37: =SUMIFS(家計簿[金額],家計簿[年],月比較[[#This Row],[年]],家計簿[月],月比較[[#This Row],[月]],家計簿[勘定科目],月比較[[#Headers],[児童手当]]) -> 0 | N37: =SUMIFS(家計簿[金額],家計簿[年],月比較[[#This Row],[年]],家計簿[月],月比較[[#This Row],[月]],家計簿[勘定科目],月比較[[#Headers],[配当金]]) -> 0 | O37: =SUMIFS(家計簿[金額],家計簿[年],月比較[[#This Row],[年]],家計簿[月],月比較[[#This Row],[月]],家計簿[勘定科目],月比較[[#Headers],[特別収入]]) -> 0 | P37: =SUMIFS(家計簿[金額],家計簿[年],月比較[[#This Row],[年]],家計簿[月],月比較[[#This Row],[月]],家計簿[勘定科目],月比較[[#Headers],[家賃]]) -> 0 | Q37: =SUMIFS(家計簿[金額],家計簿[年],月比較[[#This Row],[年]],家計簿[月],月比較[[#This Row],[月]],家計簿[勘定科目],月比較[[#Headers],[電気代]]) -> 0 | R37: =SUMIFS(家計簿[金額],家計簿[年],月比較[[#This Row],[年]],家計簿[月],月比較[[#This Row],[月]],家計簿[勘定科目],月比較[[#Headers],[ガス代]]) -> 0 | S37: =SUMIFS(家計簿[金額],家計簿[年],月比較[[#This Row],[年]],家計簿[月],月比較[[#This Row],[月]],家計簿[勘定科目],月比較[[#Headers],[水道代]]) -> 0 | T37: =SUMIFS(家計簿[金額],家計簿[年],月比較[[#This Row],[年]],家計簿[月],月比較[[#This Row],[月]],家計簿[勘定科目],月比較[[#Headers],[通信費]]) -> 0 | U37: =SUMIFS(家計簿[金額],家計簿[年],月比較[[#This Row],[年]],家計簿[月],月比較[[#This Row],[月]],家計簿[勘定科目],月比較[[#Headers],[保険代]]) -> 0 | V37: =SUMIFS(家計簿[金額],家計簿[年],月比較[[#This Row],[年]],家計簿[月],月比較[[#This Row],[月]],家計簿[勘定科目],月比較[[#Headers],[サブスク]]) -> 0 | W37: =SUMIFS(家計簿[金額],家計簿[年],月比較[[#This Row],[年]],家計簿[月],月比較[[#This Row],[月]],家計簿[勘定科目],月比較[[#Headers],[税金（固定資産、自動車）]]) -> 0 | X37: =SUMIFS(家計簿[金額],家計簿[年],月比較[[#This Row],[年]],家計簿[月],月比較[[#This Row],[月]],家計簿[勘定科目],月比較[[#Headers],[食費]]) -> 0 | Y37: =SUMIFS(家計簿[金額],家計簿[年],月比較[[#This Row],[年]],家計簿[月],月比較[[#This Row],[月]],家計簿[勘定科目],月比較[[#Headers],[日用品]]) -> 0 | Z37: =SUMIFS(家計簿[金額],家計簿[年],月比較[[#This Row],[年]],家計簿[月],月比較[[#This Row],[月]],家計簿[勘定科目],月比較[[#Headers],[衣服]]) -> 0 | AA37: =SUMIFS(家計簿[金額],家計簿[年],月比較[[#This Row],[年]],家計簿[月],月比較[[#This Row],[月]],家計簿[勘定科目],月比較[[#Headers],[教育費]]) -> 0 | AB37: =SUMIFS(家計簿[金額],家計簿[年],月比較[[#This Row],[年]],家計簿[月],月比較[[#This Row],[月]],家計簿[勘定科目],月比較[[#Headers],[外食費]]) -> 0 | AC37: =SUMIFS(家計簿[金額],家計簿[年],月比較[[#This Row],[年]],家計簿[月],月比較[[#This Row],[月]],家計簿[勘定科目],月比較[[#Headers],[移動費]]) -> 0 | AD37: =SUMIFS(家計簿[金額],家計簿[年],月比較[[#This Row],[年]],家計簿[月],月比較[[#This Row],[月]],家計簿[勘定科目],月比較[[#Headers],[旅費]]) -> 0 | AE37: =SUMIFS(家計簿[金額],家計簿[年],月比較[[#This Row],[年]],家計簿[月],月比較[[#This Row],[月]],家計簿[勘定科目],月比較[[#Headers],[娯楽費]]) -> 0 | AF37: =SUMIFS(家計簿[金額],家計簿[年],月比較[[#This Row],[年]],家計簿[月],月比較[[#This Row],[月]],家計簿[勘定科目],月比較[[#Headers],[医療費]]) -> 0 | AG37: =SUMIFS(家計簿[金額],家計簿[年],月比較[[#This Row],[年]],家計簿[月],月比較[[#This Row],[月]],家計簿[勘定科目],月比較[[#Headers],[特別出費]]) -> 0
C38: =IF(月比較[[#This Row],[月]]=1,C37+1,C37) -> 2025 | D38: 9 | E38: =DATE(月比較[[#This Row],[年]],月比較[[#This Row],[月]],1) -> 2025-09-01 | F38: =SUMIFS(家計簿[金額],家計簿[年],月比較[[#This Row],[年]],家計簿[月],月比較[[#This Row],[月]],家計簿[収入/支出],月比較[[#Headers],[収入]]) -> 0 | G38: =SUMIFS(家計簿[金額],家計簿[年],月比較[[#This Row],[年]],家計簿[月],月比較[[#This Row],[月]],家計簿[収入/支出],月比較[[#Headers],[支出]]) -> 0 | H38: =SUMIFS(家計簿[金額],家計簿[年],月比較[[#This Row],[年]],家計簿[月],月比較[[#This Row],[月]],家計簿[固定費/変動費],月比較[[#Headers],[固定費]]) -> 0 | I38: =SUMIFS(家計簿[金額],家計簿[年],月比較[[#This Row],[年]],家計簿[月],月比較[[#This Row],[月]],家計簿[固定費/変動費],月比較[[#Headers],[変動費]]) -> 0 | J38: =SUMIFS(家計簿[金額],家計簿[年],月比較[[#This Row],[年]],家計簿[月],月比較[[#This Row],[月]],家計簿[勘定科目],月比較[[#Headers],[給料]]) -> 0 | K38: =SUMIFS(家計簿[金額],家計簿[年],月比較[[#This Row],[年]],家計簿[月],月比較[[#This Row],[月]],家計簿[勘定科目],月比較[[#Headers],[ボーナス]]) -> 0 | L38: =SUMIFS(家計簿[金額],家計簿[年],月比較[[#This Row],[年]],家計簿[月],月比較[[#This Row],[月]],家計簿[勘定科目],月比較[[#Headers],[家賃補助]]) -> 0 | M38: =SUMIFS(家計簿[金額],家計簿[年],月比較[[#This Row],[年]],家計簿[月],月比較[[#This Row],[月]],家計簿[勘定科目],月比較[[#Headers],[児童手当]]) -> 0 | N38: =SUMIFS(家計簿[金額],家計簿[年],月比較[[#This Row],[年]],家計簿[月],月比較[[#This Row],[月]],家計簿[勘定科目],月比較[[#Headers],[配当金]]) -> 0 | O38: =SUMIFS(家計簿[金額],家計簿[年],月比較[[#This Row],[年]],家計簿[月],月比較[[#This Row],[月]],家計簿[勘定科目],月比較[[#Headers],[特別収入]]) -> 0 | P38: =SUMIFS(家計簿[金額],家計簿[年],月比較[[#This Row],[年]],家計簿[月],月比較[[#This Row],[月]],家計簿[勘定科目],月比較[[#Headers],[家賃]]) -> 0 | Q38: =SUMIFS(家計簿[金額],家計簿[年],月比較[[#This Row],[年]],家計簿[月],月比較[[#This Row],[月]],家計簿[勘定科目],月比較[[#Headers],[電気代]]) -> 0 | R38: =SUMIFS(家計簿[金額],家計簿[年],月比較[[#This Row],[年]],家計簿[月],月比較[[#This Row],[月]],家計簿[勘定科目],月比較[[#Headers],[ガス代]]) -> 0 | S38: =SUMIFS(家計簿[金額],家計簿[年],月比較[[#This Row],[年]],家計簿[月],月比較[[#This Row],[月]],家計簿[勘定科目],月比較[[#Headers],[水道代]]) -> 0 | T38: =SUMIFS(家計簿[金額],家計簿[年],月比較[[#This Row],[年]],家計簿[月],月比較[[#This Row],[月]],家計簿[勘定科目],月比較[[#Headers],[通信費]]) -> 0 | U38: =SUMIFS(家計簿[金額],家計簿[年],月比較[[#This Row],[年]],家計簿[月],月比較[[#This Row],[月]],家計簿[勘定科目],月比較[[#Headers],[保険代]]) -> 0 | V38: =SUMIFS(家計簿[金額],家計簿[年],月比較[[#This Row],[年]],家計簿[月],月比較[[#This Row],[月]],家計簿[勘定科目],月比較[[#Headers],[サブスク]]) -> 0 | W38: =SUMIFS(家計簿[金額],家計簿[年],月比較[[#This Row],[年]],家計簿[月],月比較[[#This Row],[月]],家計簿[勘定科目],月比較[[#Headers],[税金（固定資産、自動車）]]) -> 0 | X38: =SUMIFS(家計簿[金額],家計簿[年],月比較[[#This Row],[年]],家計簿[月],月比較[[#This Row],[月]],家計簿[勘定科目],月比較[[#Headers],[食費]]) -> 0 | Y38: =SUMIFS(家計簿[金額],家計簿[年],月比較[[#This Row],[年]],家計簿[月],月比較[[#This Row],[月]],家計簿[勘定科目],月比較[[#Headers],[日用品]]) -> 0 | Z38: =SUMIFS(家計簿[金額],家計簿[年],月比較[[#This Row],[年]],家計簿[月],月比較[[#This Row],[月]],家計簿[勘定科目],月比較[[#Headers],[衣服]]) -> 0 | AA38: =SUMIFS(家計簿[金額],家計簿[年],月比較[[#This Row],[年]],家計簿[月],月比較[[#This Row],[月]],家計簿[勘定科目],月比較[[#Headers],[教育費]]) -> 0 | AB38: =SUMIFS(家計簿[金額],家計簿[年],月比較[[#This Row],[年]],家計簿[月],月比較[[#This Row],[月]],家計簿[勘定科目],月比較[[#Headers],[外食費]]) -> 0 | AC38: =SUMIFS(家計簿[金額],家計簿[年],月比較[[#This Row],[年]],家計簿[月],月比較[[#This Row],[月]],家計簿[勘定科目],月比較[[#Headers],[移動費]]) -> 0 | AD38: =SUMIFS(家計簿[金額],家計簿[年],月比較[[#This Row],[年]],家計簿[月],月比較[[#This Row],[月]],家計簿[勘定科目],月比較[[#Headers],[旅費]]) -> 0 | AE38: =SUMIFS(家計簿[金額],家計簿[年],月比較[[#This Row],[年]],家計簿[月],月比較[[#This Row],[月]],家計簿[勘定科目],月比較[[#Headers],[娯楽費]]) -> 0 | AF38: =SUMIFS(家計簿[金額],家計簿[年],月比較[[#This Row],[年]],家計簿[月],月比較[[#This Row],[月]],家計簿[勘定科目],月比較[[#Headers],[医療費]]) -> 0 | AG38: =SUMIFS(家計簿[金額],家計簿[年],月比較[[#This Row],[年]],家計簿[月],月比較[[#This Row],[月]],家計簿[勘定科目],月比較[[#Headers],[特別出費]]) -> 0
C39: =IF(月比較[[#This Row],[月]]=1,C38+1,C38) -> 2025 | D39: 10 | E39: =DATE(月比較[[#This Row],[年]],月比較[[#This Row],[月]],1) -> 2025-10-01 | F39: =SUMIFS(家計簿[金額],家計簿[年],月比較[[#This Row],[年]],家計簿[月],月比較[[#This Row],[月]],家計簿[収入/支出],月比較[[#Headers],[収入]]) -> 0 | G39: =SUMIFS(家計簿[金額],家計簿[年],月比較[[#This Row],[年]],家計簿[月],月比較[[#This Row],[月]],家計簿[収入/支出],月比較[[#Headers],[支出]]) -> 0 | H39: =SUMIFS(家計簿[金額],家計簿[年],月比較[[#This Row],[年]],家計簿[月],月比較[[#This Row],[月]],家計簿[固定費/変動費],月比較[[#Headers],[固定費]]) -> 0 | I39: =SUMIFS(家計簿[金額],家計簿[年],月比較[[#This Row],[年]],家計簿[月],月比較[[#This Row],[月]],家計簿[固定費/変動費],月比較[[#Headers],[変動費]]) -> 0 | J39: =SUMIFS(家計簿[金額],家計簿[年],月比較[[#This Row],[年]],家計簿[月],月比較[[#This Row],[月]],家計簿[勘定科目],月比較[[#Headers],[給料]]) -> 0 | K39: =SUMIFS(家計簿[金額],家計簿[年],月比較[[#This Row],[年]],家計簿[月],月比較[[#This Row],[月]],家計簿[勘定科目],月比較[[#Headers],[ボーナス]]) -> 0 | L39: =SUMIFS(家計簿[金額],家計簿[年],月比較[[#This Row],[年]],家計簿[月],月比較[[#This Row],[月]],家計簿[勘定科目],月比較[[#Headers],[家賃補助]]) -> 0 | M39: =SUMIFS(家計簿[金額],家計簿[年],月比較[[#This Row],[年]],家計簿[月],月比較[[#This Row],[月]],家計簿[勘定科目],月比較[[#Headers],[児童手当]]) -> 0 | N39: =SUMIFS(家計簿[金額],家計簿[年],月比較[[#This Row],[年]],家計簿[月],月比較[[#This Row],[月]],家計簿[勘定科目],月比較[[#Headers],[配当金]]) -> 0 | O39: =SUMIFS(家計簿[金額],家計簿[年],月比較[[#This Row],[年]],家計簿[月],月比較[[#This Row],[月]],家計簿[勘定科目],月比較[[#Headers],[特別収入]]) -> 0 | P39: =SUMIFS(家計簿[金額],家計簿[年],月比較[[#This Row],[年]],家計簿[月],月比較[[#This Row],[月]],家計簿[勘定科目],月比較[[#Headers],[家賃]]) -> 0 | Q39: =SUMIFS(家計簿[金額],家計簿[年],月比較[[#This Row],[年]],家計簿[月],月比較[[#This Row],[月]],家計簿[勘定科目],月比較[[#Headers],[電気代]]) -> 0 | R39: =SUMIFS(家計簿[金額],家計簿[年],月比較[[#This Row],[年]],家計簿[月],月比較[[#This Row],[月]],家計簿[勘定科目],月比較[[#Headers],[ガス代]]) -> 0 | S39: =SUMIFS(家計簿[金額],家計簿[年],月比較[[#This Row],[年]],家計簿[月],月比較[[#This Row],[月]],家計簿[勘定科目],月比較[[#Headers],[水道代]]) -> 0 | T39: =SUMIFS(家計簿[金額],家計簿[年],月比較[[#This Row],[年]],家計簿[月],月比較[[#This Row],[月]],家計簿[勘定科目],月比較[[#Headers],[通信費]]) -> 0 | U39: =SUMIFS(家計簿[金額],家計簿[年],月比較[[#This Row],[年]],家計簿[月],月比較[[#This Row],[月]],家計簿[勘定科目],月比較[[#Headers],[保険代]]) -> 0 | V39: =SUMIFS(家計簿[金額],家計簿[年],月比較[[#This Row],[年]],家計簿[月],月比較[[#This Row],[月]],家計簿[勘定科目],月比較[[#Headers],[サブスク]]) -> 0 | W39: =SUMIFS(家計簿[金額],家計簿[年],月比較[[#This Row],[年]],家計簿[月],月比較[[#This Row],[月]],家計簿[勘定科目],月比較[[#Headers],[税金（固定資産、自動車）]]) -> 0 | X39: =SUMIFS(家計簿[金額],家計簿[年],月比較[[#This Row],[年]],家計簿[月],月比較[[#This Row],[月]],家計簿[勘定科目],月比較[[#Headers],[食費]]) -> 0 | Y39: =SUMIFS(家計簿[金額],家計簿[年],月比較[[#This Row],[年]],家計簿[月],月比較[[#This Row],[月]],家計簿[勘定科目],月比較[[#Headers],[日用品]]) -> 0 | Z39: =SUMIFS(家計簿[金額],家計簿[年],月比較[[#This Row],[年]],家計簿[月],月比較[[#This Row],[月]],家計簿[勘定科目],月比較[[#Headers],[衣服]]) -> 0 | AA39: =SUMIFS(家計簿[金額],家計簿[年],月比較[[#This Row],[年]],家計簿[月],月比較[[#This Row],[月]],家計簿[勘定科目],月比較[[#Headers],[教育費]]) -> 0 | AB39: =SUMIFS(家計簿[金額],家計簿[年],月比較[[#This Row],[年]],家計簿[月],月比較[[#This Row],[月]],家計簿[勘定科目],月比較[[#Headers],[外食費]]) -> 0 | AC39: =SUMIFS(家計簿[金額],家計簿[年],月比較[[#This Row],[年]],家計簿[月],月比較[[#This Row],[月]],家計簿[勘定科目],月比較[[#Headers],[移動費]]) -> 0 | AD39: =SUMIFS(家計簿[金額],家計簿[年],月比較[[#This Row],[年]],家計簿[月],月比較[[#This Row],[月]],家計簿[勘定科目],月比較[[#Headers],[旅費]]) -> 0 | AE39: =SUMIFS(家計簿[金額],家計簿[年],月比較[[#This Row],[年]],家計簿[月],月比較[[#This Row],[月]],家計簿[勘定科目],月比較[[#Headers],[娯楽費]]) -> 0 | AF39: =SUMIFS(家計簿[金額],家計簿[年],月比較[[#This Row],[年]],家計簿[月],月比較[[#This Row],[月]],家計簿[勘定科目],月比較[[#Headers],[医療費]]) -> 0 | AG39: =SUMIFS(家計簿[金額],家計簿[年],月比較[[#This Row],[年]],家計簿[月],月比較[[#This Row],[月]],家計簿[勘定科目],月比較[[#Headers],[特別出費]]) -> 0
C40: =IF(月比較[[#This Row],[月]]=1,C39+1,C39) -> 2025 | D40: 11 | E40: =DATE(月比較[[#This Row],[年]],月比較[[#This Row],[月]],1) -> 2025-11-01 | F40: =SUMIFS(家計簿[金額],家計簿[年],月比較[[#This Row],[年]],家計簿[月],月比較[[#This Row],[月]],家計簿[収入/支出],月比較[[#Headers],[収入]]) -> 0 | G40: =SUMIFS(家計簿[金額],家計簿[年],月比較[[#This Row],[年]],家計簿[月],月比較[[#This Row],[月]],家計簿[収入/支出],月比較[[#Headers],[支出]]) -> 0 | H40: =SUMIFS(家計簿[金額],家計簿[年],月比較[[#This Row],[年]],家計簿[月],月比較[[#This Row],[月]],家計簿[固定費/変動費],月比較[[#Headers],[固定費]]) -> 0 | I40: =SUMIFS(家計簿[金額],家計簿[年],月比較[[#This Row],[年]],家計簿[月],月比較[[#This Row],[月]],家計簿[固定費/変動費],月比較[[#Headers],[変動費]]) -> 0 | J40: =SUMIFS(家計簿[金額],家計簿[年],月比較[[#This Row],[年]],家計簿[月],月比較[[#This Row],[月]],家計簿[勘定科目],月比較[[#Headers],[給料]]) -> 0 | K40: =SUMIFS(家計簿[金額],家計簿[年],月比較[[#This Row],[年]],家計簿[月],月比較[[#This Row],[月]],家計簿[勘定科目],月比較[[#Headers],[ボーナス]]) -> 0 | L40: =SUMIFS(家計簿[金額],家計簿[年],月比較[[#This Row],[年]],家計簿[月],月比較[[#This Row],[月]],家計簿[勘定科目],月比較[[#Headers],[家賃補助]]) -> 0 | M40: =SUMIFS(家計簿[金額],家計簿[年],月比較[[#This Row],[年]],家計簿[月],月比較[[#This Row],[月]],家計簿[勘定科目],月比較[[#Headers],[児童手当]]) -> 0 | N40: =SUMIFS(家計簿[金額],家計簿[年],月比較[[#This Row],[年]],家計簿[月],月比較[[#This Row],[月]],家計簿[勘定科目],月比較[[#Headers],[配当金]]) -> 0 | O40: =SUMIFS(家計簿[金額],家計簿[年],月比較[[#This Row],[年]],家計簿[月],月比較[[#This Row],[月]],家計簿[勘定科目],月比較[[#Headers],[特別収入]]) -> 0 | P40: =SUMIFS(家計簿[金額],家計簿[年],月比較[[#This Row],[年]],家計簿[月],月比較[[#This Row],[月]],家計簿[勘定科目],月比較[[#Headers],[家賃]]) -> 0 | Q40: =SUMIFS(家計簿[金額],家計簿[年],月比較[[#This Row],[年]],家計簿[月],月比較[[#This Row],[月]],家計簿[勘定科目],月比較[[#Headers],[電気代]]) -> 0 | R40: =SUMIFS(家計簿[金額],家計簿[年],月比較[[#This Row],[年]],家計簿[月],月比較[[#This Row],[月]],家計簿[勘定科目],月比較[[#Headers],[ガス代]]) -> 0 | S40: =SUMIFS(家計簿[金額],家計簿[年],月比較[[#This Row],[年]],家計簿[月],月比較[[#This Row],[月]],家計簿[勘定科目],月比較[[#Headers],[水道代]]) -> 0 | T40: =SUMIFS(家計簿[金額],家計簿[年],月比較[[#This Row],[年]],家計簿[月],月比較[[#This Row],[月]],家計簿[勘定科目],月比較[[#Headers],[通信費]]) -> 0 | U40: =SUMIFS(家計簿[金額],家計簿[年],月比較[[#This Row],[年]],家計簿[月],月比較[[#This Row],[月]],家計簿[勘定科目],月比較[[#Headers],[保険代]]) -> 0 | V40: =SUMIFS(家計簿[金額],家計簿[年],月比較[[#This Row],[年]],家計簿[月],月比較[[#This Row],[月]],家計簿[勘定科目],月比較[[#Headers],[サブスク]]) -> 0 | W40: =SUMIFS(家計簿[金額],家計簿[年],月比較[[#This Row],[年]],家計簿[月],月比較[[#This Row],[月]],家計簿[勘定科目],月比較[[#Headers],[税金（固定資産、自動車）]]) -> 0 | X40: =SUMIFS(家計簿[金額],家計簿[年],月比較[[#This Row],[年]],家計簿[月],月比較[[#This Row],[月]],家計簿[勘定科目],月比較[[#Headers],[食費]]) -> 0 | Y40: =SUMIFS(家計簿[金額],家計簿[年],月比較[[#This Row],[年]],家計簿[月],月比較[[#This Row],[月]],家計簿[勘定科目],月比較[[#Headers],[日用品]]) -> 0 | Z40: =SUMIFS(家計簿[金額],家計簿[年],月比較[[#This Row],[年]],家計簿[月],月比較[[#This Row],[月]],家計簿[勘定科目],月比較[[#Headers],[衣服]]) -> 0 | AA40: =SUMIFS(家計簿[金額],家計簿[年],月比較[[#This Row],[年]],家計簿[月],月比較[[#This Row],[月]],家計簿[勘定科目],月比較[[#Headers],[教育費]]) -> 0 | AB40: =SUMIFS(家計簿[金額],家計簿[年],月比較[[#This Row],[年]],家計簿[月],月比較[[#This Row],[月]],家計簿[勘定科目],月比較[[#Headers],[外食費]]) -> 0 | AC40: =SUMIFS(家計簿[金額],家計簿[年],月比較[[#This Row],[年]],家計簿[月],月比較[[#This Row],[月]],家計簿[勘定科目],月比較[[#Headers],[移動費]]) -> 0 | AD40: =SUMIFS(家計簿[金額],家計簿[年],月比較[[#This Row],[年]],家計簿[月],月比較[[#This Row],[月]],家計簿[勘定科目],月比較[[#Headers],[旅費]]) -> 0 | AE40: =SUMIFS(家計簿[金額],家計簿[年],月比較[[#This Row],[年]],家計簿[月],月比較[[#This Row],[月]],家計簿[勘定科目],月比較[[#Headers],[娯楽費]]) -> 0 | AF40: =SUMIFS(家計簿[金額],家計簿[年],月比較[[#This Row],[年]],家計簿[月],月比較[[#This Row],[月]],家計簿[勘定科目],月比較[[#Headers],[医療費]]) -> 0 | AG40: =SUMIFS(家計簿[金額],家計簿[年],月比較[[#This Row],[年]],家計簿[月],月比較[[#This Row],[月]],家計簿[勘定科目],月比較[[#Headers],[特別出費]]) -> 0
C41: =IF(月比較[[#This Row],[月]]=1,C40+1,C40) -> 2025 | D41: 12 | E41: =DATE(月比較[[#This Row],[年]],月比較[[#This Row],[月]],1) -> 2025-12-01 | F41: =SUMIFS(家計簿[金額],家計簿[年],月比較[[#This Row],[年]],家計簿[月],月比較[[#This Row],[月]],家計簿[収入/支出],月比較[[#Headers],[収入]]) -> 0 | G41: =SUMIFS(家計簿[金額],家計簿[年],月比較[[#This Row],[年]],家計簿[月],月比較[[#This Row],[月]],家計簿[収入/支出],月比較[[#Headers],[支出]]) -> 0 | H41: =SUMIFS(家計簿[金額],家計簿[年],月比較[[#This Row],[年]],家計簿[月],月比較[[#This Row],[月]],家計簿[固定費/変動費],月比較[[#Headers],[固定費]]) -> 0 | I41: =SUMIFS(家計簿[金額],家計簿[年],月比較[[#This Row],[年]],家計簿[月],月比較[[#This Row],[月]],家計簿[固定費/変動費],月比較[[#Headers],[変動費]]) -> 0 | J41: =SUMIFS(家計簿[金額],家計簿[年],月比較[[#This Row],[年]],家計簿[月],月比較[[#This Row],[月]],家計簿[勘定科目],月比較[[#Headers],[給料]]) -> 0 | K41: =SUMIFS(家計簿[金額],家計簿[年],月比較[[#This Row],[年]],家計簿[月],月比較[[#This Row],[月]],家計簿[勘定科目],月比較[[#Headers],[ボーナス]]) -> 0 | L41: =SUMIFS(家計簿[金額],家計簿[年],月比較[[#This Row],[年]],家計簿[月],月比較[[#This Row],[月]],家計簿[勘定科目],月比較[[#Headers],[家賃補助]]) -> 0 | M41: =SUMIFS(家計簿[金額],家計簿[年],月比較[[#This Row],[年]],家計簿[月],月比較[[#This Row],[月]],家計簿[勘定科目],月比較[[#Headers],[児童手当]]) -> 0 | N41: =SUMIFS(家計簿[金額],家計簿[年],月比較[[#This Row],[年]],家計簿[月],月比較[[#This Row],[月]],家計簿[勘定科目],月比較[[#Headers],[配当金]]) -> 0 | O41: =SUMIFS(家計簿[金額],家計簿[年],月比較[[#This Row],[年]],家計簿[月],月比較[[#This Row],[月]],家計簿[勘定科目],月比較[[#Headers],[特別収入]]) -> 0 | P41: =SUMIFS(家計簿[金額],家計簿[年],月比較[[#This Row],[年]],家計簿[月],月比較[[#This Row],[月]],家計簿[勘定科目],月比較[[#Headers],[家賃]]) -> 0 | Q41: =SUMIFS(家計簿[金額],家計簿[年],月比較[[#This Row],[年]],家計簿[月],月比較[[#This Row],[月]],家計簿[勘定科目],月比較[[#Headers],[電気代]]) -> 0 | R41: =SUMIFS(家計簿[金額],家計簿[年],月比較[[#This Row],[年]],家計簿[月],月比較[[#This Row],[月]],家計簿[勘定科目],月比較[[#Headers],[ガス代]]) -> 0 | S41: =SUMIFS(家計簿[金額],家計簿[年],月比較[[#This Row],[年]],家計簿[月],月比較[[#This Row],[月]],家計簿[勘定科目],月比較[[#Headers],[水道代]]) -> 0 | T41: =SUMIFS(家計簿[金額],家計簿[年],月比較[[#This Row],[年]],家計簿[月],月比較[[#This Row],[月]],家計簿[勘定科目],月比較[[#Headers],[通信費]]) -> 0 | U41: =SUMIFS(家計簿[金額],家計簿[年],月比較[[#This Row],[年]],家計簿[月],月比較[[#This Row],[月]],家計簿[勘定科目],月比較[[#Headers],[保険代]]) -> 0 | V41: =SUMIFS(家計簿[金額],家計簿[年],月比較[[#This Row],[年]],家計簿[月],月比較[[#This Row],[月]],家計簿[勘定科目],月比較[[#Headers],[サブスク]]) -> 0 | W41: =SUMIFS(家計簿[金額],家計簿[年],月比較[[#This Row],[年]],家計簿[月],月比較[[#This Row],[月]],家計簿[勘定科目],月比較[[#Headers],[税金（固定資産、自動車）]]) -> 0 | X41: =SUMIFS(家計簿[金額],家計簿[年],月比較[[#This Row],[年]],家計簿[月],月比較[[#This Row],[月]],家計簿[勘定科目],月比較[[#Headers],[食費]]) -> 0 | Y41: =SUMIFS(家計簿[金額],家計簿[年],月比較[[#This Row],[年]],家計簿[月],月比較[[#This Row],[月]],家計簿[勘定科目],月比較[[#Headers],[日用品]]) -> 0 | Z41: =SUMIFS(家計簿[金額],家計簿[年],月比較[[#This Row],[年]],家計簿[月],月比較[[#This Row],[月]],家計簿[勘定科目],月比較[[#Headers],[衣服]]) -> 0 | AA41: =SUMIFS(家計簿[金額],家計簿[年],月比較[[#This Row],[年]],家計簿[月],月比較[[#This Row],[月]],家計簿[勘定科目],月比較[[#Headers],[教育費]]) -> 0 | AB41: =SUMIFS(家計簿[金額],家計簿[年],月比較[[#This Row],[年]],家計簿[月],月比較[[#This Row],[月]],家計簿[勘定科目],月比較[[#Headers],[外食費]]) -> 0 | AC41: =SUMIFS(家計簿[金額],家計簿[年],月比較[[#This Row],[年]],家計簿[月],月比較[[#This Row],[月]],家計簿[勘定科目],月比較[[#Headers],[移動費]]) -> 0 | AD41: =SUMIFS(家計簿[金額],家計簿[年],月比較[[#This Row],[年]],家計簿[月],月比較[[#This Row],[月]],家計簿[勘定科目],月比較[[#Headers],[旅費]]) -> 0 | AE41: =SUMIFS(家計簿[金額],家計簿[年],月比較[[#This Row],[年]],家計簿[月],月比較[[#This Row],[月]],家計簿[勘定科目],月比較[[#Headers],[娯楽費]]) -> 0 | AF41: =SUMIFS(家計簿[金額],家計簿[年],月比較[[#This Row],[年]],家計簿[月],月比較[[#This Row],[月]],家計簿[勘定科目],月比較[[#Headers],[医療費]]) -> 0 | AG41: =SUMIFS(家計簿[金額],家計簿[年],月比較[[#This Row],[年]],家計簿[月],月比較[[#This Row],[月]],家計簿[勘定科目],月比較[[#Headers],[特別出費]]) -> 0
C42: =IF(月比較[[#This Row],[月]]=1,C41+1,C41) -> 2026 | D42: 1 | E42: =DATE(月比較[[#This Row],[年]],月比較[[#This Row],[月]],1) -> 2026-01-01 | F42: =SUMIFS(家計簿[金額],家計簿[年],月比較[[#This Row],[年]],家計簿[月],月比較[[#This Row],[月]],家計簿[収入/支出],月比較[[#Headers],[収入]]) -> 0 | G42: =SUMIFS(家計簿[金額],家計簿[年],月比較[[#This Row],[年]],家計簿[月],月比較[[#This Row],[月]],家計簿[収入/支出],月比較[[#Headers],[支出]]) -> 0 | H42: =SUMIFS(家計簿[金額],家計簿[年],月比較[[#This Row],[年]],家計簿[月],月比較[[#This Row],[月]],家計簿[固定費/変動費],月比較[[#Headers],[固定費]]) -> 0 | I42: =SUMIFS(家計簿[金額],家計簿[年],月比較[[#This Row],[年]],家計簿[月],月比較[[#This Row],[月]],家計簿[固定費/変動費],月比較[[#Headers],[変動費]]) -> 0 | J42: =SUMIFS(家計簿[金額],家計簿[年],月比較[[#This Row],[年]],家計簿[月],月比較[[#This Row],[月]],家計簿[勘定科目],月比較[[#Headers],[給料]]) -> 0 | K42: =SUMIFS(家計簿[金額],家計簿[年],月比較[[#This Row],[年]],家計簿[月],月比較[[#This Row],[月]],家計簿[勘定科目],月比較[[#Headers],[ボーナス]]) -> 0 | L42: =SUMIFS(家計簿[金額],家計簿[年],月比較[[#This Row],[年]],家計簿[月],月比較[[#This Row],[月]],家計簿[勘定科目],月比較[[#Headers],[家賃補助]]) -> 0 | M42: =SUMIFS(家計簿[金額],家計簿[年],月比較[[#This Row],[年]],家計簿[月],月比較[[#This Row],[月]],家計簿[勘定科目],月比較[[#Headers],[児童手当]]) -> 0 | N42: =SUMIFS(家計簿[金額],家計簿[年],月比較[[#This Row],[年]],家計簿[月],月比較[[#This Row],[月]],家計簿[勘定科目],月比較[[#Headers],[配当金]]) -> 0 | O42: =SUMIFS(家計簿[金額],家計簿[年],月比較[[#This Row],[年]],家計簿[月],月比較[[#This Row],[月]],家計簿[勘定科目],月比較[[#Headers],[特別収入]]) -> 0 | P42: =SUMIFS(家計簿[金額],家計簿[年],月比較[[#This Row],[年]],家計簿[月],月比較[[#This Row],[月]],家計簿[勘定科目],月比較[[#Headers],[家賃]]) -> 0 | Q42: =SUMIFS(家計簿[金額],家計簿[年],月比較[[#This Row],[年]],家計簿[月],月比較[[#This Row],[月]],家計簿[勘定科目],月比較[[#Headers],[電気代]]) -> 0 | R42: =SUMIFS(家計簿[金額],家計簿[年],月比較[[#This Row],[年]],家計簿[月],月比較[[#This Row],[月]],家計簿[勘定科目],月比較[[#Headers],[ガス代]]) -> 0 | S42: =SUMIFS(家計簿[金額],家計簿[年],月比較[[#This Row],[年]],家計簿[月],月比較[[#This Row],[月]],家計簿[勘定科目],月比較[[#Headers],[水道代]]) -> 0 | T42: =SUMIFS(家計簿[金額],家計簿[年],月比較[[#This Row],[年]],家計簿[月],月比較[[#This Row],[月]],家計簿[勘定科目],月比較[[#Headers],[通信費]]) -> 0 | U42: =SUMIFS(家計簿[金額],家計簿[年],月比較[[#This Row],[年]],家計簿[月],月比較[[#This Row],[月]],家計簿[勘定科目],月比較[[#Headers],[保険代]]) -> 0 | V42: =SUMIFS(家計簿[金額],家計簿[年],月比較[[#This Row],[年]],家計簿[月],月比較[[#This Row],[月]],家計簿[勘定科目],月比較[[#Headers],[サブスク]]) -> 0 | W42: =SUMIFS(家計簿[金額],家計簿[年],月比較[[#This Row],[年]],家計簿[月],月比較[[#This Row],[月]],家計簿[勘定科目],月比較[[#Headers],[税金（固定資産、自動車）]]) -> 0 | X42: =SUMIFS(家計簿[金額],家計簿[年],月比較[[#This Row],[年]],家計簿[月],月比較[[#This Row],[月]],家計簿[勘定科目],月比較[[#Headers],[食費]]) -> 0 | Y42: =SUMIFS(家計簿[金額],家計簿[年],月比較[[#This Row],[年]],家計簿[月],月比較[[#This Row],[月]],家計簿[勘定科目],月比較[[#Headers],[日用品]]) -> 0 | Z42: =SUMIFS(家計簿[金額],家計簿[年],月比較[[#This Row],[年]],家計簿[月],月比較[[#This Row],[月]],家計簿[勘定科目],月比較[[#Headers],[衣服]]) -> 0 | AA42: =SUMIFS(家計簿[金額],家計簿[年],月比較[[#This Row],[年]],家計簿[月],月比較[[#This Row],[月]],家計簿[勘定科目],月比較[[#Headers],[教育費]]) -> 0 | AB42: =SUMIFS(家計簿[金額],家計簿[年],月比較[[#This Row],[年]],家計簿[月],月比較[[#This Row],[月]],家計簿[勘定科目],月比較[[#Headers],[外食費]]) -> 0 | AC42: =SUMIFS(家計簿[金額],家計簿[年],月比較[[#This Row],[年]],家計簿[月],月比較[[#This Row],[月]],家計簿[勘定科目],月比較[[#Headers],[移動費]]) -> 0 | AD42: =SUMIFS(家計簿[金額],家計簿[年],月比較[[#This Row],[年]],家計簿[月],月比較[[#This Row],[月]],家計簿[勘定科目],月比較[[#Headers],[旅費]]) -> 0 | AE42: =SUMIFS(家計簿[金額],家計簿[年],月比較[[#This Row],[年]],家計簿[月],月比較[[#This Row],[月]],家計簿[勘定科目],月比較[[#Headers],[娯楽費]]) -> 0 | AF42: =SUMIFS(家計簿[金額],家計簿[年],月比較[[#This Row],[年]],家計簿[月],月比較[[#This Row],[月]],家計簿[勘定科目],月比較[[#Headers],[医療費]]) -> 0 | AG42: =SUMIFS(家計簿[金額],家計簿[年],月比較[[#This Row],[年]],家計簿[月],月比較[[#This Row],[月]],家計簿[勘定科目],月比較[[#Headers],[特別出費]]) -> 0
C43: =IF(月比較[[#This Row],[月]]=1,C42+1,C42) -> 2026 | D43: 2 | E43: =DATE(月比較[[#This Row],[年]],月比較[[#This Row],[月]],1) -> 2026-02-01 | F43: =SUMIFS(家計簿[金額],家計簿[年],月比較[[#This Row],[年]],家計簿[月],月比較[[#This Row],[月]],家計簿[収入/支出],月比較[[#Headers],[収入]]) -> 0 | G43: =SUMIFS(家計簿[金額],家計簿[年],月比較[[#This Row],[年]],家計簿[月],月比較[[#This Row],[月]],家計簿[収入/支出],月比較[[#Headers],[支出]]) -> 0 | H43: =SUMIFS(家計簿[金額],家計簿[年],月比較[[#This Row],[年]],家計簿[月],月比較[[#This Row],[月]],家計簿[固定費/変動費],月比較[[#Headers],[固定費]]) -> 0 | I43: =SUMIFS(家計簿[金額],家計簿[年],月比較[[#This Row],[年]],家計簿[月],月比較[[#This Row],[月]],家計簿[固定費/変動費],月比較[[#Headers],[変動費]]) -> 0 | J43: =SUMIFS(家計簿[金額],家計簿[年],月比較[[#This Row],[年]],家計簿[月],月比較[[#This Row],[月]],家計簿[勘定科目],月比較[[#Headers],[給料]]) -> 0 | K43: =SUMIFS(家計簿[金額],家計簿[年],月比較[[#This Row],[年]],家計簿[月],月比較[[#This Row],[月]],家計簿[勘定科目],月比較[[#Headers],[ボーナス]]) -> 0 | L43: =SUMIFS(家計簿[金額],家計簿[年],月比較[[#This Row],[年]],家計簿[月],月比較[[#This Row],[月]],家計簿[勘定科目],月比較[[#Headers],[家賃補助]]) -> 0 | M43: =SUMIFS(家計簿[金額],家計簿[年],月比較[[#This Row],[年]],家計簿[月],月比較[[#This Row],[月]],家計簿[勘定科目],月比較[[#Headers],[児童手当]]) -> 0 | N43: =SUMIFS(家計簿[金額],家計簿[年],月比較[[#This Row],[年]],家計簿[月],月比較[[#This Row],[月]],家計簿[勘定科目],月比較[[#Headers],[配当金]]) -> 0 | O43: =SUMIFS(家計簿[金額],家計簿[年],月比較[[#This Row],[年]],家計簿[月],月比較[[#This Row],[月]],家計簿[勘定科目],月比較[[#Headers],[特別収入]]) -> 0 | P43: =SUMIFS(家計簿[金額],家計簿[年],月比較[[#This Row],[年]],家計簿[月],月比較[[#This Row],[月]],家計簿[勘定科目],月比較[[#Headers],[家賃]]) -> 0 | Q43: =SUMIFS(家計簿[金額],家計簿[年],月比較[[#This Row],[年]],家計簿[月],月比較[[#This Row],[月]],家計簿[勘定科目],月比較[[#Headers],[電気代]]) -> 0 | R43: =SUMIFS(家計簿[金額],家計簿[年],月比較[[#This Row],[年]],家計簿[月],月比較[[#This Row],[月]],家計簿[勘定科目],月比較[[#Headers],[ガス代]]) -> 0 | S43: =SUMIFS(家計簿[金額],家計簿[年],月比較[[#This Row],[年]],家計簿[月],月比較[[#This Row],[月]],家計簿[勘定科目],月比較[[#Headers],[水道代]]) -> 0 | T43: =SUMIFS(家計簿[金額],家計簿[年],月比較[[#This Row],[年]],家計簿[月],月比較[[#This Row],[月]],家計簿[勘定科目],月比較[[#Headers],[通信費]]) -> 0 | U43: =SUMIFS(家計簿[金額],家計簿[年],月比較[[#This Row],[年]],家計簿[月],月比較[[#This Row],[月]],家計簿[勘定科目],月比較[[#Headers],[保険代]]) -> 0 | V43: =SUMIFS(家計簿[金額],家計簿[年],月比較[[#This Row],[年]],家計簿[月],月比較[[#This Row],[月]],家計簿[勘定科目],月比較[[#Headers],[サブスク]]) -> 0 | W43: =SUMIFS(家計簿[金額],家計簿[年],月比較[[#This Row],[年]],家計簿[月],月比較[[#This Row],[月]],家計簿[勘定科目],月比較[[#Headers],[税金（固定資産、自動車）]]) -> 0 | X43: =SUMIFS(家計簿[金額],家計簿[年],月比較[[#This Row],[年]],家計簿[月],月比較[[#This Row],[月]],家計簿[勘定科目],月比較[[#Headers],[食費]]) -> 0 | Y43: =SUMIFS(家計簿[金額],家計簿[年],月比較[[#This Row],[年]],家計簿[月],月比較[[#This Row],[月]],家計簿[勘定科目],月比較[[#Headers],[日用品]]) -> 0 | Z43: =SUMIFS(家計簿[金額],家計簿[年],月比較[[#This Row],[年]],家計簿[月],月比較[[#This Row],[月]],家計簿[勘定科目],月比較[[#Headers],[衣服]]) -> 0 | AA43: =SUMIFS(家計簿[金額],家計簿[年],月比較[[#This Row],[年]],家計簿[月],月比較[[#This Row],[月]],家計簿[勘定科目],月比較[[#Headers],[教育費]]) -> 0 | AB43: =SUMIFS(家計簿[金額],家計簿[年],月比較[[#This Row],[年]],家計簿[月],月比較[[#This Row],[月]],家計簿[勘定科目],月比較[[#Headers],[外食費]]) -> 0 | AC43: =SUMIFS(家計簿[金額],家計簿[年],月比較[[#This Row],[年]],家計簿[月],月比較[[#This Row],[月]],家計簿[勘定科目],月比較[[#Headers],[移動費]]) -> 0 | AD43: =SUMIFS(家計簿[金額],家計簿[年],月比較[[#This Row],[年]],家計簿[月],月比較[[#This Row],[月]],家計簿[勘定科目],月比較[[#Headers],[旅費]]) -> 0 | AE43: =SUMIFS(家計簿[金額],家計簿[年],月比較[[#This Row],[年]],家計簿[月],月比較[[#This Row],[月]],家計簿[勘定科目],月比較[[#Headers],[娯楽費]]) -> 0 | AF43: =SUMIFS(家計簿[金額],家計簿[年],月比較[[#This Row],[年]],家計簿[月],月比較[[#This Row],[月]],家計簿[勘定科目],月比較[[#Headers],[医療費]]) -> 0 | AG43: =SUMIFS(家計簿[金額],家計簿[年],月比較[[#This Row],[年]],家計簿[月],月比較[[#This Row],[月]],家計簿[勘定科目],月比較[[#Headers],[特別出費]]) -> 0
C44: =IF(月比較[[#This Row],[月]]=1,C43+1,C43) -> 2026 | D44: 3 | E44: =DATE(月比較[[#This Row],[年]],月比較[[#This Row],[月]],1) -> 2026-03-01 | F44: =SUMIFS(家計簿[金額],家計簿[年],月比較[[#This Row],[年]],家計簿[月],月比較[[#This Row],[月]],家計簿[収入/支出],月比較[[#Headers],[収入]]) -> 0 | G44: =SUMIFS(家計簿[金額],家計簿[年],月比較[[#This Row],[年]],家計簿[月],月比較[[#This Row],[月]],家計簿[収入/支出],月比較[[#Headers],[支出]]) -> 0 | H44: =SUMIFS(家計簿[金額],家計簿[年],月比較[[#This Row],[年]],家計簿[月],月比較[[#This Row],[月]],家計簿[固定費/変動費],月比較[[#Headers],[固定費]]) -> 0 | I44: =SUMIFS(家計簿[金額],家計簿[年],月比較[[#This Row],[年]],家計簿[月],月比較[[#This Row],[月]],家計簿[固定費/変動費],月比較[[#Headers],[変動費]]) -> 0 | J44: =SUMIFS(家計簿[金額],家計簿[年],月比較[[#This Row],[年]],家計簿[月],月比較[[#This Row],[月]],家計簿[勘定科目],月比較[[#Headers],[給料]]) -> 0 | K44: =SUMIFS(家計簿[金額],家計簿[年],月比較[[#This Row],[年]],家計簿[月],月比較[[#This Row],[月]],家計簿[勘定科目],月比較[[#Headers],[ボーナス]]) -> 0 | L44: =SUMIFS(家計簿[金額],家計簿[年],月比較[[#This Row],[年]],家計簿[月],月比較[[#This Row],[月]],家計簿[勘定科目],月比較[[#Headers],[家賃補助]]) -> 0 | M44: =SUMIFS(家計簿[金額],家計簿[年],月比較[[#This Row],[年]],家計簿[月],月比較[[#This Row],[月]],家計簿[勘定科目],月比較[[#Headers],[児童手当]]) -> 0 | N44: =SUMIFS(家計簿[金額],家計簿[年],月比較[[#This Row],[年]],家計簿[月],月比較[[#This Row],[月]],家計簿[勘定科目],月比較[[#Headers],[配当金]]) -> 0 | O44: =SUMIFS(家計簿[金額],家計簿[年],月比較[[#This Row],[年]],家計簿[月],月比較[[#This Row],[月]],家計簿[勘定科目],月比較[[#Headers],[特別収入]]) -> 0 | P44: =SUMIFS(家計簿[金額],家計簿[年],月比較[[#This Row],[年]],家計簿[月],月比較[[#This Row],[月]],家計簿[勘定科目],月比較[[#Headers],[家賃]]) -> 0 | Q44: =SUMIFS(家計簿[金額],家計簿[年],月比較[[#This Row],[年]],家計簿[月],月比較[[#This Row],[月]],家計簿[勘定科目],月比較[[#Headers],[電気代]]) -> 0 | R44: =SUMIFS(家計簿[金額],家計簿[年],月比較[[#This Row],[年]],家計簿[月],月比較[[#This Row],[月]],家計簿[勘定科目],月比較[[#Headers],[ガス代]]) -> 0 | S44: =SUMIFS(家計簿[金額],家計簿[年],月比較[[#This Row],[年]],家計簿[月],月比較[[#This Row],[月]],家計簿[勘定科目],月比較[[#Headers],[水道代]]) -> 0 | T44: =SUMIFS(家計簿[金額],家計簿[年],月比較[[#This Row],[年]],家計簿[月],月比較[[#This Row],[月]],家計簿[勘定科目],月比較[[#Headers],[通信費]]) -> 0 | U44: =SUMIFS(家計簿[金額],家計簿[年],月比較[[#This Row],[年]],家計簿[月],月比較[[#This Row],[月]],家計簿[勘定科目],月比較[[#Headers],[保険代]]) -> 0 | V44: =SUMIFS(家計簿[金額],家計簿[年],月比較[[#This Row],[年]],家計簿[月],月比較[[#This Row],[月]],家計簿[勘定科目],月比較[[#Headers],[サブスク]]) -> 0 | W44: =SUMIFS(家計簿[金額],家計簿[年],月比較[[#This Row],[年]],家計簿[月],月比較[[#This Row],[月]],家計簿[勘定科目],月比較[[#Headers],[税金（固定資産、自動車）]]) -> 0 | X44: =SUMIFS(家計簿[金額],家計簿[年],月比較[[#This Row],[年]],家計簿[月],月比較[[#This Row],[月]],家計簿[勘定科目],月比較[[#Headers],[食費]]) -> 0 | Y44: =SUMIFS(家計簿[金額],家計簿[年],月比較[[#This Row],[年]],家計簿[月],月比較[[#This Row],[月]],家計簿[勘定科目],月比較[[#Headers],[日用品]]) -> 0 | Z44: =SUMIFS(家計簿[金額],家計簿[年],月比較[[#This Row],[年]],家計簿[月],月比較[[#This Row],[月]],家計簿[勘定科目],月比較[[#Headers],[衣服]]) -> 0 | AA44: =SUMIFS(家計簿[金額],家計簿[年],月比較[[#This Row],[年]],家計簿[月],月比較[[#This Row],[月]],家計簿[勘定科目],月比較[[#Headers],[教育費]]) -> 0 | AB44: =SUMIFS(家計簿[金額],家計簿[年],月比較[[#This Row],[年]],家計簿[月],月比較[[#This Row],[月]],家計簿[勘定科目],月比較[[#Headers],[外食費]]) -> 0 | AC44: =SUMIFS(家計簿[金額],家計簿[年],月比較[[#This Row],[年]],家計簿[月],月比較[[#This Row],[月]],家計簿[勘定科目],月比較[[#Headers],[移動費]]) -> 0 | AD44: =SUMIFS(家計簿[金額],家計簿[年],月比較[[#This Row],[年]],家計簿[月],月比較[[#This Row],[月]],家計簿[勘定科目],月比較[[#Headers],[旅費]]) -> 0 | AE44: =SUMIFS(家計簿[金額],家計簿[年],月比較[[#This Row],[年]],家計簿[月],月比較[[#This Row],[月]],家計簿[勘定科目],月比較[[#Headers],[娯楽費]]) -> 0 | AF44: =SUMIFS(家計簿[金額],家計簿[年],月比較[[#This Row],[年]],家計簿[月],月比較[[#This Row],[月]],家計簿[勘定科目],月比較[[#Headers],[医療費]]) -> 0 | AG44: =SUMIFS(家計簿[金額],家計簿[年],月比較[[#This Row],[年]],家計簿[月],月比較[[#This Row],[月]],家計簿[勘定科目],月比較[[#Headers],[特別出費]]) -> 0
C45: =IF(月比較[[#This Row],[月]]=1,C44+1,C44) -> 2026 | D45: 4 | E45: =DATE(月比較[[#This Row],[年]],月比較[[#This Row],[月]],1) -> 2026-04-01 | F45: =SUMIFS(家計簿[金額],家計簿[年],月比較[[#This Row],[年]],家計簿[月],月比較[[#This Row],[月]],家計簿[収入/支出],月比較[[#Headers],[収入]]) -> 0 | G45: =SUMIFS(家計簿[金額],家計簿[年],月比較[[#This Row],[年]],家計簿[月],月比較[[#This Row],[月]],家計簿[収入/支出],月比較[[#Headers],[支出]]) -> 0 | H45: =SUMIFS(家計簿[金額],家計簿[年],月比較[[#This Row],[年]],家計簿[月],月比較[[#This Row],[月]],家計簿[固定費/変動費],月比較[[#Headers],[固定費]]) -> 0 | I45: =SUMIFS(家計簿[金額],家計簿[年],月比較[[#This Row],[年]],家計簿[月],月比較[[#This Row],[月]],家計簿[固定費/変動費],月比較[[#Headers],[変動費]]) -> 0 | J45: =SUMIFS(家計簿[金額],家計簿[年],月比較[[#This Row],[年]],家計簿[月],月比較[[#This Row],[月]],家計簿[勘定科目],月比較[[#Headers],[給料]]) -> 0 | K45: =SUMIFS(家計簿[金額],家計簿[年],月比較[[#This Row],[年]],家計簿[月],月比較[[#This Row],[月]],家計簿[勘定科目],月比較[[#Headers],[ボーナス]]) -> 0 | L45: =SUMIFS(家計簿[金額],家計簿[年],月比較[[#This Row],[年]],家計簿[月],月比較[[#This Row],[月]],家計簿[勘定科目],月比較[[#Headers],[家賃補助]]) -> 0 | M45: =SUMIFS(家計簿[金額],家計簿[年],月比較[[#This Row],[年]],家計簿[月],月比較[[#This Row],[月]],家計簿[勘定科目],月比較[[#Headers],[児童手当]]) -> 0 | N45: =SUMIFS(家計簿[金額],家計簿[年],月比較[[#This Row],[年]],家計簿[月],月比較[[#This Row],[月]],家計簿[勘定科目],月比較[[#Headers],[配当金]]) -> 0 | O45: =SUMIFS(家計簿[金額],家計簿[年],月比較[[#This Row],[年]],家計簿[月],月比較[[#This Row],[月]],家計簿[勘定科目],月比較[[#Headers],[特別収入]]) -> 0 | P45: =SUMIFS(家計簿[金額],家計簿[年],月比較[[#This Row],[年]],家計簿[月],月比較[[#This Row],[月]],家計簿[勘定科目],月比較[[#Headers],[家賃]]) -> 0 | Q45: =SUMIFS(家計簿[金額],家計簿[年],月比較[[#This Row],[年]],家計簿[月],月比較[[#This Row],[月]],家計簿[勘定科目],月比較[[#Headers],[電気代]]) -> 0 | R45: =SUMIFS(家計簿[金額],家計簿[年],月比較[[#This Row],[年]],家計簿[月],月比較[[#This Row],[月]],家計簿[勘定科目],月比較[[#Headers],[ガス代]]) -> 0 | S45: =SUMIFS(家計簿[金額],家計簿[年],月比較[[#This Row],[年]],家計簿[月],月比較[[#This Row],[月]],家計簿[勘定科目],月比較[[#Headers],[水道代]]) -> 0 | T45: =SUMIFS(家計簿[金額],家計簿[年],月比較[[#This Row],[年]],家計簿[月],月比較[[#This Row],[月]],家計簿[勘定科目],月比較[[#Headers],[通信費]]) -> 0 | U45: =SUMIFS(家計簿[金額],家計簿[年],月比較[[#This Row],[年]],家計簿[月],月比較[[#This Row],[月]],家計簿[勘定科目],月比較[[#Headers],[保険代]]) -> 0 | V45: =SUMIFS(家計簿[金額],家計簿[年],月比較[[#This Row],[年]],家計簿[月],月比較[[#This Row],[月]],家計簿[勘定科目],月比較[[#Headers],[サブスク]]) -> 0 | W45: =SUMIFS(家計簿[金額],家計簿[年],月比較[[#This Row],[年]],家計簿[月],月比較[[#This Row],[月]],家計簿[勘定科目],月比較[[#Headers],[税金（固定資産、自動車）]]) -> 0 | X45: =SUMIFS(家計簿[金額],家計簿[年],月比較[[#This Row],[年]],家計簿[月],月比較[[#This Row],[月]],家計簿[勘定科目],月比較[[#Headers],[食費]]) -> 0 | Y45: =SUMIFS(家計簿[金額],家計簿[年],月比較[[#This Row],[年]],家計簿[月],月比較[[#This Row],[月]],家計簿[勘定科目],月比較[[#Headers],[日用品]]) -> 0 | Z45: =SUMIFS(家計簿[金額],家計簿[年],月比較[[#This Row],[年]],家計簿[月],月比較[[#This Row],[月]],家計簿[勘定科目],月比較[[#Headers],[衣服]]) -> 0 | AA45: =SUMIFS(家計簿[金額],家計簿[年],月比較[[#This Row],[年]],家計簿[月],月比較[[#This Row],[月]],家計簿[勘定科目],月比較[[#Headers],[教育費]]) -> 0 | AB45: =SUMIFS(家計簿[金額],家計簿[年],月比較[[#This Row],[年]],家計簿[月],月比較[[#This Row],[月]],家計簿[勘定科目],月比較[[#Headers],[外食費]]) -> 0 | AC45: =SUMIFS(家計簿[金額],家計簿[年],月比較[[#This Row],[年]],家計簿[月],月比較[[#This Row],[月]],家計簿[勘定科目],月比較[[#Headers],[移動費]]) -> 0 | AD45: =SUMIFS(家計簿[金額],家計簿[年],月比較[[#This Row],[年]],家計簿[月],月比較[[#This Row],[月]],家計簿[勘定科目],月比較[[#Headers],[旅費]]) -> 0 | AE45: =SUMIFS(家計簿[金額],家計簿[年],月比較[[#This Row],[年]],家計簿[月],月比較[[#This Row],[月]],家計簿[勘定科目],月比較[[#Headers],[娯楽費]]) -> 0 | AF45: =SUMIFS(家計簿[金額],家計簿[年],月比較[[#This Row],[年]],家計簿[月],月比較[[#This Row],[月]],家計簿[勘定科目],月比較[[#Headers],[医療費]]) -> 0 | AG45: =SUMIFS(家計簿[金額],家計簿[年],月比較[[#This Row],[年]],家計簿[月],月比較[[#This Row],[月]],家計簿[勘定科目],月比較[[#Headers],[特別出費]]) -> 0
C46: =IF(月比較[[#This Row],[月]]=1,C45+1,C45) -> 2026 | D46: 5 | E46: =DATE(月比較[[#This Row],[年]],月比較[[#This Row],[月]],1) -> 2026-05-01 | F46: =SUMIFS(家計簿[金額],家計簿[年],月比較[[#This Row],[年]],家計簿[月],月比較[[#This Row],[月]],家計簿[収入/支出],月比較[[#Headers],[収入]]) -> 0 | G46: =SUMIFS(家計簿[金額],家計簿[年],月比較[[#This Row],[年]],家計簿[月],月比較[[#This Row],[月]],家計簿[収入/支出],月比較[[#Headers],[支出]]) -> 0 | H46: =SUMIFS(家計簿[金額],家計簿[年],月比較[[#This Row],[年]],家計簿[月],月比較[[#This Row],[月]],家計簿[固定費/変動費],月比較[[#Headers],[固定費]]) -> 0 | I46: =SUMIFS(家計簿[金額],家計簿[年],月比較[[#This Row],[年]],家計簿[月],月比較[[#This Row],[月]],家計簿[固定費/変動費],月比較[[#Headers],[変動費]]) -> 0 | J46: =SUMIFS(家計簿[金額],家計簿[年],月比較[[#This Row],[年]],家計簿[月],月比較[[#This Row],[月]],家計簿[勘定科目],月比較[[#Headers],[給料]]) -> 0 | K46: =SUMIFS(家計簿[金額],家計簿[年],月比較[[#This Row],[年]],家計簿[月],月比較[[#This Row],[月]],家計簿[勘定科目],月比較[[#Headers],[ボーナス]]) -> 0 | L46: =SUMIFS(家計簿[金額],家計簿[年],月比較[[#This Row],[年]],家計簿[月],月比較[[#This Row],[月]],家計簿[勘定科目],月比較[[#Headers],[家賃補助]]) -> 0 | M46: =SUMIFS(家計簿[金額],家計簿[年],月比較[[#This Row],[年]],家計簿[月],月比較[[#This Row],[月]],家計簿[勘定科目],月比較[[#Headers],[児童手当]]) -> 0 | N46: =SUMIFS(家計簿[金額],家計簿[年],月比較[[#This Row],[年]],家計簿[月],月比較[[#This Row],[月]],家計簿[勘定科目],月比較[[#Headers],[配当金]]) -> 0 | O46: =SUMIFS(家計簿[金額],家計簿[年],月比較[[#This Row],[年]],家計簿[月],月比較[[#This Row],[月]],家計簿[勘定科目],月比較[[#Headers],[特別収入]]) -> 0 | P46: =SUMIFS(家計簿[金額],家計簿[年],月比較[[#This Row],[年]],家計簿[月],月比較[[#This Row],[月]],家計簿[勘定科目],月比較[[#Headers],[家賃]]) -> 0 | Q46: =SUMIFS(家計簿[金額],家計簿[年],月比較[[#This Row],[年]],家計簿[月],月比較[[#This Row],[月]],家計簿[勘定科目],月比較[[#Headers],[電気代]]) -> 0 | R46: =SUMIFS(家計簿[金額],家計簿[年],月比較[[#This Row],[年]],家計簿[月],月比較[[#This Row],[月]],家計簿[勘定科目],月比較[[#Headers],[ガス代]]) -> 0 | S46: =SUMIFS(家計簿[金額],家計簿[年],月比較[[#This Row],[年]],家計簿[月],月比較[[#This Row],[月]],家計簿[勘定科目],月比較[[#Headers],[水道代]]) -> 0 | T46: =SUMIFS(家計簿[金額],家計簿[年],月比較[[#This Row],[年]],家計簿[月],月比較[[#This Row],[月]],家計簿[勘定科目],月比較[[#Headers],[通信費]]) -> 0 | U46: =SUMIFS(家計簿[金額],家計簿[年],月比較[[#This Row],[年]],家計簿[月],月比較[[#This Row],[月]],家計簿[勘定科目],月比較[[#Headers],[保険代]]) -> 0 | V46: =SUMIFS(家計簿[金額],家計簿[年],月比較[[#This Row],[年]],家計簿[月],月比較[[#This Row],[月]],家計簿[勘定科目],月比較[[#Headers],[サブスク]]) -> 0 | W46: =SUMIFS(家計簿[金額],家計簿[年],月比較[[#This Row],[年]],家計簿[月],月比較[[#This Row],[月]],家計簿[勘定科目],月比較[[#Headers],[税金（固定資産、自動車）]]) -> 0 | X46: =SUMIFS(家計簿[金額],家計簿[年],月比較[[#This Row],[年]],家計簿[月],月比較[[#This Row],[月]],家計簿[勘定科目],月比較[[#Headers],[食費]]) -> 0 | Y46: =SUMIFS(家計簿[金額],家計簿[年],月比較[[#This Row],[年]],家計簿[月],月比較[[#This Row],[月]],家計簿[勘定科目],月比較[[#Headers],[日用品]]) -> 0 | Z46: =SUMIFS(家計簿[金額],家計簿[年],月比較[[#This Row],[年]],家計簿[月],月比較[[#This Row],[月]],家計簿[勘定科目],月比較[[#Headers],[衣服]]) -> 0 | AA46: =SUMIFS(家計簿[金額],家計簿[年],月比較[[#This Row],[年]],家計簿[月],月比較[[#This Row],[月]],家計簿[勘定科目],月比較[[#Headers],[教育費]]) -> 0 | AB46: =SUMIFS(家計簿[金額],家計簿[年],月比較[[#This Row],[年]],家計簿[月],月比較[[#This Row],[月]],家計簿[勘定科目],月比較[[#Headers],[外食費]]) -> 0 | AC46: =SUMIFS(家計簿[金額],家計簿[年],月比較[[#This Row],[年]],家計簿[月],月比較[[#This Row],[月]],家計簿[勘定科目],月比較[[#Headers],[移動費]]) -> 0 | AD46: =SUMIFS(家計簿[金額],家計簿[年],月比較[[#This Row],[年]],家計簿[月],月比較[[#This Row],[月]],家計簿[勘定科目],月比較[[#Headers],[旅費]]) -> 0 | AE46: =SUMIFS(家計簿[金額],家計簿[年],月比較[[#This Row],[年]],家計簿[月],月比較[[#This Row],[月]],家計簿[勘定科目],月比較[[#Headers],[娯楽費]]) -> 0 | AF46: =SUMIFS(家計簿[金額],家計簿[年],月比較[[#This Row],[年]],家計簿[月],月比較[[#This Row],[月]],家計簿[勘定科目],月比較[[#Headers],[医療費]]) -> 0 | AG46: =SUMIFS(家計簿[金額],家計簿[年],月比較[[#This Row],[年]],家計簿[月],月比較[[#This Row],[月]],家計簿[勘定科目],月比較[[#Headers],[特別出費]]) -> 0
C47: =IF(月比較[[#This Row],[月]]=1,C46+1,C46) -> 2026 | D47: 6 | E47: =DATE(月比較[[#This Row],[年]],月比較[[#This Row],[月]],1) -> 2026-06-01 | F47: =SUMIFS(家計簿[金額],家計簿[年],月比較[[#This Row],[年]],家計簿[月],月比較[[#This Row],[月]],家計簿[収入/支出],月比較[[#Headers],[収入]]) -> 0 | G47: =SUMIFS(家計簿[金額],家計簿[年],月比較[[#This Row],[年]],家計簿[月],月比較[[#This Row],[月]],家計簿[収入/支出],月比較[[#Headers],[支出]]) -> 0 | H47: =SUMIFS(家計簿[金額],家計簿[年],月比較[[#This Row],[年]],家計簿[月],月比較[[#This Row],[月]],家計簿[固定費/変動費],月比較[[#Headers],[固定費]]) -> 0 | I47: =SUMIFS(家計簿[金額],家計簿[年],月比較[[#This Row],[年]],家計簿[月],月比較[[#This Row],[月]],家計簿[固定費/変動費],月比較[[#Headers],[変動費]]) -> 0 | J47: =SUMIFS(家計簿[金額],家計簿[年],月比較[[#This Row],[年]],家計簿[月],月比較[[#This Row],[月]],家計簿[勘定科目],月比較[[#Headers],[給料]]) -> 0 | K47: =SUMIFS(家計簿[金額],家計簿[年],月比較[[#This Row],[年]],家計簿[月],月比較[[#This Row],[月]],家計簿[勘定科目],月比較[[#Headers],[ボーナス]]) -> 0 | L47: =SUMIFS(家計簿[金額],家計簿[年],月比較[[#This Row],[年]],家計簿[月],月比較[[#This Row],[月]],家計簿[勘定科目],月比較[[#Headers],[家賃補助]]) -> 0 | M47: =SUMIFS(家計簿[金額],家計簿[年],月比較[[#This Row],[年]],家計簿[月],月比較[[#This Row],[月]],家計簿[勘定科目],月比較[[#Headers],[児童手当]]) -> 0 | N47: =SUMIFS(家計簿[金額],家計簿[年],月比較[[#This Row],[年]],家計簿[月],月比較[[#This Row],[月]],家計簿[勘定科目],月比較[[#Headers],[配当金]]) -> 0 | O47: =SUMIFS(家計簿[金額],家計簿[年],月比較[[#This Row],[年]],家計簿[月],月比較[[#This Row],[月]],家計簿[勘定科目],月比較[[#Headers],[特別収入]]) -> 0 | P47: =SUMIFS(家計簿[金額],家計簿[年],月比較[[#This Row],[年]],家計簿[月],月比較[[#This Row],[月]],家計簿[勘定科目],月比較[[#Headers],[家賃]]) -> 0 | Q47: =SUMIFS(家計簿[金額],家計簿[年],月比較[[#This Row],[年]],家計簿[月],月比較[[#This Row],[月]],家計簿[勘定科目],月比較[[#Headers],[電気代]]) -> 0 | R47: =SUMIFS(家計簿[金額],家計簿[年],月比較[[#This Row],[年]],家計簿[月],月比較[[#This Row],[月]],家計簿[勘定科目],月比較[[#Headers],[ガス代]]) -> 0 | S47: =SUMIFS(家計簿[金額],家計簿[年],月比較[[#This Row],[年]],家計簿[月],月比較[[#This Row],[月]],家計簿[勘定科目],月比較[[#Headers],[水道代]]) -> 0 | T47: =SUMIFS(家計簿[金額],家計簿[年],月比較[[#This Row],[年]],家計簿[月],月比較[[#This Row],[月]],家計簿[勘定科目],月比較[[#Headers],[通信費]]) -> 0 | U47: =SUMIFS(家計簿[金額],家計簿[年],月比較[[#This Row],[年]],家計簿[月],月比較[[#This Row],[月]],家計簿[勘定科目],月比較[[#Headers],[保険代]]) -> 0 | V47: =SUMIFS(家計簿[金額],家計簿[年],月比較[[#This Row],[年]],家計簿[月],月比較[[#This Row],[月]],家計簿[勘定科目],月比較[[#Headers],[サブスク]]) -> 0 | W47: =SUMIFS(家計簿[金額],家計簿[年],月比較[[#This Row],[年]],家計簿[月],月比較[[#This Row],[月]],家計簿[勘定科目],月比較[[#Headers],[税金（固定資産、自動車）]]) -> 0 | X47: =SUMIFS(家計簿[金額],家計簿[年],月比較[[#This Row],[年]],家計簿[月],月比較[[#This Row],[月]],家計簿[勘定科目],月比較[[#Headers],[食費]]) -> 0 | Y47: =SUMIFS(家計簿[金額],家計簿[年],月比較[[#This Row],[年]],家計簿[月],月比較[[#This Row],[月]],家計簿[勘定科目],月比較[[#Headers],[日用品]]) -> 0 | Z47: =SUMIFS(家計簿[金額],家計簿[年],月比較[[#This Row],[年]],家計簿[月],月比較[[#This Row],[月]],家計簿[勘定科目],月比較[[#Headers],[衣服]]) -> 0 | AA47: =SUMIFS(家計簿[金額],家計簿[年],月比較[[#This Row],[年]],家計簿[月],月比較[[#This Row],[月]],家計簿[勘定科目],月比較[[#Headers],[教育費]]) -> 0 | AB47: =SUMIFS(家計簿[金額],家計簿[年],月比較[[#This Row],[年]],家計簿[月],月比較[[#This Row],[月]],家計簿[勘定科目],月比較[[#Headers],[外食費]]) -> 0 | AC47: =SUMIFS(家計簿[金額],家計簿[年],月比較[[#This Row],[年]],家計簿[月],月比較[[#This Row],[月]],家計簿[勘定科目],月比較[[#Headers],[移動費]]) -> 0 | AD47: =SUMIFS(家計簿[金額],家計簿[年],月比較[[#This Row],[年]],家計簿[月],月比較[[#This Row],[月]],家計簿[勘定科目],月比較[[#Headers],[旅費]]) -> 0 | AE47: =SUMIFS(家計簿[金額],家計簿[年],月比較[[#This Row],[年]],家計簿[月],月比較[[#This Row],[月]],家計簿[勘定科目],月比較[[#Headers],[娯楽費]]) -> 0 | AF47: =SUMIFS(家計簿[金額],家計簿[年],月比較[[#This Row],[年]],家計簿[月],月比較[[#This Row],[月]],家計簿[勘定科目],月比較[[#Headers],[医療費]]) -> 0 | AG47: =SUMIFS(家計簿[金額],家計簿[年],月比較[[#This Row],[年]],家計簿[月],月比較[[#This Row],[月]],家計簿[勘定科目],月比較[[#Headers],[特別出費]]) -> 0
C48: =IF(月比較[[#This Row],[月]]=1,C47+1,C47) -> 2026 | D48: 7 | E48: =DATE(月比較[[#This Row],[年]],月比較[[#This Row],[月]],1) -> 2026-07-01 | F48: =SUMIFS(家計簿[金額],家計簿[年],月比較[[#This Row],[年]],家計簿[月],月比較[[#This Row],[月]],家計簿[収入/支出],月比較[[#Headers],[収入]]) -> 0 | G48: =SUMIFS(家計簿[金額],家計簿[年],月比較[[#This Row],[年]],家計簿[月],月比較[[#This Row],[月]],家計簿[収入/支出],月比較[[#Headers],[支出]]) -> 0 | H48: =SUMIFS(家計簿[金額],家計簿[年],月比較[[#This Row],[年]],家計簿[月],月比較[[#This Row],[月]],家計簿[固定費/変動費],月比較[[#Headers],[固定費]]) -> 0 | I48: =SUMIFS(家計簿[金額],家計簿[年],月比較[[#This Row],[年]],家計簿[月],月比較[[#This Row],[月]],家計簿[固定費/変動費],月比較[[#Headers],[変動費]]) -> 0 | J48: =SUMIFS(家計簿[金額],家計簿[年],月比較[[#This Row],[年]],家計簿[月],月比較[[#This Row],[月]],家計簿[勘定科目],月比較[[#Headers],[給料]]) -> 0 | K48: =SUMIFS(家計簿[金額],家計簿[年],月比較[[#This Row],[年]],家計簿[月],月比較[[#This Row],[月]],家計簿[勘定科目],月比較[[#Headers],[ボーナス]]) -> 0 | L48: =SUMIFS(家計簿[金額],家計簿[年],月比較[[#This Row],[年]],家計簿[月],月比較[[#This Row],[月]],家計簿[勘定科目],月比較[[#Headers],[家賃補助]]) -> 0 | M48: =SUMIFS(家計簿[金額],家計簿[年],月比較[[#This Row],[年]],家計簿[月],月比較[[#This Row],[月]],家計簿[勘定科目],月比較[[#Headers],[児童手当]]) -> 0 | N48: =SUMIFS(家計簿[金額],家計簿[年],月比較[[#This Row],[年]],家計簿[月],月比較[[#This Row],[月]],家計簿[勘定科目],月比較[[#Headers],[配当金]]) -> 0 | O48: =SUMIFS(家計簿[金額],家計簿[年],月比較[[#This Row],[年]],家計簿[月],月比較[[#This Row],[月]],家計簿[勘定科目],月比較[[#Headers],[特別収入]]) -> 0 | P48: =SUMIFS(家計簿[金額],家計簿[年],月比較[[#This Row],[年]],家計簿[月],月比較[[#This Row],[月]],家計簿[勘定科目],月比較[[#Headers],[家賃]]) -> 0 | Q48: =SUMIFS(家計簿[金額],家計簿[年],月比較[[#This Row],[年]],家計簿[月],月比較[[#This Row],[月]],家計簿[勘定科目],月比較[[#Headers],[電気代]]) -> 0 | R48: =SUMIFS(家計簿[金額],家計簿[年],月比較[[#This Row],[年]],家計簿[月],月比較[[#This Row],[月]],家計簿[勘定科目],月比較[[#Headers],[ガス代]]) -> 0 | S48: =SUMIFS(家計簿[金額],家計簿[年],月比較[[#This Row],[年]],家計簿[月],月比較[[#This Row],[月]],家計簿[勘定科目],月比較[[#Headers],[水道代]]) -> 0 | T48: =SUMIFS(家計簿[金額],家計簿[年],月比較[[#This Row],[年]],家計簿[月],月比較[[#This Row],[月]],家計簿[勘定科目],月比較[[#Headers],[通信費]]) -> 0 | U48: =SUMIFS(家計簿[金額],家計簿[年],月比較[[#This Row],[年]],家計簿[月],月比較[[#This Row],[月]],家計簿[勘定科目],月比較[[#Headers],[保険代]]) -> 0 | V48: =SUMIFS(家計簿[金額],家計簿[年],月比較[[#This Row],[年]],家計簿[月],月比較[[#This Row],[月]],家計簿[勘定科目],月比較[[#Headers],[サブスク]]) -> 0 | W48: =SUMIFS(家計簿[金額],家計簿[年],月比較[[#This Row],[年]],家計簿[月],月比較[[#This Row],[月]],家計簿[勘定科目],月比較[[#Headers],[税金（固定資産、自動車）]]) -> 0 | X48: =SUMIFS(家計簿[金額],家計簿[年],月比較[[#This Row],[年]],家計簿[月],月比較[[#This Row],[月]],家計簿[勘定科目],月比較[[#Headers],[食費]]) -> 0 | Y48: =SUMIFS(家計簿[金額],家計簿[年],月比較[[#This Row],[年]],家計簿[月],月比較[[#This Row],[月]],家計簿[勘定科目],月比較[[#Headers],[日用品]]) -> 0 | Z48: =SUMIFS(家計簿[金額],家計簿[年],月比較[[#This Row],[年]],家計簿[月],月比較[[#This Row],[月]],家計簿[勘定科目],月比較[[#Headers],[衣服]]) -> 0 | AA48: =SUMIFS(家計簿[金額],家計簿[年],月比較[[#This Row],[年]],家計簿[月],月比較[[#This Row],[月]],家計簿[勘定科目],月比較[[#Headers],[教育費]]) -> 0 | AB48: =SUMIFS(家計簿[金額],家計簿[年],月比較[[#This Row],[年]],家計簿[月],月比較[[#This Row],[月]],家計簿[勘定科目],月比較[[#Headers],[外食費]]) -> 0 | AC48: =SUMIFS(家計簿[金額],家計簿[年],月比較[[#This Row],[年]],家計簿[月],月比較[[#This Row],[月]],家計簿[勘定科目],月比較[[#Headers],[移動費]]) -> 0 | AD48: =SUMIFS(家計簿[金額],家計簿[年],月比較[[#This Row],[年]],家計簿[月],月比較[[#This Row],[月]],家計簿[勘定科目],月比較[[#Headers],[旅費]]) -> 0 | AE48: =SUMIFS(家計簿[金額],家計簿[年],月比較[[#This Row],[年]],家計簿[月],月比較[[#This Row],[月]],家計簿[勘定科目],月比較[[#Headers],[娯楽費]]) -> 0 | AF48: =SUMIFS(家計簿[金額],家計簿[年],月比較[[#This Row],[年]],家計簿[月],月比較[[#This Row],[月]],家計簿[勘定科目],月比較[[#Headers],[医療費]]) -> 0 | AG48: =SUMIFS(家計簿[金額],家計簿[年],月比較[[#This Row],[年]],家計簿[月],月比較[[#This Row],[月]],家計簿[勘定科目],月比較[[#Headers],[特別出費]]) -> 0
C49: =IF(月比較[[#This Row],[月]]=1,C48+1,C48) -> 2026 | D49: 8 | E49: =DATE(月比較[[#This Row],[年]],月比較[[#This Row],[月]],1) -> 2026-08-01 | F49: =SUMIFS(家計簿[金額],家計簿[年],月比較[[#This Row],[年]],家計簿[月],月比較[[#This Row],[月]],家計簿[収入/支出],月比較[[#Headers],[収入]]) -> 0 | G49: =SUMIFS(家計簿[金額],家計簿[年],月比較[[#This Row],[年]],家計簿[月],月比較[[#This Row],[月]],家計簿[収入/支出],月比較[[#Headers],[支出]]) -> 0 | H49: =SUMIFS(家計簿[金額],家計簿[年],月比較[[#This Row],[年]],家計簿[月],月比較[[#This Row],[月]],家計簿[固定費/変動費],月比較[[#Headers],[固定費]]) -> 0 | I49: =SUMIFS(家計簿[金額],家計簿[年],月比較[[#This Row],[年]],家計簿[月],月比較[[#This Row],[月]],家計簿[固定費/変動費],月比較[[#Headers],[変動費]]) -> 0 | J49: =SUMIFS(家計簿[金額],家計簿[年],月比較[[#This Row],[年]],家計簿[月],月比較[[#This Row],[月]],家計簿[勘定科目],月比較[[#Headers],[給料]]) -> 0 | K49: =SUMIFS(家計簿[金額],家計簿[年],月比較[[#This Row],[年]],家計簿[月],月比較[[#This Row],[月]],家計簿[勘定科目],月比較[[#Headers],[ボーナス]]) -> 0 | L49: =SUMIFS(家計簿[金額],家計簿[年],月比較[[#This Row],[年]],家計簿[月],月比較[[#This Row],[月]],家計簿[勘定科目],月比較[[#Headers],[家賃補助]]) -> 0 | M49: =SUMIFS(家計簿[金額],家計簿[年],月比較[[#This Row],[年]],家計簿[月],月比較[[#This Row],[月]],家計簿[勘定科目],月比較[[#Headers],[児童手当]]) -> 0 | N49: =SUMIFS(家計簿[金額],家計簿[年],月比較[[#This Row],[年]],家計簿[月],月比較[[#This Row],[月]],家計簿[勘定科目],月比較[[#Headers],[配当金]]) -> 0 | O49: =SUMIFS(家計簿[金額],家計簿[年],月比較[[#This Row],[年]],家計簿[月],月比較[[#This Row],[月]],家計簿[勘定科目],月比較[[#Headers],[特別収入]]) -> 0 | P49: =SUMIFS(家計簿[金額],家計簿[年],月比較[[#This Row],[年]],家計簿[月],月比較[[#This Row],[月]],家計簿[勘定科目],月比較[[#Headers],[家賃]]) -> 0 | Q49: =SUMIFS(家計簿[金額],家計簿[年],月比較[[#This Row],[年]],家計簿[月],月比較[[#This Row],[月]],家計簿[勘定科目],月比較[[#Headers],[電気代]]) -> 0 | R49: =SUMIFS(家計簿[金額],家計簿[年],月比較[[#This Row],[年]],家計簿[月],月比較[[#This Row],[月]],家計簿[勘定科目],月比較[[#Headers],[ガス代]]) -> 0 | S49: =SUMIFS(家計簿[金額],家計簿[年],月比較[[#This Row],[年]],家計簿[月],月比較[[#This Row],[月]],家計簿[勘定科目],月比較[[#Headers],[水道代]]) -> 0 | T49: =SUMIFS(家計簿[金額],家計簿[年],月比較[[#This Row],[年]],家計簿[月],月比較[[#This Row],[月]],家計簿[勘定科目],月比較[[#Headers],[通信費]]) -> 0 | U49: =SUMIFS(家計簿[金額],家計簿[年],月比較[[#This Row],[年]],家計簿[月],月比較[[#This Row],[月]],家計簿[勘定科目],月比較[[#Headers],[保険代]]) -> 0 | V49: =SUMIFS(家計簿[金額],家計簿[年],月比較[[#This Row],[年]],家計簿[月],月比較[[#This Row],[月]],家計簿[勘定科目],月比較[[#Headers],[サブスク]]) -> 0 | W49: =SUMIFS(家計簿[金額],家計簿[年],月比較[[#This Row],[年]],家計簿[月],月比較[[#This Row],[月]],家計簿[勘定科目],月比較[[#Headers],[税金（固定資産、自動車）]]) -> 0 | X49: =SUMIFS(家計簿[金額],家計簿[年],月比較[[#This Row],[年]],家計簿[月],月比較[[#This Row],[月]],家計簿[勘定科目],月比較[[#Headers],[食費]]) -> 0 | Y49: =SUMIFS(家計簿[金額],家計簿[年],月比較[[#This Row],[年]],家計簿[月],月比較[[#This Row],[月]],家計簿[勘定科目],月比較[[#Headers],[日用品]]) -> 0 | Z49: =SUMIFS(家計簿[金額],家計簿[年],月比較[[#This Row],[年]],家計簿[月],月比較[[#This Row],[月]],家計簿[勘定科目],月比較[[#Headers],[衣服]]) -> 0 | AA49: =SUMIFS(家計簿[金額],家計簿[年],月比較[[#This Row],[年]],家計簿[月],月比較[[#This Row],[月]],家計簿[勘定科目],月比較[[#Headers],[教育費]]) -> 0 | AB49: =SUMIFS(家計簿[金額],家計簿[年],月比較[[#This Row],[年]],家計簿[月],月比較[[#This Row],[月]],家計簿[勘定科目],月比較[[#Headers],[外食費]]) -> 0 | AC49: =SUMIFS(家計簿[金額],家計簿[年],月比較[[#This Row],[年]],家計簿[月],月比較[[#This Row],[月]],家計簿[勘定科目],月比較[[#Headers],[移動費]]) -> 0 | AD49: =SUMIFS(家計簿[金額],家計簿[年],月比較[[#This Row],[年]],家計簿[月],月比較[[#This Row],[月]],家計簿[勘定科目],月比較[[#Headers],[旅費]]) -> 0 | AE49: =SUMIFS(家計簿[金額],家計簿[年],月比較[[#This Row],[年]],家計簿[月],月比較[[#This Row],[月]],家計簿[勘定科目],月比較[[#Headers],[娯楽費]]) -> 0 | AF49: =SUMIFS(家計簿[金額],家計簿[年],月比較[[#This Row],[年]],家計簿[月],月比較[[#This Row],[月]],家計簿[勘定科目],月比較[[#Headers],[医療費]]) -> 0 | AG49: =SUMIFS(家計簿[金額],家計簿[年],月比較[[#This Row],[年]],家計簿[月],月比較[[#This Row],[月]],家計簿[勘定科目],月比較[[#Headers],[特別出費]]) -> 0
C50: =IF(月比較[[#This Row],[月]]=1,C49+1,C49) -> 2026 | D50: 9 | E50: =DATE(月比較[[#This Row],[年]],月比較[[#This Row],[月]],1) -> 2026-09-01 | F50: =SUMIFS(家計簿[金額],家計簿[年],月比較[[#This Row],[年]],家計簿[月],月比較[[#This Row],[月]],家計簿[収入/支出],月比較[[#Headers],[収入]]) -> 0 | G50: =SUMIFS(家計簿[金額],家計簿[年],月比較[[#This Row],[年]],家計簿[月],月比較[[#This Row],[月]],家計簿[収入/支出],月比較[[#Headers],[支出]]) -> 0 | H50: =SUMIFS(家計簿[金額],家計簿[年],月比較[[#This Row],[年]],家計簿[月],月比較[[#This Row],[月]],家計簿[固定費/変動費],月比較[[#Headers],[固定費]]) -> 0 | I50: =SUMIFS(家計簿[金額],家計簿[年],月比較[[#This Row],[年]],家計簿[月],月比較[[#This Row],[月]],家計簿[固定費/変動費],月比較[[#Headers],[変動費]]) -> 0 | J50: =SUMIFS(家計簿[金額],家計簿[年],月比較[[#This Row],[年]],家計簿[月],月比較[[#This Row],[月]],家計簿[勘定科目],月比較[[#Headers],[給料]]) -> 0 | K50: =SUMIFS(家計簿[金額],家計簿[年],月比較[[#This Row],[年]],家計簿[月],月比較[[#This Row],[月]],家計簿[勘定科目],月比較[[#Headers],[ボーナス]]) -> 0 | L50: =SUMIFS(家計簿[金額],家計簿[年],月比較[[#This Row],[年]],家計簿[月],月比較[[#This Row],[月]],家計簿[勘定科目],月比較[[#Headers],[家賃補助]]) -> 0 | M50: =SUMIFS(家計簿[金額],家計簿[年],月比較[[#This Row],[年]],家計簿[月],月比較[[#This Row],[月]],家計簿[勘定科目],月比較[[#Headers],[児童手当]]) -> 0 | N50: =SUMIFS(家計簿[金額],家計簿[年],月比較[[#This Row],[年]],家計簿[月],月比較[[#This Row],[月]],家計簿[勘定科目],月比較[[#Headers],[配当金]]) -> 0 | O50: =SUMIFS(家計簿[金額],家計簿[年],月比較[[#This Row],[年]],家計簿[月],月比較[[#This Row],[月]],家計簿[勘定科目],月比較[[#Headers],[特別収入]]) -> 0 | P50: =SUMIFS(家計簿[金額],家計簿[年],月比較[[#This Row],[年]],家計簿[月],月比較[[#This Row],[月]],家計簿[勘定科目],月比較[[#Headers],[家賃]]) -> 0 | Q50: =SUMIFS(家計簿[金額],家計簿[年],月比較[[#This Row],[年]],家計簿[月],月比較[[#This Row],[月]],家計簿[勘定科目],月比較[[#Headers],[電気代]]) -> 0 | R50: =SUMIFS(家計簿[金額],家計簿[年],月比較[[#This Row],[年]],家計簿[月],月比較[[#This Row],[月]],家計簿[勘定科目],月比較[[#Headers],[ガス代]]) -> 0 | S50: =SUMIFS(家計簿[金額],家計簿[年],月比較[[#This Row],[年]],家計簿[月],月比較[[#This Row],[月]],家計簿[勘定科目],月比較[[#Headers],[水道代]]) -> 0 | T50: =SUMIFS(家計簿[金額],家計簿[年],月比較[[#This Row],[年]],家計簿[月],月比較[[#This Row],[月]],家計簿[勘定科目],月比較[[#Headers],[通信費]]) -> 0 | U50: =SUMIFS(家計簿[金額],家計簿[年],月比較[[#This Row],[年]],家計簿[月],月比較[[#This Row],[月]],家計簿[勘定科目],月比較[[#Headers],[保険代]]) -> 0 | V50: =SUMIFS(家計簿[金額],家計簿[年],月比較[[#This Row],[年]],家計簿[月],月比較[[#This Row],[月]],家計簿[勘定科目],月比較[[#Headers],[サブスク]]) -> 0 | W50: =SUMIFS(家計簿[金額],家計簿[年],月比較[[#This Row],[年]],家計簿[月],月比較[[#This Row],[月]],家計簿[勘定科目],月比較[[#Headers],[税金（固定資産、自動車）]]) -> 0 | X50: =SUMIFS(家計簿[金額],家計簿[年],月比較[[#This Row],[年]],家計簿[月],月比較[[#This Row],[月]],家計簿[勘定科目],月比較[[#Headers],[食費]]) -> 0 | Y50: =SUMIFS(家計簿[金額],家計簿[年],月比較[[#This Row],[年]],家計簿[月],月比較[[#This Row],[月]],家計簿[勘定科目],月比較[[#Headers],[日用品]]) -> 0 | Z50: =SUMIFS(家計簿[金額],家計簿[年],月比較[[#This Row],[年]],家計簿[月],月比較[[#This Row],[月]],家計簿[勘定科目],月比較[[#Headers],[衣服]]) -> 0 | AA50: =SUMIFS(家計簿[金額],家計簿[年],月比較[[#This Row],[年]],家計簿[月],月比較[[#This Row],[月]],家計簿[勘定科目],月比較[[#Headers],[教育費]]) -> 0 | AB50: =SUMIFS(家計簿[金額],家計簿[年],月比較[[#This Row],[年]],家計簿[月],月比較[[#This Row],[月]],家計簿[勘定科目],月比較[[#Headers],[外食費]]) -> 0 | AC50: =SUMIFS(家計簿[金額],家計簿[年],月比較[[#This Row],[年]],家計簿[月],月比較[[#This Row],[月]],家計簿[勘定科目],月比較[[#Headers],[移動費]]) -> 0 | AD50: =SUMIFS(家計簿[金額],家計簿[年],月比較[[#This Row],[年]],家計簿[月],月比較[[#This Row],[月]],家計簿[勘定科目],月比較[[#Headers],[旅費]]) -> 0 | AE50: =SUMIFS(家計簿[金額],家計簿[年],月比較[[#This Row],[年]],家計簿[月],月比較[[#This Row],[月]],家計簿[勘定科目],月比較[[#Headers],[娯楽費]]) -> 0 | AF50: =SUMIFS(家計簿[金額],家計簿[年],月比較[[#This Row],[年]],家計簿[月],月比較[[#This Row],[月]],家計簿[勘定科目],月比較[[#Headers],[医療費]]) -> 0 | AG50: =SUMIFS(家計簿[金額],家計簿[年],月比較[[#This Row],[年]],家計簿[月],月比較[[#This Row],[月]],家計簿[勘定科目],月比較[[#Headers],[特別出費]]) -> 0
C51: =IF(月比較[[#This Row],[月]]=1,C50+1,C50) -> 2026 | D51: 10 | E51: =DATE(月比較[[#This Row],[年]],月比較[[#This Row],[月]],1) -> 2026-10-01 | F51: =SUMIFS(家計簿[金額],家計簿[年],月比較[[#This Row],[年]],家計簿[月],月比較[[#This Row],[月]],家計簿[収入/支出],月比較[[#Headers],[収入]]) -> 0 | G51: =SUMIFS(家計簿[金額],家計簿[年],月比較[[#This Row],[年]],家計簿[月],月比較[[#This Row],[月]],家計簿[収入/支出],月比較[[#Headers],[支出]]) -> 0 | H51: =SUMIFS(家計簿[金額],家計簿[年],月比較[[#This Row],[年]],家計簿[月],月比較[[#This Row],[月]],家計簿[固定費/変動費],月比較[[#Headers],[固定費]]) -> 0 | I51: =SUMIFS(家計簿[金額],家計簿[年],月比較[[#This Row],[年]],家計簿[月],月比較[[#This Row],[月]],家計簿[固定費/変動費],月比較[[#Headers],[変動費]]) -> 0 | J51: =SUMIFS(家計簿[金額],家計簿[年],月比較[[#This Row],[年]],家計簿[月],月比較[[#This Row],[月]],家計簿[勘定科目],月比較[[#Headers],[給料]]) -> 0 | K51: =SUMIFS(家計簿[金額],家計簿[年],月比較[[#This Row],[年]],家計簿[月],月比較[[#This Row],[月]],家計簿[勘定科目],月比較[[#Headers],[ボーナス]]) -> 0 | L51: =SUMIFS(家計簿[金額],家計簿[年],月比較[[#This Row],[年]],家計簿[月],月比較[[#This Row],[月]],家計簿[勘定科目],月比較[[#Headers],[家賃補助]]) -> 0 | M51: =SUMIFS(家計簿[金額],家計簿[年],月比較[[#This Row],[年]],家計簿[月],月比較[[#This Row],[月]],家計簿[勘定科目],月比較[[#Headers],[児童手当]]) -> 0 | N51: =SUMIFS(家計簿[金額],家計簿[年],月比較[[#This Row],[年]],家計簿[月],月比較[[#This Row],[月]],家計簿[勘定科目],月比較[[#Headers],[配当金]]) -> 0 | O51: =SUMIFS(家計簿[金額],家計簿[年],月比較[[#This Row],[年]],家計簿[月],月比較[[#This Row],[月]],家計簿[勘定科目],月比較[[#Headers],[特別収入]]) -> 0 | P51: =SUMIFS(家計簿[金額],家計簿[年],月比較[[#This Row],[年]],家計簿[月],月比較[[#This Row],[月]],家計簿[勘定科目],月比較[[#Headers],[家賃]]) -> 0 | Q51: =SUMIFS(家計簿[金額],家計簿[年],月比較[[#This Row],[年]],家計簿[月],月比較[[#This Row],[月]],家計簿[勘定科目],月比較[[#Headers],[電気代]]) -> 0 | R51: =SUMIFS(家計簿[金額],家計簿[年],月比較[[#This Row],[年]],家計簿[月],月比較[[#This Row],[月]],家計簿[勘定科目],月比較[[#Headers],[ガス代]]) -> 0 | S51: =SUMIFS(家計簿[金額],家計簿[年],月比較[[#This Row],[年]],家計簿[月],月比較[[#This Row],[月]],家計簿[勘定科目],月比較[[#Headers],[水道代]]) -> 0 | T51: =SUMIFS(家計簿[金額],家計簿[年],月比較[[#This Row],[年]],家計簿[月],月比較[[#This Row],[月]],家計簿[勘定科目],月比較[[#Headers],[通信費]]) -> 0 | U51: =SUMIFS(家計簿[金額],家計簿[年],月比較[[#This Row],[年]],家計簿[月],月比較[[#This Row],[月]],家計簿[勘定科目],月比較[[#Headers],[保険代]]) -> 0 | V51: =SUMIFS(家計簿[金額],家計簿[年],月比較[[#This Row],[年]],家計簿[月],月比較[[#This Row],[月]],家計簿[勘定科目],月比較[[#Headers],[サブスク]]) -> 0 | W51: =SUMIFS(家計簿[金額],家計簿[年],月比較[[#This Row],[年]],家計簿[月],月比較[[#This Row],[月]],家計簿[勘定科目],月比較[[#Headers],[税金（固定資産、自動車）]]) -> 0 | X51: =SUMIFS(家計簿[金額],家計簿[年],月比較[[#This Row],[年]],家計簿[月],月比較[[#This Row],[月]],家計簿[勘定科目],月比較[[#Headers],[食費]]) -> 0 | Y51: =SUMIFS(家計簿[金額],家計簿[年],月比較[[#This Row],[年]],家計簿[月],月比較[[#This Row],[月]],家計簿[勘定科目],月比較[[#Headers],[日用品]]) -> 0 | Z51: =SUMIFS(家計簿[金額],家計簿[年],月比較[[#This Row],[年]],家計簿[月],月比較[[#This Row],[月]],家計簿[勘定科目],月比較[[#Headers],[衣服]]) -> 0 | AA51: =SUMIFS(家計簿[金額],家計簿[年],月比較[[#This Row],[年]],家計簿[月],月比較[[#This Row],[月]],家計簿[勘定科目],月比較[[#Headers],[教育費]]) -> 0 | AB51: =SUMIFS(家計簿[金額],家計簿[年],月比較[[#This Row],[年]],家計簿[月],月比較[[#This Row],[月]],家計簿[勘定科目],月比較[[#Headers],[外食費]]) -> 0 | AC51: =SUMIFS(家計簿[金額],家計簿[年],月比較[[#This Row],[年]],家計簿[月],月比較[[#This Row],[月]],家計簿[勘定科目],月比較[[#Headers],[移動費]]) -> 0 | AD51: =SUMIFS(家計簿[金額],家計簿[年],月比較[[#This Row],[年]],家計簿[月],月比較[[#This Row],[月]],家計簿[勘定科目],月比較[[#Headers],[旅費]]) -> 0 | AE51: =SUMIFS(家計簿[金額],家計簿[年],月比較[[#This Row],[年]],家計簿[月],月比較[[#This Row],[月]],家計簿[勘定科目],月比較[[#Headers],[娯楽費]]) -> 0 | AF51: =SUMIFS(家計簿[金額],家計簿[年],月比較[[#This Row],[年]],家計簿[月],月比較[[#This Row],[月]],家計簿[勘定科目],月比較[[#Headers],[医療費]]) -> 0 | AG51: =SUMIFS(家計簿[金額],家計簿[年],月比較[[#This Row],[年]],家計簿[月],月比較[[#This Row],[月]],家計簿[勘定科目],月比較[[#Headers],[特別出費]]) -> 0
C52: =IF(月比較[[#This Row],[月]]=1,C51+1,C51) -> 2026 | D52: 11 | E52: =DATE(月比較[[#This Row],[年]],月比較[[#This Row],[月]],1) -> 2026-11-01 | F52: =SUMIFS(家計簿[金額],家計簿[年],月比較[[#This Row],[年]],家計簿[月],月比較[[#This Row],[月]],家計簿[収入/支出],月比較[[#Headers],[収入]]) -> 0 | G52: =SUMIFS(家計簿[金額],家計簿[年],月比較[[#This Row],[年]],家計簿[月],月比較[[#This Row],[月]],家計簿[収入/支出],月比較[[#Headers],[支出]]) -> 0 | H52: =SUMIFS(家計簿[金額],家計簿[年],月比較[[#This Row],[年]],家計簿[月],月比較[[#This Row],[月]],家計簿[固定費/変動費],月比較[[#Headers],[固定費]]) -> 0 | I52: =SUMIFS(家計簿[金額],家計簿[年],月比較[[#This Row],[年]],家計簿[月],月比較[[#This Row],[月]],家計簿[固定費/変動費],月比較[[#Headers],[変動費]]) -> 0 | J52: =SUMIFS(家計簿[金額],家計簿[年],月比較[[#This Row],[年]],家計簿[月],月比較[[#This Row],[月]],家計簿[勘定科目],月比較[[#Headers],[給料]]) -> 0 | K52: =SUMIFS(家計簿[金額],家計簿[年],月比較[[#This Row],[年]],家計簿[月],月比較[[#This Row],[月]],家計簿[勘定科目],月比較[[#Headers],[ボーナス]]) -> 0 | L52: =SUMIFS(家計簿[金額],家計簿[年],月比較[[#This Row],[年]],家計簿[月],月比較[[#This Row],[月]],家計簿[勘定科目],月比較[[#Headers],[家賃補助]]) -> 0 | M52: =SUMIFS(家計簿[金額],家計簿[年],月比較[[#This Row],[年]],家計簿[月],月比較[[#This Row],[月]],家計簿[勘定科目],月比較[[#Headers],[児童手当]]) -> 0 | N52: =SUMIFS(家計簿[金額],家計簿[年],月比較[[#This Row],[年]],家計簿[月],月比較[[#This Row],[月]],家計簿[勘定科目],月比較[[#Headers],[配当金]]) -> 0 | O52: =SUMIFS(家計簿[金額],家計簿[年],月比較[[#This Row],[年]],家計簿[月],月比較[[#This Row],[月]],家計簿[勘定科目],月比較[[#Headers],[特別収入]]) -> 0 | P52: =SUMIFS(家計簿[金額],家計簿[年],月比較[[#This Row],[年]],家計簿[月],月比較[[#This Row],[月]],家計簿[勘定科目],月比較[[#Headers],[家賃]]) -> 0 | Q52: =SUMIFS(家計簿[金額],家計簿[年],月比較[[#This Row],[年]],家計簿[月],月比較[[#This Row],[月]],家計簿[勘定科目],月比較[[#Headers],[電気代]]) -> 0 | R52: =SUMIFS(家計簿[金額],家計簿[年],月比較[[#This Row],[年]],家計簿[月],月比較[[#This Row],[月]],家計簿[勘定科目],月比較[[#Headers],[ガス代]]) -> 0 | S52: =SUMIFS(家計簿[金額],家計簿[年],月比較[[#This Row],[年]],家計簿[月],月比較[[#This Row],[月]],家計簿[勘定科目],月比較[[#Headers],[水道代]]) -> 0 | T52: =SUMIFS(家計簿[金額],家計簿[年],月比較[[#This Row],[年]],家計簿[月],月比較[[#This Row],[月]],家計簿[勘定科目],月比較[[#Headers],[通信費]]) -> 0 | U52: =SUMIFS(家計簿[金額],家計簿[年],月比較[[#This Row],[年]],家計簿[月],月比較[[#This Row],[月]],家計簿[勘定科目],月比較[[#Headers],[保険代]]) -> 0 | V52: =SUMIFS(家計簿[金額],家計簿[年],月比較[[#This Row],[年]],家計簿[月],月比較[[#This Row],[月]],家計簿[勘定科目],月比較[[#Headers],[サブスク]]) -> 0 | W52: =SUMIFS(家計簿[金額],家計簿[年],月比較[[#This Row],[年]],家計簿[月],月比較[[#This Row],[月]],家計簿[勘定科目],月比較[[#Headers],[税金（固定資産、自動車）]]) -> 0 | X52: =SUMIFS(家計簿[金額],家計簿[年],月比較[[#This Row],[年]],家計簿[月],月比較[[#This Row],[月]],家計簿[勘定科目],月比較[[#Headers],[食費]]) -> 0 | Y52: =SUMIFS(家計簿[金額],家計簿[年],月比較[[#This Row],[年]],家計簿[月],月比較[[#This Row],[月]],家計簿[勘定科目],月比較[[#Headers],[日用品]]) -> 0 | Z52: =SUMIFS(家計簿[金額],家計簿[年],月比較[[#This Row],[年]],家計簿[月],月比較[[#This Row],[月]],家計簿[勘定科目],月比較[[#Headers],[衣服]]) -> 0 | AA52: =SUMIFS(家計簿[金額],家計簿[年],月比較[[#This Row],[年]],家計簿[月],月比較[[#This Row],[月]],家計簿[勘定科目],月比較[[#Headers],[教育費]]) -> 0 | AB52: =SUMIFS(家計簿[金額],家計簿[年],月比較[[#This Row],[年]],家計簿[月],月比較[[#This Row],[月]],家計簿[勘定科目],月比較[[#Headers],[外食費]]) -> 0 | AC52: =SUMIFS(家計簿[金額],家計簿[年],月比較[[#This Row],[年]],家計簿[月],月比較[[#This Row],[月]],家計簿[勘定科目],月比較[[#Headers],[移動費]]) -> 0 | AD52: =SUMIFS(家計簿[金額],家計簿[年],月比較[[#This Row],[年]],家計簿[月],月比較[[#This Row],[月]],家計簿[勘定科目],月比較[[#Headers],[旅費]]) -> 0 | AE52: =SUMIFS(家計簿[金額],家計簿[年],月比較[[#This Row],[年]],家計簿[月],月比較[[#This Row],[月]],家計簿[勘定科目],月比較[[#Headers],[娯楽費]]) -> 0 | AF52: =SUMIFS(家計簿[金額],家計簿[年],月比較[[#This Row],[年]],家計簿[月],月比較[[#This Row],[月]],家計簿[勘定科目],月比較[[#Headers],[医療費]]) -> 0 | AG52: =SUMIFS(家計簿[金額],家計簿[年],月比較[[#This Row],[年]],家計簿[月],月比較[[#This Row],[月]],家計簿[勘定科目],月比較[[#Headers],[特別出費]]) -> 0
C53: =IF(月比較[[#This Row],[月]]=1,C52+1,C52) -> 2026 | D53: 12 | E53: =DATE(月比較[[#This Row],[年]],月比較[[#This Row],[月]],1) -> 2026-12-01 | F53: =SUMIFS(家計簿[金額],家計簿[年],月比較[[#This Row],[年]],家計簿[月],月比較[[#This Row],[月]],家計簿[収入/支出],月比較[[#Headers],[収入]]) -> 0 | G53: =SUMIFS(家計簿[金額],家計簿[年],月比較[[#This Row],[年]],家計簿[月],月比較[[#This Row],[月]],家計簿[収入/支出],月比較[[#Headers],[支出]]) -> 0 | H53: =SUMIFS(家計簿[金額],家計簿[年],月比較[[#This Row],[年]],家計簿[月],月比較[[#This Row],[月]],家計簿[固定費/変動費],月比較[[#Headers],[固定費]]) -> 0 | I53: =SUMIFS(家計簿[金額],家計簿[年],月比較[[#This Row],[年]],家計簿[月],月比較[[#This Row],[月]],家計簿[固定費/変動費],月比較[[#Headers],[変動費]]) -> 0 | J53: =SUMIFS(家計簿[金額],家計簿[年],月比較[[#This Row],[年]],家計簿[月],月比較[[#This Row],[月]],家計簿[勘定科目],月比較[[#Headers],[給料]]) -> 0 | K53: =SUMIFS(家計簿[金額],家計簿[年],月比較[[#This Row],[年]],家計簿[月],月比較[[#This Row],[月]],家計簿[勘定科目],月比較[[#Headers],[ボーナス]]) -> 0 | L53: =SUMIFS(家計簿[金額],家計簿[年],月比較[[#This Row],[年]],家計簿[月],月比較[[#This Row],[月]],家計簿[勘定科目],月比較[[#Headers],[家賃補助]]) -> 0 | M53: =SUMIFS(家計簿[金額],家計簿[年],月比較[[#This Row],[年]],家計簿[月],月比較[[#This Row],[月]],家計簿[勘定科目],月比較[[#Headers],[児童手当]]) -> 0 | N53: =SUMIFS(家計簿[金額],家計簿[年],月比較[[#This Row],[年]],家計簿[月],月比較[[#This Row],[月]],家計簿[勘定科目],月比較[[#Headers],[配当金]]) -> 0 | O53: =SUMIFS(家計簿[金額],家計簿[年],月比較[[#This Row],[年]],家計簿[月],月比較[[#This Row],[月]],家計簿[勘定科目],月比較[[#Headers],[特別収入]]) -> 0 | P53: =SUMIFS(家計簿[金額],家計簿[年],月比較[[#This Row],[年]],家計簿[月],月比較[[#This Row],[月]],家計簿[勘定科目],月比較[[#Headers],[家賃]]) -> 0 | Q53: =SUMIFS(家計簿[金額],家計簿[年],月比較[[#This Row],[年]],家計簿[月],月比較[[#This Row],[月]],家計簿[勘定科目],月比較[[#Headers],[電気代]]) -> 0 | R53: =SUMIFS(家計簿[金額],家計簿[年],月比較[[#This Row],[年]],家計簿[月],月比較[[#This Row],[月]],家計簿[勘定科目],月比較[[#Headers],[ガス代]]) -> 0 | S53: =SUMIFS(家計簿[金額],家計簿[年],月比較[[#This Row],[年]],家計簿[月],月比較[[#This Row],[月]],家計簿[勘定科目],月比較[[#Headers],[水道代]]) -> 0 | T53: =SUMIFS(家計簿[金額],家計簿[年],月比較[[#This Row],[年]],家計簿[月],月比較[[#This Row],[月]],家計簿[勘定科目],月比較[[#Headers],[通信費]]) -> 0 | U53: =SUMIFS(家計簿[金額],家計簿[年],月比較[[#This Row],[年]],家計簿[月],月比較[[#This Row],[月]],家計簿[勘定科目],月比較[[#Headers],[保険代]]) -> 0 | V53: =SUMIFS(家計簿[金額],家計簿[年],月比較[[#This Row],[年]],家計簿[月],月比較[[#This Row],[月]],家計簿[勘定科目],月比較[[#Headers],[サブスク]]) -> 0 | W53: =SUMIFS(家計簿[金額],家計簿[年],月比較[[#This Row],[年]],家計簿[月],月比較[[#This Row],[月]],家計簿[勘定科目],月比較[[#Headers],[税金（固定資産、自動車）]]) -> 0 | X53: =SUMIFS(家計簿[金額],家計簿[年],月比較[[#This Row],[年]],家計簿[月],月比較[[#This Row],[月]],家計簿[勘定科目],月比較[[#Headers],[食費]]) -> 0 | Y53: =SUMIFS(家計簿[金額],家計簿[年],月比較[[#This Row],[年]],家計簿[月],月比較[[#This Row],[月]],家計簿[勘定科目],月比較[[#Headers],[日用品]]) -> 0 | Z53: =SUMIFS(家計簿[金額],家計簿[年],月比較[[#This Row],[年]],家計簿[月],月比較[[#This Row],[月]],家計簿[勘定科目],月比較[[#Headers],[衣服]]) -> 0 | AA53: =SUMIFS(家計簿[金額],家計簿[年],月比較[[#This Row],[年]],家計簿[月],月比較[[#This Row],[月]],家計簿[勘定科目],月比較[[#Headers],[教育費]]) -> 0 | AB53: =SUMIFS(家計簿[金額],家計簿[年],月比較[[#This Row],[年]],家計簿[月],月比較[[#This Row],[月]],家計簿[勘定科目],月比較[[#Headers],[外食費]]) -> 0 | AC53: =SUMIFS(家計簿[金額],家計簿[年],月比較[[#This Row],[年]],家計簿[月],月比較[[#This Row],[月]],家計簿[勘定科目],月比較[[#Headers],[移動費]]) -> 0 | AD53: =SUMIFS(家計簿[金額],家計簿[年],月比較[[#This Row],[年]],家計簿[月],月比較[[#This Row],[月]],家計簿[勘定科目],月比較[[#Headers],[旅費]]) -> 0 | AE53: =SUMIFS(家計簿[金額],家計簿[年],月比較[[#This Row],[年]],家計簿[月],月比較[[#This Row],[月]],家計簿[勘定科目],月比較[[#Headers],[娯楽費]]) -> 0 | AF53: =SUMIFS(家計簿[金額],家計簿[年],月比較[[#This Row],[年]],家計簿[月],月比較[[#This Row],[月]],家計簿[勘定科目],月比較[[#Headers],[医療費]]) -> 0 | AG53: =SUMIFS(家計簿[金額],家計簿[年],月比較[[#This Row],[年]],家計簿[月],月比較[[#This Row],[月]],家計簿[勘定科目],月比較[[#Headers],[特別出費]]) -> 0
C54: =IF(月比較[[#This Row],[月]]=1,C53+1,C53) -> 2027 | D54: 1 | E54: =DATE(月比較[[#This Row],[年]],月比較[[#This Row],[月]],1) -> 2027-01-01 | F54: =SUMIFS(家計簿[金額],家計簿[年],月比較[[#This Row],[年]],家計簿[月],月比較[[#This Row],[月]],家計簿[収入/支出],月比較[[#Headers],[収入]]) -> 0 | G54: =SUMIFS(家計簿[金額],家計簿[年],月比較[[#This Row],[年]],家計簿[月],月比較[[#This Row],[月]],家計簿[収入/支出],月比較[[#Headers],[支出]]) -> 0 | H54: =SUMIFS(家計簿[金額],家計簿[年],月比較[[#This Row],[年]],家計簿[月],月比較[[#This Row],[月]],家計簿[固定費/変動費],月比較[[#Headers],[固定費]]) -> 0 | I54: =SUMIFS(家計簿[金額],家計簿[年],月比較[[#This Row],[年]],家計簿[月],月比較[[#This Row],[月]],家計簿[固定費/変動費],月比較[[#Headers],[変動費]]) -> 0 | J54: =SUMIFS(家計簿[金額],家計簿[年],月比較[[#This Row],[年]],家計簿[月],月比較[[#This Row],[月]],家計簿[勘定科目],月比較[[#Headers],[給料]]) -> 0 | K54: =SUMIFS(家計簿[金額],家計簿[年],月比較[[#This Row],[年]],家計簿[月],月比較[[#This Row],[月]],家計簿[勘定科目],月比較[[#Headers],[ボーナス]]) -> 0 | L54: =SUMIFS(家計簿[金額],家計簿[年],月比較[[#This Row],[年]],家計簿[月],月比較[[#This Row],[月]],家計簿[勘定科目],月比較[[#Headers],[家賃補助]]) -> 0 | M54: =SUMIFS(家計簿[金額],家計簿[年],月比較[[#This Row],[年]],家計簿[月],月比較[[#This Row],[月]],家計簿[勘定科目],月比較[[#Headers],[児童手当]]) -> 0 | N54: =SUMIFS(家計簿[金額],家計簿[年],月比較[[#This Row],[年]],家計簿[月],月比較[[#This Row],[月]],家計簿[勘定科目],月比較[[#Headers],[配当金]]) -> 0 | O54: =SUMIFS(家計簿[金額],家計簿[年],月比較[[#This Row],[年]],家計簿[月],月比較[[#This Row],[月]],家計簿[勘定科目],月比較[[#Headers],[特別収入]]) -> 0 | P54: =SUMIFS(家計簿[金額],家計簿[年],月比較[[#This Row],[年]],家計簿[月],月比較[[#This Row],[月]],家計簿[勘定科目],月比較[[#Headers],[家賃]]) -> 0 | Q54: =SUMIFS(家計簿[金額],家計簿[年],月比較[[#This Row],[年]],家計簿[月],月比較[[#This Row],[月]],家計簿[勘定科目],月比較[[#Headers],[電気代]]) -> 0 | R54: =SUMIFS(家計簿[金額],家計簿[年],月比較[[#This Row],[年]],家計簿[月],月比較[[#This Row],[月]],家計簿[勘定科目],月比較[[#Headers],[ガス代]]) -> 0 | S54: =SUMIFS(家計簿[金額],家計簿[年],月比較[[#This Row],[年]],家計簿[月],月比較[[#This Row],[月]],家計簿[勘定科目],月比較[[#Headers],[水道代]]) -> 0 | T54: =SUMIFS(家計簿[金額],家計簿[年],月比較[[#This Row],[年]],家計簿[月],月比較[[#This Row],[月]],家計簿[勘定科目],月比較[[#Headers],[通信費]]) -> 0 | U54: =SUMIFS(家計簿[金額],家計簿[年],月比較[[#This Row],[年]],家計簿[月],月比較[[#This Row],[月]],家計簿[勘定科目],月比較[[#Headers],[保険代]]) -> 0 | V54: =SUMIFS(家計簿[金額],家計簿[年],月比較[[#This Row],[年]],家計簿[月],月比較[[#This Row],[月]],家計簿[勘定科目],月比較[[#Headers],[サブスク]]) -> 0 | W54: =SUMIFS(家計簿[金額],家計簿[年],月比較[[#This Row],[年]],家計簿[月],月比較[[#This Row],[月]],家計簿[勘定科目],月比較[[#Headers],[税金（固定資産、自動車）]]) -> 0 | X54: =SUMIFS(家計簿[金額],家計簿[年],月比較[[#This Row],[年]],家計簿[月],月比較[[#This Row],[月]],家計簿[勘定科目],月比較[[#Headers],[食費]]) -> 0 | Y54: =SUMIFS(家計簿[金額],家計簿[年],月比較[[#This Row],[年]],家計簿[月],月比較[[#This Row],[月]],家計簿[勘定科目],月比較[[#Headers],[日用品]]) -> 0 | Z54: =SUMIFS(家計簿[金額],家計簿[年],月比較[[#This Row],[年]],家計簿[月],月比較[[#This Row],[月]],家計簿[勘定科目],月比較[[#Headers],[衣服]]) -> 0 | AA54: =SUMIFS(家計簿[金額],家計簿[年],月比較[[#This Row],[年]],家計簿[月],月比較[[#This Row],[月]],家計簿[勘定科目],月比較[[#Headers],[教育費]]) -> 0 | AB54: =SUMIFS(家計簿[金額],家計簿[年],月比較[[#This Row],[年]],家計簿[月],月比較[[#This Row],[月]],家計簿[勘定科目],月比較[[#Headers],[外食費]]) -> 0 | AC54: =SUMIFS(家計簿[金額],家計簿[年],月比較[[#This Row],[年]],家計簿[月],月比較[[#This Row],[月]],家計簿[勘定科目],月比較[[#Headers],[移動費]]) -> 0 | AD54: =SUMIFS(家計簿[金額],家計簿[年],月比較[[#This Row],[年]],家計簿[月],月比較[[#This Row],[月]],家計簿[勘定科目],月比較[[#Headers],[旅費]]) -> 0 | AE54: =SUMIFS(家計簿[金額],家計簿[年],月比較[[#This Row],[年]],家計簿[月],月比較[[#This Row],[月]],家計簿[勘定科目],月比較[[#Headers],[娯楽費]]) -> 0 | AF54: =SUMIFS(家計簿[金額],家計簿[年],月比較[[#This Row],[年]],家計簿[月],月比較[[#This Row],[月]],家計簿[勘定科目],月比較[[#Headers],[医療費]]) -> 0 | AG54: =SUMIFS(家計簿[金額],家計簿[年],月比較[[#This Row],[年]],家計簿[月],月比較[[#This Row],[月]],家計簿[勘定科目],月比較[[#Headers],[特別出費]]) -> 0
C55: =IF(月比較[[#This Row],[月]]=1,C54+1,C54) -> 2027 | D55: 2 | E55: =DATE(月比較[[#This Row],[年]],月比較[[#This Row],[月]],1) -> 2027-02-01 | F55: =SUMIFS(家計簿[金額],家計簿[年],月比較[[#This Row],[年]],家計簿[月],月比較[[#This Row],[月]],家計簿[収入/支出],月比較[[#Headers],[収入]]) -> 0 | G55: =SUMIFS(家計簿[金額],家計簿[年],月比較[[#This Row],[年]],家計簿[月],月比較[[#This Row],[月]],家計簿[収入/支出],月比較[[#Headers],[支出]]) -> 0 | H55: =SUMIFS(家計簿[金額],家計簿[年],月比較[[#This Row],[年]],家計簿[月],月比較[[#This Row],[月]],家計簿[固定費/変動費],月比較[[#Headers],[固定費]]) -> 0 | I55: =SUMIFS(家計簿[金額],家計簿[年],月比較[[#This Row],[年]],家計簿[月],月比較[[#This Row],[月]],家計簿[固定費/変動費],月比較[[#Headers],[変動費]]) -> 0 | J55: =SUMIFS(家計簿[金額],家計簿[年],月比較[[#This Row],[年]],家計簿[月],月比較[[#This Row],[月]],家計簿[勘定科目],月比較[[#Headers],[給料]]) -> 0 | K55: =SUMIFS(家計簿[金額],家計簿[年],月比較[[#This Row],[年]],家計簿[月],月比較[[#This Row],[月]],家計簿[勘定科目],月比較[[#Headers],[ボーナス]]) -> 0 | L55: =SUMIFS(家計簿[金額],家計簿[年],月比較[[#This Row],[年]],家計簿[月],月比較[[#This Row],[月]],家計簿[勘定科目],月比較[[#Headers],[家賃補助]]) -> 0 | M55: =SUMIFS(家計簿[金額],家計簿[年],月比較[[#This Row],[年]],家計簿[月],月比較[[#This Row],[月]],家計簿[勘定科目],月比較[[#Headers],[児童手当]]) -> 0 | N55: =SUMIFS(家計簿[金額],家計簿[年],月比較[[#This Row],[年]],家計簿[月],月比較[[#This Row],[月]],家計簿[勘定科目],月比較[[#Headers],[配当金]]) -> 0 | O55: =SUMIFS(家計簿[金額],家計簿[年],月比較[[#This Row],[年]],家計簿[月],月比較[[#This Row],[月]],家計簿[勘定科目],月比較[[#Headers],[特別収入]]) -> 0 | P55: =SUMIFS(家計簿[金額],家計簿[年],月比較[[#This Row],[年]],家計簿[月],月比較[[#This Row],[月]],家計簿[勘定科目],月比較[[#Headers],[家賃]]) -> 0 | Q55: =SUMIFS(家計簿[金額],家計簿[年],月比較[[#This Row],[年]],家計簿[月],月比較[[#This Row],[月]],家計簿[勘定科目],月比較[[#Headers],[電気代]]) -> 0 | R55: =SUMIFS(家計簿[金額],家計簿[年],月比較[[#This Row],[年]],家計簿[月],月比較[[#This Row],[月]],家計簿[勘定科目],月比較[[#Headers],[ガス代]]) -> 0 | S55: =SUMIFS(家計簿[金額],家計簿[年],月比較[[#This Row],[年]],家計簿[月],月比較[[#This Row],[月]],家計簿[勘定科目],月比較[[#Headers],[水道代]]) -> 0 | T55: =SUMIFS(家計簿[金額],家計簿[年],月比較[[#This Row],[年]],家計簿[月],月比較[[#This Row],[月]],家計簿[勘定科目],月比較[[#Headers],[通信費]]) -> 0 | U55: =SUMIFS(家計簿[金額],家計簿[年],月比較[[#This Row],[年]],家計簿[月],月比較[[#This Row],[月]],家計簿[勘定科目],月比較[[#Headers],[保険代]]) -> 0 | V55: =SUMIFS(家計簿[金額],家計簿[年],月比較[[#This Row],[年]],家計簿[月],月比較[[#This Row],[月]],家計簿[勘定科目],月比較[[#Headers],[サブスク]]) -> 0 | W55: =SUMIFS(家計簿[金額],家計簿[年],月比較[[#This Row],[年]],家計簿[月],月比較[[#This Row],[月]],家計簿[勘定科目],月比較[[#Headers],[税金（固定資産、自動車）]]) -> 0 | X55: =SUMIFS(家計簿[金額],家計簿[年],月比較[[#This Row],[年]],家計簿[月],月比較[[#This Row],[月]],家計簿[勘定科目],月比較[[#Headers],[食費]]) -> 0 | Y55: =SUMIFS(家計簿[金額],家計簿[年],月比較[[#This Row],[年]],家計簿[月],月比較[[#This Row],[月]],家計簿[勘定科目],月比較[[#Headers],[日用品]]) -> 0 | Z55: =SUMIFS(家計簿[金額],家計簿[年],月比較[[#This Row],[年]],家計簿[月],月比較[[#This Row],[月]],家計簿[勘定科目],月比較[[#Headers],[衣服]]) -> 0 | AA55: =SUMIFS(家計簿[金額],家計簿[年],月比較[[#This Row],[年]],家計簿[月],月比較[[#This Row],[月]],家計簿[勘定科目],月比較[[#Headers],[教育費]]) -> 0 | AB55: =SUMIFS(家計簿[金額],家計簿[年],月比較[[#This Row],[年]],家計簿[月],月比較[[#This Row],[月]],家計簿[勘定科目],月比較[[#Headers],[外食費]]) -> 0 | AC55: =SUMIFS(家計簿[金額],家計簿[年],月比較[[#This Row],[年]],家計簿[月],月比較[[#This Row],[月]],家計簿[勘定科目],月比較[[#Headers],[移動費]]) -> 0 | AD55: =SUMIFS(家計簿[金額],家計簿[年],月比較[[#This Row],[年]],家計簿[月],月比較[[#This Row],[月]],家計簿[勘定科目],月比較[[#Headers],[旅費]]) -> 0 | AE55: =SUMIFS(家計簿[金額],家計簿[年],月比較[[#This Row],[年]],家計簿[月],月比較[[#This Row],[月]],家計簿[勘定科目],月比較[[#Headers],[娯楽費]]) -> 0 | AF55: =SUMIFS(家計簿[金額],家計簿[年],月比較[[#This Row],[年]],家計簿[月],月比較[[#This Row],[月]],家計簿[勘定科目],月比較[[#Headers],[医療費]]) -> 0 | AG55: =SUMIFS(家計簿[金額],家計簿[年],月比較[[#This Row],[年]],家計簿[月],月比較[[#This Row],[月]],家計簿[勘定科目],月比較[[#Headers],[特別出費]]) -> 0
C56: =IF(月比較[[#This Row],[月]]=1,C55+1,C55) -> 2027 | D56: 3 | E56: =DATE(月比較[[#This Row],[年]],月比較[[#This Row],[月]],1) -> 2027-03-01 | F56: =SUMIFS(家計簿[金額],家計簿[年],月比較[[#This Row],[年]],家計簿[月],月比較[[#This Row],[月]],家計簿[収入/支出],月比較[[#Headers],[収入]]) -> 0 | G56: =SUMIFS(家計簿[金額],家計簿[年],月比較[[#This Row],[年]],家計簿[月],月比較[[#This Row],[月]],家計簿[収入/支出],月比較[[#Headers],[支出]]) -> 0 | H56: =SUMIFS(家計簿[金額],家計簿[年],月比較[[#This Row],[年]],家計簿[月],月比較[[#This Row],[月]],家計簿[固定費/変動費],月比較[[#Headers],[固定費]]) -> 0 | I56: =SUMIFS(家計簿[金額],家計簿[年],月比較[[#This Row],[年]],家計簿[月],月比較[[#This Row],[月]],家計簿[固定費/変動費],月比較[[#Headers],[変動費]]) -> 0 | J56: =SUMIFS(家計簿[金額],家計簿[年],月比較[[#This Row],[年]],家計簿[月],月比較[[#This Row],[月]],家計簿[勘定科目],月比較[[#Headers],[給料]]) -> 0 | K56: =SUMIFS(家計簿[金額],家計簿[年],月比較[[#This Row],[年]],家計簿[月],月比較[[#This Row],[月]],家計簿[勘定科目],月比較[[#Headers],[ボーナス]]) -> 0 | L56: =SUMIFS(家計簿[金額],家計簿[年],月比較[[#This Row],[年]],家計簿[月],月比較[[#This Row],[月]],家計簿[勘定科目],月比較[[#Headers],[家賃補助]]) -> 0 | M56: =SUMIFS(家計簿[金額],家計簿[年],月比較[[#This Row],[年]],家計簿[月],月比較[[#This Row],[月]],家計簿[勘定科目],月比較[[#Headers],[児童手当]]) -> 0 | N56: =SUMIFS(家計簿[金額],家計簿[年],月比較[[#This Row],[年]],家計簿[月],月比較[[#This Row],[月]],家計簿[勘定科目],月比較[[#Headers],[配当金]]) -> 0 | O56: =SUMIFS(家計簿[金額],家計簿[年],月比較[[#This Row],[年]],家計簿[月],月比較[[#This Row],[月]],家計簿[勘定科目],月比較[[#Headers],[特別収入]]) -> 0 | P56: =SUMIFS(家計簿[金額],家計簿[年],月比較[[#This Row],[年]],家計簿[月],月比較[[#This Row],[月]],家計簿[勘定科目],月比較[[#Headers],[家賃]]) -> 0 | Q56: =SUMIFS(家計簿[金額],家計簿[年],月比較[[#This Row],[年]],家計簿[月],月比較[[#This Row],[月]],家計簿[勘定科目],月比較[[#Headers],[電気代]]) -> 0 | R56: =SUMIFS(家計簿[金額],家計簿[年],月比較[[#This Row],[年]],家計簿[月],月比較[[#This Row],[月]],家計簿[勘定科目],月比較[[#Headers],[ガス代]]) -> 0 | S56: =SUMIFS(家計簿[金額],家計簿[年],月比較[[#This Row],[年]],家計簿[月],月比較[[#This Row],[月]],家計簿[勘定科目],月比較[[#Headers],[水道代]]) -> 0 | T56: =SUMIFS(家計簿[金額],家計簿[年],月比較[[#This Row],[年]],家計簿[月],月比較[[#This Row],[月]],家計簿[勘定科目],月比較[[#Headers],[通信費]]) -> 0 | U56: =SUMIFS(家計簿[金額],家計簿[年],月比較[[#This Row],[年]],家計簿[月],月比較[[#This Row],[月]],家計簿[勘定科目],月比較[[#Headers],[保険代]]) -> 0 | V56: =SUMIFS(家計簿[金額],家計簿[年],月比較[[#This Row],[年]],家計簿[月],月比較[[#This Row],[月]],家計簿[勘定科目],月比較[[#Headers],[サブスク]]) -> 0 | W56: =SUMIFS(家計簿[金額],家計簿[年],月比較[[#This Row],[年]],家計簿[月],月比較[[#This Row],[月]],家計簿[勘定科目],月比較[[#Headers],[税金（固定資産、自動車）]]) -> 0 | X56: =SUMIFS(家計簿[金額],家計簿[年],月比較[[#This Row],[年]],家計簿[月],月比較[[#This Row],[月]],家計簿[勘定科目],月比較[[#Headers],[食費]]) -> 0 | Y56: =SUMIFS(家計簿[金額],家計簿[年],月比較[[#This Row],[年]],家計簿[月],月比較[[#This Row],[月]],家計簿[勘定科目],月比較[[#Headers],[日用品]]) -> 0 | Z56: =SUMIFS(家計簿[金額],家計簿[年],月比較[[#This Row],[年]],家計簿[月],月比較[[#This Row],[月]],家計簿[勘定科目],月比較[[#Headers],[衣服]]) -> 0 | AA56: =SUMIFS(家計簿[金額],家計簿[年],月比較[[#This Row],[年]],家計簿[月],月比較[[#This Row],[月]],家計簿[勘定科目],月比較[[#Headers],[教育費]]) -> 0 | AB56: =SUMIFS(家計簿[金額],家計簿[年],月比較[[#This Row],[年]],家計簿[月],月比較[[#This Row],[月]],家計簿[勘定科目],月比較[[#Headers],[外食費]]) -> 0 | AC56: =SUMIFS(家計簿[金額],家計簿[年],月比較[[#This Row],[年]],家計簿[月],月比較[[#This Row],[月]],家計簿[勘定科目],月比較[[#Headers],[移動費]]) -> 0 | AD56: =SUMIFS(家計簿[金額],家計簿[年],月比較[[#This Row],[年]],家計簿[月],月比較[[#This Row],[月]],家計簿[勘定科目],月比較[[#Headers],[旅費]]) -> 0 | AE56: =SUMIFS(家計簿[金額],家計簿[年],月比較[[#This Row],[年]],家計簿[月],月比較[[#This Row],[月]],家計簿[勘定科目],月比較[[#Headers],[娯楽費]]) -> 0 | AF56: =SUMIFS(家計簿[金額],家計簿[年],月比較[[#This Row],[年]],家計簿[月],月比較[[#This Row],[月]],家計簿[勘定科目],月比較[[#Headers],[医療費]]) -> 0 | AG56: =SUMIFS(家計簿[金額],家計簿[年],月比較[[#This Row],[年]],家計簿[月],月比較[[#This Row],[月]],家計簿[勘定科目],月比較[[#Headers],[特別出費]]) -> 0
C57: =IF(月比較[[#This Row],[月]]=1,C56+1,C56) -> 2027 | D57: 4 | E57: =DATE(月比較[[#This Row],[年]],月比較[[#This Row],[月]],1) -> 2027-04-01 | F57: =SUMIFS(家計簿[金額],家計簿[年],月比較[[#This Row],[年]],家計簿[月],月比較[[#This Row],[月]],家計簿[収入/支出],月比較[[#Headers],[収入]]) -> 0 | G57: =SUMIFS(家計簿[金額],家計簿[年],月比較[[#This Row],[年]],家計簿[月],月比較[[#This Row],[月]],家計簿[収入/支出],月比較[[#Headers],[支出]]) -> 0 | H57: =SUMIFS(家計簿[金額],家計簿[年],月比較[[#This Row],[年]],家計簿[月],月比較[[#This Row],[月]],家計簿[固定費/変動費],月比較[[#Headers],[固定費]]) -> 0 | I57: =SUMIFS(家計簿[金額],家計簿[年],月比較[[#This Row],[年]],家計簿[月],月比較[[#This Row],[月]],家計簿[固定費/変動費],月比較[[#Headers],[変動費]]) -> 0 | J57: =SUMIFS(家計簿[金額],家計簿[年],月比較[[#This Row],[年]],家計簿[月],月比較[[#This Row],[月]],家計簿[勘定科目],月比較[[#Headers],[給料]]) -> 0 | K57: =SUMIFS(家計簿[金額],家計簿[年],月比較[[#This Row],[年]],家計簿[月],月比較[[#This Row],[月]],家計簿[勘定科目],月比較[[#Headers],[ボーナス]]) -> 0 | L57: =SUMIFS(家計簿[金額],家計簿[年],月比較[[#This Row],[年]],家計簿[月],月比較[[#This Row],[月]],家計簿[勘定科目],月比較[[#Headers],[家賃補助]]) -> 0 | M57: =SUMIFS(家計簿[金額],家計簿[年],月比較[[#This Row],[年]],家計簿[月],月比較[[#This Row],[月]],家計簿[勘定科目],月比較[[#Headers],[児童手当]]) -> 0 | N57: =SUMIFS(家計簿[金額],家計簿[年],月比較[[#This Row],[年]],家計簿[月],月比較[[#This Row],[月]],家計簿[勘定科目],月比較[[#Headers],[配当金]]) -> 0 | O57: =SUMIFS(家計簿[金額],家計簿[年],月比較[[#This Row],[年]],家計簿[月],月比較[[#This Row],[月]],家計簿[勘定科目],月比較[[#Headers],[特別収入]]) -> 0 | P57: =SUMIFS(家計簿[金額],家計簿[年],月比較[[#This Row],[年]],家計簿[月],月比較[[#This Row],[月]],家計簿[勘定科目],月比較[[#Headers],[家賃]]) -> 0 | Q57: =SUMIFS(家計簿[金額],家計簿[年],月比較[[#This Row],[年]],家計簿[月],月比較[[#This Row],[月]],家計簿[勘定科目],月比較[[#Headers],[電気代]]) -> 0 | R57: =SUMIFS(家計簿[金額],家計簿[年],月比較[[#This Row],[年]],家計簿[月],月比較[[#This Row],[月]],家計簿[勘定科目],月比較[[#Headers],[ガス代]]) -> 0 | S57: =SUMIFS(家計簿[金額],家計簿[年],月比較[[#This Row],[年]],家計簿[月],月比較[[#This Row],[月]],家計簿[勘定科目],月比較[[#Headers],[水道代]]) -> 0 | T57: =SUMIFS(家計簿[金額],家計簿[年],月比較[[#This Row],[年]],家計簿[月],月比較[[#This Row],[月]],家計簿[勘定科目],月比較[[#Headers],[通信費]]) -> 0 | U57: =SUMIFS(家計簿[金額],家計簿[年],月比較[[#This Row],[年]],家計簿[月],月比較[[#This Row],[月]],家計簿[勘定科目],月比較[[#Headers],[保険代]]) -> 0 | V57: =SUMIFS(家計簿[金額],家計簿[年],月比較[[#This Row],[年]],家計簿[月],月比較[[#This Row],[月]],家計簿[勘定科目],月比較[[#Headers],[サブスク]]) -> 0 | W57: =SUMIFS(家計簿[金額],家計簿[年],月比較[[#This Row],[年]],家計簿[月],月比較[[#This Row],[月]],家計簿[勘定科目],月比較[[#Headers],[税金（固定資産、自動車）]]) -> 0 | X57: =SUMIFS(家計簿[金額],家計簿[年],月比較[[#This Row],[年]],家計簿[月],月比較[[#This Row],[月]],家計簿[勘定科目],月比較[[#Headers],[食費]]) -> 0 | Y57: =SUMIFS(家計簿[金額],家計簿[年],月比較[[#This Row],[年]],家計簿[月],月比較[[#This Row],[月]],家計簿[勘定科目],月比較[[#Headers],[日用品]]) -> 0 | Z57: =SUMIFS(家計簿[金額],家計簿[年],月比較[[#This Row],[年]],家計簿[月],月比較[[#This Row],[月]],家計簿[勘定科目],月比較[[#Headers],[衣服]]) -> 0 | AA57: =SUMIFS(家計簿[金額],家計簿[年],月比較[[#This Row],[年]],家計簿[月],月比較[[#This Row],[月]],家計簿[勘定科目],月比較[[#Headers],[教育費]]) -> 0 | AB57: =SUMIFS(家計簿[金額],家計簿[年],月比較[[#This Row],[年]],家計簿[月],月比較[[#This Row],[月]],家計簿[勘定科目],月比較[[#Headers],[外食費]]) -> 0 | AC57: =SUMIFS(家計簿[金額],家計簿[年],月比較[[#This Row],[年]],家計簿[月],月比較[[#This Row],[月]],家計簿[勘定科目],月比較[[#Headers],[移動費]]) -> 0 | AD57: =SUMIFS(家計簿[金額],家計簿[年],月比較[[#This Row],[年]],家計簿[月],月比較[[#This Row],[月]],家計簿[勘定科目],月比較[[#Headers],[旅費]]) -> 0 | AE57: =SUMIFS(家計簿[金額],家計簿[年],月比較[[#This Row],[年]],家計簿[月],月比較[[#This Row],[月]],家計簿[勘定科目],月比較[[#Headers],[娯楽費]]) -> 0 | AF57: =SUMIFS(家計簿[金額],家計簿[年],月比較[[#This Row],[年]],家計簿[月],月比較[[#This Row],[月]],家計簿[勘定科目],月比較[[#Headers],[医療費]]) -> 0 | AG57: =SUMIFS(家計簿[金額],家計簿[年],月比較[[#This Row],[年]],家計簿[月],月比較[[#This Row],[月]],家計簿[勘定科目],月比較[[#Headers],[特別出費]]) -> 0
C58: =IF(月比較[[#This Row],[月]]=1,C57+1,C57) -> 2027 | D58: 5 | E58: =DATE(月比較[[#This Row],[年]],月比較[[#This Row],[月]],1) -> 2027-05-01 | F58: =SUMIFS(家計簿[金額],家計簿[年],月比較[[#This Row],[年]],家計簿[月],月比較[[#This Row],[月]],家計簿[収入/支出],月比較[[#Headers],[収入]]) -> 0 | G58: =SUMIFS(家計簿[金額],家計簿[年],月比較[[#This Row],[年]],家計簿[月],月比較[[#This Row],[月]],家計簿[収入/支出],月比較[[#Headers],[支出]]) -> 0 | H58: =SUMIFS(家計簿[金額],家計簿[年],月比較[[#This Row],[年]],家計簿[月],月比較[[#This Row],[月]],家計簿[固定費/変動費],月比較[[#Headers],[固定費]]) -> 0 | I58: =SUMIFS(家計簿[金額],家計簿[年],月比較[[#This Row],[年]],家計簿[月],月比較[[#This Row],[月]],家計簿[固定費/変動費],月比較[[#Headers],[変動費]]) -> 0 | J58: =SUMIFS(家計簿[金額],家計簿[年],月比較[[#This Row],[年]],家計簿[月],月比較[[#This Row],[月]],家計簿[勘定科目],月比較[[#Headers],[給料]]) -> 0 | K58: =SUMIFS(家計簿[金額],家計簿[年],月比較[[#This Row],[年]],家計簿[月],月比較[[#This Row],[月]],家計簿[勘定科目],月比較[[#Headers],[ボーナス]]) -> 0 | L58: =SUMIFS(家計簿[金額],家計簿[年],月比較[[#This Row],[年]],家計簿[月],月比較[[#This Row],[月]],家計簿[勘定科目],月比較[[#Headers],[家賃補助]]) -> 0 | M58: =SUMIFS(家計簿[金額],家計簿[年],月比較[[#This Row],[年]],家計簿[月],月比較[[#This Row],[月]],家計簿[勘定科目],月比較[[#Headers],[児童手当]]) -> 0 | N58: =SUMIFS(家計簿[金額],家計簿[年],月比較[[#This Row],[年]],家計簿[月],月比較[[#This Row],[月]],家計簿[勘定科目],月比較[[#Headers],[配当金]]) -> 0 | O58: =SUMIFS(家計簿[金額],家計簿[年],月比較[[#This Row],[年]],家計簿[月],月比較[[#This Row],[月]],家計簿[勘定科目],月比較[[#Headers],[特別収入]]) -> 0 | P58: =SUMIFS(家計簿[金額],家計簿[年],月比較[[#This Row],[年]],家計簿[月],月比較[[#This Row],[月]],家計簿[勘定科目],月比較[[#Headers],[家賃]]) -> 0 | Q58: =SUMIFS(家計簿[金額],家計簿[年],月比較[[#This Row],[年]],家計簿[月],月比較[[#This Row],[月]],家計簿[勘定科目],月比較[[#Headers],[電気代]]) -> 0 | R58: =SUMIFS(家計簿[金額],家計簿[年],月比較[[#This Row],[年]],家計簿[月],月比較[[#This Row],[月]],家計簿[勘定科目],月比較[[#Headers],[ガス代]]) -> 0 | S58: =SUMIFS(家計簿[金額],家計簿[年],月比較[[#This Row],[年]],家計簿[月],月比較[[#This Row],[月]],家計簿[勘定科目],月比較[[#Headers],[水道代]]) -> 0 | T58: =SUMIFS(家計簿[金額],家計簿[年],月比較[[#This Row],[年]],家計簿[月],月比較[[#This Row],[月]],家計簿[勘定科目],月比較[[#Headers],[通信費]]) -> 0 | U58: =SUMIFS(家計簿[金額],家計簿[年],月比較[[#This Row],[年]],家計簿[月],月比較[[#This Row],[月]],家計簿[勘定科目],月比較[[#Headers],[保険代]]) -> 0 | V58: =SUMIFS(家計簿[金額],家計簿[年],月比較[[#This Row],[年]],家計簿[月],月比較[[#This Row],[月]],家計簿[勘定科目],月比較[[#Headers],[サブスク]]) -> 0 | W58: =SUMIFS(家計簿[金額],家計簿[年],月比較[[#This Row],[年]],家計簿[月],月比較[[#This Row],[月]],家計簿[勘定科目],月比較[[#Headers],[税金（固定資産、自動車）]]) -> 0 | X58: =SUMIFS(家計簿[金額],家計簿[年],月比較[[#This Row],[年]],家計簿[月],月比較[[#This Row],[月]],家計簿[勘定科目],月比較[[#Headers],[食費]]) -> 0 | Y58: =SUMIFS(家計簿[金額],家計簿[年],月比較[[#This Row],[年]],家計簿[月],月比較[[#This Row],[月]],家計簿[勘定科目],月比較[[#Headers],[日用品]]) -> 0 | Z58: =SUMIFS(家計簿[金額],家計簿[年],月比較[[#This Row],[年]],家計簿[月],月比較[[#This Row],[月]],家計簿[勘定科目],月比較[[#Headers],[衣服]]) -> 0 | AA58: =SUMIFS(家計簿[金額],家計簿[年],月比較[[#This Row],[年]],家計簿[月],月比較[[#This Row],[月]],家計簿[勘定科目],月比較[[#Headers],[教育費]]) -> 0 | AB58: =SUMIFS(家計簿[金額],家計簿[年],月比較[[#This Row],[年]],家計簿[月],月比較[[#This Row],[月]],家計簿[勘定科目],月比較[[#Headers],[外食費]]) -> 0 | AC58: =SUMIFS(家計簿[金額],家計簿[年],月比較[[#This Row],[年]],家計簿[月],月比較[[#This Row],[月]],家計簿[勘定科目],月比較[[#Headers],[移動費]]) -> 0 | AD58: =SUMIFS(家計簿[金額],家計簿[年],月比較[[#This Row],[年]],家計簿[月],月比較[[#This Row],[月]],家計簿[勘定科目],月比較[[#Headers],[旅費]]) -> 0 | AE58: =SUMIFS(家計簿[金額],家計簿[年],月比較[[#This Row],[年]],家計簿[月],月比較[[#This Row],[月]],家計簿[勘定科目],月比較[[#Headers],[娯楽費]]) -> 0 | AF58: =SUMIFS(家計簿[金額],家計簿[年],月比較[[#This Row],[年]],家計簿[月],月比較[[#This Row],[月]],家計簿[勘定科目],月比較[[#Headers],[医療費]]) -> 0 | AG58: =SUMIFS(家計簿[金額],家計簿[年],月比較[[#This Row],[年]],家計簿[月],月比較[[#This Row],[月]],家計簿[勘定科目],月比較[[#Headers],[特別出費]]) -> 0
C59: =IF(月比較[[#This Row],[月]]=1,C58+1,C58) -> 2027 | D59: 6 | E59: =DATE(月比較[[#This Row],[年]],月比較[[#This Row],[月]],1) -> 2027-06-01 | F59: =SUMIFS(家計簿[金額],家計簿[年],月比較[[#This Row],[年]],家計簿[月],月比較[[#This Row],[月]],家計簿[収入/支出],月比較[[#Headers],[収入]]) -> 0 | G59: =SUMIFS(家計簿[金額],家計簿[年],月比較[[#This Row],[年]],家計簿[月],月比較[[#This Row],[月]],家計簿[収入/支出],月比較[[#Headers],[支出]]) -> 0 | H59: =SUMIFS(家計簿[金額],家計簿[年],月比較[[#This Row],[年]],家計簿[月],月比較[[#This Row],[月]],家計簿[固定費/変動費],月比較[[#Headers],[固定費]]) -> 0 | I59: =SUMIFS(家計簿[金額],家計簿[年],月比較[[#This Row],[年]],家計簿[月],月比較[[#This Row],[月]],家計簿[固定費/変動費],月比較[[#Headers],[変動費]]) -> 0 | J59: =SUMIFS(家計簿[金額],家計簿[年],月比較[[#This Row],[年]],家計簿[月],月比較[[#This Row],[月]],家計簿[勘定科目],月比較[[#Headers],[給料]]) -> 0 | K59: =SUMIFS(家計簿[金額],家計簿[年],月比較[[#This Row],[年]],家計簿[月],月比較[[#This Row],[月]],家計簿[勘定科目],月比較[[#Headers],[ボーナス]]) -> 0 | L59: =SUMIFS(家計簿[金額],家計簿[年],月比較[[#This Row],[年]],家計簿[月],月比較[[#This Row],[月]],家計簿[勘定科目],月比較[[#Headers],[家賃補助]]) -> 0 | M59: =SUMIFS(家計簿[金額],家計簿[年],月比較[[#This Row],[年]],家計簿[月],月比較[[#This Row],[月]],家計簿[勘定科目],月比較[[#Headers],[児童手当]]) -> 0 | N59: =SUMIFS(家計簿[金額],家計簿[年],月比較[[#This Row],[年]],家計簿[月],月比較[[#This Row],[月]],家計簿[勘定科目],月比較[[#Headers],[配当金]]) -> 0 | O59: =SUMIFS(家計簿[金額],家計簿[年],月比較[[#This Row],[年]],家計簿[月],月比較[[#This Row],[月]],家計簿[勘定科目],月比較[[#Headers],[特別収入]]) -> 0 | P59: =SUMIFS(家計簿[金額],家計簿[年],月比較[[#This Row],[年]],家計簿[月],月比較[[#This Row],[月]],家計簿[勘定科目],月比較[[#Headers],[家賃]]) -> 0 | Q59: =SUMIFS(家計簿[金額],家計簿[年],月比較[[#This Row],[年]],家計簿[月],月比較[[#This Row],[月]],家計簿[勘定科目],月比較[[#Headers],[電気代]]) -> 0 | R59: =SUMIFS(家計簿[金額],家計簿[年],月比較[[#This Row],[年]],家計簿[月],月比較[[#This Row],[月]],家計簿[勘定科目],月比較[[#Headers],[ガス代]]) -> 0 | S59: =SUMIFS(家計簿[金額],家計簿[年],月比較[[#This Row],[年]],家計簿[月],月比較[[#This Row],[月]],家計簿[勘定科目],月比較[[#Headers],[水道代]]) -> 0 | T59: =SUMIFS(家計簿[金額],家計簿[年],月比較[[#This Row],[年]],家計簿[月],月比較[[#This Row],[月]],家計簿[勘定科目],月比較[[#Headers],[通信費]]) -> 0 | U59: =SUMIFS(家計簿[金額],家計簿[年],月比較[[#This Row],[年]],家計簿[月],月比較[[#This Row],[月]],家計簿[勘定科目],月比較[[#Headers],[保険代]]) -> 0 | V59: =SUMIFS(家計簿[金額],家計簿[年],月比較[[#This Row],[年]],家計簿[月],月比較[[#This Row],[月]],家計簿[勘定科目],月比較[[#Headers],[サブスク]]) -> 0 | W59: =SUMIFS(家計簿[金額],家計簿[年],月比較[[#This Row],[年]],家計簿[月],月比較[[#This Row],[月]],家計簿[勘定科目],月比較[[#Headers],[税金（固定資産、自動車）]]) -> 0 | X59: =SUMIFS(家計簿[金額],家計簿[年],月比較[[#This Row],[年]],家計簿[月],月比較[[#This Row],[月]],家計簿[勘定科目],月比較[[#Headers],[食費]]) -> 0 | Y59: =SUMIFS(家計簿[金額],家計簿[年],月比較[[#This Row],[年]],家計簿[月],月比較[[#This Row],[月]],家計簿[勘定科目],月比較[[#Headers],[日用品]]) -> 0 | Z59: =SUMIFS(家計簿[金額],家計簿[年],月比較[[#This Row],[年]],家計簿[月],月比較[[#This Row],[月]],家計簿[勘定科目],月比較[[#Headers],[衣服]]) -> 0 | AA59: =SUMIFS(家計簿[金額],家計簿[年],月比較[[#This Row],[年]],家計簿[月],月比較[[#This Row],[月]],家計簿[勘定科目],月比較[[#Headers],[教育費]]) -> 0 | AB59: =SUMIFS(家計簿[金額],家計簿[年],月比較[[#This Row],[年]],家計簿[月],月比較[[#This Row],[月]],家計簿[勘定科目],月比較[[#Headers],[外食費]]) -> 0 | AC59: =SUMIFS(家計簿[金額],家計簿[年],月比較[[#This Row],[年]],家計簿[月],月比較[[#This Row],[月]],家計簿[勘定科目],月比較[[#Headers],[移動費]]) -> 0 | AD59: =SUMIFS(家計簿[金額],家計簿[年],月比較[[#This Row],[年]],家計簿[月],月比較[[#This Row],[月]],家計簿[勘定科目],月比較[[#Headers],[旅費]]) -> 0 | AE59: =SUMIFS(家計簿[金額],家計簿[年],月比較[[#This Row],[年]],家計簿[月],月比較[[#This Row],[月]],家計簿[勘定科目],月比較[[#Headers],[娯楽費]]) -> 0 | AF59: =SUMIFS(家計簿[金額],家計簿[年],月比較[[#This Row],[年]],家計簿[月],月比較[[#This Row],[月]],家計簿[勘定科目],月比較[[#Headers],[医療費]]) -> 0 | AG59: =SUMIFS(家計簿[金額],家計簿[年],月比較[[#This Row],[年]],家計簿[月],月比較[[#This Row],[月]],家計簿[勘定科目],月比較[[#Headers],[特別出費]]) -> 0
C60: =IF(月比較[[#This Row],[月]]=1,C59+1,C59) -> 2027 | D60: 7 | E60: =DATE(月比較[[#This Row],[年]],月比較[[#This Row],[月]],1) -> 2027-07-01 | F60: =SUMIFS(家計簿[金額],家計簿[年],月比較[[#This Row],[年]],家計簿[月],月比較[[#This Row],[月]],家計簿[収入/支出],月比較[[#Headers],[収入]]) -> 0 | G60: =SUMIFS(家計簿[金額],家計簿[年],月比較[[#This Row],[年]],家計簿[月],月比較[[#This Row],[月]],家計簿[収入/支出],月比較[[#Headers],[支出]]) -> 0 | H60: =SUMIFS(家計簿[金額],家計簿[年],月比較[[#This Row],[年]],家計簿[月],月比較[[#This Row],[月]],家計簿[固定費/変動費],月比較[[#Headers],[固定費]]) -> 0 | I60: =SUMIFS(家計簿[金額],家計簿[年],月比較[[#This Row],[年]],家計簿[月],月比較[[#This Row],[月]],家計簿[固定費/変動費],月比較[[#Headers],[変動費]]) -> 0 | J60: =SUMIFS(家計簿[金額],家計簿[年],月比較[[#This Row],[年]],家計簿[月],月比較[[#This Row],[月]],家計簿[勘定科目],月比較[[#Headers],[給料]]) -> 0 | K60: =SUMIFS(家計簿[金額],家計簿[年],月比較[[#This Row],[年]],家計簿[月],月比較[[#This Row],[月]],家計簿[勘定科目],月比較[[#Headers],[ボーナス]]) -> 0 | L60: =SUMIFS(家計簿[金額],家計簿[年],月比較[[#This Row],[年]],家計簿[月],月比較[[#This Row],[月]],家計簿[勘定科目],月比較[[#Headers],[家賃補助]]) -> 0 | M60: =SUMIFS(家計簿[金額],家計簿[年],月比較[[#This Row],[年]],家計簿[月],月比較[[#This Row],[月]],家計簿[勘定科目],月比較[[#Headers],[児童手当]]) -> 0 | N60: =SUMIFS(家計簿[金額],家計簿[年],月比較[[#This Row],[年]],家計簿[月],月比較[[#This Row],[月]],家計簿[勘定科目],月比較[[#Headers],[配当金]]) -> 0 | O60: =SUMIFS(家計簿[金額],家計簿[年],月比較[[#This Row],[年]],家計簿[月],月比較[[#This Row],[月]],家計簿[勘定科目],月比較[[#Headers],[特別収入]]) -> 0 | P60: =SUMIFS(家計簿[金額],家計簿[年],月比較[[#This Row],[年]],家計簿[月],月比較[[#This Row],[月]],家計簿[勘定科目],月比較[[#Headers],[家賃]]) -> 0 | Q60: =SUMIFS(家計簿[金額],家計簿[年],月比較[[#This Row],[年]],家計簿[月],月比較[[#This Row],[月]],家計簿[勘定科目],月比較[[#Headers],[電気代]]) -> 0 | R60: =SUMIFS(家計簿[金額],家計簿[年],月比較[[#This Row],[年]],家計簿[月],月比較[[#This Row],[月]],家計簿[勘定科目],月比較[[#Headers],[ガス代]]) -> 0 | S60: =SUMIFS(家計簿[金額],家計簿[年],月比較[[#This Row],[年]],家計簿[月],月比較[[#This Row],[月]],家計簿[勘定科目],月比較[[#Headers],[水道代]]) -> 0 | T60: =SUMIFS(家計簿[金額],家計簿[年],月比較[[#This Row],[年]],家計簿[月],月比較[[#This Row],[月]],家計簿[勘定科目],月比較[[#Headers],[通信費]]) -> 0 | U60: =SUMIFS(家計簿[金額],家計簿[年],月比較[[#This Row],[年]],家計簿[月],月比較[[#This Row],[月]],家計簿[勘定科目],月比較[[#Headers],[保険代]]) -> 0 | V60: =SUMIFS(家計簿[金額],家計簿[年],月比較[[#This Row],[年]],家計簿[月],月比較[[#This Row],[月]],家計簿[勘定科目],月比較[[#Headers],[サブスク]]) -> 0 | W60: =SUMIFS(家計簿[金額],家計簿[年],月比較[[#This Row],[年]],家計簿[月],月比較[[#This Row],[月]],家計簿[勘定科目],月比較[[#Headers],[税金（固定資産、自動車）]]) -> 0 | X60: =SUMIFS(家計簿[金額],家計簿[年],月比較[[#This Row],[年]],家計簿[月],月比較[[#This Row],[月]],家計簿[勘定科目],月比較[[#Headers],[食費]]) -> 0 | Y60: =SUMIFS(家計簿[金額],家計簿[年],月比較[[#This Row],[年]],家計簿[月],月比較[[#This Row],[月]],家計簿[勘定科目],月比較[[#Headers],[日用品]]) -> 0 | Z60: =SUMIFS(家計簿[金額],家計簿[年],月比較[[#This Row],[年]],家計簿[月],月比較[[#This Row],[月]],家計簿[勘定科目],月比較[[#Headers],[衣服]]) -> 0 | AA60: =SUMIFS(家計簿[金額],家計簿[年],月比較[[#This Row],[年]],家計簿[月],月比較[[#This Row],[月]],家計簿[勘定科目],月比較[[#Headers],[教育費]]) -> 0 | AB60: =SUMIFS(家計簿[金額],家計簿[年],月比較[[#This Row],[年]],家計簿[月],月比較[[#This Row],[月]],家計簿[勘定科目],月比較[[#Headers],[外食費]]) -> 0 | AC60: =SUMIFS(家計簿[金額],家計簿[年],月比較[[#This Row],[年]],家計簿[月],月比較[[#This Row],[月]],家計簿[勘定科目],月比較[[#Headers],[移動費]]) -> 0 | AD60: =SUMIFS(家計簿[金額],家計簿[年],月比較[[#This Row],[年]],家計簿[月],月比較[[#This Row],[月]],家計簿[勘定科目],月比較[[#Headers],[旅費]]) -> 0 | AE60: =SUMIFS(家計簿[金額],家計簿[年],月比較[[#This Row],[年]],家計簿[月],月比較[[#This Row],[月]],家計簿[勘定科目],月比較[[#Headers],[娯楽費]]) -> 0 | AF60: =SUMIFS(家計簿[金額],家計簿[年],月比較[[#This Row],[年]],家計簿[月],月比較[[#This Row],[月]],家計簿[勘定科目],月比較[[#Headers],[医療費]]) -> 0 | AG60: =SUMIFS(家計簿[金額],家計簿[年],月比較[[#This Row],[年]],家計簿[月],月比較[[#This Row],[月]],家計簿[勘定科目],月比較[[#Headers],[特別出費]]) -> 0
C61: =IF(月比較[[#This Row],[月]]=1,C60+1,C60) -> 2027 | D61: 8 | E61: =DATE(月比較[[#This Row],[年]],月比較[[#This Row],[月]],1) -> 2027-08-01 | F61: =SUMIFS(家計簿[金額],家計簿[年],月比較[[#This Row],[年]],家計簿[月],月比較[[#This Row],[月]],家計簿[収入/支出],月比較[[#Headers],[収入]]) -> 0 | G61: =SUMIFS(家計簿[金額],家計簿[年],月比較[[#This Row],[年]],家計簿[月],月比較[[#This Row],[月]],家計簿[収入/支出],月比較[[#Headers],[支出]]) -> 0 | H61: =SUMIFS(家計簿[金額],家計簿[年],月比較[[#This Row],[年]],家計簿[月],月比較[[#This Row],[月]],家計簿[固定費/変動費],月比較[[#Headers],[固定費]]) -> 0 | I61: =SUMIFS(家計簿[金額],家計簿[年],月比較[[#This Row],[年]],家計簿[月],月比較[[#This Row],[月]],家計簿[固定費/変動費],月比較[[#Headers],[変動費]]) -> 0 | J61: =SUMIFS(家計簿[金額],家計簿[年],月比較[[#This Row],[年]],家計簿[月],月比較[[#This Row],[月]],家計簿[勘定科目],月比較[[#Headers],[給料]]) -> 0 | K61: =SUMIFS(家計簿[金額],家計簿[年],月比較[[#This Row],[年]],家計簿[月],月比較[[#This Row],[月]],家計簿[勘定科目],月比較[[#Headers],[ボーナス]]) -> 0 | L61: =SUMIFS(家計簿[金額],家計簿[年],月比較[[#This Row],[年]],家計簿[月],月比較[[#This Row],[月]],家計簿[勘定科目],月比較[[#Headers],[家賃補助]]) -> 0 | M61: =SUMIFS(家計簿[金額],家計簿[年],月比較[[#This Row],[年]],家計簿[月],月比較[[#This Row],[月]],家計簿[勘定科目],月比較[[#Headers],[児童手当]]) -> 0 | N61: =SUMIFS(家計簿[金額],家計簿[年],月比較[[#This Row],[年]],家計簿[月],月比較[[#This Row],[月]],家計簿[勘定科目],月比較[[#Headers],[配当金]]) -> 0 | O61: =SUMIFS(家計簿[金額],家計簿[年],月比較[[#This Row],[年]],家計簿[月],月比較[[#This Row],[月]],家計簿[勘定科目],月比較[[#Headers],[特別収入]]) -> 0 | P61: =SUMIFS(家計簿[金額],家計簿[年],月比較[[#This Row],[年]],家計簿[月],月比較[[#This Row],[月]],家計簿[勘定科目],月比較[[#Headers],[家賃]]) -> 0 | Q61: =SUMIFS(家計簿[金額],家計簿[年],月比較[[#This Row],[年]],家計簿[月],月比較[[#This Row],[月]],家計簿[勘定科目],月比較[[#Headers],[電気代]]) -> 0 | R61: =SUMIFS(家計簿[金額],家計簿[年],月比較[[#This Row],[年]],家計簿[月],月比較[[#This Row],[月]],家計簿[勘定科目],月比較[[#Headers],[ガス代]]) -> 0 | S61: =SUMIFS(家計簿[金額],家計簿[年],月比較[[#This Row],[年]],家計簿[月],月比較[[#This Row],[月]],家計簿[勘定科目],月比較[[#Headers],[水道代]]) -> 0 | T61: =SUMIFS(家計簿[金額],家計簿[年],月比較[[#This Row],[年]],家計簿[月],月比較[[#This Row],[月]],家計簿[勘定科目],月比較[[#Headers],[通信費]]) -> 0 | U61: =SUMIFS(家計簿[金額],家計簿[年],月比較[[#This Row],[年]],家計簿[月],月比較[[#This Row],[月]],家計簿[勘定科目],月比較[[#Headers],[保険代]]) -> 0 | V61: =SUMIFS(家計簿[金額],家計簿[年],月比較[[#This Row],[年]],家計簿[月],月比較[[#This Row],[月]],家計簿[勘定科目],月比較[[#Headers],[サブスク]]) -> 0 | W61: =SUMIFS(家計簿[金額],家計簿[年],月比較[[#This Row],[年]],家計簿[月],月比較[[#This Row],[月]],家計簿[勘定科目],月比較[[#Headers],[税金（固定資産、自動車）]]) -> 0 | X61: =SUMIFS(家計簿[金額],家計簿[年],月比較[[#This Row],[年]],家計簿[月],月比較[[#This Row],[月]],家計簿[勘定科目],月比較[[#Headers],[食費]]) -> 0 | Y61: =SUMIFS(家計簿[金額],家計簿[年],月比較[[#This Row],[年]],家計簿[月],月比較[[#This Row],[月]],家計簿[勘定科目],月比較[[#Headers],[日用品]]) -> 0 | Z61: =SUMIFS(家計簿[金額],家計簿[年],月比較[[#This Row],[年]],家計簿[月],月比較[[#This Row],[月]],家計簿[勘定科目],月比較[[#Headers],[衣服]]) -> 0 | AA61: =SUMIFS(家計簿[金額],家計簿[年],月比較[[#This Row],[年]],家計簿[月],月比較[[#This Row],[月]],家計簿[勘定科目],月比較[[#Headers],[教育費]]) -> 0 | AB61: =SUMIFS(家計簿[金額],家計簿[年],月比較[[#This Row],[年]],家計簿[月],月比較[[#This Row],[月]],家計簿[勘定科目],月比較[[#Headers],[外食費]]) -> 0 | AC61: =SUMIFS(家計簿[金額],家計簿[年],月比較[[#This Row],[年]],家計簿[月],月比較[[#This Row],[月]],家計簿[勘定科目],月比較[[#Headers],[移動費]]) -> 0 | AD61: =SUMIFS(家計簿[金額],家計簿[年],月比較[[#This Row],[年]],家計簿[月],月比較[[#This Row],[月]],家計簿[勘定科目],月比較[[#Headers],[旅費]]) -> 0 | AE61: =SUMIFS(家計簿[金額],家計簿[年],月比較[[#This Row],[年]],家計簿[月],月比較[[#This Row],[月]],家計簿[勘定科目],月比較[[#Headers],[娯楽費]]) -> 0 | AF61: =SUMIFS(家計簿[金額],家計簿[年],月比較[[#This Row],[年]],家計簿[月],月比較[[#This Row],[月]],家計簿[勘定科目],月比較[[#Headers],[医療費]]) -> 0 | AG61: =SUMIFS(家計簿[金額],家計簿[年],月比較[[#This Row],[年]],家計簿[月],月比較[[#This Row],[月]],家計簿[勘定科目],月比較[[#Headers],[特別出費]]) -> 0
C62: =IF(月比較[[#This Row],[月]]=1,C61+1,C61) -> 2027 | D62: 9 | E62: =DATE(月比較[[#This Row],[年]],月比較[[#This Row],[月]],1) -> 2027-09-01 | F62: =SUMIFS(家計簿[金額],家計簿[年],月比較[[#This Row],[年]],家計簿[月],月比較[[#This Row],[月]],家計簿[収入/支出],月比較[[#Headers],[収入]]) -> 0 | G62: =SUMIFS(家計簿[金額],家計簿[年],月比較[[#This Row],[年]],家計簿[月],月比較[[#This Row],[月]],家計簿[収入/支出],月比較[[#Headers],[支出]]) -> 0 | H62: =SUMIFS(家計簿[金額],家計簿[年],月比較[[#This Row],[年]],家計簿[月],月比較[[#This Row],[月]],家計簿[固定費/変動費],月比較[[#Headers],[固定費]]) -> 0 | I62: =SUMIFS(家計簿[金額],家計簿[年],月比較[[#This Row],[年]],家計簿[月],月比較[[#This Row],[月]],家計簿[固定費/変動費],月比較[[#Headers],[変動費]]) -> 0 | J62: =SUMIFS(家計簿[金額],家計簿[年],月比較[[#This Row],[年]],家計簿[月],月比較[[#This Row],[月]],家計簿[勘定科目],月比較[[#Headers],[給料]]) -> 0 | K62: =SUMIFS(家計簿[金額],家計簿[年],月比較[[#This Row],[年]],家計簿[月],月比較[[#This Row],[月]],家計簿[勘定科目],月比較[[#Headers],[ボーナス]]) -> 0 | L62: =SUMIFS(家計簿[金額],家計簿[年],月比較[[#This Row],[年]],家計簿[月],月比較[[#This Row],[月]],家計簿[勘定科目],月比較[[#Headers],[家賃補助]]) -> 0 | M62: =SUMIFS(家計簿[金額],家計簿[年],月比較[[#This Row],[年]],家計簿[月],月比較[[#This Row],[月]],家計簿[勘定科目],月比較[[#Headers],[児童手当]]) -> 0 | N62: =SUMIFS(家計簿[金額],家計簿[年],月比較[[#This Row],[年]],家計簿[月],月比較[[#This Row],[月]],家計簿[勘定科目],月比較[[#Headers],[配当金]]) -> 0 | O62: =SUMIFS(家計簿[金額],家計簿[年],月比較[[#This Row],[年]],家計簿[月],月比較[[#This Row],[月]],家計簿[勘定科目],月比較[[#Headers],[特別収入]]) -> 0 | P62: =SUMIFS(家計簿[金額],家計簿[年],月比較[[#This Row],[年]],家計簿[月],月比較[[#This Row],[月]],家計簿[勘定科目],月比較[[#Headers],[家賃]]) -> 0 | Q62: =SUMIFS(家計簿[金額],家計簿[年],月比較[[#This Row],[年]],家計簿[月],月比較[[#This Row],[月]],家計簿[勘定科目],月比較[[#Headers],[電気代]]) -> 0 | R62: =SUMIFS(家計簿[金額],家計簿[年],月比較[[#This Row],[年]],家計簿[月],月比較[[#This Row],[月]],家計簿[勘定科目],月比較[[#Headers],[ガス代]]) -> 0 | S62: =SUMIFS(家計簿[金額],家計簿[年],月比較[[#This Row],[年]],家計簿[月],月比較[[#This Row],[月]],家計簿[勘定科目],月比較[[#Headers],[水道代]]) -> 0 | T62: =SUMIFS(家計簿[金額],家計簿[年],月比較[[#This Row],[年]],家計簿[月],月比較[[#This Row],[月]],家計簿[勘定科目],月比較[[#Headers],[通信費]]) -> 0 | U62: =SUMIFS(家計簿[金額],家計簿[年],月比較[[#This Row],[年]],家計簿[月],月比較[[#This Row],[月]],家計簿[勘定科目],月比較[[#Headers],[保険代]]) -> 0 | V62: =SUMIFS(家計簿[金額],家計簿[年],月比較[[#This Row],[年]],家計簿[月],月比較[[#This Row],[月]],家計簿[勘定科目],月比較[[#Headers],[サブスク]]) -> 0 | W62: =SUMIFS(家計簿[金額],家計簿[年],月比較[[#This Row],[年]],家計簿[月],月比較[[#This Row],[月]],家計簿[勘定科目],月比較[[#Headers],[税金（固定資産、自動車）]]) -> 0 | X62: =SUMIFS(家計簿[金額],家計簿[年],月比較[[#This Row],[年]],家計簿[月],月比較[[#This Row],[月]],家計簿[勘定科目],月比較[[#Headers],[食費]]) -> 0 | Y62: =SUMIFS(家計簿[金額],家計簿[年],月比較[[#This Row],[年]],家計簿[月],月比較[[#This Row],[月]],家計簿[勘定科目],月比較[[#Headers],[日用品]]) -> 0 | Z62: =SUMIFS(家計簿[金額],家計簿[年],月比較[[#This Row],[年]],家計簿[月],月比較[[#This Row],[月]],家計簿[勘定科目],月比較[[#Headers],[衣服]]) -> 0 | AA62: =SUMIFS(家計簿[金額],家計簿[年],月比較[[#This Row],[年]],家計簿[月],月比較[[#This Row],[月]],家計簿[勘定科目],月比較[[#Headers],[教育費]]) -> 0 | AB62: =SUMIFS(家計簿[金額],家計簿[年],月比較[[#This Row],[年]],家計簿[月],月比較[[#This Row],[月]],家計簿[勘定科目],月比較[[#Headers],[外食費]]) -> 0 | AC62: =SUMIFS(家計簿[金額],家計簿[年],月比較[[#This Row],[年]],家計簿[月],月比較[[#This Row],[月]],家計簿[勘定科目],月比較[[#Headers],[移動費]]) -> 0 | AD62: =SUMIFS(家計簿[金額],家計簿[年],月比較[[#This Row],[年]],家計簿[月],月比較[[#This Row],[月]],家計簿[勘定科目],月比較[[#Headers],[旅費]]) -> 0 | AE62: =SUMIFS(家計簿[金額],家計簿[年],月比較[[#This Row],[年]],家計簿[月],月比較[[#This Row],[月]],家計簿[勘定科目],月比較[[#Headers],[娯楽費]]) -> 0 | AF62: =SUMIFS(家計簿[金額],家計簿[年],月比較[[#This Row],[年]],家計簿[月],月比較[[#This Row],[月]],家計簿[勘定科目],月比較[[#Headers],[医療費]]) -> 0 | AG62: =SUMIFS(家計簿[金額],家計簿[年],月比較[[#This Row],[年]],家計簿[月],月比較[[#This Row],[月]],家計簿[勘定科目],月比較[[#Headers],[特別出費]]) -> 0
C63: =IF(月比較[[#This Row],[月]]=1,C62+1,C62) -> 2027 | D63: 10 | E63: =DATE(月比較[[#This Row],[年]],月比較[[#This Row],[月]],1) -> 2027-10-01 | F63: =SUMIFS(家計簿[金額],家計簿[年],月比較[[#This Row],[年]],家計簿[月],月比較[[#This Row],[月]],家計簿[収入/支出],月比較[[#Headers],[収入]]) -> 0 | G63: =SUMIFS(家計簿[金額],家計簿[年],月比較[[#This Row],[年]],家計簿[月],月比較[[#This Row],[月]],家計簿[収入/支出],月比較[[#Headers],[支出]]) -> 0 | H63: =SUMIFS(家計簿[金額],家計簿[年],月比較[[#This Row],[年]],家計簿[月],月比較[[#This Row],[月]],家計簿[固定費/変動費],月比較[[#Headers],[固定費]]) -> 0 | I63: =SUMIFS(家計簿[金額],家計簿[年],月比較[[#This Row],[年]],家計簿[月],月比較[[#This Row],[月]],家計簿[固定費/変動費],月比較[[#Headers],[変動費]]) -> 0 | J63: =SUMIFS(家計簿[金額],家計簿[年],月比較[[#This Row],[年]],家計簿[月],月比較[[#This Row],[月]],家計簿[勘定科目],月比較[[#Headers],[給料]]) -> 0 | K63: =SUMIFS(家計簿[金額],家計簿[年],月比較[[#This Row],[年]],家計簿[月],月比較[[#This Row],[月]],家計簿[勘定科目],月比較[[#Headers],[ボーナス]]) -> 0 | L63: =SUMIFS(家計簿[金額],家計簿[年],月比較[[#This Row],[年]],家計簿[月],月比較[[#This Row],[月]],家計簿[勘定科目],月比較[[#Headers],[家賃補助]]) -> 0 | M63: =SUMIFS(家計簿[金額],家計簿[年],月比較[[#This Row],[年]],家計簿[月],月比較[[#This Row],[月]],家計簿[勘定科目],月比較[[#Headers],[児童手当]]) -> 0 | N63: =SUMIFS(家計簿[金額],家計簿[年],月比較[[#This Row],[年]],家計簿[月],月比較[[#This Row],[月]],家計簿[勘定科目],月比較[[#Headers],[配当金]]) -> 0 | O63: =SUMIFS(家計簿[金額],家計簿[年],月比較[[#This Row],[年]],家計簿[月],月比較[[#This Row],[月]],家計簿[勘定科目],月比較[[#Headers],[特別収入]]) -> 0 | P63: =SUMIFS(家計簿[金額],家計簿[年],月比較[[#This Row],[年]],家計簿[月],月比較[[#This Row],[月]],家計簿[勘定科目],月比較[[#Headers],[家賃]]) -> 0 | Q63: =SUMIFS(家計簿[金額],家計簿[年],月比較[[#This Row],[年]],家計簿[月],月比較[[#This Row],[月]],家計簿[勘定科目],月比較[[#Headers],[電気代]]) -> 0 | R63: =SUMIFS(家計簿[金額],家計簿[年],月比較[[#This Row],[年]],家計簿[月],月比較[[#This Row],[月]],家計簿[勘定科目],月比較[[#Headers],[ガス代]]) -> 0 | S63: =SUMIFS(家計簿[金額],家計簿[年],月比較[[#This Row],[年]],家計簿[月],月比較[[#This Row],[月]],家計簿[勘定科目],月比較[[#Headers],[水道代]]) -> 0 | T63: =SUMIFS(家計簿[金額],家計簿[年],月比較[[#This Row],[年]],家計簿[月],月比較[[#This Row],[月]],家計簿[勘定科目],月比較[[#Headers],[通信費]]) -> 0 | U63: =SUMIFS(家計簿[金額],家計簿[年],月比較[[#This Row],[年]],家計簿[月],月比較[[#This Row],[月]],家計簿[勘定科目],月比較[[#Headers],[保険代]]) -> 0 | V63: =SUMIFS(家計簿[金額],家計簿[年],月比較[[#This Row],[年]],家計簿[月],月比較[[#This Row],[月]],家計簿[勘定科目],月比較[[#Headers],[サブスク]]) -> 0 | W63: =SUMIFS(家計簿[金額],家計簿[年],月比較[[#This Row],[年]],家計簿[月],月比較[[#This Row],[月]],家計簿[勘定科目],月比較[[#Headers],[税金（固定資産、自動車）]]) -> 0 | X63: =SUMIFS(家計簿[金額],家計簿[年],月比較[[#This Row],[年]],家計簿[月],月比較[[#This Row],[月]],家計簿[勘定科目],月比較[[#Headers],[食費]]) -> 0 | Y63: =SUMIFS(家計簿[金額],家計簿[年],月比較[[#This Row],[年]],家計簿[月],月比較[[#This Row],[月]],家計簿[勘定科目],月比較[[#Headers],[日用品]]) -> 0 | Z63: =SUMIFS(家計簿[金額],家計簿[年],月比較[[#This Row],[年]],家計簿[月],月比較[[#This Row],[月]],家計簿[勘定科目],月比較[[#Headers],[衣服]]) -> 0 | AA63: =SUMIFS(家計簿[金額],家計簿[年],月比較[[#This Row],[年]],家計簿[月],月比較[[#This Row],[月]],家計簿[勘定科目],月比較[[#Headers],[教育費]]) -> 0 | AB63: =SUMIFS(家計簿[金額],家計簿[年],月比較[[#This Row],[年]],家計簿[月],月比較[[#This Row],[月]],家計簿[勘定科目],月比較[[#Headers],[外食費]]) -> 0 | AC63: =SUMIFS(家計簿[金額],家計簿[年],月比較[[#This Row],[年]],家計簿[月],月比較[[#This Row],[月]],家計簿[勘定科目],月比較[[#Headers],[移動費]]) -> 0 | AD63: =SUMIFS(家計簿[金額],家計簿[年],月比較[[#This Row],[年]],家計簿[月],月比較[[#This Row],[月]],家計簿[勘定科目],月比較[[#Headers],[旅費]]) -> 0 | AE63: =SUMIFS(家計簿[金額],家計簿[年],月比較[[#This Row],[年]],家計簿[月],月比較[[#This Row],[月]],家計簿[勘定科目],月比較[[#Headers],[娯楽費]]) -> 0 | AF63: =SUMIFS(家計簿[金額],家計簿[年],月比較[[#This Row],[年]],家計簿[月],月比較[[#This Row],[月]],家計簿[勘定科目],月比較[[#Headers],[医療費]]) -> 0 | AG63: =SUMIFS(家計簿[金額],家計簿[年],月比較[[#This Row],[年]],家計簿[月],月比較[[#This Row],[月]],家計簿[勘定科目],月比較[[#Headers],[特別出費]]) -> 0
C64: =IF(月比較[[#This Row],[月]]=1,C63+1,C63) -> 2027 | D64: 11 | E64: =DATE(月比較[[#This Row],[年]],月比較[[#This Row],[月]],1) -> 2027-11-01 | F64: =SUMIFS(家計簿[金額],家計簿[年],月比較[[#This Row],[年]],家計簿[月],月比較[[#This Row],[月]],家計簿[収入/支出],月比較[[#Headers],[収入]]) -> 0 | G64: =SUMIFS(家計簿[金額],家計簿[年],月比較[[#This Row],[年]],家計簿[月],月比較[[#This Row],[月]],家計簿[収入/支出],月比較[[#Headers],[支出]]) -> 0 | H64: =SUMIFS(家計簿[金額],家計簿[年],月比較[[#This Row],[年]],家計簿[月],月比較[[#This Row],[月]],家計簿[固定費/変動費],月比較[[#Headers],[固定費]]) -> 0 | I64: =SUMIFS(家計簿[金額],家計簿[年],月比較[[#This Row],[年]],家計簿[月],月比較[[#This Row],[月]],家計簿[固定費/変動費],月比較[[#Headers],[変動費]]) -> 0 | J64: =SUMIFS(家計簿[金額],家計簿[年],月比較[[#This Row],[年]],家計簿[月],月比較[[#This Row],[月]],家計簿[勘定科目],月比較[[#Headers],[給料]]) -> 0 | K64: =SUMIFS(家計簿[金額],家計簿[年],月比較[[#This Row],[年]],家計簿[月],月比較[[#This Row],[月]],家計簿[勘定科目],月比較[[#Headers],[ボーナス]]) -> 0 | L64: =SUMIFS(家計簿[金額],家計簿[年],月比較[[#This Row],[年]],家計簿[月],月比較[[#This Row],[月]],家計簿[勘定科目],月比較[[#Headers],[家賃補助]]) -> 0 | M64: =SUMIFS(家計簿[金額],家計簿[年],月比較[[#This Row],[年]],家計簿[月],月比較[[#This Row],[月]],家計簿[勘定科目],月比較[[#Headers],[児童手当]]) -> 0 | N64: =SUMIFS(家計簿[金額],家計簿[年],月比較[[#This Row],[年]],家計簿[月],月比較[[#This Row],[月]],家計簿[勘定科目],月比較[[#Headers],[配当金]]) -> 0 | O64: =SUMIFS(家計簿[金額],家計簿[年],月比較[[#This Row],[年]],家計簿[月],月比較[[#This Row],[月]],家計簿[勘定科目],月比較[[#Headers],[特別収入]]) -> 0 | P64: =SUMIFS(家計簿[金額],家計簿[年],月比較[[#This Row],[年]],家計簿[月],月比較[[#This Row],[月]],家計簿[勘定科目],月比較[[#Headers],[家賃]]) -> 0 | Q64: =SUMIFS(家計簿[金額],家計簿[年],月比較[[#This Row],[年]],家計簿[月],月比較[[#This Row],[月]],家計簿[勘定科目],月比較[[#Headers],[電気代]]) -> 0 | R64: =SUMIFS(家計簿[金額],家計簿[年],月比較[[#This Row],[年]],家計簿[月],月比較[[#This Row],[月]],家計簿[勘定科目],月比較[[#Headers],[ガス代]]) -> 0 | S64: =SUMIFS(家計簿[金額],家計簿[年],月比較[[#This Row],[年]],家計簿[月],月比較[[#This Row],[月]],家計簿[勘定科目],月比較[[#Headers],[水道代]]) -> 0 | T64: =SUMIFS(家計簿[金額],家計簿[年],月比較[[#This Row],[年]],家計簿[月],月比較[[#This Row],[月]],家計簿[勘定科目],月比較[[#Headers],[通信費]]) -> 0 | U64: =SUMIFS(家計簿[金額],家計簿[年],月比較[[#This Row],[年]],家計簿[月],月比較[[#This Row],[月]],家計簿[勘定科目],月比較[[#Headers],[保険代]]) -> 0 | V64: =SUMIFS(家計簿[金額],家計簿[年],月比較[[#This Row],[年]],家計簿[月],月比較[[#This Row],[月]],家計簿[勘定科目],月比較[[#Headers],[サブスク]]) -> 0 | W64: =SUMIFS(家計簿[金額],家計簿[年],月比較[[#This Row],[年]],家計簿[月],月比較[[#This Row],[月]],家計簿[勘定科目],月比較[[#Headers],[税金（固定資産、自動車）]]) -> 0 | X64: =SUMIFS(家計簿[金額],家計簿[年],月比較[[#This Row],[年]],家計簿[月],月比較[[#This Row],[月]],家計簿[勘定科目],月比較[[#Headers],[食費]]) -> 0 | Y64: =SUMIFS(家計簿[金額],家計簿[年],月比較[[#This Row],[年]],家計簿[月],月比較[[#This Row],[月]],家計簿[勘定科目],月比較[[#Headers],[日用品]]) -> 0 | Z64: =SUMIFS(家計簿[金額],家計簿[年],月比較[[#This Row],[年]],家計簿[月],月比較[[#This Row],[月]],家計簿[勘定科目],月比較[[#Headers],[衣服]]) -> 0 | AA64: =SUMIFS(家計簿[金額],家計簿[年],月比較[[#This Row],[年]],家計簿[月],月比較[[#This Row],[月]],家計簿[勘定科目],月比較[[#Headers],[教育費]]) -> 0 | AB64: =SUMIFS(家計簿[金額],家計簿[年],月比較[[#This Row],[年]],家計簿[月],月比較[[#This Row],[月]],家計簿[勘定科目],月比較[[#Headers],[外食費]]) -> 0 | AC64: =SUMIFS(家計簿[金額],家計簿[年],月比較[[#This Row],[年]],家計簿[月],月比較[[#This Row],[月]],家計簿[勘定科目],月比較[[#Headers],[移動費]]) -> 0 | AD64: =SUMIFS(家計簿[金額],家計簿[年],月比較[[#This Row],[年]],家計簿[月],月比較[[#This Row],[月]],家計簿[勘定科目],月比較[[#Headers],[旅費]]) -> 0 | AE64: =SUMIFS(家計簿[金額],家計簿[年],月比較[[#This Row],[年]],家計簿[月],月比較[[#This Row],[月]],家計簿[勘定科目],月比較[[#Headers],[娯楽費]]) -> 0 | AF64: =SUMIFS(家計簿[金額],家計簿[年],月比較[[#This Row],[年]],家計簿[月],月比較[[#This Row],[月]],家計簿[勘定科目],月比較[[#Headers],[医療費]]) -> 0 | AG64: =SUMIFS(家計簿[金額],家計簿[年],月比較[[#This Row],[年]],家計簿[月],月比較[[#This Row],[月]],家計簿[勘定科目],月比較[[#Headers],[特別出費]]) -> 0
C65: =IF(月比較[[#This Row],[月]]=1,C64+1,C64) -> 2027 | D65: 12 | E65: =DATE(月比較[[#This Row],[年]],月比較[[#This Row],[月]],1) -> 2027-12-01 | F65: =SUMIFS(家計簿[金額],家計簿[年],月比較[[#This Row],[年]],家計簿[月],月比較[[#This Row],[月]],家計簿[収入/支出],月比較[[#Headers],[収入]]) -> 0 | G65: =SUMIFS(家計簿[金額],家計簿[年],月比較[[#This Row],[年]],家計簿[月],月比較[[#This Row],[月]],家計簿[収入/支出],月比較[[#Headers],[支出]]) -> 0 | H65: =SUMIFS(家計簿[金額],家計簿[年],月比較[[#This Row],[年]],家計簿[月],月比較[[#This Row],[月]],家計簿[固定費/変動費],月比較[[#Headers],[固定費]]) -> 0 | I65: =SUMIFS(家計簿[金額],家計簿[年],月比較[[#This Row],[年]],家計簿[月],月比較[[#This Row],[月]],家計簿[固定費/変動費],月比較[[#Headers],[変動費]]) -> 0 | J65: =SUMIFS(家計簿[金額],家計簿[年],月比較[[#This Row],[年]],家計簿[月],月比較[[#This Row],[月]],家計簿[勘定科目],月比較[[#Headers],[給料]]) -> 0 | K65: =SUMIFS(家計簿[金額],家計簿[年],月比較[[#This Row],[年]],家計簿[月],月比較[[#This Row],[月]],家計簿[勘定科目],月比較[[#Headers],[ボーナス]]) -> 0 | L65: =SUMIFS(家計簿[金額],家計簿[年],月比較[[#This Row],[年]],家計簿[月],月比較[[#This Row],[月]],家計簿[勘定科目],月比較[[#Headers],[家賃補助]]) -> 0 | M65: =SUMIFS(家計簿[金額],家計簿[年],月比較[[#This Row],[年]],家計簿[月],月比較[[#This Row],[月]],家計簿[勘定科目],月比較[[#Headers],[児童手当]]) -> 0 | N65: =SUMIFS(家計簿[金額],家計簿[年],月比較[[#This Row],[年]],家計簿[月],月比較[[#This Row],[月]],家計簿[勘定科目],月比較[[#Headers],[配当金]]) -> 0 | O65: =SUMIFS(家計簿[金額],家計簿[年],月比較[[#This Row],[年]],家計簿[月],月比較[[#This Row],[月]],家計簿[勘定科目],月比較[[#Headers],[特別収入]]) -> 0 | P65: =SUMIFS(家計簿[金額],家計簿[年],月比較[[#This Row],[年]],家計簿[月],月比較[[#This Row],[月]],家計簿[勘定科目],月比較[[#Headers],[家賃]]) -> 0 | Q65: =SUMIFS(家計簿[金額],家計簿[年],月比較[[#This Row],[年]],家計簿[月],月比較[[#This Row],[月]],家計簿[勘定科目],月比較[[#Headers],[電気代]]) -> 0 | R65: =SUMIFS(家計簿[金額],家計簿[年],月比較[[#This Row],[年]],家計簿[月],月比較[[#This Row],[月]],家計簿[勘定科目],月比較[[#Headers],[ガス代]]) -> 0 | S65: =SUMIFS(家計簿[金額],家計簿[年],月比較[[#This Row],[年]],家計簿[月],月比較[[#This Row],[月]],家計簿[勘定科目],月比較[[#Headers],[水道代]]) -> 0 | T65: =SUMIFS(家計簿[金額],家計簿[年],月比較[[#This Row],[年]],家計簿[月],月比較[[#This Row],[月]],家計簿[勘定科目],月比較[[#Headers],[通信費]]) -> 0 | U65: =SUMIFS(家計簿[金額],家計簿[年],月比較[[#This Row],[年]],家計簿[月],月比較[[#This Row],[月]],家計簿[勘定科目],月比較[[#Headers],[保険代]]) -> 0 | V65: =SUMIFS(家計簿[金額],家計簿[年],月比較[[#This Row],[年]],家計簿[月],月比較[[#This Row],[月]],家計簿[勘定科目],月比較[[#Headers],[サブスク]]) -> 0 | W65: =SUMIFS(家計簿[金額],家計簿[年],月比較[[#This Row],[年]],家計簿[月],月比較[[#This Row],[月]],家計簿[勘定科目],月比較[[#Headers],[税金（固定資産、自動車）]]) -> 0 | X65: =SUMIFS(家計簿[金額],家計簿[年],月比較[[#This Row],[年]],家計簿[月],月比較[[#This Row],[月]],家計簿[勘定科目],月比較[[#Headers],[食費]]) -> 0 | Y65: =SUMIFS(家計簿[金額],家計簿[年],月比較[[#This Row],[年]],家計簿[月],月比較[[#This Row],[月]],家計簿[勘定科目],月比較[[#Headers],[日用品]]) -> 0 | Z65: =SUMIFS(家計簿[金額],家計簿[年],月比較[[#This Row],[年]],家計簿[月],月比較[[#This Row],[月]],家計簿[勘定科目],月比較[[#Headers],[衣服]]) -> 0 | AA65: =SUMIFS(家計簿[金額],家計簿[年],月比較[[#This Row],[年]],家計簿[月],月比較[[#This Row],[月]],家計簿[勘定科目],月比較[[#Headers],[教育費]]) -> 0 | AB65: =SUMIFS(家計簿[金額],家計簿[年],月比較[[#This Row],[年]],家計簿[月],月比較[[#This Row],[月]],家計簿[勘定科目],月比較[[#Headers],[外食費]]) -> 0 | AC65: =SUMIFS(家計簿[金額],家計簿[年],月比較[[#This Row],[年]],家計簿[月],月比較[[#This Row],[月]],家計簿[勘定科目],月比較[[#Headers],[移動費]]) -> 0 | AD65: =SUMIFS(家計簿[金額],家計簿[年],月比較[[#This Row],[年]],家計簿[月],月比較[[#This Row],[月]],家計簿[勘定科目],月比較[[#Headers],[旅費]]) -> 0 | AE65: =SUMIFS(家計簿[金額],家計簿[年],月比較[[#This Row],[年]],家計簿[月],月比較[[#This Row],[月]],家計簿[勘定科目],月比較[[#Headers],[娯楽費]]) -> 0 | AF65: =SUMIFS(家計簿[金額],家計簿[年],月比較[[#This Row],[年]],家計簿[月],月比較[[#This Row],[月]],家計簿[勘定科目],月比較[[#Headers],[医療費]]) -> 0 | AG65: =SUMIFS(家計簿[金額],家計簿[年],月比較[[#This Row],[年]],家計簿[月],月比較[[#This Row],[月]],家計簿[勘定科目],月比較[[#Headers],[特別出費]]) -> 0
C66: =IF(月比較[[#This Row],[月]]=1,C65+1,C65) -> 2028 | D66: 1 | E66: =DATE(月比較[[#This Row],[年]],月比較[[#This Row],[月]],1) -> 2028-01-01 | F66: =SUMIFS(家計簿[金額],家計簿[年],月比較[[#This Row],[年]],家計簿[月],月比較[[#This Row],[月]],家計簿[収入/支出],月比較[[#Headers],[収入]]) -> 0 | G66: =SUMIFS(家計簿[金額],家計簿[年],月比較[[#This Row],[年]],家計簿[月],月比較[[#This Row],[月]],家計簿[収入/支出],月比較[[#Headers],[支出]]) -> 0 | H66: =SUMIFS(家計簿[金額],家計簿[年],月比較[[#This Row],[年]],家計簿[月],月比較[[#This Row],[月]],家計簿[固定費/変動費],月比較[[#Headers],[固定費]]) -> 0 | I66: =SUMIFS(家計簿[金額],家計簿[年],月比較[[#This Row],[年]],家計簿[月],月比較[[#This Row],[月]],家計簿[固定費/変動費],月比較[[#Headers],[変動費]]) -> 0 | J66: =SUMIFS(家計簿[金額],家計簿[年],月比較[[#This Row],[年]],家計簿[月],月比較[[#This Row],[月]],家計簿[勘定科目],月比較[[#Headers],[給料]]) -> 0 | K66: =SUMIFS(家計簿[金額],家計簿[年],月比較[[#This Row],[年]],家計簿[月],月比較[[#This Row],[月]],家計簿[勘定科目],月比較[[#Headers],[ボーナス]]) -> 0 | L66: =SUMIFS(家計簿[金額],家計簿[年],月比較[[#This Row],[年]],家計簿[月],月比較[[#This Row],[月]],家計簿[勘定科目],月比較[[#Headers],[家賃補助]]) -> 0 | M66: =SUMIFS(家計簿[金額],家計簿[年],月比較[[#This Row],[年]],家計簿[月],月比較[[#This Row],[月]],家計簿[勘定科目],月比較[[#Headers],[児童手当]]) -> 0 | N66: =SUMIFS(家計簿[金額],家計簿[年],月比較[[#This Row],[年]],家計簿[月],月比較[[#This Row],[月]],家計簿[勘定科目],月比較[[#Headers],[配当金]]) -> 0 | O66: =SUMIFS(家計簿[金額],家計簿[年],月比較[[#This Row],[年]],家計簿[月],月比較[[#This Row],[月]],家計簿[勘定科目],月比較[[#Headers],[特別収入]]) -> 0 | P66: =SUMIFS(家計簿[金額],家計簿[年],月比較[[#This Row],[年]],家計簿[月],月比較[[#This Row],[月]],家計簿[勘定科目],月比較[[#Headers],[家賃]]) -> 0 | Q66: =SUMIFS(家計簿[金額],家計簿[年],月比較[[#This Row],[年]],家計簿[月],月比較[[#This Row],[月]],家計簿[勘定科目],月比較[[#Headers],[電気代]]) -> 0 | R66: =SUMIFS(家計簿[金額],家計簿[年],月比較[[#This Row],[年]],家計簿[月],月比較[[#This Row],[月]],家計簿[勘定科目],月比較[[#Headers],[ガス代]]) -> 0 | S66: =SUMIFS(家計簿[金額],家計簿[年],月比較[[#This Row],[年]],家計簿[月],月比較[[#This Row],[月]],家計簿[勘定科目],月比較[[#Headers],[水道代]]) -> 0 | T66: =SUMIFS(家計簿[金額],家計簿[年],月比較[[#This Row],[年]],家計簿[月],月比較[[#This Row],[月]],家計簿[勘定科目],月比較[[#Headers],[通信費]]) -> 0 | U66: =SUMIFS(家計簿[金額],家計簿[年],月比較[[#This Row],[年]],家計簿[月],月比較[[#This Row],[月]],家計簿[勘定科目],月比較[[#Headers],[保険代]]) -> 0 | V66: =SUMIFS(家計簿[金額],家計簿[年],月比較[[#This Row],[年]],家計簿[月],月比較[[#This Row],[月]],家計簿[勘定科目],月比較[[#Headers],[サブスク]]) -> 0 | W66: =SUMIFS(家計簿[金額],家計簿[年],月比較[[#This Row],[年]],家計簿[月],月比較[[#This Row],[月]],家計簿[勘定科目],月比較[[#Headers],[税金（固定資産、自動車）]]) -> 0 | X66: =SUMIFS(家計簿[金額],家計簿[年],月比較[[#This Row],[年]],家計簿[月],月比較[[#This Row],[月]],家計簿[勘定科目],月比較[[#Headers],[食費]]) -> 0 | Y66: =SUMIFS(家計簿[金額],家計簿[年],月比較[[#This Row],[年]],家計簿[月],月比較[[#This Row],[月]],家計簿[勘定科目],月比較[[#Headers],[日用品]]) -> 0 | Z66: =SUMIFS(家計簿[金額],家計簿[年],月比較[[#This Row],[年]],家計簿[月],月比較[[#This Row],[月]],家計簿[勘定科目],月比較[[#Headers],[衣服]]) -> 0 | AA66: =SUMIFS(家計簿[金額],家計簿[年],月比較[[#This Row],[年]],家計簿[月],月比較[[#This Row],[月]],家計簿[勘定科目],月比較[[#Headers],[教育費]]) -> 0 | AB66: =SUMIFS(家計簿[金額],家計簿[年],月比較[[#This Row],[年]],家計簿[月],月比較[[#This Row],[月]],家計簿[勘定科目],月比較[[#Headers],[外食費]]) -> 0 | AC66: =SUMIFS(家計簿[金額],家計簿[年],月比較[[#This Row],[年]],家計簿[月],月比較[[#This Row],[月]],家計簿[勘定科目],月比較[[#Headers],[移動費]]) -> 0 | AD66: =SUMIFS(家計簿[金額],家計簿[年],月比較[[#This Row],[年]],家計簿[月],月比較[[#This Row],[月]],家計簿[勘定科目],月比較[[#Headers],[旅費]]) -> 0 | AE66: =SUMIFS(家計簿[金額],家計簿[年],月比較[[#This Row],[年]],家計簿[月],月比較[[#This Row],[月]],家計簿[勘定科目],月比較[[#Headers],[娯楽費]]) -> 0 | AF66: =SUMIFS(家計簿[金額],家計簿[年],月比較[[#This Row],[年]],家計簿[月],月比較[[#This Row],[月]],家計簿[勘定科目],月比較[[#Headers],[医療費]]) -> 0 | AG66: =SUMIFS(家計簿[金額],家計簿[年],月比較[[#This Row],[年]],家計簿[月],月比較[[#This Row],[月]],家計簿[勘定科目],月比較[[#Headers],[特別出費]]) -> 0
C67: =IF(月比較[[#This Row],[月]]=1,C66+1,C66) -> 2028 | D67: 2 | E67: =DATE(月比較[[#This Row],[年]],月比較[[#This Row],[月]],1) -> 2028-02-01 | F67: =SUMIFS(家計簿[金額],家計簿[年],月比較[[#This Row],[年]],家計簿[月],月比較[[#This Row],[月]],家計簿[収入/支出],月比較[[#Headers],[収入]]) -> 0 | G67: =SUMIFS(家計簿[金額],家計簿[年],月比較[[#This Row],[年]],家計簿[月],月比較[[#This Row],[月]],家計簿[収入/支出],月比較[[#Headers],[支出]]) -> 0 | H67: =SUMIFS(家計簿[金額],家計簿[年],月比較[[#This Row],[年]],家計簿[月],月比較[[#This Row],[月]],家計簿[固定費/変動費],月比較[[#Headers],[固定費]]) -> 0 | I67: =SUMIFS(家計簿[金額],家計簿[年],月比較[[#This Row],[年]],家計簿[月],月比較[[#This Row],[月]],家計簿[固定費/変動費],月比較[[#Headers],[変動費]]) -> 0 | J67: =SUMIFS(家計簿[金額],家計簿[年],月比較[[#This Row],[年]],家計簿[月],月比較[[#This Row],[月]],家計簿[勘定科目],月比較[[#Headers],[給料]]) -> 0 | K67: =SUMIFS(家計簿[金額],家計簿[年],月比較[[#This Row],[年]],家計簿[月],月比較[[#This Row],[月]],家計簿[勘定科目],月比較[[#Headers],[ボーナス]]) -> 0 | L67: =SUMIFS(家計簿[金額],家計簿[年],月比較[[#This Row],[年]],家計簿[月],月比較[[#This Row],[月]],家計簿[勘定科目],月比較[[#Headers],[家賃補助]]) -> 0 | M67: =SUMIFS(家計簿[金額],家計簿[年],月比較[[#This Row],[年]],家計簿[月],月比較[[#This Row],[月]],家計簿[勘定科目],月比較[[#Headers],[児童手当]]) -> 0 | N67: =SUMIFS(家計簿[金額],家計簿[年],月比較[[#This Row],[年]],家計簿[月],月比較[[#This Row],[月]],家計簿[勘定科目],月比較[[#Headers],[配当金]]) -> 0 | O67: =SUMIFS(家計簿[金額],家計簿[年],月比較[[#This Row],[年]],家計簿[月],月比較[[#This Row],[月]],家計簿[勘定科目],月比較[[#Headers],[特別収入]]) -> 0 | P67: =SUMIFS(家計簿[金額],家計簿[年],月比較[[#This Row],[年]],家計簿[月],月比較[[#This Row],[月]],家計簿[勘定科目],月比較[[#Headers],[家賃]]) -> 0 | Q67: =SUMIFS(家計簿[金額],家計簿[年],月比較[[#This Row],[年]],家計簿[月],月比較[[#This Row],[月]],家計簿[勘定科目],月比較[[#Headers],[電気代]]) -> 0 | R67: =SUMIFS(家計簿[金額],家計簿[年],月比較[[#This Row],[年]],家計簿[月],月比較[[#This Row],[月]],家計簿[勘定科目],月比較[[#Headers],[ガス代]]) -> 0 | S67: =SUMIFS(家計簿[金額],家計簿[年],月比較[[#This Row],[年]],家計簿[月],月比較[[#This Row],[月]],家計簿[勘定科目],月比較[[#Headers],[水道代]]) -> 0 | T67: =SUMIFS(家計簿[金額],家計簿[年],月比較[[#This Row],[年]],家計簿[月],月比較[[#This Row],[月]],家計簿[勘定科目],月比較[[#Headers],[通信費]]) -> 0 | U67: =SUMIFS(家計簿[金額],家計簿[年],月比較[[#This Row],[年]],家計簿[月],月比較[[#This Row],[月]],家計簿[勘定科目],月比較[[#Headers],[保険代]]) -> 0 | V67: =SUMIFS(家計簿[金額],家計簿[年],月比較[[#This Row],[年]],家計簿[月],月比較[[#This Row],[月]],家計簿[勘定科目],月比較[[#Headers],[サブスク]]) -> 0 | W67: =SUMIFS(家計簿[金額],家計簿[年],月比較[[#This Row],[年]],家計簿[月],月比較[[#This Row],[月]],家計簿[勘定科目],月比較[[#Headers],[税金（固定資産、自動車）]]) -> 0 | X67: =SUMIFS(家計簿[金額],家計簿[年],月比較[[#This Row],[年]],家計簿[月],月比較[[#This Row],[月]],家計簿[勘定科目],月比較[[#Headers],[食費]]) -> 0 | Y67: =SUMIFS(家計簿[金額],家計簿[年],月比較[[#This Row],[年]],家計簿[月],月比較[[#This Row],[月]],家計簿[勘定科目],月比較[[#Headers],[日用品]]) -> 0 | Z67: =SUMIFS(家計簿[金額],家計簿[年],月比較[[#This Row],[年]],家計簿[月],月比較[[#This Row],[月]],家計簿[勘定科目],月比較[[#Headers],[衣服]]) -> 0 | AA67: =SUMIFS(家計簿[金額],家計簿[年],月比較[[#This Row],[年]],家計簿[月],月比較[[#This Row],[月]],家計簿[勘定科目],月比較[[#Headers],[教育費]]) -> 0 | AB67: =SUMIFS(家計簿[金額],家計簿[年],月比較[[#This Row],[年]],家計簿[月],月比較[[#This Row],[月]],家計簿[勘定科目],月比較[[#Headers],[外食費]]) -> 0 | AC67: =SUMIFS(家計簿[金額],家計簿[年],月比較[[#This Row],[年]],家計簿[月],月比較[[#This Row],[月]],家計簿[勘定科目],月比較[[#Headers],[移動費]]) -> 0 | AD67: =SUMIFS(家計簿[金額],家計簿[年],月比較[[#This Row],[年]],家計簿[月],月比較[[#This Row],[月]],家計簿[勘定科目],月比較[[#Headers],[旅費]]) -> 0 | AE67: =SUMIFS(家計簿[金額],家計簿[年],月比較[[#This Row],[年]],家計簿[月],月比較[[#This Row],[月]],家計簿[勘定科目],月比較[[#Headers],[娯楽費]]) -> 0 | AF67: =SUMIFS(家計簿[金額],家計簿[年],月比較[[#This Row],[年]],家計簿[月],月比較[[#This Row],[月]],家計簿[勘定科目],月比較[[#Headers],[医療費]]) -> 0 | AG67: =SUMIFS(家計簿[金額],家計簿[年],月比較[[#This Row],[年]],家計簿[月],月比較[[#This Row],[月]],家計簿[勘定科目],月比較[[#Headers],[特別出費]]) -> 0
C68: =IF(月比較[[#This Row],[月]]=1,C67+1,C67) -> 2028 | D68: 3 | E68: =DATE(月比較[[#This Row],[年]],月比較[[#This Row],[月]],1) -> 2028-03-01 | F68: =SUMIFS(家計簿[金額],家計簿[年],月比較[[#This Row],[年]],家計簿[月],月比較[[#This Row],[月]],家計簿[収入/支出],月比較[[#Headers],[収入]]) -> 0 | G68: =SUMIFS(家計簿[金額],家計簿[年],月比較[[#This Row],[年]],家計簿[月],月比較[[#This Row],[月]],家計簿[収入/支出],月比較[[#Headers],[支出]]) -> 0 | H68: =SUMIFS(家計簿[金額],家計簿[年],月比較[[#This Row],[年]],家計簿[月],月比較[[#This Row],[月]],家計簿[固定費/変動費],月比較[[#Headers],[固定費]]) -> 0 | I68: =SUMIFS(家計簿[金額],家計簿[年],月比較[[#This Row],[年]],家計簿[月],月比較[[#This Row],[月]],家計簿[固定費/変動費],月比較[[#Headers],[変動費]]) -> 0 | J68: =SUMIFS(家計簿[金額],家計簿[年],月比較[[#This Row],[年]],家計簿[月],月比較[[#This Row],[月]],家計簿[勘定科目],月比較[[#Headers],[給料]]) -> 0 | K68: =SUMIFS(家計簿[金額],家計簿[年],月比較[[#This Row],[年]],家計簿[月],月比較[[#This Row],[月]],家計簿[勘定科目],月比較[[#Headers],[ボーナス]]) -> 0 | L68: =SUMIFS(家計簿[金額],家計簿[年],月比較[[#This Row],[年]],家計簿[月],月比較[[#This Row],[月]],家計簿[勘定科目],月比較[[#Headers],[家賃補助]]) -> 0 | M68: =SUMIFS(家計簿[金額],家計簿[年],月比較[[#This Row],[年]],家計簿[月],月比較[[#This Row],[月]],家計簿[勘定科目],月比較[[#Headers],[児童手当]]) -> 0 | N68: =SUMIFS(家計簿[金額],家計簿[年],月比較[[#This Row],[年]],家計簿[月],月比較[[#This Row],[月]],家計簿[勘定科目],月比較[[#Headers],[配当金]]) -> 0 | O68: =SUMIFS(家計簿[金額],家計簿[年],月比較[[#This Row],[年]],家計簿[月],月比較[[#This Row],[月]],家計簿[勘定科目],月比較[[#Headers],[特別収入]]) -> 0 | P68: =SUMIFS(家計簿[金額],家計簿[年],月比較[[#This Row],[年]],家計簿[月],月比較[[#This Row],[月]],家計簿[勘定科目],月比較[[#Headers],[家賃]]) -> 0 | Q68: =SUMIFS(家計簿[金額],家計簿[年],月比較[[#This Row],[年]],家計簿[月],月比較[[#This Row],[月]],家計簿[勘定科目],月比較[[#Headers],[電気代]]) -> 0 | R68: =SUMIFS(家計簿[金額],家計簿[年],月比較[[#This Row],[年]],家計簿[月],月比較[[#This Row],[月]],家計簿[勘定科目],月比較[[#Headers],[ガス代]]) -> 0 | S68: =SUMIFS(家計簿[金額],家計簿[年],月比較[[#This Row],[年]],家計簿[月],月比較[[#This Row],[月]],家計簿[勘定科目],月比較[[#Headers],[水道代]]) -> 0 | T68: =SUMIFS(家計簿[金額],家計簿[年],月比較[[#This Row],[年]],家計簿[月],月比較[[#This Row],[月]],家計簿[勘定科目],月比較[[#Headers],[通信費]]) -> 0 | U68: =SUMIFS(家計簿[金額],家計簿[年],月比較[[#This Row],[年]],家計簿[月],月比較[[#This Row],[月]],家計簿[勘定科目],月比較[[#Headers],[保険代]]) -> 0 | V68: =SUMIFS(家計簿[金額],家計簿[年],月比較[[#This Row],[年]],家計簿[月],月比較[[#This Row],[月]],家計簿[勘定科目],月比較[[#Headers],[サブスク]]) -> 0 | W68: =SUMIFS(家計簿[金額],家計簿[年],月比較[[#This Row],[年]],家計簿[月],月比較[[#This Row],[月]],家計簿[勘定科目],月比較[[#Headers],[税金（固定資産、自動車）]]) -> 0 | X68: =SUMIFS(家計簿[金額],家計簿[年],月比較[[#This Row],[年]],家計簿[月],月比較[[#This Row],[月]],家計簿[勘定科目],月比較[[#Headers],[食費]]) -> 0 | Y68: =SUMIFS(家計簿[金額],家計簿[年],月比較[[#This Row],[年]],家計簿[月],月比較[[#This Row],[月]],家計簿[勘定科目],月比較[[#Headers],[日用品]]) -> 0 | Z68: =SUMIFS(家計簿[金額],家計簿[年],月比較[[#This Row],[年]],家計簿[月],月比較[[#This Row],[月]],家計簿[勘定科目],月比較[[#Headers],[衣服]]) -> 0 | AA68: =SUMIFS(家計簿[金額],家計簿[年],月比較[[#This Row],[年]],家計簿[月],月比較[[#This Row],[月]],家計簿[勘定科目],月比較[[#Headers],[教育費]]) -> 0 | AB68: =SUMIFS(家計簿[金額],家計簿[年],月比較[[#This Row],[年]],家計簿[月],月比較[[#This Row],[月]],家計簿[勘定科目],月比較[[#Headers],[外食費]]) -> 0 | AC68: =SUMIFS(家計簿[金額],家計簿[年],月比較[[#This Row],[年]],家計簿[月],月比較[[#This Row],[月]],家計簿[勘定科目],月比較[[#Headers],[移動費]]) -> 0 | AD68: =SUMIFS(家計簿[金額],家計簿[年],月比較[[#This Row],[年]],家計簿[月],月比較[[#This Row],[月]],家計簿[勘定科目],月比較[[#Headers],[旅費]]) -> 0 | AE68: =SUMIFS(家計簿[金額],家計簿[年],月比較[[#This Row],[年]],家計簿[月],月比較[[#This Row],[月]],家計簿[勘定科目],月比較[[#Headers],[娯楽費]]) -> 0 | AF68: =SUMIFS(家計簿[金額],家計簿[年],月比較[[#This Row],[年]],家計簿[月],月比較[[#This Row],[月]],家計簿[勘定科目],月比較[[#Headers],[医療費]]) -> 0 | AG68: =SUMIFS(家計簿[金額],家計簿[年],月比較[[#This Row],[年]],家計簿[月],月比較[[#This Row],[月]],家計簿[勘定科目],月比較[[#Headers],[特別出費]]) -> 0
C69: =IF(月比較[[#This Row],[月]]=1,C68+1,C68) -> 2028 | D69: 4 | E69: =DATE(月比較[[#This Row],[年]],月比較[[#This Row],[月]],1) -> 2028-04-01 | F69: =SUMIFS(家計簿[金額],家計簿[年],月比較[[#This Row],[年]],家計簿[月],月比較[[#This Row],[月]],家計簿[収入/支出],月比較[[#Headers],[収入]]) -> 0 | G69: =SUMIFS(家計簿[金額],家計簿[年],月比較[[#This Row],[年]],家計簿[月],月比較[[#This Row],[月]],家計簿[収入/支出],月比較[[#Headers],[支出]]) -> 0 | H69: =SUMIFS(家計簿[金額],家計簿[年],月比較[[#This Row],[年]],家計簿[月],月比較[[#This Row],[月]],家計簿[固定費/変動費],月比較[[#Headers],[固定費]]) -> 0 | I69: =SUMIFS(家計簿[金額],家計簿[年],月比較[[#This Row],[年]],家計簿[月],月比較[[#This Row],[月]],家計簿[固定費/変動費],月比較[[#Headers],[変動費]]) -> 0 | J69: =SUMIFS(家計簿[金額],家計簿[年],月比較[[#This Row],[年]],家計簿[月],月比較[[#This Row],[月]],家計簿[勘定科目],月比較[[#Headers],[給料]]) -> 0 | K69: =SUMIFS(家計簿[金額],家計簿[年],月比較[[#This Row],[年]],家計簿[月],月比較[[#This Row],[月]],家計簿[勘定科目],月比較[[#Headers],[ボーナス]]) -> 0 | L69: =SUMIFS(家計簿[金額],家計簿[年],月比較[[#This Row],[年]],家計簿[月],月比較[[#This Row],[月]],家計簿[勘定科目],月比較[[#Headers],[家賃補助]]) -> 0 | M69: =SUMIFS(家計簿[金額],家計簿[年],月比較[[#This Row],[年]],家計簿[月],月比較[[#This Row],[月]],家計簿[勘定科目],月比較[[#Headers],[児童手当]]) -> 0 | N69: =SUMIFS(家計簿[金額],家計簿[年],月比較[[#This Row],[年]],家計簿[月],月比較[[#This Row],[月]],家計簿[勘定科目],月比較[[#Headers],[配当金]]) -> 0 | O69: =SUMIFS(家計簿[金額],家計簿[年],月比較[[#This Row],[年]],家計簿[月],月比較[[#This Row],[月]],家計簿[勘定科目],月比較[[#Headers],[特別収入]]) -> 0 | P69: =SUMIFS(家計簿[金額],家計簿[年],月比較[[#This Row],[年]],家計簿[月],月比較[[#This Row],[月]],家計簿[勘定科目],月比較[[#Headers],[家賃]]) -> 0 | Q69: =SUMIFS(家計簿[金額],家計簿[年],月比較[[#This Row],[年]],家計簿[月],月比較[[#This Row],[月]],家計簿[勘定科目],月比較[[#Headers],[電気代]]) -> 0 | R69: =SUMIFS(家計簿[金額],家計簿[年],月比較[[#This Row],[年]],家計簿[月],月比較[[#This Row],[月]],家計簿[勘定科目],月比較[[#Headers],[ガス代]]) -> 0 | S69: =SUMIFS(家計簿[金額],家計簿[年],月比較[[#This Row],[年]],家計簿[月],月比較[[#This Row],[月]],家計簿[勘定科目],月比較[[#Headers],[水道代]]) -> 0 | T69: =SUMIFS(家計簿[金額],家計簿[年],月比較[[#This Row],[年]],家計簿[月],月比較[[#This Row],[月]],家計簿[勘定科目],月比較[[#Headers],[通信費]]) -> 0 | U69: =SUMIFS(家計簿[金額],家計簿[年],月比較[[#This Row],[年]],家計簿[月],月比較[[#This Row],[月]],家計簿[勘定科目],月比較[[#Headers],[保険代]]) -> 0 | V69: =SUMIFS(家計簿[金額],家計簿[年],月比較[[#This Row],[年]],家計簿[月],月比較[[#This Row],[月]],家計簿[勘定科目],月比較[[#Headers],[サブスク]]) -> 0 | W69: =SUMIFS(家計簿[金額],家計簿[年],月比較[[#This Row],[年]],家計簿[月],月比較[[#This Row],[月]],家計簿[勘定科目],月比較[[#Headers],[税金（固定資産、自動車）]]) -> 0 | X69: =SUMIFS(家計簿[金額],家計簿[年],月比較[[#This Row],[年]],家計簿[月],月比較[[#This Row],[月]],家計簿[勘定科目],月比較[[#Headers],[食費]]) -> 0 | Y69: =SUMIFS(家計簿[金額],家計簿[年],月比較[[#This Row],[年]],家計簿[月],月比較[[#This Row],[月]],家計簿[勘定科目],月比較[[#Headers],[日用品]]) -> 0 | Z69: =SUMIFS(家計簿[金額],家計簿[年],月比較[[#This Row],[年]],家計簿[月],月比較[[#This Row],[月]],家計簿[勘定科目],月比較[[#Headers],[衣服]]) -> 0 | AA69: =SUMIFS(家計簿[金額],家計簿[年],月比較[[#This Row],[年]],家計簿[月],月比較[[#This Row],[月]],家計簿[勘定科目],月比較[[#Headers],[教育費]]) -> 0 | AB69: =SUMIFS(家計簿[金額],家計簿[年],月比較[[#This Row],[年]],家計簿[月],月比較[[#This Row],[月]],家計簿[勘定科目],月比較[[#Headers],[外食費]]) -> 0 | AC69: =SUMIFS(家計簿[金額],家計簿[年],月比較[[#This Row],[年]],家計簿[月],月比較[[#This Row],[月]],家計簿[勘定科目],月比較[[#Headers],[移動費]]) -> 0 | AD69: =SUMIFS(家計簿[金額],家計簿[年],月比較[[#This Row],[年]],家計簿[月],月比較[[#This Row],[月]],家計簿[勘定科目],月比較[[#Headers],[旅費]]) -> 0 | AE69: =SUMIFS(家計簿[金額],家計簿[年],月比較[[#This Row],[年]],家計簿[月],月比較[[#This Row],[月]],家計簿[勘定科目],月比較[[#Headers],[娯楽費]]) -> 0 | AF69: =SUMIFS(家計簿[金額],家計簿[年],月比較[[#This Row],[年]],家計簿[月],月比較[[#This Row],[月]],家計簿[勘定科目],月比較[[#Headers],[医療費]]) -> 0 | AG69: =SUMIFS(家計簿[金額],家計簿[年],月比較[[#This Row],[年]],家計簿[月],月比較[[#This Row],[月]],家計簿[勘定科目],月比較[[#Headers],[特別出費]]) -> 0
C70: =IF(月比較[[#This Row],[月]]=1,C69+1,C69) -> 2028 | D70: 5 | E70: =DATE(月比較[[#This Row],[年]],月比較[[#This Row],[月]],1) -> 2028-05-01 | F70: =SUMIFS(家計簿[金額],家計簿[年],月比較[[#This Row],[年]],家計簿[月],月比較[[#This Row],[月]],家計簿[収入/支出],月比較[[#Headers],[収入]]) -> 0 | G70: =SUMIFS(家計簿[金額],家計簿[年],月比較[[#This Row],[年]],家計簿[月],月比較[[#This Row],[月]],家計簿[収入/支出],月比較[[#Headers],[支出]]) -> 0 | H70: =SUMIFS(家計簿[金額],家計簿[年],月比較[[#This Row],[年]],家計簿[月],月比較[[#This Row],[月]],家計簿[固定費/変動費],月比較[[#Headers],[固定費]]) -> 0 | I70: =SUMIFS(家計簿[金額],家計簿[年],月比較[[#This Row],[年]],家計簿[月],月比較[[#This Row],[月]],家計簿[固定費/変動費],月比較[[#Headers],[変動費]]) -> 0 | J70: =SUMIFS(家計簿[金額],家計簿[年],月比較[[#This Row],[年]],家計簿[月],月比較[[#This Row],[月]],家計簿[勘定科目],月比較[[#Headers],[給料]]) -> 0 | K70: =SUMIFS(家計簿[金額],家計簿[年],月比較[[#This Row],[年]],家計簿[月],月比較[[#This Row],[月]],家計簿[勘定科目],月比較[[#Headers],[ボーナス]]) -> 0 | L70: =SUMIFS(家計簿[金額],家計簿[年],月比較[[#This Row],[年]],家計簿[月],月比較[[#This Row],[月]],家計簿[勘定科目],月比較[[#Headers],[家賃補助]]) -> 0 | M70: =SUMIFS(家計簿[金額],家計簿[年],月比較[[#This Row],[年]],家計簿[月],月比較[[#This Row],[月]],家計簿[勘定科目],月比較[[#Headers],[児童手当]]) -> 0 | N70: =SUMIFS(家計簿[金額],家計簿[年],月比較[[#This Row],[年]],家計簿[月],月比較[[#This Row],[月]],家計簿[勘定科目],月比較[[#Headers],[配当金]]) -> 0 | O70: =SUMIFS(家計簿[金額],家計簿[年],月比較[[#This Row],[年]],家計簿[月],月比較[[#This Row],[月]],家計簿[勘定科目],月比較[[#Headers],[特別収入]]) -> 0 | P70: =SUMIFS(家計簿[金額],家計簿[年],月比較[[#This Row],[年]],家計簿[月],月比較[[#This Row],[月]],家計簿[勘定科目],月比較[[#Headers],[家賃]]) -> 0 | Q70: =SUMIFS(家計簿[金額],家計簿[年],月比較[[#This Row],[年]],家計簿[月],月比較[[#This Row],[月]],家計簿[勘定科目],月比較[[#Headers],[電気代]]) -> 0 | R70: =SUMIFS(家計簿[金額],家計簿[年],月比較[[#This Row],[年]],家計簿[月],月比較[[#This Row],[月]],家計簿[勘定科目],月比較[[#Headers],[ガス代]]) -> 0 | S70: =SUMIFS(家計簿[金額],家計簿[年],月比較[[#This Row],[年]],家計簿[月],月比較[[#This Row],[月]],家計簿[勘定科目],月比較[[#Headers],[水道代]]) -> 0 | T70: =SUMIFS(家計簿[金額],家計簿[年],月比較[[#This Row],[年]],家計簿[月],月比較[[#This Row],[月]],家計簿[勘定科目],月比較[[#Headers],[通信費]]) -> 0 | U70: =SUMIFS(家計簿[金額],家計簿[年],月比較[[#This Row],[年]],家計簿[月],月比較[[#This Row],[月]],家計簿[勘定科目],月比較[[#Headers],[保険代]]) -> 0 | V70: =SUMIFS(家計簿[金額],家計簿[年],月比較[[#This Row],[年]],家計簿[月],月比較[[#This Row],[月]],家計簿[勘定科目],月比較[[#Headers],[サブスク]]) -> 0 | W70: =SUMIFS(家計簿[金額],家計簿[年],月比較[[#This Row],[年]],家計簿[月],月比較[[#This Row],[月]],家計簿[勘定科目],月比較[[#Headers],[税金（固定資産、自動車）]]) -> 0 | X70: =SUMIFS(家計簿[金額],家計簿[年],月比較[[#This Row],[年]],家計簿[月],月比較[[#This Row],[月]],家計簿[勘定科目],月比較[[#Headers],[食費]]) -> 0 | Y70: =SUMIFS(家計簿[金額],家計簿[年],月比較[[#This Row],[年]],家計簿[月],月比較[[#This Row],[月]],家計簿[勘定科目],月比較[[#Headers],[日用品]]) -> 0 | Z70: =SUMIFS(家計簿[金額],家計簿[年],月比較[[#This Row],[年]],家計簿[月],月比較[[#This Row],[月]],家計簿[勘定科目],月比較[[#Headers],[衣服]]) -> 0 | AA70: =SUMIFS(家計簿[金額],家計簿[年],月比較[[#This Row],[年]],家計簿[月],月比較[[#This Row],[月]],家計簿[勘定科目],月比較[[#Headers],[教育費]]) -> 0 | AB70: =SUMIFS(家計簿[金額],家計簿[年],月比較[[#This Row],[年]],家計簿[月],月比較[[#This Row],[月]],家計簿[勘定科目],月比較[[#Headers],[外食費]]) -> 0 | AC70: =SUMIFS(家計簿[金額],家計簿[年],月比較[[#This Row],[年]],家計簿[月],月比較[[#This Row],[月]],家計簿[勘定科目],月比較[[#Headers],[移動費]]) -> 0 | AD70: =SUMIFS(家計簿[金額],家計簿[年],月比較[[#This Row],[年]],家計簿[月],月比較[[#This Row],[月]],家計簿[勘定科目],月比較[[#Headers],[旅費]]) -> 0 | AE70: =SUMIFS(家計簿[金額],家計簿[年],月比較[[#This Row],[年]],家計簿[月],月比較[[#This Row],[月]],家計簿[勘定科目],月比較[[#Headers],[娯楽費]]) -> 0 | AF70: =SUMIFS(家計簿[金額],家計簿[年],月比較[[#This Row],[年]],家計簿[月],月比較[[#This Row],[月]],家計簿[勘定科目],月比較[[#Headers],[医療費]]) -> 0 | AG70: =SUMIFS(家計簿[金額],家計簿[年],月比較[[#This Row],[年]],家計簿[月],月比較[[#This Row],[月]],家計簿[勘定科目],月比較[[#Headers],[特別出費]]) -> 0
C71: =IF(月比較[[#This Row],[月]]=1,C70+1,C70) -> 2028 | D71: =MOD((ROW()-6),12)+1 -> 6 | E71: =DATE(月比較[[#This Row],[年]],月比較[[#This Row],[月]],1) -> 2028-06-01 | F71: =SUMIFS(家計簿[金額],家計簿[年],月比較[[#This Row],[年]],家計簿[月],月比較[[#This Row],[月]],家計簿[収入/支出],月比較[[#Headers],[収入]]) -> 0 | G71: =SUMIFS(家計簿[金額],家計簿[年],月比較[[#This Row],[年]],家計簿[月],月比較[[#This Row],[月]],家計簿[収入/支出],月比較[[#Headers],[支出]]) -> 0 | H71: =SUMIFS(家計簿[金額],家計簿[年],月比較[[#This Row],[年]],家計簿[月],月比較[[#This Row],[月]],家計簿[固定費/変動費],月比較[[#Headers],[固定費]]) -> 0 | I71: =SUMIFS(家計簿[金額],家計簿[年],月比較[[#This Row],[年]],家計簿[月],月比較[[#This Row],[月]],家計簿[固定費/変動費],月比較[[#Headers],[変動費]]) -> 0 | J71: =SUMIFS(家計簿[金額],家計簿[年],月比較[[#This Row],[年]],家計簿[月],月比較[[#This Row],[月]],家計簿[勘定科目],月比較[[#Headers],[給料]]) -> 0 | K71: =SUMIFS(家計簿[金額],家計簿[年],月比較[[#This Row],[年]],家計簿[月],月比較[[#This Row],[月]],家計簿[勘定科目],月比較[[#Headers],[ボーナス]]) -> 0 | L71: =SUMIFS(家計簿[金額],家計簿[年],月比較[[#This Row],[年]],家計簿[月],月比較[[#This Row],[月]],家計簿[勘定科目],月比較[[#Headers],[家賃補助]]) -> 0 | M71: =SUMIFS(家計簿[金額],家計簿[年],月比較[[#This Row],[年]],家計簿[月],月比較[[#This Row],[月]],家計簿[勘定科目],月比較[[#Headers],[児童手当]]) -> 0 | N71: =SUMIFS(家計簿[金額],家計簿[年],月比較[[#This Row],[年]],家計簿[月],月比較[[#This Row],[月]],家計簿[勘定科目],月比較[[#Headers],[配当金]]) -> 0 | O71: =SUMIFS(家計簿[金額],家計簿[年],月比較[[#This Row],[年]],家計簿[月],月比較[[#This Row],[月]],家計簿[勘定科目],月比較[[#Headers],[特別収入]]) -> 0 | P71: =SUMIFS(家計簿[金額],家計簿[年],月比較[[#This Row],[年]],家計簿[月],月比較[[#This Row],[月]],家計簿[勘定科目],月比較[[#Headers],[家賃]]) -> 0 | Q71: =SUMIFS(家計簿[金額],家計簿[年],月比較[[#This Row],[年]],家計簿[月],月比較[[#This Row],[月]],家計簿[勘定科目],月比較[[#Headers],[電気代]]) -> 0 | R71: =SUMIFS(家計簿[金額],家計簿[年],月比較[[#This Row],[年]],家計簿[月],月比較[[#This Row],[月]],家計簿[勘定科目],月比較[[#Headers],[ガス代]]) -> 0 | S71: =SUMIFS(家計簿[金額],家計簿[年],月比較[[#This Row],[年]],家計簿[月],月比較[[#This Row],[月]],家計簿[勘定科目],月比較[[#Headers],[水道代]]) -> 0 | T71: =SUMIFS(家計簿[金額],家計簿[年],月比較[[#This Row],[年]],家計簿[月],月比較[[#This Row],[月]],家計簿[勘定科目],月比較[[#Headers],[通信費]]) -> 0 | U71: =SUMIFS(家計簿[金額],家計簿[年],月比較[[#This Row],[年]],家計簿[月],月比較[[#This Row],[月]],家計簿[勘定科目],月比較[[#Headers],[保険代]]) -> 0 | V71: =SUMIFS(家計簿[金額],家計簿[年],月比較[[#This Row],[年]],家計簿[月],月比較[[#This Row],[月]],家計簿[勘定科目],月比較[[#Headers],[サブスク]]) -> 0 | W71: =SUMIFS(家計簿[金額],家計簿[年],月比較[[#This Row],[年]],家計簿[月],月比較[[#This Row],[月]],家計簿[勘定科目],月比較[[#Headers],[税金（固定資産、自動車）]]) -> 0 | X71: =SUMIFS(家計簿[金額],家計簿[年],月比較[[#This Row],[年]],家計簿[月],月比較[[#This Row],[月]],家計簿[勘定科目],月比較[[#Headers],[食費]]) -> 0 | Y71: =SUMIFS(家計簿[金額],家計簿[年],月比較[[#This Row],[年]],家計簿[月],月比較[[#This Row],[月]],家計簿[勘定科目],月比較[[#Headers],[日用品]]) -> 0 | Z71: =SUMIFS(家計簿[金額],家計簿[年],月比較[[#This Row],[年]],家計簿[月],月比較[[#This Row],[月]],家計簿[勘定科目],月比較[[#Headers],[衣服]]) -> 0 | AA71: =SUMIFS(家計簿[金額],家計簿[年],月比較[[#This Row],[年]],家計簿[月],月比較[[#This Row],[月]],家計簿[勘定科目],月比較[[#Headers],[教育費]]) -> 0 | AB71: =SUMIFS(家計簿[金額],家計簿[年],月比較[[#This Row],[年]],家計簿[月],月比較[[#This Row],[月]],家計簿[勘定科目],月比較[[#Headers],[外食費]]) -> 0 | AC71: =SUMIFS(家計簿[金額],家計簿[年],月比較[[#This Row],[年]],家計簿[月],月比較[[#This Row],[月]],家計簿[勘定科目],月比較[[#Headers],[移動費]]) -> 0 | AD71: =SUMIFS(家計簿[金額],家計簿[年],月比較[[#This Row],[年]],家計簿[月],月比較[[#This Row],[月]],家計簿[勘定科目],月比較[[#Headers],[旅費]]) -> 0 | AE71: =SUMIFS(家計簿[金額],家計簿[年],月比較[[#This Row],[年]],家計簿[月],月比較[[#This Row],[月]],家計簿[勘定科目],月比較[[#Headers],[娯楽費]]) -> 0 | AF71: =SUMIFS(家計簿[金額],家計簿[年],月比較[[#This Row],[年]],家計簿[月],月比較[[#This Row],[月]],家計簿[勘定科目],月比較[[#Headers],[医療費]]) -> 0 | AG71: =SUMIFS(家計簿[金額],家計簿[年],月比較[[#This Row],[年]],家計簿[月],月比較[[#This Row],[月]],家計簿[勘定科目],月比較[[#Headers],[特別出費]]) -> 0
C72: =IF(月比較[[#This Row],[月]]=1,C71+1,C71) -> 2028 | D72: 7 | E72: =DATE(月比較[[#This Row],[年]],月比較[[#This Row],[月]],1) -> 2028-07-01 | F72: =SUMIFS(家計簿[金額],家計簿[年],月比較[[#This Row],[年]],家計簿[月],月比較[[#This Row],[月]],家計簿[収入/支出],月比較[[#Headers],[収入]]) -> 0 | G72: =SUMIFS(家計簿[金額],家計簿[年],月比較[[#This Row],[年]],家計簿[月],月比較[[#This Row],[月]],家計簿[収入/支出],月比較[[#Headers],[支出]]) -> 0 | H72: =SUMIFS(家計簿[金額],家計簿[年],月比較[[#This Row],[年]],家計簿[月],月比較[[#This Row],[月]],家計簿[固定費/変動費],月比較[[#Headers],[固定費]]) -> 0 | I72: =SUMIFS(家計簿[金額],家計簿[年],月比較[[#This Row],[年]],家計簿[月],月比較[[#This Row],[月]],家計簿[固定費/変動費],月比較[[#Headers],[変動費]]) -> 0 | J72: =SUMIFS(家計簿[金額],家計簿[年],月比較[[#This Row],[年]],家計簿[月],月比較[[#This Row],[月]],家計簿[勘定科目],月比較[[#Headers],[給料]]) -> 0 | K72: =SUMIFS(家計簿[金額],家計簿[年],月比較[[#This Row],[年]],家計簿[月],月比較[[#This Row],[月]],家計簿[勘定科目],月比較[[#Headers],[ボーナス]]) -> 0 | L72: =SUMIFS(家計簿[金額],家計簿[年],月比較[[#This Row],[年]],家計簿[月],月比較[[#This Row],[月]],家計簿[勘定科目],月比較[[#Headers],[家賃補助]]) -> 0 | M72: =SUMIFS(家計簿[金額],家計簿[年],月比較[[#This Row],[年]],家計簿[月],月比較[[#This Row],[月]],家計簿[勘定科目],月比較[[#Headers],[児童手当]]) -> 0 | N72: =SUMIFS(家計簿[金額],家計簿[年],月比較[[#This Row],[年]],家計簿[月],月比較[[#This Row],[月]],家計簿[勘定科目],月比較[[#Headers],[配当金]]) -> 0 | O72: =SUMIFS(家計簿[金額],家計簿[年],月比較[[#This Row],[年]],家計簿[月],月比較[[#This Row],[月]],家計簿[勘定科目],月比較[[#Headers],[特別収入]]) -> 0 | P72: =SUMIFS(家計簿[金額],家計簿[年],月比較[[#This Row],[年]],家計簿[月],月比較[[#This Row],[月]],家計簿[勘定科目],月比較[[#Headers],[家賃]]) -> 0 | Q72: =SUMIFS(家計簿[金額],家計簿[年],月比較[[#This Row],[年]],家計簿[月],月比較[[#This Row],[月]],家計簿[勘定科目],月比較[[#Headers],[電気代]]) -> 0 | R72: =SUMIFS(家計簿[金額],家計簿[年],月比較[[#This Row],[年]],家計簿[月],月比較[[#This Row],[月]],家計簿[勘定科目],月比較[[#Headers],[ガス代]]) -> 0 | S72: =SUMIFS(家計簿[金額],家計簿[年],月比較[[#This Row],[年]],家計簿[月],月比較[[#This Row],[月]],家計簿[勘定科目],月比較[[#Headers],[水道代]]) -> 0 | T72: =SUMIFS(家計簿[金額],家計簿[年],月比較[[#This Row],[年]],家計簿[月],月比較[[#This Row],[月]],家計簿[勘定科目],月比較[[#Headers],[通信費]]) -> 0 | U72: =SUMIFS(家計簿[金額],家計簿[年],月比較[[#This Row],[年]],家計簿[月],月比較[[#This Row],[月]],家計簿[勘定科目],月比較[[#Headers],[保険代]]) -> 0 | V72: =SUMIFS(家計簿[金額],家計簿[年],月比較[[#This Row],[年]],家計簿[月],月比較[[#This Row],[月]],家計簿[勘定科目],月比較[[#Headers],[サブスク]]) -> 0 | W72: =SUMIFS(家計簿[金額],家計簿[年],月比較[[#This Row],[年]],家計簿[月],月比較[[#This Row],[月]],家計簿[勘定科目],月比較[[#Headers],[税金（固定資産、自動車）]]) -> 0 | X72: =SUMIFS(家計簿[金額],家計簿[年],月比較[[#This Row],[年]],家計簿[月],月比較[[#This Row],[月]],家計簿[勘定科目],月比較[[#Headers],[食費]]) -> 0 | Y72: =SUMIFS(家計簿[金額],家計簿[年],月比較[[#This Row],[年]],家計簿[月],月比較[[#This Row],[月]],家計簿[勘定科目],月比較[[#Headers],[日用品]]) -> 0 | Z72: =SUMIFS(家計簿[金額],家計簿[年],月比較[[#This Row],[年]],家計簿[月],月比較[[#This Row],[月]],家計簿[勘定科目],月比較[[#Headers],[衣服]]) -> 0 | AA72: =SUMIFS(家計簿[金額],家計簿[年],月比較[[#This Row],[年]],家計簿[月],月比較[[#This Row],[月]],家計簿[勘定科目],月比較[[#Headers],[教育費]]) -> 0 | AB72: =SUMIFS(家計簿[金額],家計簿[年],月比較[[#This Row],[年]],家計簿[月],月比較[[#This Row],[月]],家計簿[勘定科目],月比較[[#Headers],[外食費]]) -> 0 | AC72: =SUMIFS(家計簿[金額],家計簿[年],月比較[[#This Row],[年]],家計簿[月],月比較[[#This Row],[月]],家計簿[勘定科目],月比較[[#Headers],[移動費]]) -> 0 | AD72: =SUMIFS(家計簿[金額],家計簿[年],月比較[[#This Row],[年]],家計簿[月],月比較[[#This Row],[月]],家計簿[勘定科目],月比較[[#Headers],[旅費]]) -> 0 | AE72: =SUMIFS(家計簿[金額],家計簿[年],月比較[[#This Row],[年]],家計簿[月],月比較[[#This Row],[月]],家計簿[勘定科目],月比較[[#Headers],[娯楽費]]) -> 0 | AF72: =SUMIFS(家計簿[金額],家計簿[年],月比較[[#This Row],[年]],家計簿[月],月比較[[#This Row],[月]],家計簿[勘定科目],月比較[[#Headers],[医療費]]) -> 0 | AG72: =SUMIFS(家計簿[金額],家計簿[年],月比較[[#This Row],[年]],家計簿[月],月比較[[#This Row],[月]],家計簿[勘定科目],月比較[[#Headers],[特別出費]]) -> 0
C73: =IF(月比較[[#This Row],[月]]=1,C72+1,C72) -> 2028 | D73: 8 | E73: =DATE(月比較[[#This Row],[年]],月比較[[#This Row],[月]],1) -> 2028-08-01 | F73: =SUMIFS(家計簿[金額],家計簿[年],月比較[[#This Row],[年]],家計簿[月],月比較[[#This Row],[月]],家計簿[収入/支出],月比較[[#Headers],[収入]]) -> 0 | G73: =SUMIFS(家計簿[金額],家計簿[年],月比較[[#This Row],[年]],家計簿[月],月比較[[#This Row],[月]],家計簿[収入/支出],月比較[[#Headers],[支出]]) -> 0 | H73: =SUMIFS(家計簿[金額],家計簿[年],月比較[[#This Row],[年]],家計簿[月],月比較[[#This Row],[月]],家計簿[固定費/変動費],月比較[[#Headers],[固定費]]) -> 0 | I73: =SUMIFS(家計簿[金額],家計簿[年],月比較[[#This Row],[年]],家計簿[月],月比較[[#This Row],[月]],家計簿[固定費/変動費],月比較[[#Headers],[変動費]]) -> 0 | J73: =SUMIFS(家計簿[金額],家計簿[年],月比較[[#This Row],[年]],家計簿[月],月比較[[#This Row],[月]],家計簿[勘定科目],月比較[[#Headers],[給料]]) -> 0 | K73: =SUMIFS(家計簿[金額],家計簿[年],月比較[[#This Row],[年]],家計簿[月],月比較[[#This Row],[月]],家計簿[勘定科目],月比較[[#Headers],[ボーナス]]) -> 0 | L73: =SUMIFS(家計簿[金額],家計簿[年],月比較[[#This Row],[年]],家計簿[月],月比較[[#This Row],[月]],家計簿[勘定科目],月比較[[#Headers],[家賃補助]]) -> 0 | M73: =SUMIFS(家計簿[金額],家計簿[年],月比較[[#This Row],[年]],家計簿[月],月比較[[#This Row],[月]],家計簿[勘定科目],月比較[[#Headers],[児童手当]]) -> 0 | N73: =SUMIFS(家計簿[金額],家計簿[年],月比較[[#This Row],[年]],家計簿[月],月比較[[#This Row],[月]],家計簿[勘定科目],月比較[[#Headers],[配当金]]) -> 0 | O73: =SUMIFS(家計簿[金額],家計簿[年],月比較[[#This Row],[年]],家計簿[月],月比較[[#This Row],[月]],家計簿[勘定科目],月比較[[#Headers],[特別収入]]) -> 0 | P73: =SUMIFS(家計簿[金額],家計簿[年],月比較[[#This Row],[年]],家計簿[月],月比較[[#This Row],[月]],家計簿[勘定科目],月比較[[#Headers],[家賃]]) -> 0 | Q73: =SUMIFS(家計簿[金額],家計簿[年],月比較[[#This Row],[年]],家計簿[月],月比較[[#This Row],[月]],家計簿[勘定科目],月比較[[#Headers],[電気代]]) -> 0 | R73: =SUMIFS(家計簿[金額],家計簿[年],月比較[[#This Row],[年]],家計簿[月],月比較[[#This Row],[月]],家計簿[勘定科目],月比較[[#Headers],[ガス代]]) -> 0 | S73: =SUMIFS(家計簿[金額],家計簿[年],月比較[[#This Row],[年]],家計簿[月],月比較[[#This Row],[月]],家計簿[勘定科目],月比較[[#Headers],[水道代]]) -> 0 | T73: =SUMIFS(家計簿[金額],家計簿[年],月比較[[#This Row],[年]],家計簿[月],月比較[[#This Row],[月]],家計簿[勘定科目],月比較[[#Headers],[通信費]]) -> 0 | U73: =SUMIFS(家計簿[金額],家計簿[年],月比較[[#This Row],[年]],家計簿[月],月比較[[#This Row],[月]],家計簿[勘定科目],月比較[[#Headers],[保険代]]) -> 0 | V73: =SUMIFS(家計簿[金額],家計簿[年],月比較[[#This Row],[年]],家計簿[月],月比較[[#This Row],[月]],家計簿[勘定科目],月比較[[#Headers],[サブスク]]) -> 0 | W73: =SUMIFS(家計簿[金額],家計簿[年],月比較[[#This Row],[年]],家計簿[月],月比較[[#This Row],[月]],家計簿[勘定科目],月比較[[#Headers],[税金（固定資産、自動車）]]) -> 0 | X73: =SUMIFS(家計簿[金額],家計簿[年],月比較[[#This Row],[年]],家計簿[月],月比較[[#This Row],[月]],家計簿[勘定科目],月比較[[#Headers],[食費]]) -> 0 | Y73: =SUMIFS(家計簿[金額],家計簿[年],月比較[[#This Row],[年]],家計簿[月],月比較[[#This Row],[月]],家計簿[勘定科目],月比較[[#Headers],[日用品]]) -> 0 | Z73: =SUMIFS(家計簿[金額],家計簿[年],月比較[[#This Row],[年]],家計簿[月],月比較[[#This Row],[月]],家計簿[勘定科目],月比較[[#Headers],[衣服]]) -> 0 | AA73: =SUMIFS(家計簿[金額],家計簿[年],月比較[[#This Row],[年]],家計簿[月],月比較[[#This Row],[月]],家計簿[勘定科目],月比較[[#Headers],[教育費]]) -> 0 | AB73: =SUMIFS(家計簿[金額],家計簿[年],月比較[[#This Row],[年]],家計簿[月],月比較[[#This Row],[月]],家計簿[勘定科目],月比較[[#Headers],[外食費]]) -> 0 | AC73: =SUMIFS(家計簿[金額],家計簿[年],月比較[[#This Row],[年]],家計簿[月],月比較[[#This Row],[月]],家計簿[勘定科目],月比較[[#Headers],[移動費]]) -> 0 | AD73: =SUMIFS(家計簿[金額],家計簿[年],月比較[[#This Row],[年]],家計簿[月],月比較[[#This Row],[月]],家計簿[勘定科目],月比較[[#Headers],[旅費]]) -> 0 | AE73: =SUMIFS(家計簿[金額],家計簿[年],月比較[[#This Row],[年]],家計簿[月],月比較[[#This Row],[月]],家計簿[勘定科目],月比較[[#Headers],[娯楽費]]) -> 0 | AF73: =SUMIFS(家計簿[金額],家計簿[年],月比較[[#This Row],[年]],家計簿[月],月比較[[#This Row],[月]],家計簿[勘定科目],月比較[[#Headers],[医療費]]) -> 0 | AG73: =SUMIFS(家計簿[金額],家計簿[年],月比較[[#This Row],[年]],家計簿[月],月比較[[#This Row],[月]],家計簿[勘定科目],月比較[[#Headers],[特別出費]]) -> 0
C74: =IF(月比較[[#This Row],[月]]=1,C73+1,C73) -> 2028 | D74: 9 | E74: =DATE(月比較[[#This Row],[年]],月比較[[#This Row],[月]],1) -> 2028-09-01 | F74: =SUMIFS(家計簿[金額],家計簿[年],月比較[[#This Row],[年]],家計簿[月],月比較[[#This Row],[月]],家計簿[収入/支出],月比較[[#Headers],[収入]]) -> 0 | G74: =SUMIFS(家計簿[金額],家計簿[年],月比較[[#This Row],[年]],家計簿[月],月比較[[#This Row],[月]],家計簿[収入/支出],月比較[[#Headers],[支出]]) -> 0 | H74: =SUMIFS(家計簿[金額],家計簿[年],月比較[[#This Row],[年]],家計簿[月],月比較[[#This Row],[月]],家計簿[固定費/変動費],月比較[[#Headers],[固定費]]) -> 0 | I74: =SUMIFS(家計簿[金額],家計簿[年],月比較[[#This Row],[年]],家計簿[月],月比較[[#This Row],[月]],家計簿[固定費/変動費],月比較[[#Headers],[変動費]]) -> 0 | J74: =SUMIFS(家計簿[金額],家計簿[年],月比較[[#This Row],[年]],家計簿[月],月比較[[#This Row],[月]],家計簿[勘定科目],月比較[[#Headers],[給料]]) -> 0 | K74: =SUMIFS(家計簿[金額],家計簿[年],月比較[[#This Row],[年]],家計簿[月],月比較[[#This Row],[月]],家計簿[勘定科目],月比較[[#Headers],[ボーナス]]) -> 0 | L74: =SUMIFS(家計簿[金額],家計簿[年],月比較[[#This Row],[年]],家計簿[月],月比較[[#This Row],[月]],家計簿[勘定科目],月比較[[#Headers],[家賃補助]]) -> 0 | M74: =SUMIFS(家計簿[金額],家計簿[年],月比較[[#This Row],[年]],家計簿[月],月比較[[#This Row],[月]],家計簿[勘定科目],月比較[[#Headers],[児童手当]]) -> 0 | N74: =SUMIFS(家計簿[金額],家計簿[年],月比較[[#This Row],[年]],家計簿[月],月比較[[#This Row],[月]],家計簿[勘定科目],月比較[[#Headers],[配当金]]) -> 0 | O74: =SUMIFS(家計簿[金額],家計簿[年],月比較[[#This Row],[年]],家計簿[月],月比較[[#This Row],[月]],家計簿[勘定科目],月比較[[#Headers],[特別収入]]) -> 0 | P74: =SUMIFS(家計簿[金額],家計簿[年],月比較[[#This Row],[年]],家計簿[月],月比較[[#This Row],[月]],家計簿[勘定科目],月比較[[#Headers],[家賃]]) -> 0 | Q74: =SUMIFS(家計簿[金額],家計簿[年],月比較[[#This Row],[年]],家計簿[月],月比較[[#This Row],[月]],家計簿[勘定科目],月比較[[#Headers],[電気代]]) -> 0 | R74: =SUMIFS(家計簿[金額],家計簿[年],月比較[[#This Row],[年]],家計簿[月],月比較[[#This Row],[月]],家計簿[勘定科目],月比較[[#Headers],[ガス代]]) -> 0 | S74: =SUMIFS(家計簿[金額],家計簿[年],月比較[[#This Row],[年]],家計簿[月],月比較[[#This Row],[月]],家計簿[勘定科目],月比較[[#Headers],[水道代]]) -> 0 | T74: =SUMIFS(家計簿[金額],家計簿[年],月比較[[#This Row],[年]],家計簿[月],月比較[[#This Row],[月]],家計簿[勘定科目],月比較[[#Headers],[通信費]]) -> 0 | U74: =SUMIFS(家計簿[金額],家計簿[年],月比較[[#This Row],[年]],家計簿[月],月比較[[#This Row],[月]],家計簿[勘定科目],月比較[[#Headers],[保険代]]) -> 0 | V74: =SUMIFS(家計簿[金額],家計簿[年],月比較[[#This Row],[年]],家計簿[月],月比較[[#This Row],[月]],家計簿[勘定科目],月比較[[#Headers],[サブスク]]) -> 0 | W74: =SUMIFS(家計簿[金額],家計簿[年],月比較[[#This Row],[年]],家計簿[月],月比較[[#This Row],[月]],家計簿[勘定科目],月比較[[#Headers],[税金（固定資産、自動車）]]) -> 0 | X74: =SUMIFS(家計簿[金額],家計簿[年],月比較[[#This Row],[年]],家計簿[月],月比較[[#This Row],[月]],家計簿[勘定科目],月比較[[#Headers],[食費]]) -> 0 | Y74: =SUMIFS(家計簿[金額],家計簿[年],月比較[[#This Row],[年]],家計簿[月],月比較[[#This Row],[月]],家計簿[勘定科目],月比較[[#Headers],[日用品]]) -> 0 | Z74: =SUMIFS(家計簿[金額],家計簿[年],月比較[[#This Row],[年]],家計簿[月],月比較[[#This Row],[月]],家計簿[勘定科目],月比較[[#Headers],[衣服]]) -> 0 | AA74: =SUMIFS(家計簿[金額],家計簿[年],月比較[[#This Row],[年]],家計簿[月],月比較[[#This Row],[月]],家計簿[勘定科目],月比較[[#Headers],[教育費]]) -> 0 | AB74: =SUMIFS(家計簿[金額],家計簿[年],月比較[[#This Row],[年]],家計簿[月],月比較[[#This Row],[月]],家計簿[勘定科目],月比較[[#Headers],[外食費]]) -> 0 | AC74: =SUMIFS(家計簿[金額],家計簿[年],月比較[[#This Row],[年]],家計簿[月],月比較[[#This Row],[月]],家計簿[勘定科目],月比較[[#Headers],[移動費]]) -> 0 | AD74: =SUMIFS(家計簿[金額],家計簿[年],月比較[[#This Row],[年]],家計簿[月],月比較[[#This Row],[月]],家計簿[勘定科目],月比較[[#Headers],[旅費]]) -> 0 | AE74: =SUMIFS(家計簿[金額],家計簿[年],月比較[[#This Row],[年]],家計簿[月],月比較[[#This Row],[月]],家計簿[勘定科目],月比較[[#Headers],[娯楽費]]) -> 0 | AF74: =SUMIFS(家計簿[金額],家計簿[年],月比較[[#This Row],[年]],家計簿[月],月比較[[#This Row],[月]],家計簿[勘定科目],月比較[[#Headers],[医療費]]) -> 0 | AG74: =SUMIFS(家計簿[金額],家計簿[年],月比較[[#This Row],[年]],家計簿[月],月比較[[#This Row],[月]],家計簿[勘定科目],月比較[[#Headers],[特別出費]]) -> 0
C75: =IF(月比較[[#This Row],[月]]=1,C74+1,C74) -> 2028 | D75: 10 | E75: =DATE(月比較[[#This Row],[年]],月比較[[#This Row],[月]],1) -> 2028-10-01 | F75: =SUMIFS(家計簿[金額],家計簿[年],月比較[[#This Row],[年]],家計簿[月],月比較[[#This Row],[月]],家計簿[収入/支出],月比較[[#Headers],[収入]]) -> 0 | G75: =SUMIFS(家計簿[金額],家計簿[年],月比較[[#This Row],[年]],家計簿[月],月比較[[#This Row],[月]],家計簿[収入/支出],月比較[[#Headers],[支出]]) -> 0 | H75: =SUMIFS(家計簿[金額],家計簿[年],月比較[[#This Row],[年]],家計簿[月],月比較[[#This Row],[月]],家計簿[固定費/変動費],月比較[[#Headers],[固定費]]) -> 0 | I75: =SUMIFS(家計簿[金額],家計簿[年],月比較[[#This Row],[年]],家計簿[月],月比較[[#This Row],[月]],家計簿[固定費/変動費],月比較[[#Headers],[変動費]]) -> 0 | J75: =SUMIFS(家計簿[金額],家計簿[年],月比較[[#This Row],[年]],家計簿[月],月比較[[#This Row],[月]],家計簿[勘定科目],月比較[[#Headers],[給料]]) -> 0 | K75: =SUMIFS(家計簿[金額],家計簿[年],月比較[[#This Row],[年]],家計簿[月],月比較[[#This Row],[月]],家計簿[勘定科目],月比較[[#Headers],[ボーナス]]) -> 0 | L75: =SUMIFS(家計簿[金額],家計簿[年],月比較[[#This Row],[年]],家計簿[月],月比較[[#This Row],[月]],家計簿[勘定科目],月比較[[#Headers],[家賃補助]]) -> 0 | M75: =SUMIFS(家計簿[金額],家計簿[年],月比較[[#This Row],[年]],家計簿[月],月比較[[#This Row],[月]],家計簿[勘定科目],月比較[[#Headers],[児童手当]]) -> 0 | N75: =SUMIFS(家計簿[金額],家計簿[年],月比較[[#This Row],[年]],家計簿[月],月比較[[#This Row],[月]],家計簿[勘定科目],月比較[[#Headers],[配当金]]) -> 0 | O75: =SUMIFS(家計簿[金額],家計簿[年],月比較[[#This Row],[年]],家計簿[月],月比較[[#This Row],[月]],家計簿[勘定科目],月比較[[#Headers],[特別収入]]) -> 0 | P75: =SUMIFS(家計簿[金額],家計簿[年],月比較[[#This Row],[年]],家計簿[月],月比較[[#This Row],[月]],家計簿[勘定科目],月比較[[#Headers],[家賃]]) -> 0 | Q75: =SUMIFS(家計簿[金額],家計簿[年],月比較[[#This Row],[年]],家計簿[月],月比較[[#This Row],[月]],家計簿[勘定科目],月比較[[#Headers],[電気代]]) -> 0 | R75: =SUMIFS(家計簿[金額],家計簿[年],月比較[[#This Row],[年]],家計簿[月],月比較[[#This Row],[月]],家計簿[勘定科目],月比較[[#Headers],[ガス代]]) -> 0 | S75: =SUMIFS(家計簿[金額],家計簿[年],月比較[[#This Row],[年]],家計簿[月],月比較[[#This Row],[月]],家計簿[勘定科目],月比較[[#Headers],[水道代]]) -> 0 | T75: =SUMIFS(家計簿[金額],家計簿[年],月比較[[#This Row],[年]],家計簿[月],月比較[[#This Row],[月]],家計簿[勘定科目],月比較[[#Headers],[通信費]]) -> 0 | U75: =SUMIFS(家計簿[金額],家計簿[年],月比較[[#This Row],[年]],家計簿[月],月比較[[#This Row],[月]],家計簿[勘定科目],月比較[[#Headers],[保険代]]) -> 0 | V75: =SUMIFS(家計簿[金額],家計簿[年],月比較[[#This Row],[年]],家計簿[月],月比較[[#This Row],[月]],家計簿[勘定科目],月比較[[#Headers],[サブスク]]) -> 0 | W75: =SUMIFS(家計簿[金額],家計簿[年],月比較[[#This Row],[年]],家計簿[月],月比較[[#This Row],[月]],家計簿[勘定科目],月比較[[#Headers],[税金（固定資産、自動車）]]) -> 0 | X75: =SUMIFS(家計簿[金額],家計簿[年],月比較[[#This Row],[年]],家計簿[月],月比較[[#This Row],[月]],家計簿[勘定科目],月比較[[#Headers],[食費]]) -> 0 | Y75: =SUMIFS(家計簿[金額],家計簿[年],月比較[[#This Row],[年]],家計簿[月],月比較[[#This Row],[月]],家計簿[勘定科目],月比較[[#Headers],[日用品]]) -> 0 | Z75: =SUMIFS(家計簿[金額],家計簿[年],月比較[[#This Row],[年]],家計簿[月],月比較[[#This Row],[月]],家計簿[勘定科目],月比較[[#Headers],[衣服]]) -> 0 | AA75: =SUMIFS(家計簿[金額],家計簿[年],月比較[[#This Row],[年]],家計簿[月],月比較[[#This Row],[月]],家計簿[勘定科目],月比較[[#Headers],[教育費]]) -> 0 | AB75: =SUMIFS(家計簿[金額],家計簿[年],月比較[[#This Row],[年]],家計簿[月],月比較[[#This Row],[月]],家計簿[勘定科目],月比較[[#Headers],[外食費]]) -> 0 | AC75: =SUMIFS(家計簿[金額],家計簿[年],月比較[[#This Row],[年]],家計簿[月],月比較[[#This Row],[月]],家計簿[勘定科目],月比較[[#Headers],[移動費]]) -> 0 | AD75: =SUMIFS(家計簿[金額],家計簿[年],月比較[[#This Row],[年]],家計簿[月],月比較[[#This Row],[月]],家計簿[勘定科目],月比較[[#Headers],[旅費]]) -> 0 | AE75: =SUMIFS(家計簿[金額],家計簿[年],月比較[[#This Row],[年]],家計簿[月],月比較[[#This Row],[月]],家計簿[勘定科目],月比較[[#Headers],[娯楽費]]) -> 0 | AF75: =SUMIFS(家計簿[金額],家計簿[年],月比較[[#This Row],[年]],家計簿[月],月比較[[#This Row],[月]],家計簿[勘定科目],月比較[[#Headers],[医療費]]) -> 0 | AG75: =SUMIFS(家計簿[金額],家計簿[年],月比較[[#This Row],[年]],家計簿[月],月比較[[#This Row],[月]],家計簿[勘定科目],月比較[[#Headers],[特別出費]]) -> 0
C76: =IF(月比較[[#This Row],[月]]=1,C75+1,C75) -> 2028 | D76: 11 | E76: =DATE(月比較[[#This Row],[年]],月比較[[#This Row],[月]],1) -> 2028-11-01 | F76: =SUMIFS(家計簿[金額],家計簿[年],月比較[[#This Row],[年]],家計簿[月],月比較[[#This Row],[月]],家計簿[収入/支出],月比較[[#Headers],[収入]]) -> 0 | G76: =SUMIFS(家計簿[金額],家計簿[年],月比較[[#This Row],[年]],家計簿[月],月比較[[#This Row],[月]],家計簿[収入/支出],月比較[[#Headers],[支出]]) -> 0 | H76: =SUMIFS(家計簿[金額],家計簿[年],月比較[[#This Row],[年]],家計簿[月],月比較[[#This Row],[月]],家計簿[固定費/変動費],月比較[[#Headers],[固定費]]) -> 0 | I76: =SUMIFS(家計簿[金額],家計簿[年],月比較[[#This Row],[年]],家計簿[月],月比較[[#This Row],[月]],家計簿[固定費/変動費],月比較[[#Headers],[変動費]]) -> 0 | J76: =SUMIFS(家計簿[金額],家計簿[年],月比較[[#This Row],[年]],家計簿[月],月比較[[#This Row],[月]],家計簿[勘定科目],月比較[[#Headers],[給料]]) -> 0 | K76: =SUMIFS(家計簿[金額],家計簿[年],月比較[[#This Row],[年]],家計簿[月],月比較[[#This Row],[月]],家計簿[勘定科目],月比較[[#Headers],[ボーナス]]) -> 0 | L76: =SUMIFS(家計簿[金額],家計簿[年],月比較[[#This Row],[年]],家計簿[月],月比較[[#This Row],[月]],家計簿[勘定科目],月比較[[#Headers],[家賃補助]]) -> 0 | M76: =SUMIFS(家計簿[金額],家計簿[年],月比較[[#This Row],[年]],家計簿[月],月比較[[#This Row],[月]],家計簿[勘定科目],月比較[[#Headers],[児童手当]]) -> 0 | N76: =SUMIFS(家計簿[金額],家計簿[年],月比較[[#This Row],[年]],家計簿[月],月比較[[#This Row],[月]],家計簿[勘定科目],月比較[[#Headers],[配当金]]) -> 0 | O76: =SUMIFS(家計簿[金額],家計簿[年],月比較[[#This Row],[年]],家計簿[月],月比較[[#This Row],[月]],家計簿[勘定科目],月比較[[#Headers],[特別収入]]) -> 0 | P76: =SUMIFS(家計簿[金額],家計簿[年],月比較[[#This Row],[年]],家計簿[月],月比較[[#This Row],[月]],家計簿[勘定科目],月比較[[#Headers],[家賃]]) -> 0 | Q76: =SUMIFS(家計簿[金額],家計簿[年],月比較[[#This Row],[年]],家計簿[月],月比較[[#This Row],[月]],家計簿[勘定科目],月比較[[#Headers],[電気代]]) -> 0 | R76: =SUMIFS(家計簿[金額],家計簿[年],月比較[[#This Row],[年]],家計簿[月],月比較[[#This Row],[月]],家計簿[勘定科目],月比較[[#Headers],[ガス代]]) -> 0 | S76: =SUMIFS(家計簿[金額],家計簿[年],月比較[[#This Row],[年]],家計簿[月],月比較[[#This Row],[月]],家計簿[勘定科目],月比較[[#Headers],[水道代]]) -> 0 | T76: =SUMIFS(家計簿[金額],家計簿[年],月比較[[#This Row],[年]],家計簿[月],月比較[[#This Row],[月]],家計簿[勘定科目],月比較[[#Headers],[通信費]]) -> 0 | U76: =SUMIFS(家計簿[金額],家計簿[年],月比較[[#This Row],[年]],家計簿[月],月比較[[#This Row],[月]],家計簿[勘定科目],月比較[[#Headers],[保険代]]) -> 0 | V76: =SUMIFS(家計簿[金額],家計簿[年],月比較[[#This Row],[年]],家計簿[月],月比較[[#This Row],[月]],家計簿[勘定科目],月比較[[#Headers],[サブスク]]) -> 0 | W76: =SUMIFS(家計簿[金額],家計簿[年],月比較[[#This Row],[年]],家計簿[月],月比較[[#This Row],[月]],家計簿[勘定科目],月比較[[#Headers],[税金（固定資産、自動車）]]) -> 0 | X76: =SUMIFS(家計簿[金額],家計簿[年],月比較[[#This Row],[年]],家計簿[月],月比較[[#This Row],[月]],家計簿[勘定科目],月比較[[#Headers],[食費]]) -> 0 | Y76: =SUMIFS(家計簿[金額],家計簿[年],月比較[[#This Row],[年]],家計簿[月],月比較[[#This Row],[月]],家計簿[勘定科目],月比較[[#Headers],[日用品]]) -> 0 | Z76: =SUMIFS(家計簿[金額],家計簿[年],月比較[[#This Row],[年]],家計簿[月],月比較[[#This Row],[月]],家計簿[勘定科目],月比較[[#Headers],[衣服]]) -> 0 | AA76: =SUMIFS(家計簿[金額],家計簿[年],月比較[[#This Row],[年]],家計簿[月],月比較[[#This Row],[月]],家計簿[勘定科目],月比較[[#Headers],[教育費]]) -> 0 | AB76: =SUMIFS(家計簿[金額],家計簿[年],月比較[[#This Row],[年]],家計簿[月],月比較[[#This Row],[月]],家計簿[勘定科目],月比較[[#Headers],[外食費]]) -> 0 | AC76: =SUMIFS(家計簿[金額],家計簿[年],月比較[[#This Row],[年]],家計簿[月],月比較[[#This Row],[月]],家計簿[勘定科目],月比較[[#Headers],[移動費]]) -> 0 | AD76: =SUMIFS(家計簿[金額],家計簿[年],月比較[[#This Row],[年]],家計簿[月],月比較[[#This Row],[月]],家計簿[勘定科目],月比較[[#Headers],[旅費]]) -> 0 | AE76: =SUMIFS(家計簿[金額],家計簿[年],月比較[[#This Row],[年]],家計簿[月],月比較[[#This Row],[月]],家計簿[勘定科目],月比較[[#Headers],[娯楽費]]) -> 0 | AF76: =SUMIFS(家計簿[金額],家計簿[年],月比較[[#This Row],[年]],家計簿[月],月比較[[#This Row],[月]],家計簿[勘定科目],月比較[[#Headers],[医療費]]) -> 0 | AG76: =SUMIFS(家計簿[金額],家計簿[年],月比較[[#This Row],[年]],家計簿[月],月比較[[#This Row],[月]],家計簿[勘定科目],月比較[[#Headers],[特別出費]]) -> 0
C77: =IF(月比較[[#This Row],[月]]=1,C76+1,C76) -> 2028 | D77: 12 | E77: =DATE(月比較[[#This Row],[年]],月比較[[#This Row],[月]],1) -> 2028-12-01 | F77: =SUMIFS(家計簿[金額],家計簿[年],月比較[[#This Row],[年]],家計簿[月],月比較[[#This Row],[月]],家計簿[収入/支出],月比較[[#Headers],[収入]]) -> 0 | G77: =SUMIFS(家計簿[金額],家計簿[年],月比較[[#This Row],[年]],家計簿[月],月比較[[#This Row],[月]],家計簿[収入/支出],月比較[[#Headers],[支出]]) -> 0 | H77: =SUMIFS(家計簿[金額],家計簿[年],月比較[[#This Row],[年]],家計簿[月],月比較[[#This Row],[月]],家計簿[固定費/変動費],月比較[[#Headers],[固定費]]) -> 0 | I77: =SUMIFS(家計簿[金額],家計簿[年],月比較[[#This Row],[年]],家計簿[月],月比較[[#This Row],[月]],家計簿[固定費/変動費],月比較[[#Headers],[変動費]]) -> 0 | J77: =SUMIFS(家計簿[金額],家計簿[年],月比較[[#This Row],[年]],家計簿[月],月比較[[#This Row],[月]],家計簿[勘定科目],月比較[[#Headers],[給料]]) -> 0 | K77: =SUMIFS(家計簿[金額],家計簿[年],月比較[[#This Row],[年]],家計簿[月],月比較[[#This Row],[月]],家計簿[勘定科目],月比較[[#Headers],[ボーナス]]) -> 0 | L77: =SUMIFS(家計簿[金額],家計簿[年],月比較[[#This Row],[年]],家計簿[月],月比較[[#This Row],[月]],家計簿[勘定科目],月比較[[#Headers],[家賃補助]]) -> 0 | M77: =SUMIFS(家計簿[金額],家計簿[年],月比較[[#This Row],[年]],家計簿[月],月比較[[#This Row],[月]],家計簿[勘定科目],月比較[[#Headers],[児童手当]]) -> 0 | N77: =SUMIFS(家計簿[金額],家計簿[年],月比較[[#This Row],[年]],家計簿[月],月比較[[#This Row],[月]],家計簿[勘定科目],月比較[[#Headers],[配当金]]) -> 0 | O77: =SUMIFS(家計簿[金額],家計簿[年],月比較[[#This Row],[年]],家計簿[月],月比較[[#This Row],[月]],家計簿[勘定科目],月比較[[#Headers],[特別収入]]) -> 0 | P77: =SUMIFS(家計簿[金額],家計簿[年],月比較[[#This Row],[年]],家計簿[月],月比較[[#This Row],[月]],家計簿[勘定科目],月比較[[#Headers],[家賃]]) -> 0 | Q77: =SUMIFS(家計簿[金額],家計簿[年],月比較[[#This Row],[年]],家計簿[月],月比較[[#This Row],[月]],家計簿[勘定科目],月比較[[#Headers],[電気代]]) -> 0 | R77: =SUMIFS(家計簿[金額],家計簿[年],月比較[[#This Row],[年]],家計簿[月],月比較[[#This Row],[月]],家計簿[勘定科目],月比較[[#Headers],[ガス代]]) -> 0 | S77: =SUMIFS(家計簿[金額],家計簿[年],月比較[[#This Row],[年]],家計簿[月],月比較[[#This Row],[月]],家計簿[勘定科目],月比較[[#Headers],[水道代]]) -> 0 | T77: =SUMIFS(家計簿[金額],家計簿[年],月比較[[#This Row],[年]],家計簿[月],月比較[[#This Row],[月]],家計簿[勘定科目],月比較[[#Headers],[通信費]]) -> 0 | U77: =SUMIFS(家計簿[金額],家計簿[年],月比較[[#This Row],[年]],家計簿[月],月比較[[#This Row],[月]],家計簿[勘定科目],月比較[[#Headers],[保険代]]) -> 0 | V77: =SUMIFS(家計簿[金額],家計簿[年],月比較[[#This Row],[年]],家計簿[月],月比較[[#This Row],[月]],家計簿[勘定科目],月比較[[#Headers],[サブスク]]) -> 0 | W77: =SUMIFS(家計簿[金額],家計簿[年],月比較[[#This Row],[年]],家計簿[月],月比較[[#This Row],[月]],家計簿[勘定科目],月比較[[#Headers],[税金（固定資産、自動車）]]) -> 0 | X77: =SUMIFS(家計簿[金額],家計簿[年],月比較[[#This Row],[年]],家計簿[月],月比較[[#This Row],[月]],家計簿[勘定科目],月比較[[#Headers],[食費]]) -> 0 | Y77: =SUMIFS(家計簿[金額],家計簿[年],月比較[[#This Row],[年]],家計簿[月],月比較[[#This Row],[月]],家計簿[勘定科目],月比較[[#Headers],[日用品]]) -> 0 | Z77: =SUMIFS(家計簿[金額],家計簿[年],月比較[[#This Row],[年]],家計簿[月],月比較[[#This Row],[月]],家計簿[勘定科目],月比較[[#Headers],[衣服]]) -> 0 | AA77: =SUMIFS(家計簿[金額],家計簿[年],月比較[[#This Row],[年]],家計簿[月],月比較[[#This Row],[月]],家計簿[勘定科目],月比較[[#Headers],[教育費]]) -> 0 | AB77: =SUMIFS(家計簿[金額],家計簿[年],月比較[[#This Row],[年]],家計簿[月],月比較[[#This Row],[月]],家計簿[勘定科目],月比較[[#Headers],[外食費]]) -> 0 | AC77: =SUMIFS(家計簿[金額],家計簿[年],月比較[[#This Row],[年]],家計簿[月],月比較[[#This Row],[月]],家計簿[勘定科目],月比較[[#Headers],[移動費]]) -> 0 | AD77: =SUMIFS(家計簿[金額],家計簿[年],月比較[[#This Row],[年]],家計簿[月],月比較[[#This Row],[月]],家計簿[勘定科目],月比較[[#Headers],[旅費]]) -> 0 | AE77: =SUMIFS(家計簿[金額],家計簿[年],月比較[[#This Row],[年]],家計簿[月],月比較[[#This Row],[月]],家計簿[勘定科目],月比較[[#Headers],[娯楽費]]) -> 0 | AF77: =SUMIFS(家計簿[金額],家計簿[年],月比較[[#This Row],[年]],家計簿[月],月比較[[#This Row],[月]],家計簿[勘定科目],月比較[[#Headers],[医療費]]) -> 0 | AG77: =SUMIFS(家計簿[金額],家計簿[年],月比較[[#This Row],[年]],家計簿[月],月比較[[#This Row],[月]],家計簿[勘定科目],月比較[[#Headers],[特別出費]]) -> 0

Sheet 年別グラフ
H2: 勘定科目
H3: 収入 | I3: 収入 | J3: 収入 | K3: 収入 | L3: 収入 | M3: 収入 | N3: 支出 | O3: 支出 | P3: 支出 | Q3: 支出 | R3: 支出 | S3: 支出 | T3: 支出 | U3: 支出 | V3: 収入 | W3: 収入 | X3: 収入 | Y3: 収入 | Z3: 収入 | AA3: 収入 | AB3: 収入 | AC3: 収入 | AD3: 収入 | AE3: 収入
F4: 支出 | N4: 固定費 | O4: 固定費 | P4: 固定費 | Q4: 固定費 | R4: 固定費 | S4: 固定費 | T4: 固定費 | U4: 固定費 | V4: 変動費 | W4: 変動費 | X4: 変動費 | Y4: 変動費 | Z4: 変動費 | AA4: 変動費 | AB4: 変動費 | AC4: 変動費 | AD4: 変動費 | AE4: 変動費
C5: 年 | D5: 収入 | E5: 支出 | F5: 固定費 | G5: 変動費 | H5: 給料 | I5: ボーナス | J5: 家賃補助 | K5: 児童手当 | L5: 配当金 | M5: 特別収入 | N5: 家賃 | O5: 電気代 | P5: ガス代 | Q5: 水道代 | R5: 通信費 | S5: 保険代 | T5: サブスク | U5: 税金（固定資産、自動車） | V5: 食費 | W5: 日用品 | X5: 衣服 | Y5: 教育費 | Z5: 外食費 | AA5: 移動費 | AB5: 旅費 | AC5: 娯楽費 | AD5: 医療費 | AE5: 特別出費
C6: 2023 | D6: =SUMIFS(家計簿[金額],家計簿[年],年別詳細[[#This Row],[年]],家計簿[収入/支出],年別詳細[[#Headers],[収入]]) -> 16300 | E6: =SUMIFS(家計簿[金額],家計簿[年],年別詳細[[#This Row],[年]],家計簿[収入/支出],年別詳細[[#Headers],[支出]]) -> 149100 | F6: =SUMIFS(家計簿[金額],家計簿[年],年別詳細[[#This Row],[年]],家計簿[固定費/変動費],年別詳細[[#Headers],[固定費]]) -> 101400 | G6: =SUMIFS(家計簿[金額],家計簿[年],年別詳細[[#This Row],[年]],家計簿[固定費/変動費],年別詳細[[#Headers],[変動費]]) -> 47700 | H6: =SUMIFS(家計簿[金額],家計簿[年],年別詳細[[#This Row],[年]],家計簿[勘定科目],年別詳細[[#Headers],[給料]]) -> 0 | I6: =SUMIFS(家計簿[金額],家計簿[年],年別詳細[[#This Row],[年]],家計簿[勘定科目],年別詳細[[#Headers],[ボーナス]]) -> 0 | J6: =SUMIFS(家計簿[金額],家計簿[年],年別詳細[[#This Row],[年]],家計簿[勘定科目],年別詳細[[#Headers],[家賃補助]]) -> 0 | K6: =SUMIFS(家計簿[金額],家計簿[年],年別詳細[[#This Row],[年]],家計簿[勘定科目],年別詳細[[#Headers],[児童手当]]) -> 15000 | L6: =SUMIFS(家計簿[金額],家計簿[年],年別詳細[[#This Row],[年]],家計簿[勘定科目],年別詳細[[#Headers],[配当金]]) -> 1300 | M6: =SUMIFS(家計簿[金額],家計簿[年],年別詳細[[#This Row],[年]],家計簿[勘定科目],年別詳細[[#Headers],[特別収入]]) -> 0 | N6: =SUMIFS(家計簿[金額],家計簿[年],年別詳細[[#This Row],[年]],家計簿[勘定科目],年別詳細[[#Headers],[家賃]]) -> 70000 | O6: =SUMIFS(家計簿[金額],家計簿[年],年別詳細[[#This Row],[年]],家計簿[勘定科目],年別詳細[[#Headers],[電気代]]) -> 0 | P6: =SUMIFS(家計簿[金額],家計簿[年],年別詳細[[#This Row],[年]],家計簿[勘定科目],年別詳細[[#Headers],[ガス代]]) -> 4000 | Q6: =SUMIFS(家計簿[金額],家計簿[年],年別詳細[[#This Row],[年]],家計簿[勘定科目],年別詳細[[#Headers],[水道代]]) -> 5000 | R6: =SUMIFS(家計簿[金額],家計簿[年],年別詳細[[#This Row],[年]],家計簿[勘定科目],年別詳細[[#Headers],[通信費]]) -> 8000 | S6: =SUMIFS(家計簿[金額],家計簿[年],年別詳細[[#This Row],[年]],家計簿[勘定科目],) -> 0 | T6: =SUMIFS(家計簿[金額],家計簿[年],年別詳細[[#This Row],[年]],家計簿[勘定科目],) -> 0 | U6: =SUMIFS(家計簿[金額],家計簿[年],年別詳細[[#This Row],[年]],家計簿[勘定科目],) -> 0 | V6: =SUMIFS(家計簿[金額],家計簿[年],年別詳細[[#This Row],[年]],家計簿[勘定科目],年別詳細[[#Headers],[食費]]) -> 6200 | W6: =SUMIFS(家計簿[金額],家計簿[年],年別詳細[[#This Row],[年]],家計簿[勘定科目],年別詳細[[#Headers],[日用品]]) -> 3500 | X6: =SUMIFS(家計簿[金額],家計簿[年],年別詳細[[#This Row],[年]],家計簿[勘定科目],年別詳細[[#Headers],[衣服]]) -> 0 | Y6: =SUMIFS(家計簿[金額],家計簿[年],年別詳細[[#This Row],[年]],家計簿[勘定科目],年別詳細[[#Headers],[教育費]]) -> 0 | Z6: =SUMIFS(家計簿[金額],家計簿[年],年別詳細[[#This Row],[年]],家計簿[勘定科目],年別詳細[[#Headers],[外食費]]) -> 0 | AA6: =SUMIFS(家計簿[金額],家計簿[年],年別詳細[[#This Row],[年]],家計簿[勘定科目],年別詳細[[#Headers],[移動費]]) -> 0 | AB6: =SUMIFS(家計簿[金額],家計簿[年],年別詳細[[#This Row],[年]],家計簿[勘定科目],年別詳細[[#Headers],[旅費]]) -> 0 | AC6: =SUMIFS(家計簿[金額],家計簿[年],年別詳細[[#This Row],[年]],家計簿[勘定科目],年別詳細[[#Headers],[娯楽費]]) -> 0 | AD6: =SUMIFS(家計簿[金額],家計簿[年],年別詳細[[#This Row],[年]],家計簿[勘定科目],年別詳細[[#Headers],[医療費]]) -> 0 | AE6: =SUMIFS(家計簿[金額],家計簿[年],年別詳細[[#This Row],[年]],家計簿[勘定科目],年別詳細[[#Headers],[特別出費]]) -> 38000
C7: =C6+1 -> 2024 | D7: =SUMIFS(家計簿[金額],家計簿[年],年別詳細[[#This Row],[年]],家計簿[収入/支出],年別詳細[[#Headers],[収入]]) -> 5000 | E7: =SUMIFS(家計簿[金額],家計簿[年],年別詳細[[#This Row],[年]],家計簿[収入/支出],年別詳細[[#Headers],[支出]]) -> 15000 | F7: =SUMIFS(家計簿[金額],家計簿[年],年別詳細[[#This Row],[年]],家計簿[固定費/変動費],年別詳細[[#Headers],[固定費]]) -> 5000 | G7: =SUMIFS(家計簿[金額],家計簿[年],年別詳細[[#This Row],[年]],家計簿[固定費/変動費],年別詳細[[#Headers],[変動費]]) -> 10000 | H7: =SUMIFS(家計簿[金額],家計簿[年],年別詳細[[#This Row],[年]],家計簿[勘定科目],年別詳細[[#Headers],[給料]]) -> 0 | I7: =SUMIFS(家計簿[金額],家計簿[年],年別詳細[[#This Row],[年]],家計簿[勘定科目],年別詳細[[#Headers],[ボーナス]]) -> 0 | J7: =SUMIFS(家計簿[金額],家計簿[年],年別詳細[[#This Row],[年]],家計簿[勘定科目],年別詳細[[#Headers],[家賃補助]]) -> 0 | K7: =SUMIFS(家計簿[金額],家計簿[年],年別詳細[[#This Row],[年]],家計簿[勘定科目],年別詳細[[#Headers],[児童手当]]) -> 5000 | L7: =SUMIFS(家計簿[金額],家計簿[年],年別詳細[[#This Row],[年]],家計簿[勘定科目],年別詳細[[#Headers],[配当金]]) -> 0 | M7: =SUMIFS(家計簿[金額],家計簿[年],年別詳細[[#This Row],[年]],家計簿[勘定科目],年別詳細[[#Headers],[特別収入]]) -> 0 | N7: =SUMIFS(家計簿[金額],家計簿[年],年別詳細[[#This Row],[年]],家計簿[勘定科目],年別詳細[[#Headers],[家賃]]) -> 0 | O7: =SUMIFS(家計簿[金額],家計簿[年],年別詳細[[#This Row],[年]],家計簿[勘定科目],年別詳細[[#Headers],[電気代]]) -> 0 | P7: =SUMIFS(家計簿[金額],家計簿[年],年別詳細[[#This Row],[年]],家計簿[勘定科目],年別詳細[[#Headers],[ガス代]]) -> 0 | Q7: =SUMIFS(家計簿[金額],家計簿[年],年別詳細[[#This Row],[年]],家計簿[勘定科目],年別詳細[[#Headers],[水道代]]) -> 0 | R7: =SUMIFS(家計簿[金額],家計簿[年],年別詳細[[#This Row],[年]],家計簿[勘定科目],年別詳細[[#Headers],[通信費]]) -> 5000 | S7: =SUMIFS(家計簿[金額],家計簿[年],年別詳細[[#This Row],[年]],家計簿[勘定科目],) -> 0 | T7: =SUMIFS(家計簿[金額],家計簿[年],年別詳細[[#This Row],[年]],家計簿[勘定科目],) -> 0 | U7: =SUMIFS(家計簿[金額],家計簿[年],年別詳細[[#This Row],[年]],家計簿[勘定科目],) -> 0 | V7: =SUMIFS(家計簿[金額],家計簿[年],年別詳細[[#This Row],[年]],家計簿[勘定科目],年別詳細[[#Headers],[食費]]) -> 0 | W7: =SUMIFS(家計簿[金額],家計簿[年],年別詳細[[#This Row],[年]],家計簿[勘定科目],年別詳細[[#Headers],[日用品]]) -> 0 | X7: =SUMIFS(家計簿[金額],家計簿[年],年別詳細[[#This Row],[年]],家計簿[勘定科目],年別詳細[[#Headers],[衣服]]) -> 0 | Y7: =SUMIFS(家計簿[金額],家計簿[年],年別詳細[[#This Row],[年]],家計簿[勘定科目],年別詳細[[#Headers],[教育費]]) -> 0 | Z7: =SUMIFS(家計簿[金額],家計簿[年],年別詳細[[#This Row],[年]],家計簿[勘定科目],年別詳細[[#Headers],[外食費]]) -> 0 | AA7: =SUMIFS(家計簿[金額],家計簿[年],年別詳細[[#This Row],[年]],家計簿[勘定科目],年別詳細[[#Headers],[移動費]]) -> 10000 | AB7: =SUMIFS(家計簿[金額],家計簿[年],年別詳細[[#This Row],[年]],家計簿[勘定科目],年別詳細[[#Headers],[旅費]]) -> 0 | AC7: =SUMIFS(家計簿[金額],家計簿[年],年別詳細[[#This Row],[年]],家計簿[勘定科目],年別詳細[[#Headers],[娯楽費]]) -> 0 | AD7: =SUMIFS(家計簿[金額],家計簿[年],年別詳細[[#This Row],[年]],家計簿[勘定科目],年別詳細[[#Headers],[医療費]]) -> 0 | AE7: =SUMIFS(家計簿[金額],家計簿[年],年別詳細[[#This Row],[年]],家計簿[勘定科目],年別詳細[[#Headers],[特別出費]]) -> 0
C8: =C7+1 -> 2025 | D8: =SUMIFS(家計簿[金額],家計簿[年],年別詳細[[#This Row],[年]],家計簿[収入/支出],年別詳細[[#Headers],[収入]]) -> 0 | E8: =SUMIFS(家計簿[金額],家計簿[年],年別詳細[[#This Row],[年]],家計簿[収入/支出],年別詳細[[#Headers],[支出]]) -> 0 | F8: =SUMIFS(家計簿[金額],家計簿[年],年別詳細[[#This Row],[年]],家計簿[固定費/変動費],年別詳細[[#Headers],[固定費]]) -> 0 | G8: =SUMIFS(家計簿[金額],家計簿[年],年別詳細[[#This Row],[年]],家計簿[固定費/変動費],年別詳細[[#Headers],[変動費]]) -> 0 | H8: =SUMIFS(家計簿[金額],家計簿[年],年別詳細[[#This Row],[年]],家計簿[勘定科目],年別詳細[[#Headers],[給料]]) -> 0 | I8: =SUMIFS(家計簿[金額],家計簿[年],年別詳細[[#This Row],[年]],家計簿[勘定科目],年別詳細[[#Headers],[ボーナス]]) -> 0 | J8: =SUMIFS(家計簿[金額],家計簿[年],年別詳細[[#This Row],[年]],家計簿[勘定科目],年別詳細[[#Headers],[家賃補助]]) -> 0 | K8: =SUMIFS(家計簿[金額],家計簿[年],年別詳細[[#This Row],[年]],家計簿[勘定科目],年別詳細[[#Headers],[児童手当]]) -> 0 | L8: =SUMIFS(家計簿[金額],家計簿[年],年別詳細[[#This Row],[年]],家計簿[勘定科目],年別詳細[[#Headers],[配当金]]) -> 0 | M8: =SUMIFS(家計簿[金額],家計簿[年],年別詳細[[#This Row],[年]],家計簿[勘定科目],年別詳細[[#Headers],[特別収入]]) -> 0 | N8: =SUMIFS(家計簿[金額],家計簿[年],年別詳細[[#This Row],[年]],家計簿[勘定科目],年別詳細[[#Headers],[家賃]]) -> 0 | O8: =SUMIFS(家計簿[金額],家計簿[年],年別詳細[[#This Row],[年]],家計簿[勘定科目],年別詳細[[#Headers],[電気代]]) -> 0 | P8: =SUMIFS(家計簿[金額],家計簿[年],年別詳細[[#This Row],[年]],家計簿[勘定科目],年別詳細[[#Headers],[ガス代]]) -> 0 | Q8: =SUMIFS(家計簿[金額],家計簿[年],年別詳細[[#This Row],[年]],家計簿[勘定科目],年別詳細[[#Headers],[水道代]]) -> 0 | R8: =SUMIFS(家計簿[金額],家計簿[年],年別詳細[[#This Row],[年]],家計簿[勘定科目],年別詳細[[#Headers],[通信費]]) -> 0 | S8: =SUMIFS(家計簿[金額],家計簿[年],年別詳細[[#This Row],[年]],家計簿[勘定科目],) -> 0 | T8: =SUMIFS(家計簿[金額],家計簿[年],年別詳細[[#This Row],[年]],家計簿[勘定科目],) -> 0 | U8: =SUMIFS(家計簿[金額],家計簿[年],年別詳細[[#This Row],[年]],家計簿[勘定科目],) -> 0 | V8: =SUMIFS(家計簿[金額],家計簿[年],年別詳細[[#This Row],[年]],家計簿[勘定科目],年別詳細[[#Headers],[食費]]) -> 0 | W8: =SUMIFS(家計簿[金額],家計簿[年],年別詳細[[#This Row],[年]],家計簿[勘定科目],年別詳細[[#Headers],[日用品]]) -> 0 | X8: =SUMIFS(家計簿[金額],家計簿[年],年別詳細[[#This Row],[年]],家計簿[勘定科目],年別詳細[[#Headers],[衣服]]) -> 0 | Y8: =SUMIFS(家計簿[金額],家計簿[年],年別詳細[[#This Row],[年]],家計簿[勘定科目],年別詳細[[#Headers],[教育費]]) -> 0 | Z8: =SUMIFS(家計簿[金額],家計簿[年],年別詳細[[#This Row],[年]],家計簿[勘定科目],年別詳細[[#Headers],[外食費]]) -> 0 | AA8: =SUMIFS(家計簿[金額],家計簿[年],年別詳細[[#This Row],[年]],家計簿[勘定科目],年別詳細[[#Headers],[移動費]]) -> 0 | AB8: =SUMIFS(家計簿[金額],家計簿[年],年別詳細[[#This Row],[年]],家計簿[勘定科目],年別詳細[[#Headers],[旅費]]) -> 0 | AC8: =SUMIFS(家計簿[金額],家計簿[年],年別詳細[[#This Row],[年]],家計簿[勘定科目],年別詳細[[#Headers],[娯楽費]]) -> 0 | AD8: =SUMIFS(家計簿[金額],家計簿[年],年別詳細[[#This Row],[年]],家計簿[勘定科目],年別詳細[[#Headers],[医療費]]) -> 0 | AE8: =SUMIFS(家計簿[金額],家計簿[年],年別詳細[[#This Row],[年]],家計簿[勘定科目],年別詳細[[#Headers],[特別出費]]) -> 0
C9: 2026 | D9: =SUMIFS(家計簿[金額],家計簿[年],年別詳細[[#This Row],[年]],家計簿[収入/支出],年別詳細[[#Headers],[収入]]) -> 0 | E9: =SUMIFS(家計簿[金額],家計簿[年],年別詳細[[#This Row],[年]],家計簿[収入/支出],年別詳細[[#Headers],[支出]]) -> 0 | F9: =SUMIFS(家計簿[金額],家計簿[年],年別詳細[[#This Row],[年]],家計簿[固定費/変動費],年別詳細[[#Headers],[固定費]]) -> 0 | G9: =SUMIFS(家計簿[金額],家計簿[年],年別詳細[[#This Row],[年]],家計簿[固定費/変動費],年別詳細[[#Headers],[変動費]]) -> 0 | H9: =SUMIFS(家計簿[金額],家計簿[年],年別詳細[[#This Row],[年]],家計簿[勘定科目],年別詳細[[#Headers],[給料]]) -> 0 | I9: =SUMIFS(家計簿[金額],家計簿[年],年別詳細[[#This Row],[年]],家計簿[勘定科目],年別詳細[[#Headers],[ボーナス]]) -> 0 | J9: =SUMIFS(家計簿[金額],家計簿[年],年別詳細[[#This Row],[年]],家計簿[勘定科目],年別詳細[[#Headers],[家賃補助]]) -> 0 | K9: =SUMIFS(家計簿[金額],家計簿[年],年別詳細[[#This Row],[年]],家計簿[勘定科目],年別詳細[[#Headers],[児童手当]]) -> 0 | L9: =SUMIFS(家計簿[金額],家計簿[年],年別詳細[[#This Row],[年]],家計簿[勘定科目],年別詳細[[#Headers],[配当金]]) -> 0 | M9: =SUMIFS(家計簿[金額],家計簿[年],年別詳細[[#This Row],[年]],家計簿[勘定科目],年別詳細[[#Headers],[特別収入]]) -> 0 | N9: =SUMIFS(家計簿[金額],家計簿[年],年別詳細[[#This Row],[年]],家計簿[勘定科目],年別詳細[[#Headers],[家賃]]) -> 0 | O9: =SUMIFS(家計簿[金額],家計簿[年],年別詳細[[#This Row],[年]],家計簿[勘定科目],年別詳細[[#Headers],[電気代]]) -> 0 | P9: =SUMIFS(家計簿[金額],家計簿[年],年別詳細[[#This Row],[年]],家計簿[勘定科目],年別詳細[[#Headers],[ガス代]]) -> 0 | Q9: =SUMIFS(家計簿[金額],家計簿[年],年別詳細[[#This Row],[年]],家計簿[勘定科目],年別詳細[[#Headers],[水道代]]) -> 0 | R9: =SUMIFS(家計簿[金額],家計簿[年],年別詳細[[#This Row],[年]],家計簿[勘定科目],年別詳細[[#Headers],[通信費]]) -> 0 | S9: =SUMIFS(家計簿[金額],家計簿[年],年別詳細[[#This Row],[年]],家計簿[勘定科目],) -> 0 | T9: =SUMIFS(家計簿[金額],家計簿[年],年別詳細[[#This Row],[年]],家計簿[勘定科目],) -> 0 | U9: =SUMIFS(家計簿[金額],家計簿[年],年別詳細[[#This Row],[年]],家計簿[勘定科目],) -> 0 | V9: =SUMIFS(家計簿[金額],家計簿[年],年別詳細[[#This Row],[年]],家計簿[勘定科目],年別詳細[[#Headers],[食費]]) -> 0 | W9: =SUMIFS(家計簿[金額],家計簿[年],年別詳細[[#This Row],[年]],家計簿[勘定科目],年別詳細[[#Headers],[日用品]]) -> 0 | X9: =SUMIFS(家計簿[金額],家計簿[年],年別詳細[[#This Row],[年]],家計簿[勘定科目],年別詳細[[#Headers],[衣服]]) -> 0 | Y9: =SUMIFS(家計簿[金額],家計簿[年],年別詳細[[#This Row],[年]],家計簿[勘定科目],年別詳細[[#Headers],[教育費]]) -> 0 | Z9: =SUMIFS(家計簿[金額],家計簿[年],年別詳細[[#This Row],[年]],家計簿[勘定科目],年別詳細[[#Headers],[外食費]]) -> 0 | AA9: =SUMIFS(家計簿[金額],家計簿[年],年別詳細[[#This Row],[年]],家計簿[勘定科目],年別詳細[[#Headers],[移動費]]) -> 0 | AB9: =SUMIFS(家計簿[金額],家計簿[年],年別詳細[[#This Row],[年]],家計簿[勘定科目],年別詳細[[#Headers],[旅費]]) -> 0 | AC9: =SUMIFS(家計簿[金額],家計簿[年],年別詳細[[#This Row],[年]],家計簿[勘定科目],年別詳細[[#Headers],[娯楽費]]) -> 0 | AD9: =SUMIFS(家計簿[金額],家計簿[年],年別詳細[[#This Row],[年]],家計簿[勘定科目],年別詳細[[#Headers],[医療費]]) -> 0 | AE9: =SUMIFS(家計簿[金額],家計簿[年],年別詳細[[#This Row],[年]],家計簿[勘定科目],年別詳細[[#Headers],[特別出費]]) -> 0
C10: 2027 | D10: =SUMIFS(家計簿[金額],家計簿[年],年別詳細[[#This Row],[年]],家計簿[収入/支出],年別詳細[[#Headers],[収入]]) -> 0 | E10: =SUMIFS(家計簿[金額],家計簿[年],年別詳細[[#This Row],[年]],家計簿[収入/支出],年別詳細[[#Headers],[支出]]) -> 0 | F10: =SUMIFS(家計簿[金額],家計簿[年],年別詳細[[#This Row],[年]],家計簿[固定費/変動費],年別詳細[[#Headers],[固定費]]) -> 0 | G10: =SUMIFS(家計簿[金額],家計簿[年],年別詳細[[#This Row],[年]],家計簿[固定費/変動費],年別詳細[[#Headers],[変動費]]) -> 0 | H10: =SUMIFS(家計簿[金額],家計簿[年],年別詳細[[#This Row],[年]],家計簿[勘定科目],年別詳細[[#Headers],[給料]]) -> 0 | I10: =SUMIFS(家計簿[金額],家計簿[年],年別詳細[[#This Row],[年]],家計簿[勘定科目],年別詳細[[#Headers],[ボーナス]]) -> 0 | J10: =SUMIFS(家計簿[金額],家計簿[年],年別詳細[[#This Row],[年]],家計簿[勘定科目],年別詳細[[#Headers],[家賃補助]]) -> 0 | K10: =SUMIFS(家計簿[金額],家計簿[年],年別詳細[[#This Row],[年]],家計簿[勘定科目],年別詳細[[#Headers],[児童手当]]) -> 0 | L10: =SUMIFS(家計簿[金額],家計簿[年],年別詳細[[#This Row],[年]],家計簿[勘定科目],年別詳細[[#Headers],[配当金]]) -> 0 | M10: =SUMIFS(家計簿[金額],家計簿[年],年別詳細[[#This Row],[年]],家計簿[勘定科目],年別詳細[[#Headers],[特別収入]]) -> 0 | N10: =SUMIFS(家計簿[金額],家計簿[年],年別詳細[[#This Row],[年]],家計簿[勘定科目],年別詳細[[#Headers],[家賃]]) -> 0 | O10: =SUMIFS(家計簿[金額],家計簿[年],年別詳細[[#This Row],[年]],家計簿[勘定科目],年別詳細[[#Headers],[電気代]]) -> 0 | P10: =SUMIFS(家計簿[金額],家計簿[年],年別詳細[[#This Row],[年]],家計簿[勘定科目],年別詳細[[#Headers],[ガス代]]) -> 0 | Q10: =SUMIFS(家計簿[金額],家計簿[年],年別詳細[[#This Row],[年]],家計簿[勘定科目],年別詳細[[#Headers],[水道代]]) -> 0 | R10: =SUMIFS(家計簿[金額],家計簿[年],年別詳細[[#This Row],[年]],家計簿[勘定科目],年別詳細[[#Headers],[通信費]]) -> 0 | S10: =SUMIFS(家計簿[金額],家計簿[年],年別詳細[[#This Row],[年]],家計簿[勘定科目],) -> 0 | T10: =SUMIFS(家計簿[金額],家計簿[年],年別詳細[[#This Row],[年]],家計簿[勘定科目],) -> 0 | U10: =SUMIFS(家計簿[金額],家計簿[年],年別詳細[[#This Row],[年]],家計簿[勘定科目],) -> 0 | V10: =SUMIFS(家計簿[金額],家計簿[年],年別詳細[[#This Row],[年]],家計簿[勘定科目],年別詳細[[#Headers],[食費]]) -> 0 | W10: =SUMIFS(家計簿[金額],家計簿[年],年別詳細[[#This Row],[年]],家計簿[勘定科目],年別詳細[[#Headers],[日用品]]) -> 0 | X10: =SUMIFS(家計簿[金額],家計簿[年],年別詳細[[#This Row],[年]],家計簿[勘定科目],年別詳細[[#Headers],[衣服]]) -> 0 | Y10: =SUMIFS(家計簿[金額],家計簿[年],年別詳細[[#This Row],[年]],家計簿[勘定科目],年別詳細[[#Headers],[教育費]]) -> 0 | Z10: =SUMIFS(家計簿[金額],家計簿[年],年別詳細[[#This Row],[年]],家計簿[勘定科目],年別詳細[[#Headers],[外食費]]) -> 0 | AA10: =SUMIFS(家計簿[金額],家計簿[年],年別詳細[[#This Row],[年]],家計簿[勘定科目],年別詳細[[#Headers],[移動費]]) -> 0 | AB10: =SUMIFS(家計簿[金額],家計簿[年],年別詳細[[#This Row],[年]],家計簿[勘定科目],年別詳細[[#Headers],[旅費]]) -> 0 | AC10: =SUMIFS(家計簿[金額],家計簿[年],年別詳細[[#This Row],[年]],家計簿[勘定科目],年別詳細[[#Headers],[娯楽費]]) -> 0 | AD10: =SUMIFS(家計簿[金額],家計簿[年],年別詳細[[#This Row],[年]],家計簿[勘定科目],年別詳細[[#Headers],[医療費]]) -> 0 | AE10: =SUMIFS(家計簿[金額],家計簿[年],年別詳細[[#This Row],[年]],家計簿[勘定科目],年別詳細[[#Headers],[特別出費]]) -> 0
C11: 2028 | D11: =SUMIFS(家計簿[金額],家計簿[年],年別詳細[[#This Row],[年]],家計簿[収入/支出],年別詳細[[#Headers],[収入]]) -> 0 | E11: =SUMIFS(家計簿[金額],家計簿[年],年別詳細[[#This Row],[年]],家計簿[収入/支出],年別詳細[[#Headers],[支出]]) -> 0 | F11: =SUMIFS(家計簿[金額],家計簿[年],年別詳細[[#This Row],[年]],家計簿[固定費/変動費],年別詳細[[#Headers],[固定費]]) -> 0 | G11: =SUMIFS(家計簿[金額],家計簿[年],年別詳細[[#This Row],[年]],家計簿[固定費/変動費],年別詳細[[#Headers],[変動費]]) -> 0 | H11: =SUMIFS(家計簿[金額],家計簿[年],年別詳細[[#This Row],[年]],家計簿[勘定科目],年別詳細[[#Headers],[給料]]) -> 0 | I11: =SUMIFS(家計簿[金額],家計簿[年],年別詳細[[#This Row],[年]],家計簿[勘定科目],年別詳細[[#Headers],[ボーナス]]) -> 0 | J11: =SUMIFS(家計簿[金額],家計簿[年],年別詳細[[#This Row],[年]],家計簿[勘定科目],年別詳細[[#Headers],[家賃補助]]) -> 0 | K11: =SUMIFS(家計簿[金額],家計簿[年],年別詳細[[#This Row],[年]],家計簿[勘定科目],年別詳細[[#Headers],[児童手当]]) -> 0 | L11: =SUMIFS(家計簿[金額],家計簿[年],年別詳細[[#This Row],[年]],家計簿[勘定科目],年別詳細[[#Headers],[配当金]]) -> 0 | M11: =SUMIFS(家計簿[金額],家計簿[年],年別詳細[[#This Row],[年]],家計簿[勘定科目],年別詳細[[#Headers],[特別収入]]) -> 0 | N11: =SUMIFS(家計簿[金額],家計簿[年],年別詳細[[#This Row],[年]],家計簿[勘定科目],年別詳細[[#Headers],[家賃]]) -> 0 | O11: =SUMIFS(家計簿[金額],家計簿[年],年別詳細[[#This Row],[年]],家計簿[勘定科目],年別詳細[[#Headers],[電気代]]) -> 0 | P11: =SUMIFS(家計簿[金額],家計簿[年],年別詳細[[#This Row],[年]],家計簿[勘定科目],年別詳細[[#Headers],[ガス代]]) -> 0 | Q11: =SUMIFS(家計簿[金額],家計簿[年],年別詳細[[#This Row],[年]],家計簿[勘定科目],年別詳細[[#Headers],[水道代]]) -> 0 | R11: =SUMIFS(家計簿[金額],家計簿[年],年別詳細[[#This Row],[年]],家計簿[勘定科目],年別詳細[[#Headers],[通信費]]) -> 0 | S11: =SUMIFS(家計簿[金額],家計簿[年],年別詳細[[#This Row],[年]],家計簿[勘定科目],) -> 0 | T11: =SUMIFS(家計簿[金額],家計簿[年],年別詳細[[#This Row],[年]],家計簿[勘定科目],) -> 0 | U11: =SUMIFS(家計簿[金額],家計簿[年],年別詳細[[#This Row],[年]],家計簿[勘定科目],) -> 0 | V11: =SUMIFS(家計簿[金額],家計簿[年],年別詳細[[#This Row],[年]],家計簿[勘定科目],年別詳細[[#Headers],[食費]]) -> 0 | W11: =SUMIFS(家計簿[金額],家計簿[年],年別詳細[[#This Row],[年]],家計簿[勘定科目],年別詳細[[#Headers],[日用品]]) -> 0 | X11: =SUMIFS(家計簿[金額],家計簿[年],年別詳細[[#This Row],[年]],家計簿[勘定科目],年別詳細[[#Headers],[衣服]]) -> 0 | Y11: =SUMIFS(家計簿[金額],家計簿[年],年別詳細[[#This Row],[年]],家計簿[勘定科目],年別詳細[[#Headers],[教育費]]) -> 0 | Z11: =SUMIFS(家計簿[金額],家計簿[年],年別詳細[[#This Row],[年]],家計簿[勘定科目],年別詳細[[#Headers],[外食費]]) -> 0 | AA11: =SUMIFS(家計簿[金額],家計簿[年],年別詳細[[#This Row],[年]],家計簿[勘定科目],年別詳細[[#Headers],[移動費]]) -> 0 | AB11: =SUMIFS(家計簿[金額],家計簿[年],年別詳細[[#This Row],[年]],家計簿[勘定科目],年別詳細[[#Headers],[旅費]]) -> 0 | AC11: =SUMIFS(家計簿[金額],家計簿[年],年別詳細[[#This Row],[年]],家計簿[勘定科目],年別詳細[[#Headers],[娯楽費]]) -> 0 | AD11: =SUMIFS(家計簿[金額],家計簿[年],年別詳細[[#This Row],[年]],家計簿[勘定科目],年別詳細[[#Headers],[医療費]]) -> 0 | AE11: =SUMIFS(家計簿[金額],家計簿[年],年別詳細[[#This Row],[年]],家計簿[勘定科目],年別詳細[[#Headers],[特別出費]]) -> 0
C12: 2029 | D12: =SUMIFS(家計簿[金額],家計簿[年],年別詳細[[#This Row],[年]],家計簿[収入/支出],年別詳細[[#Headers],[収入]]) -> 0 | E12: =SUMIFS(家計簿[金額],家計簿[年],年別詳細[[#This Row],[年]],家計簿[収入/支出],年別詳細[[#Headers],[支出]]) -> 0 | F12: =SUMIFS(家計簿[金額],家計簿[年],年別詳細[[#This Row],[年]],家計簿[固定費/変動費],年別詳細[[#Headers],[固定費]]) -> 0 | G12: =SUMIFS(家計簿[金額],家計簿[年],年別詳細[[#This Row],[年]],家計簿[固定費/変動費],年別詳細[[#Headers],[変動費]]) -> 0 | H12: =SUMIFS(家計簿[金額],家計簿[年],年別詳細[[#This Row],[年]],家計簿[勘定科目],年別詳細[[#Headers],[給料]]) -> 0 | I12: =SUMIFS(家計簿[金額],家計簿[年],年別詳細[[#This Row],[年]],家計簿[勘定科目],年別詳細[[#Headers],[ボーナス]]) -> 0 | J12: =SUMIFS(家計簿[金額],家計簿[年],年別詳細[[#This Row],[年]],家計簿[勘定科目],年別詳細[[#Headers],[家賃補助]]) -> 0 | K12: =SUMIFS(家計簿[金額],家計簿[年],年別詳細[[#This Row],[年]],家計簿[勘定科目],年別詳細[[#Headers],[児童手当]]) -> 0 | L12: =SUMIFS(家計簿[金額],家計簿[年],年別詳細[[#This Row],[年]],家計簿[勘定科目],年別詳細[[#Headers],[配当金]]) -> 0 | M12: =SUMIFS(家計簿[金額],家計簿[年],年別詳細[[#This Row],[年]],家計簿[勘定科目],年別詳細[[#Headers],[特別収入]]) -> 0 | N12: =SUMIFS(家計簿[金額],家計簿[年],年別詳細[[#This Row],[年]],家計簿[勘定科目],年別詳細[[#Headers],[家賃]]) -> 0 | O12: =SUMIFS(家計簿[金額],家計簿[年],年別詳細[[#This Row],[年]],家計簿[勘定科目],年別詳細[[#Headers],[電気代]]) -> 0 | P12: =SUMIFS(家計簿[金額],家計簿[年],年別詳細[[#This Row],[年]],家計簿[勘定科目],年別詳細[[#Headers],[ガス代]]) -> 0 | Q12: =SUMIFS(家計簿[金額],家計簿[年],年別詳細[[#This Row],[年]],家計簿[勘定科目],年別詳細[[#Headers],[水道代]]) -> 0 | R12: =SUMIFS(家計簿[金額],家計簿[年],年別詳細[[#This Row],[年]],家計簿[勘定科目],年別詳細[[#Headers],[通信費]]) -> 0 | S12: =SUMIFS(家計簿[金額],家計簿[年],年別詳細[[#This Row],[年]],家計簿[勘定科目],) -> 0 | T12: =SUMIFS(家計簿[金額],家計簿[年],年別詳細[[#This Row],[年]],家計簿[勘定科目],) -> 0 | U12: =SUMIFS(家計簿[金額],家計簿[年],年別詳細[[#This Row],[年]],家計簿[勘定科目],) -> 0 | V12: =SUMIFS(家計簿[金額],家計簿[年],年別詳細[[#This Row],[年]],家計簿[勘定科目],年別詳細[[#Headers],[食費]]) -> 0 | W12: =SUMIFS(家計簿[金額],家計簿[年],年別詳細[[#This Row],[年]],家計簿[勘定科目],年別詳細[[#Headers],[日用品]]) -> 0 | X12: =SUMIFS(家計簿[金額],家計簿[年],年別詳細[[#This Row],[年]],家計簿[勘定科目],年別詳細[[#Headers],[衣服]]) -> 0 | Y12: =SUMIFS(家計簿[金額],家計簿[年],年別詳細[[#This Row],[年]],家計簿[勘定科目],年別詳細[[#Headers],[教育費]]) -> 0 | Z12: =SUMIFS(家計簿[金額],家計簿[年],年別詳細[[#This Row],[年]],家計簿[勘定科目],年別詳細[[#Headers],[外食費]]) -> 0 | AA12: =SUMIFS(家計簿[金額],家計簿[年],年別詳細[[#This Row],[年]],家計簿[勘定科目],年別詳細[[#Headers],[移動費]]) -> 0 | AB12: =SUMIFS(家計簿[金額],家計簿[年],年別詳細[[#This Row],[年]],家計簿[勘定科目],年別詳細[[#Headers],[旅費]]) -> 0 | AC12: =SUMIFS(家計簿[金額],家計簿[年],年別詳細[[#This Row],[年]],家計簿[勘定科目],年別詳細[[#Headers],[娯楽費]]) -> 0 | AD12: =SUMIFS(家計簿[金額],家計簿[年],年別詳細[[#This Row],[年]],家計簿[勘定科目],年別詳細[[#Headers],[医療費]]) -> 0 | AE12: =SUMIFS(家計簿[金額],家計簿[年],年別詳細[[#This Row],[年]],家計簿[勘定科目],年別詳細[[#Headers],[特別出費]]) -> 0
C13: 2030 | D13: =SUMIFS(家計簿[金額],家計簿[年],年別詳細[[#This Row],[年]],家計簿[収入/支出],年別詳細[[#Headers],[収入]]) -> 0 | E13: =SUMIFS(家計簿[金額],家計簿[年],年別詳細[[#This Row],[年]],家計簿[収入/支出],年別詳細[[#Headers],[支出]]) -> 0 | F13: =SUMIFS(家計簿[金額],家計簿[年],年別詳細[[#This Row],[年]],家計簿[固定費/変動費],年別詳細[[#Headers],[固定費]]) -> 0 | G13: =SUMIFS(家計簿[金額],家計簿[年],年別詳細[[#This Row],[年]],家計簿[固定費/変動費],年別詳細[[#Headers],[変動費]]) -> 0 | H13: =SUMIFS(家計簿[金額],家計簿[年],年別詳細[[#This Row],[年]],家計簿[勘定科目],年別詳細[[#Headers],[給料]]) -> 0 | I13: =SUMIFS(家計簿[金額],家計簿[年],年別詳細[[#This Row],[年]],家計簿[勘定科目],年別詳細[[#Headers],[ボーナス]]) -> 0 | J13: =SUMIFS(家計簿[金額],家計簿[年],年別詳細[[#This Row],[年]],家計簿[勘定科目],年別詳細[[#Headers],[家賃補助]]) -> 0 | K13: =SUMIFS(家計簿[金額],家計簿[年],年別詳細[[#This Row],[年]],家計簿[勘定科目],年別詳細[[#Headers],[児童手当]]) -> 0 | L13: =SUMIFS(家計簿[金額],家計簿[年],年別詳細[[#This Row],[年]],家計簿[勘定科目],年別詳細[[#Headers],[配当金]]) -> 0 | M13: =SUMIFS(家計簿[金額],家計簿[年],年別詳細[[#This Row],[年]],家計簿[勘定科目],年別詳細[[#Headers],[特別収入]]) -> 0 | N13: =SUMIFS(家計簿[金額],家計簿[年],年別詳細[[#This Row],[年]],家計簿[勘定科目],年別詳細[[#Headers],[家賃]]) -> 0 | O13: =SUMIFS(家計簿[金額],家計簿[年],年別詳細[[#This Row],[年]],家計簿[勘定科目],年別詳細[[#Headers],[電気代]]) -> 0 | P13: =SUMIFS(家計簿[金額],家計簿[年],年別詳細[[#This Row],[年]],家計簿[勘定科目],年別詳細[[#Headers],[ガス代]]) -> 0 | Q13: =SUMIFS(家計簿[金額],家計簿[年],年別詳細[[#This Row],[年]],家計簿[勘定科目],年別詳細[[#Headers],[水道代]]) -> 0 | R13: =SUMIFS(家計簿[金額],家計簿[年],年別詳細[[#This Row],[年]],家計簿[勘定科目],年別詳細[[#Headers],[通信費]]) -> 0 | S13: =SUMIFS(家計簿[金額],家計簿[年],年別詳細[[#This Row],[年]],家計簿[勘定科目],) -> 0 | T13: =SUMIFS(家計簿[金額],家計簿[年],年別詳細[[#This Row],[年]],家計簿[勘定科目],) -> 0 | U13: =SUMIFS(家計簿[金額],家計簿[年],年別詳細[[#This Row],[年]],家計簿[勘定科目],) -> 0 | V13: =SUMIFS(家計簿[金額],家計簿[年],年別詳細[[#This Row],[年]],家計簿[勘定科目],年別詳細[[#Headers],[食費]]) -> 0 | W13: =SUMIFS(家計簿[金額],家計簿[年],年別詳細[[#This Row],[年]],家計簿[勘定科目],年別詳細[[#Headers],[日用品]]) -> 0 | X13: =SUMIFS(家計簿[金額],家計簿[年],年別詳細[[#This Row],[年]],家計簿[勘定科目],年別詳細[[#Headers],[衣服]]) -> 0 | Y13: =SUMIFS(家計簿[金額],家計簿[年],年別詳細[[#This Row],[年]],家計簿[勘定科目],年別詳細[[#Headers],[教育費]]) -> 0 | Z13: =SUMIFS(家計簿[金額],家計簿[年],年別詳細[[#This Row],[年]],家計簿[勘定科目],年別詳細[[#Headers],[外食費]]) -> 0 | AA13: =SUMIFS(家計簿[金額],家計簿[年],年別詳細[[#This Row],[年]],家計簿[勘定科目],年別詳細[[#Headers],[移動費]]) -> 0 | AB13: =SUMIFS(家計簿[金額],家計簿[年],年別詳細[[#This Row],[年]],家計簿[勘定科目],年別詳細[[#Headers],[旅費]]) -> 0 | AC13: =SUMIFS(家計簿[金額],家計簿[年],年別詳細[[#This Row],[年]],家計簿[勘定科目],年別詳細[[#Headers],[娯楽費]]) -> 0 | AD13: =SUMIFS(家計簿[金額],家計簿[年],年別詳細[[#This Row],[年]],家計簿[勘定科目],年別詳細[[#Headers],[医療費]]) -> 0 | AE13: =SUMIFS(家計簿[金額],家計簿[年],年別詳細[[#This Row],[年]],家計簿[勘定科目],年別詳細[[#Headers],[特別出費]]) -> 0
C14: 2031 | D14: =SUMIFS(家計簿[金額],家計簿[年],年別詳細[[#This Row],[年]],家計簿[収入/支出],年別詳細[[#Headers],[収入]]) -> 0 | E14: =SUMIFS(家計簿[金額],家計簿[年],年別詳細[[#This Row],[年]],家計簿[収入/支出],年別詳細[[#Headers],[支出]]) -> 0 | F14: =SUMIFS(家計簿[金額],家計簿[年],年別詳細[[#This Row],[年]],家計簿[固定費/変動費],年別詳細[[#Headers],[固定費]]) -> 0 | G14: =SUMIFS(家計簿[金額],家計簿[年],年別詳細[[#This Row],[年]],家計簿[固定費/変動費],年別詳細[[#Headers],[変動費]]) -> 0 | H14: =SUMIFS(家計簿[金額],家計簿[年],年別詳細[[#This Row],[年]],家計簿[勘定科目],年別詳細[[#Headers],[給料]]) -> 0 | I14: =SUMIFS(家計簿[金額],家計簿[年],年別詳細[[#This Row],[年]],家計簿[勘定科目],年別詳細[[#Headers],[ボーナス]]) -> 0 | J14: =SUMIFS(家計簿[金額],家計簿[年],年別詳細[[#This Row],[年]],家計簿[勘定科目],年別詳細[[#Headers],[家賃補助]]) -> 0 | K14: =SUMIFS(家計簿[金額],家計簿[年],年別詳細[[#This Row],[年]],家計簿[勘定科目],年別詳細[[#Headers],[児童手当]]) -> 0 | L14: =SUMIFS(家計簿[金額],家計簿[年],年別詳細[[#This Row],[年]],家計簿[勘定科目],年別詳細[[#Headers],[配当金]]) -> 0 | M14: =SUMIFS(家計簿[金額],家計簿[年],年別詳細[[#This Row],[年]],家計簿[勘定科目],年別詳細[[#Headers],[特別収入]]) -> 0 | N14: =SUMIFS(家計簿[金額],家計簿[年],年別詳細[[#This Row],[年]],家計簿[勘定科目],年別詳細[[#Headers],[家賃]]) -> 0 | O14: =SUMIFS(家計簿[金額],家計簿[年],年別詳細[[#This Row],[年]],家計簿[勘定科目],年別詳細[[#Headers],[電気代]]) -> 0 | P14: =SUMIFS(家計簿[金額],家計簿[年],年別詳細[[#This Row],[年]],家計簿[勘定科目],年別詳細[[#Headers],[ガス代]]) -> 0 | Q14: =SUMIFS(家計簿[金額],家計簿[年],年別詳細[[#This Row],[年]],家計簿[勘定科目],年別詳細[[#Headers],[水道代]]) -> 0 | R14: =SUMIFS(家計簿[金額],家計簿[年],年別詳細[[#This Row],[年]],家計簿[勘定科目],年別詳細[[#Headers],[通信費]]) -> 0 | S14: =SUMIFS(家計簿[金額],家計簿[年],年別詳細[[#This Row],[年]],家計簿[勘定科目],) -> 0 | T14: =SUMIFS(家計簿[金額],家計簿[年],年別詳細[[#This Row],[年]],家計簿[勘定科目],) -> 0 | U14: =SUMIFS(家計簿[金額],家計簿[年],年別詳細[[#This Row],[年]],家計簿[勘定科目],) -> 0 | V14: =SUMIFS(家計簿[金額],家計簿[年],年別詳細[[#This Row],[年]],家計簿[勘定科目],年別詳細[[#Headers],[食費]]) -> 0 | W14: =SUMIFS(家計簿[金額],家計簿[年],年別詳細[[#This Row],[年]],家計簿[勘定科目],年別詳細[[#Headers],[日用品]]) -> 0 | X14: =SUMIFS(家計簿[金額],家計簿[年],年別詳細[[#This Row],[年]],家計簿[勘定科目],年別詳細[[#Headers],[衣服]]) -> 0 | Y14: =SUMIFS(家計簿[金額],家計簿[年],年別詳細[[#This Row],[年]],家計簿[勘定科目],年別詳細[[#Headers],[教育費]]) -> 0 | Z14: =SUMIFS(家計簿[金額],家計簿[年],年別詳細[[#This Row],[年]],家計簿[勘定科目],年別詳細[[#Headers],[外食費]]) -> 0 | AA14: =SUMIFS(家計簿[金額],家計簿[年],年別詳細[[#This Row],[年]],家計簿[勘定科目],年別詳細[[#Headers],[移動費]]) -> 0 | AB14: =SUMIFS(家計簿[金額],家計簿[年],年別詳細[[#This Row],[年]],家計簿[勘定科目],年別詳細[[#Headers],[旅費]]) -> 0 | AC14: =SUMIFS(家計簿[金額],家計簿[年],年別詳細[[#This Row],[年]],家計簿[勘定科目],年別詳細[[#Headers],[娯楽費]]) -> 0 | AD14: =SUMIFS(家計簿[金額],家計簿[年],年別詳細[[#This Row],[年]],家計簿[勘定科目],年別詳細[[#Headers],[医療費]]) -> 0 | AE14: =SUMIFS(家計簿[金額],家計簿[年],年別詳細[[#This Row],[年]],家計簿[勘定科目],年別詳細[[#Headers],[特別出費]]) -> 0
